Workbook

Sheet サマリー
B3: カテゴリースコア算出
B8: シート内容
B9: データセット１シート
B10: ・・・ | C10: GoogleAnalyticsのレポートを張り付けるシート
B12: カテゴリースコアシート
B13: ・・・ | C13: データセット1からデータを読み込む。また回帰分析結果のSheet1からデータを読み込む
B15: 説明変数のダミー化シート
B16: ・・・ | C16: データシート１のデータが並べ替えられるシート
B18: Sheet1
B19: ・・・ | C19: 説明変数のダミー化シートで回帰分析を行い生成されるシート
B23: 手順
B24: ① | C24: データセット1シートにGoogleAnalyticsのレポートを張り付ける。
C25: 【日付】・【設定したディメンション】・【収益】・【セッション】の順に並べる。
B27: ② | C27: カテゴリースコアシートのB2～B9にデータセット１の【設定したディメンション】の内容を記入する
B29: ③ | C29: 説明変数のダミー化シートのデータで「回帰分析」を実行しSheet1を生成する。
B31: ④ | C31: カテゴリースコアシートでマクロを実行する

Sheet データセット1
A1: 日付 | B1: 年齢 | C1: 収益 | D1: セッション
A2: 20171003 | B2: 25-34 | C2: 8349.49 | D2: 849
A3: 20171004 | B3: 25-34 | C3: 6725.62 | D3: 1300 | G3: A列：日付や番号など（データが違うのであれば重複しても問題はない）
A4: 20171023 | B4: 25-34 | C4: 6677.38 | D4: 836 | G4: B列：カテゴリー 定性である （例：メディア、性別、年齢など）
A5: 20171004 | B5: 35-44 | C5: 5773.21 | D5: 720 | G5: C列：目的変数Y 数量である （例：売上、収益など）
A6: 20171010 | B6: 25-34 | C6: 5571.51 | D6: 810 | G6: D列：カテゴリーの持つある種の数量 （セッション数、クリック数など）
A7: 20171009 | B7: 35-44 | C7: 5533.83 | D7: 468
A8: 20171024 | B8: 35-44 | C8: 5370.78 | D8: 433 | G8: 例）収益に対するメディア別のセッションの重要度を見る
A9: 20171020 | B9: 25-34 | C9: 5278.24 | D9: 767
A10: 20171010 | B10: 35-44 | C10: 5238.51 | D10: 486
A11: 20171017 | B11: 35-44 | C11: 5220.36 | D11: 467 | G11: 必須：GoogleAnalyticsでカスタムレポートを用意する。
A12: 20171026 | B12: 25-34 | C12: 5136.94 | D12: 889 | G12: 項目は日付とでディメンションで１つ、指標は２つにする。
A13: 20171016 | B13: 25-34 | C13: 4790.1 | D13: 734 | G13: （例：ディメンションはメディア、指標を収益とセッションにすると
A14: 20171003 | B14: 35-44 | C14: 4767.35 | D14: 527 | G14: 収益に対するメディアごとのセッションの重要度がわかる）
A15: 20171012 | B15: 25-34 | C15: 4663.15 | D15: 677
A16: 20171030 | B16: 35-44 | C16: 4543.69 | D16: 395
A17: 20171028 | B17: 35-44 | C17: 4541.46 | D17: 263
A18: 20171021 | B18: 25-34 | C18: 4533.85 | D18: 412
A19: 20171009 | B19: 25-34 | C19: 4496.02 | D19: 873
A20: 20171016 | B20: 35-44 | C20: 4434.78 | D20: 427
A21: 20171025 | B21: 25-34 | C21: 4220.74 | D21: 820
A22: 20171013 | B22: 35-44 | C22: 4212.37 | D22: 389
A23: 20171031 | B23: 25-34 | C23: 4156.85 | D23: 635
A24: 20171029 | B24: 25-34 | C24: 4156.29 | D24: 451
A25: 20171007 | B25: 25-34 | C25: 4080.02 | D25: 606
A26: 20171002 | B26: 25-34 | C26: 4030.11 | D26: 853
A27: 20171002 | B27: 35-44 | C27: 4003.89 | D27: 492
A28: 20171026 | B28: 35-44 | C28: 3933.74 | D28: 459
A29: 20171018 | B29: 25-34 | C29: 3849.72 | D29: 821
A30: 20171019 | B30: 35-44 | C30: 3819.18 | D30: 406
A31: 20171019 | B31: 25-34 | C31: 3718.95 | D31: 713
A32: 20171005 | B32: 35-44 | C32: 3511.68 | D32: 678
A33: 20171011 | B33: 35-44 | C33: 3482.78 | D33: 386
A34: 20171030 | B34: 25-34 | C34: 3446.53 | D34: 790
A35: 20171006 | B35: 35-44 | C35: 3420.4 | D35: 558
A36: 20171001 | B36: 35-44 | C36: 3388.52 | D36: 382
A37: 20171013 | B37: 25-34 | C37: 3385.52 | D37: 660
A38: 20171020 | B38: 35-44 | C38: 3332.93 | D38: 339
A39: 20171015 | B39: 35-44 | C39: 3238.4 | D39: 244
A40: 20171027 | B40: 45-54 | C40: 3237.96 | D40: 146
A41: 20171027 | B41: 25-34 | C41: 3204.68 | D41: 661
A42: 20171027 | B42: 35-44 | C42: 3143.71 | D42: 375
A43: 20171006 | B43: 25-34 | C43: 3011.97 | D43: 854
A44: 20171014 | B44: 25-34 | C44: 2892.24 | D44: 363
A45: 20171001 | B45: 25-34 | C45: 2888.88 | D45: 500
A46: 20171008 | B46: 35-44 | C46: 2861.17 | D46: 367
A47: 20171015 | B47: 25-34 | C47: 2857.4 | D47: 408
A48: 20171012 | B48: 35-44 | C48: 2836.91 | D48: 355
A49: 20171004 | B49: 45-54 | C49: 2734.01 | D49: 263
A50: 20171005 | B50: 25-34 | C50: 2726.13 | D50: 1039
A51: 20171022 | B51: 25-34 | C51: 2599.93 | D51: 544
A52: 20171029 | B52: 35-44 | C52: 2596.41 | D52: 223
A53: 20171023 | B53: 35-44 | C53: 2538.39 | D53: 428
A54: 20171024 | B54: 25-34 | C54: 2489.26 | D54: 824
A55: 20171031 | B55: 35-44 | C55: 2444.44 | D55: 332
A56: 20171011 | B56: 25-34 | C56: 2315.89 | D56: 758
A57: 20171014 | B57: 35-44 | C57: 2278 | D57: 240
A58: 20171017 | B58: 25-34 | C58: 2253.98 | D58: 946
A59: 20171003 | B59: 45-54 | C59: 2130.74 | D59: 176
A60: 20171022 | B60: 35-44 | C60: 2103.96 | D60: 300
A61: 20171018 | B61: 35-44 | C61: 2094.87 | D61: 431
A62: 20171025 | B62: 35-44 | C62: 1743.78 | D62: 441
A63: 20171003 | B63: 18-24 | C63: 1710.16 | D63: 474
A64: 20171008 | B64: 25-34 | C64: 1706.2 | D64: 624
A65: 20171016 | B65: 45-54 | C65: 1704.15 | D65: 162
A66: 20171028 | B66: 25-34 | C66: 1674.09 | D66: 351
A67: 20171011 | B67: 45-54 | C67: 1604.35 | D67: 190
A68: 20171021 | B68: 35-44 | C68: 1516.72 | D68: 242
A69: 20171017 | B69: 18-24 | C69: 1505.99 | D69: 711
A70: 20171002 | B70: 18-24 | C70: 1455 | D70: 504
A71: 20171021 | B71: 45-54 | C71: 1320.87 | D71: 120
A72: 20171027 | B72: 18-24 | C72: 1152.74 | D72: 453
A73: 20171005 | B73: 45-54 | C73: 1117.88 | D73: 250
A74: 20171030 | B74: 55-64 | C74: 1115.99 | D74: 68
A75: 20171008 | B75: 18-24 | C75: 1062.58 | D75: 509
A76: 20171031 | B76: 45-54 | C76: 1005.27 | D76: 150
A77: 20171009 | B77: 18-24 | C77: 1001.25 | D77: 505
A78: 20171017 | B78: 45-54 | C78: 976.44 | D78: 168
A79: 20171006 | B79: 45-54 | C79: 967.55 | D79: 236
A80: 20171022 | B80: 18-24 | C80: 958.2 | D80: 435
A81: 20171007 | B81: 35-44 | C81: 955.69 | D81: 409
A82: 20171012 | B82: 18-24 | C82: 944.91 | D82: 440
A83: 20171013 | B83: 45-54 | C83: 899.83 | D83: 116
A84: 20171009 | B84: 55-64 | C84: 787.6 | D84: 111
A85: 20171001 | B85: 18-24 | C85: 730.33 | D85: 402
A86: 20171015 | B86: 18-24 | C86: 707.36 | D86: 288
A87: 20171010 | B87: 45-54 | C87: 701.88 | D87: 165
A88: 20171012 | B88: 45-54 | C88: 674.79 | D88: 140
A89: 20171015 | B89: 45-54 | C89: 655 | D89: 107
A90: 20171029 | B90: 45-54 | C90: 622.75 | D90: 114
A91: 20171011 | B91: 18-24 | C91: 615.23 | D91: 492
A92: 20171023 | B92: 45-54 | C92: 598.6 | D92: 178
A93: 20171030 | B93: 45-54 | C93: 596 | D93: 156
A94: 20171022 | B94: 45-54 | C94: 558 | D94: 110
A95: 20171028 | B95: 18-24 | C95: 550.71 | D95: 304
A96: 20171024 | B96: 55-64 | C96: 531.91 | D96: 63
A97: 20171020 | B97: 18-24 | C97: 508.62 | D97: 402
A98: 20171019 | B98: 45-54 | C98: 475.06 | D98: 160
A99: 20171024 | B99: 45-54 | C99: 467 | D99: 144
A100: 20171022 | B100: 55-64 | C100: 456 | D100: 65
A101: 20171006 | B101: 18-24 | C101: 449.8 | D101: 485
A102: 20171030 | B102: 18-24 | C102: 424.98 | D102: 520
A103: 20171018 | B103: 45-54 | C103: 404.47 | D103: 147
A104: 20171023 | B104: 18-24 | C104: 397 | D104: 564
A105: 20171025 | B105: 45-54 | C105: 391 | D105: 175
A106: 20171031 | B106: 65+ | C106: 388.7 | D106: 43
A107: 20171009 | B107: 45-54 | C107: 383.47 | D107: 188
A108: 20171002 | B108: 45-54 | C108: 376 | D108: 183
A109: 20171031 | B109: 18-24 | C109: 367.88 | D109: 422
A110: 20171016 | B110: 18-24 | C110: 335.68 | D110: 406
A111: 20171026 | B111: 45-54 | C111: 327 | D111: 158
A112: 20171007 | B112: 18-24 | C112: 262.15 | D112: 410
A113: 20171031 | B113: 55-64 | C113: 254.5 | D113: 64
A114: 20171001 | B114: 45-54 | C114: 238 | D114: 197
A115: 20171020 | B115: 45-54 | C115: 228.28 | D115: 166
A116: 20171005 | B116: 18-24 | C116: 225.91 | D116: 599
A117: 20171027 | B117: 55-64 | C117: 224.85 | D117: 68
A118: 20171013 | B118: 18-24 | C118: 223.77 | D118: 337
A119: 20171004 | B119: 18-24 | C119: 218.2 | D119: 623
A120: 20171014 | B120: 18-24 | C120: 200.39 | D120: 335
A121: 20171026 | B121: 18-24 | C121: 198.86 | D121: 512
A122: 20171028 | B122: 45-54 | C122: 176.95 | D122: 119
A123: 20171010 | B123: 55-64 | C123: 168.19 | D123: 128
A124: 20171024 | B124: 18-24 | C124: 166.72 | D124: 467
A125: 20171021 | B125: 18-24 | C125: 158 | D125: 337
A126: 20171024 | B126: 65+ | C126: 158 | D126: 61
A127: 20171007 | B127: 45-54 | C127: 157.94 | D127: 218
A128: 20171002 | B128: 55-64 | C128: 149 | D128: 111
A129: 20171019 | B129: 18-24 | C129: 149 | D129: 425
A130: 20171010 | B130: 18-24 | C130: 142.98 | D130: 519
A131: 20171026 | B131: 55-64 | C131: 129.62 | D131: 83
A132: 20171028 | B132: 55-64 | C132: 122.5 | D132: 71
A133: 20171007 | B133: 55-64 | C133: 119 | D133: 120
A134: 20171021 | B134: 65+ | C134: 119 | D134: 53
A135: 20171025 | B135: 18-24 | C135: 112.49 | D135: 443
A136: 20171006 | B136: 55-64 | C136: 68.55 | D136: 122
A137: 20171018 | B137: 18-24 | C137: 58.56 | D137: 514
A138: 20171025 | B138: 55-64 | C138: 48.93 | D138: 75
A139: 20171005 | B139: 65+ | C139: 33.98 | D139: 80
A140: 20171001 | B140: 55-64 | C140: 31.98 | D140: 109
A141: 20171023 | B141: 55-64 | C141: 21.79 | D141: 86
A142: 20171029 | B142: 18-24 | C142: 15.74 | D142: 363
A143: 20171005 | B143: 55-64 | C143: 10.5 | D143: 154
A144: 20171001 | B144: 65+ | C144: 0 | D144: 73
A145: 20171002 | B145: 65+ | C145: 0 | D145: 64
A146: 20171003 | B146: 55-64 | C146: 0 | D146: 113
A147: 20171003 | B147: 65+ | C147: 0 | D147: 66
A148: 20171004 | B148: 55-64 | C148: 0 | D148: 134
A149: 20171004 | B149: 65+ | C149: 0 | D149: 63
A150: 20171006 | B150: 65+ | C150: 0 | D150: 68
A151: 20171007 | B151: 65+ | C151: 0 | D151: 77
A152: 20171008 | B152: 45-54 | C152: 0 | D152: 144
A153: 20171008 | B153: 55-64 | C153: 0 | D153: 77
A154: 20171008 | B154: 65+ | C154: 0 | D154: 58
A155: 20171009 | B155: 65+ | C155: 0 | D155: 60
A156: 20171010 | B156: 65+ | C156: 0 | D156: 63
A157: 20171011 | B157: 55-64 | C157: 0 | D157: 74
A158: 20171011 | B158: 65+ | C158: 0 | D158: 48
A159: 20171012 | B159: 55-64 | C159: 0 | D159: 63
A160: 20171012 | B160: 65+ | C160: 0 | D160: 31
A161: 20171013 | B161: 55-64 | C161: 0 | D161: 58
A162: 20171013 | B162: 65+ | C162: 0 | D162: 45
A163: 20171014 | B163: 45-54 | C163: 0 | D163: 104
A164: 20171014 | B164: 55-64 | C164: 0 | D164: 44
A165: 20171014 | B165: 65+ | C165: 0 | D165: 28
A166: 20171015 | B166: 55-64 | C166: 0 | D166: 44
A167: 20171015 | B167: 65+ | C167: 0 | D167: 19
A168: 20171016 | B168: 55-64 | C168: 0 | D168: 78
A169: 20171016 | B169: 65+ | C169: 0 | D169: 68
A170: 20171017 | B170: 55-64 | C170: 0 | D170: 78
A171: 20171017 | B171: 65+ | C171: 0 | D171: 64
A172: 20171018 | B172: 55-64 | C172: 0 | D172: 71
A173: 20171018 | B173: 65+ | C173: 0 | D173: 40
A174: 20171019 | B174: 55-64 | C174: 0 | D174: 62
A175: 20171019 | B175: 65+ | C175: 0 | D175: 41
A176: 20171020 | B176: 55-64 | C176: 0 | D176: 61
A177: 20171020 | B177: 65+ | C177: 0 | D177: 65
A178: 20171021 | B178: 55-64 | C178: 0 | D178: 75
A179: 20171022 | B179: 65+ | C179: 0 | D179: 50
A180: 20171023 | B180: 65+ | C180: 0 | D180: 58
A181: 20171025 | B181: 65+ | C181: 0 | D181: 43
A182: 20171026 | B182: 65+ | C182: 0 | D182: 52
A183: 20171027 | B183: 65+ | C183: 0 | D183: 42
A184: 20171028 | B184: 65+ | C184: 0 | D184: 41
A185: 20171029 | B185: 55-64 | C185: 0 | D185: 49
A186: 20171029 | B186: 65+ | C186: 0 | D186: 41
A187: 20171030 | B187: 65+ | C187: 0 | D187: 42

Sheet カテゴリースコア
B1: 説明変数 カテゴリーデータ | C1: =データセット1!D1 -> セッション | D1: ①標本数 | E1: 平均 | F1: ②係数 | G1: ③（①＊②） | H1: ④（③の合計） | I1: ⑤（④の平均） | J1: ⑥（②‐⑤） | L1: 説明変数名 | M1: =IF(B2<>"",B2,"") -> 18-24 | N1: =IF(B3<>"",B3,"") -> 25-34 | O1: =IF(B4<>"",B4,"") -> 35-44 | P1: =IF(B5<>"",B5,"") -> 45-54 | Q1: =IF(B6<>"",B6,"") -> 55-64 | R1: =IF(B7<>"",B7,"") -> 65+ | S1: =IF(B8<>"",B8,"") ->  | T1: =IF(B9<>"",B9,"") ->  | U1: =IF(B10<>"",B10,"") -> 
B2: 18-24 | C2: =IF(B2<>"",SUM(M:M),"") -> 14200 | D2: =IF(B2<>"",COUNT(M:M),0) -> 31 | E2: =IF(D2=0,"",C2/D2) -> 458.0645161 | F2: -778.7839549 | G2: =F2*D2 -> -24142.3026 | H2: =SUM(G2:G10) -> 117556.8335 | I2: =H2/SUM(D2:D10) -> 632.0259867 | J2: =IF(B2<>"",F2-$I$2,"") -> -1410.809942 | M2: =IF(データセット1!$B2<>"",IF($M$1=データセット1!$B2,データセット1!$D2),"") -> FALSE | N2: =IF(データセット1!$B2<>"",IF($N$1=データセット1!$B2,データセット1!$D2),"") -> 849 | O2: =IF(データセット1!$B2<>"",IF($O$1=データセット1!$B2,データセット1!$D2),"") -> FALSE | P2: =IF(データセット1!$B2<>"",IF($P$1=データセット1!$B2,データセット1!$D2),"") -> FALSE | Q2: =IF(データセット1!$B2<>"",IF($Q$1=データセット1!$B2,データセット1!$D2),"") -> FALSE | R2: =IF(データセット1!$B2<>"",IF($R$1=データセット1!$B2,データセット1!$D2),"") -> FALSE | S2: =IF(データセット1!$B2<>"",IF($S$1=データセット1!$B2,データセット1!$D2),"") -> FALSE | T2: =IF(データセット1!$B2<>"",IF($T$1=データセット1!$B2,データセット1!$D2),"") -> FALSE | U2: =IF(データセット1!$B2<>"",IF($U$1=データセット1!$B2,データセット1!$D2),"") -> FALSE
B3: 25-34 | C3: =IF(B3<>"",SUM(N:N),"") -> 22368 | D3: 31 | E3: 721.5483871 | F3: 1755.214698 | G3: =F3*D3 -> 54411.65563 | J3: 1123.188711 | M3: =IF(データセット1!$B3<>"",IF($M$1=データセット1!$B3,データセット1!$D3),"") -> FALSE | N3: =IF(データセット1!$B3<>"",IF($N$1=データセット1!$B3,データセット1!$D3),"") -> 1300 | O3: =IF(データセット1!$B3<>"",IF($O$1=データセット1!$B3,データセット1!$D3),"") -> FALSE | P3: =IF(データセット1!$B3<>"",IF($P$1=データセット1!$B3,データセット1!$D3),"") -> FALSE | Q3: =IF(データセット1!$B3<>"",IF($Q$1=データセット1!$B3,データセット1!$D3),"") -> FALSE | R3: =IF(データセット1!$B3<>"",IF($R$1=データセット1!$B3,データセット1!$D3),"") -> FALSE | S3: =IF(データセット1!$B3<>"",IF($S$1=データセット1!$B3,データセット1!$D3),"") -> FALSE | T3: =IF(データセット1!$B3<>"",IF($T$1=データセット1!$B3,データセット1!$D3),"") -> FALSE | U3: =IF(データセット1!$B3<>"",IF($U$1=データセット1!$B3,データセット1!$D3),"") -> FALSE
B4: 35-44 | C4: =IF(B4<>"",SUM(O:O),"") -> 12662 | D4: 31 | E4: 408.4516129 | F4: 2344.672235 | G4: 72684.83927 | J4: 1712.646248 | M4: =IF(データセット1!$B4<>"",IF($M$1=データセット1!$B4,データセット1!$D4),"") -> FALSE | N4: =IF(データセット1!$B4<>"",IF($N$1=データセット1!$B4,データセット1!$D4),"") -> 836 | O4: =IF(データセット1!$B4<>"",IF($O$1=データセット1!$B4,データセット1!$D4),"") -> FALSE | P4: =IF(データセット1!$B4<>"",IF($P$1=データセット1!$B4,データセット1!$D4),"") -> FALSE | Q4: =IF(データセット1!$B4<>"",IF($Q$1=データセット1!$B4,データセット1!$D4),"") -> FALSE | R4: =IF(データセット1!$B4<>"",IF($R$1=データセット1!$B4,データセット1!$D4),"") -> FALSE | S4: =IF(データセット1!$B4<>"",IF($S$1=データセット1!$B4,データセット1!$D4),"") -> FALSE | T4: =IF(データセット1!$B4<>"",IF($T$1=データセット1!$B4,データセット1!$D4),"") -> FALSE | U4: =IF(データセット1!$B4<>"",IF($U$1=データセット1!$B4,データセット1!$D4),"") -> FALSE
B5: 45-54 | C5: =IF(B5<>"",SUM(P:P),"") -> 5050 | D5: 31 | E5: 162.9032258 | F5: 453.7068594 | G5: 14064.91264 | J5: -178.3191272 | M5: =IF(データセット1!$B5<>"",IF($M$1=データセット1!$B5,データセット1!$D5),"") -> FALSE | N5: =IF(データセット1!$B5<>"",IF($N$1=データセット1!$B5,データセット1!$D5),"") -> FALSE | O5: =IF(データセット1!$B5<>"",IF($O$1=データセット1!$B5,データセット1!$D5),"") -> 720 | P5: =IF(データセット1!$B5<>"",IF($P$1=データセット1!$B5,データセット1!$D5),"") -> FALSE | Q5: =IF(データセット1!$B5<>"",IF($Q$1=データセット1!$B5,データセット1!$D5),"") -> FALSE | R5: =IF(データセット1!$B5<>"",IF($R$1=データセット1!$B5,データセット1!$D5),"") -> FALSE | S5: =IF(データセット1!$B5<>"",IF($S$1=データセット1!$B5,データセット1!$D5),"") -> FALSE | T5: =IF(データセット1!$B5<>"",IF($T$1=データセット1!$B5,データセット1!$D5),"") -> FALSE | U5: =IF(データセット1!$B5<>"",IF($U$1=データセット1!$B5,データセット1!$D5),"") -> FALSE
B6: 55-64 | C6: =IF(B6<>"",SUM(Q:Q),"") -> 2579 | D6: 31 | E6: =IF(D6=0,"",C6/D6) -> 83.19354839 | F6: 17.34608318 | G6: 537.7285785 | J6: -614.6799035 | M6: =IF(データセット1!$B6<>"",IF($M$1=データセット1!$B6,データセット1!$D6),"") -> FALSE | N6: =IF(データセット1!$B6<>"",IF($N$1=データセット1!$B6,データセット1!$D6),"") -> 810 | O6: =IF(データセット1!$B6<>"",IF($O$1=データセット1!$B6,データセット1!$D6),"") -> FALSE | P6: =IF(データセット1!$B6<>"",IF($P$1=データセット1!$B6,データセット1!$D6),"") -> FALSE | Q6: =IF(データセット1!$B6<>"",IF($Q$1=データセット1!$B6,データセット1!$D6),"") -> FALSE | R6: =IF(データセット1!$B6<>"",IF($R$1=データセット1!$B6,データセット1!$D6),"") -> FALSE | S6: =IF(データセット1!$B6<>"",IF($S$1=データセット1!$B6,データセット1!$D6),"") -> FALSE | T6: =IF(データセット1!$B6<>"",IF($T$1=データセット1!$B6,データセット1!$D6),"") -> FALSE | U6: =IF(データセット1!$B6<>"",IF($U$1=データセット1!$B6,データセット1!$D6),"") -> FALSE
B7: 65+ | C7: =IF(B7<>"",SUM(R:R),"") -> 1647 | D7: 31 | E7: 53.12903226 | F7: 0 | G7: 0 | J7: -632.0259867 | M7: =IF(データセット1!$B7<>"",IF($M$1=データセット1!$B7,データセット1!$D7),"") -> FALSE | N7: =IF(データセット1!$B7<>"",IF($N$1=データセット1!$B7,データセット1!$D7),"") -> FALSE | O7: =IF(データセット1!$B7<>"",IF($O$1=データセット1!$B7,データセット1!$D7),"") -> 468 | P7: =IF(データセット1!$B7<>"",IF($P$1=データセット1!$B7,データセット1!$D7),"") -> FALSE | Q7: =IF(データセット1!$B7<>"",IF($Q$1=データセット1!$B7,データセット1!$D7),"") -> FALSE | R7: =IF(データセット1!$B7<>"",IF($R$1=データセット1!$B7,データセット1!$D7),"") -> FALSE | S7: =IF(データセット1!$B7<>"",IF($S$1=データセット1!$B7,データセット1!$D7),"") -> FALSE | T7: =IF(データセット1!$B7<>"",IF($T$1=データセット1!$B7,データセット1!$D7),"") -> FALSE | U7: =IF(データセット1!$B7<>"",IF($U$1=データセット1!$B7,データセット1!$D7),"") -> FALSE
C8: =IF(B8<>"",SUM(S:S),"") ->  | D8: 0 | E8: =IF(D8=0,"",C8/D8) ->  | F8: 0 | G8: 0 | M8: =IF(データセット1!$B8<>"",IF($M$1=データセット1!$B8,データセット1!$D8),"") -> FALSE | N8: =IF(データセット1!$B8<>"",IF($N$1=データセット1!$B8,データセット1!$D8),"") -> FALSE | O8: =IF(データセット1!$B8<>"",IF($O$1=データセット1!$B8,データセット1!$D8),"") -> 433 | P8: =IF(データセット1!$B8<>"",IF($P$1=データセット1!$B8,データセット1!$D8),"") -> FALSE | Q8: =IF(データセット1!$B8<>"",IF($Q$1=データセット1!$B8,データセット1!$D8),"") -> FALSE | R8: =IF(データセット1!$B8<>"",IF($R$1=データセット1!$B8,データセット1!$D8),"") -> FALSE | S8: =IF(データセット1!$B8<>"",IF($S$1=データセット1!$B8,データセット1!$D8),"") -> FALSE | T8: =IF(データセット1!$B8<>"",IF($T$1=データセット1!$B8,データセット1!$D8),"") -> FALSE | U8: =IF(データセット1!$B8<>"",IF($U$1=データセット1!$B8,データセット1!$D8),"") -> FALSE
C9: =IF(B9<>"",SUM(T:T),"") ->  | D9: 0 | E9: =IF(D9=0,"",C9/D9) ->  | F9: 0 | G9: 0 | M9: =IF(データセット1!$B9<>"",IF($M$1=データセット1!$B9,データセット1!$D9),"") -> FALSE | N9: =IF(データセット1!$B9<>"",IF($N$1=データセット1!$B9,データセット1!$D9),"") -> 767 | O9: =IF(データセット1!$B9<>"",IF($O$1=データセット1!$B9,データセット1!$D9),"") -> FALSE | P9: =IF(データセット1!$B9<>"",IF($P$1=データセット1!$B9,データセット1!$D9),"") -> FALSE | Q9: =IF(データセット1!$B9<>"",IF($Q$1=データセット1!$B9,データセット1!$D9),"") -> FALSE | R9: =IF(データセット1!$B9<>"",IF($R$1=データセット1!$B9,データセット1!$D9),"") -> FALSE | S9: =IF(データセット1!$B9<>"",IF($S$1=データセット1!$B9,データセット1!$D9),"") -> FALSE | T9: =IF(データセット1!$B9<>"",IF($T$1=データセット1!$B9,データセット1!$D9),"") -> FALSE | U9: =IF(データセット1!$B9<>"",IF($U$1=データセット1!$B9,データセット1!$D9),"") -> FALSE
C10: =IF(B10<>"",SUM(U:U),"") ->  | D10: 0 | F10: 0 | G10: 0 | J10: =IF(B10<>"",F10-$I$2,"") ->  | M10: =IF(データセット1!$B10<>"",IF($M$1=データセット1!$B10,データセット1!$D10),"") -> FALSE | N10: =IF(データセット1!$B10<>"",IF($N$1=データセット1!$B10,データセット1!$D10),"") -> FALSE | O10: =IF(データセット1!$B10<>"",IF($O$1=データセット1!$B10,データセット1!$D10),"") -> 486 | P10: =IF(データセット1!$B10<>"",IF($P$1=データセット1!$B10,データセット1!$D10),"") -> FALSE | Q10: =IF(データセット1!$B10<>"",IF($Q$1=データセット1!$B10,データセット1!$D10),"") -> FALSE | R10: =IF(データセット1!$B10<>"",IF($R$1=データセット1!$B10,データセット1!$D10),"") -> FALSE | S10: =IF(データセット1!$B10<>"",IF($S$1=データセット1!$B10,データセット1!$D10),"") -> FALSE | T10: =IF(データセット1!$B10<>"",IF($T$1=データセット1!$B10,データセット1!$D10),"") -> FALSE | U10: =IF(データセット1!$B10<>"",IF($U$1=データセット1!$B10,データセット1!$D10),"") -> FALSE
B11: 全体 | C11: =SUM(C2:C10) -> 58506 | D11: =SUM(D2:D10) -> 186 | E11: =C11/D11 -> 314.5483871 | M11: =IF(データセット1!$B11<>"",IF($M$1=データセット1!$B11,データセット1!$D11),"") -> FALSE | N11: =IF(データセット1!$B11<>"",IF($N$1=データセット1!$B11,データセット1!$D11),"") -> FALSE | O11: =IF(データセット1!$B11<>"",IF($O$1=データセット1!$B11,データセット1!$D11),"") -> 467 | P11: =IF(データセット1!$B11<>"",IF($P$1=データセット1!$B11,データセット1!$D11),"") -> FALSE | Q11: =IF(データセット1!$B11<>"",IF($Q$1=データセット1!$B11,データセット1!$D11),"") -> FALSE | R11: =IF(データセット1!$B11<>"",IF($R$1=データセット1!$B11,データセット1!$D11),"") -> FALSE | S11: =IF(データセット1!$B11<>"",IF($S$1=データセット1!$B11,データセット1!$D11),"") -> FALSE | T11: =IF(データセット1!$B11<>"",IF($T$1=データセット1!$B11,データセット1!$D11),"") -> FALSE | U11: =IF(データセット1!$B11<>"",IF($U$1=データセット1!$B11,データセット1!$D11),"") -> FALSE
M12: =IF(データセット1!$B12<>"",IF($M$1=データセット1!$B12,データセット1!$D12),"") -> FALSE | N12: =IF(データセット1!$B12<>"",IF($N$1=データセット1!$B12,データセット1!$D12),"") -> 889 | O12: =IF(データセット1!$B12<>"",IF($O$1=データセット1!$B12,データセット1!$D12),"") -> FALSE | P12: =IF(データセット1!$B12<>"",IF($P$1=データセット1!$B12,データセット1!$D12),"") -> FALSE | Q12: =IF(データセット1!$B12<>"",IF($Q$1=データセット1!$B12,データセット1!$D12),"") -> FALSE | R12: =IF(データセット1!$B12<>"",IF($R$1=データセット1!$B12,データセット1!$D12),"") -> FALSE | S12: =IF(データセット1!$B12<>"",IF($S$1=データセット1!$B12,データセット1!$D12),"") -> FALSE | T12: =IF(データセット1!$B12<>"",IF($T$1=データセット1!$B12,データセット1!$D12),"") -> FALSE | U12: =IF(データセット1!$B12<>"",IF($U$1=データセット1!$B12,データセット1!$D12),"") -> FALSE
B13: ①データセット１のシートのA列にあるカテゴリーにする項目を上の表のB列にコピーする | M13: =IF(データセット1!$B13<>"",IF($M$1=データセット1!$B13,データセット1!$D13),"") -> FALSE | N13: =IF(データセット1!$B13<>"",IF($N$1=データセット1!$B13,データセット1!$D13),"") -> 734 | O13: =IF(データセット1!$B13<>"",IF($O$1=データセット1!$B13,データセット1!$D13),"") -> FALSE | P13: =IF(データセット1!$B13<>"",IF($P$1=データセット1!$B13,データセット1!$D13),"") -> FALSE | Q13: =IF(データセット1!$B13<>"",IF($Q$1=データセット1!$B13,データセット1!$D13),"") -> FALSE | R13: =IF(データセット1!$B13<>"",IF($R$1=データセット1!$B13,データセット1!$D13),"") -> FALSE | S13: =IF(データセット1!$B13<>"",IF($S$1=データセット1!$B13,データセット1!$D13),"") -> FALSE | T13: =IF(データセット1!$B13<>"",IF($T$1=データセット1!$B13,データセット1!$D13),"") -> FALSE | U13: =IF(データセット1!$B13<>"",IF($U$1=データセット1!$B13,データセット1!$D13),"") -> FALSE
B14: →次に説明変数のダミー化シート内で作業 | M14: =IF(データセット1!$B14<>"",IF($M$1=データセット1!$B14,データセット1!$D14),"") -> FALSE | N14: =IF(データセット1!$B14<>"",IF($N$1=データセット1!$B14,データセット1!$D14),"") -> FALSE | O14: =IF(データセット1!$B14<>"",IF($O$1=データセット1!$B14,データセット1!$D14),"") -> 527 | P14: =IF(データセット1!$B14<>"",IF($P$1=データセット1!$B14,データセット1!$D14),"") -> FALSE | Q14: =IF(データセット1!$B14<>"",IF($Q$1=データセット1!$B14,データセット1!$D14),"") -> FALSE | R14: =IF(データセット1!$B14<>"",IF($R$1=データセット1!$B14,データセット1!$D14),"") -> FALSE | S14: =IF(データセット1!$B14<>"",IF($S$1=データセット1!$B14,データセット1!$D14),"") -> FALSE | T14: =IF(データセット1!$B14<>"",IF($T$1=データセット1!$B14,データセット1!$D14),"") -> FALSE | U14: =IF(データセット1!$B14<>"",IF($U$1=データセット1!$B14,データセット1!$D14),"") -> FALSE
M15: =IF(データセット1!$B15<>"",IF($M$1=データセット1!$B15,データセット1!$D15),"") -> FALSE | N15: =IF(データセット1!$B15<>"",IF($N$1=データセット1!$B15,データセット1!$D15),"") -> 677 | O15: =IF(データセット1!$B15<>"",IF($O$1=データセット1!$B15,データセット1!$D15),"") -> FALSE | P15: =IF(データセット1!$B15<>"",IF($P$1=データセット1!$B15,データセット1!$D15),"") -> FALSE | Q15: =IF(データセット1!$B15<>"",IF($Q$1=データセット1!$B15,データセット1!$D15),"") -> FALSE | R15: =IF(データセット1!$B15<>"",IF($R$1=データセット1!$B15,データセット1!$D15),"") -> FALSE | S15: =IF(データセット1!$B15<>"",IF($S$1=データセット1!$B15,データセット1!$D15),"") -> FALSE | T15: =IF(データセット1!$B15<>"",IF($T$1=データセット1!$B15,データセット1!$D15),"") -> FALSE | U15: =IF(データセット1!$B15<>"",IF($U$1=データセット1!$B15,データセット1!$D15),"") -> FALSE
M16: =IF(データセット1!$B16<>"",IF($M$1=データセット1!$B16,データセット1!$D16),"") -> FALSE | N16: =IF(データセット1!$B16<>"",IF($N$1=データセット1!$B16,データセット1!$D16),"") -> FALSE | O16: =IF(データセット1!$B16<>"",IF($O$1=データセット1!$B16,データセット1!$D16),"") -> 395 | P16: =IF(データセット1!$B16<>"",IF($P$1=データセット1!$B16,データセット1!$D16),"") -> FALSE | Q16: =IF(データセット1!$B16<>"",IF($Q$1=データセット1!$B16,データセット1!$D16),"") -> FALSE | R16: =IF(データセット1!$B16<>"",IF($R$1=データセット1!$B16,データセット1!$D16),"") -> FALSE | S16: =IF(データセット1!$B16<>"",IF($S$1=データセット1!$B16,データセット1!$D16),"") -> FALSE | T16: =IF(データセット1!$B16<>"",IF($T$1=データセット1!$B16,データセット1!$D16),"") -> FALSE | U16: =IF(データセット1!$B16<>"",IF($U$1=データセット1!$B16,データセット1!$D16),"") -> FALSE
M17: =IF(データセット1!$B17<>"",IF($M$1=データセット1!$B17,データセット1!$D17),"") -> FALSE | N17: =IF(データセット1!$B17<>"",IF($N$1=データセット1!$B17,データセット1!$D17),"") -> FALSE | O17: =IF(データセット1!$B17<>"",IF($O$1=データセット1!$B17,データセット1!$D17),"") -> 263 | P17: =IF(データセット1!$B17<>"",IF($P$1=データセット1!$B17,データセット1!$D17),"") -> FALSE | Q17: =IF(データセット1!$B17<>"",IF($Q$1=データセット1!$B17,データセット1!$D17),"") -> FALSE | R17: =IF(データセット1!$B17<>"",IF($R$1=データセット1!$B17,データセット1!$D17),"") -> FALSE | S17: =IF(データセット1!$B17<>"",IF($S$1=データセット1!$B17,データセット1!$D17),"") -> FALSE | T17: =IF(データセット1!$B17<>"",IF($T$1=データセット1!$B17,データセット1!$D17),"") -> FALSE | U17: =IF(データセット1!$B17<>"",IF($U$1=データセット1!$B17,データセット1!$D17),"") -> FALSE
M18: =IF(データセット1!$B18<>"",IF($M$1=データセット1!$B18,データセット1!$D18),"") -> FALSE | N18: =IF(データセット1!$B18<>"",IF($N$1=データセット1!$B18,データセット1!$D18),"") -> 412 | O18: =IF(データセット1!$B18<>"",IF($O$1=データセット1!$B18,データセット1!$D18),"") -> FALSE | P18: =IF(データセット1!$B18<>"",IF($P$1=データセット1!$B18,データセット1!$D18),"") -> FALSE | Q18: =IF(データセット1!$B18<>"",IF($Q$1=データセット1!$B18,データセット1!$D18),"") -> FALSE | R18: =IF(データセット1!$B18<>"",IF($R$1=データセット1!$B18,データセット1!$D18),"") -> FALSE | S18: =IF(データセット1!$B18<>"",IF($S$1=データセット1!$B18,データセット1!$D18),"") -> FALSE | T18: =IF(データセット1!$B18<>"",IF($T$1=データセット1!$B18,データセット1!$D18),"") -> FALSE | U18: =IF(データセット1!$B18<>"",IF($U$1=データセット1!$B18,データセット1!$D18),"") -> FALSE
B19: スコア計算 | M19: =IF(データセット1!$B19<>"",IF($M$1=データセット1!$B19,データセット1!$D19),"") -> FALSE | N19: =IF(データセット1!$B19<>"",IF($N$1=データセット1!$B19,データセット1!$D19),"") -> 873 | O19: =IF(データセット1!$B19<>"",IF($O$1=データセット1!$B19,データセット1!$D19),"") -> FALSE | P19: =IF(データセット1!$B19<>"",IF($P$1=データセット1!$B19,データセット1!$D19),"") -> FALSE | Q19: =IF(データセット1!$B19<>"",IF($Q$1=データセット1!$B19,データセット1!$D19),"") -> FALSE | R19: =IF(データセット1!$B19<>"",IF($R$1=データセット1!$B19,データセット1!$D19),"") -> FALSE | S19: =IF(データセット1!$B19<>"",IF($S$1=データセット1!$B19,データセット1!$D19),"") -> FALSE | T19: =IF(データセット1!$B19<>"",IF($T$1=データセット1!$B19,データセット1!$D19),"") -> FALSE | U19: =IF(データセット1!$B19<>"",IF($U$1=データセット1!$B19,データセット1!$D19),"") -> FALSE
B20: 説明変数数量データ | M20: =IF(データセット1!$B20<>"",IF($M$1=データセット1!$B20,データセット1!$D20),"") -> FALSE | N20: =IF(データセット1!$B20<>"",IF($N$1=データセット1!$B20,データセット1!$D20),"") -> FALSE | O20: =IF(データセット1!$B20<>"",IF($O$1=データセット1!$B20,データセット1!$D20),"") -> 427 | P20: =IF(データセット1!$B20<>"",IF($P$1=データセット1!$B20,データセット1!$D20),"") -> FALSE | Q20: =IF(データセット1!$B20<>"",IF($Q$1=データセット1!$B20,データセット1!$D20),"") -> FALSE | R20: =IF(データセット1!$B20<>"",IF($R$1=データセット1!$B20,データセット1!$D20),"") -> FALSE | S20: =IF(データセット1!$B20<>"",IF($S$1=データセット1!$B20,データセット1!$D20),"") -> FALSE | T20: =IF(データセット1!$B20<>"",IF($T$1=データセット1!$B20,データセット1!$D20),"") -> FALSE | U20: =IF(データセット1!$B20<>"",IF($U$1=データセット1!$B20,データセット1!$D20),"") -> FALSE
B21: =C1 -> セッション | C21: 説明変数が増えることでのYの変動量を表す | F21: 3.22264101 | M21: =IF(データセット1!$B21<>"",IF($M$1=データセット1!$B21,データセット1!$D21),"") -> FALSE | N21: =IF(データセット1!$B21<>"",IF($N$1=データセット1!$B21,データセット1!$D21),"") -> 820 | O21: =IF(データセット1!$B21<>"",IF($O$1=データセット1!$B21,データセット1!$D21),"") -> FALSE | P21: =IF(データセット1!$B21<>"",IF($P$1=データセット1!$B21,データセット1!$D21),"") -> FALSE | Q21: =IF(データセット1!$B21<>"",IF($Q$1=データセット1!$B21,データセット1!$D21),"") -> FALSE | R21: =IF(データセット1!$B21<>"",IF($R$1=データセット1!$B21,データセット1!$D21),"") -> FALSE | S21: =IF(データセット1!$B21<>"",IF($S$1=データセット1!$B21,データセット1!$D21),"") -> FALSE | T21: =IF(データセット1!$B21<>"",IF($T$1=データセット1!$B21,データセット1!$D21),"") -> FALSE | U21: =IF(データセット1!$B21<>"",IF($U$1=データセット1!$B21,データセット1!$D21),"") -> FALSE
M22: =IF(データセット1!$B22<>"",IF($M$1=データセット1!$B22,データセット1!$D22),"") -> FALSE | N22: =IF(データセット1!$B22<>"",IF($N$1=データセット1!$B22,データセット1!$D22),"") -> FALSE | O22: =IF(データセット1!$B22<>"",IF($O$1=データセット1!$B22,データセット1!$D22),"") -> 389 | P22: =IF(データセット1!$B22<>"",IF($P$1=データセット1!$B22,データセット1!$D22),"") -> FALSE | Q22: =IF(データセット1!$B22<>"",IF($Q$1=データセット1!$B22,データセット1!$D22),"") -> FALSE | R22: =IF(データセット1!$B22<>"",IF($R$1=データセット1!$B22,データセット1!$D22),"") -> FALSE | S22: =IF(データセット1!$B22<>"",IF($S$1=データセット1!$B22,データセット1!$D22),"") -> FALSE | T22: =IF(データセット1!$B22<>"",IF($T$1=データセット1!$B22,データセット1!$D22),"") -> FALSE | U22: =IF(データセット1!$B22<>"",IF($U$1=データセット1!$B22,データセット1!$D22),"") -> FALSE
B23: 切片 | C23: 回帰式においてYの平均を表す | F23: 865.0310563 | M23: =IF(データセット1!$B23<>"",IF($M$1=データセット1!$B23,データセット1!$D23),"") -> FALSE | N23: =IF(データセット1!$B23<>"",IF($N$1=データセット1!$B23,データセット1!$D23),"") -> 635 | O23: =IF(データセット1!$B23<>"",IF($O$1=データセット1!$B23,データセット1!$D23),"") -> FALSE | P23: =IF(データセット1!$B23<>"",IF($P$1=データセット1!$B23,データセット1!$D23),"") -> FALSE | Q23: =IF(データセット1!$B23<>"",IF($Q$1=データセット1!$B23,データセット1!$D23),"") -> FALSE | R23: =IF(データセット1!$B23<>"",IF($R$1=データセット1!$B23,データセット1!$D23),"") -> FALSE | S23: =IF(データセット1!$B23<>"",IF($S$1=データセット1!$B23,データセット1!$D23),"") -> FALSE | T23: =IF(データセット1!$B23<>"",IF($T$1=データセット1!$B23,データセット1!$D23),"") -> FALSE | U23: =IF(データセット1!$B23<>"",IF($U$1=データセット1!$B23,データセット1!$D23),"") -> FALSE
M24: =IF(データセット1!$B24<>"",IF($M$1=データセット1!$B24,データセット1!$D24),"") -> FALSE | N24: =IF(データセット1!$B24<>"",IF($N$1=データセット1!$B24,データセット1!$D24),"") -> 451 | O24: =IF(データセット1!$B24<>"",IF($O$1=データセット1!$B24,データセット1!$D24),"") -> FALSE | P24: =IF(データセット1!$B24<>"",IF($P$1=データセット1!$B24,データセット1!$D24),"") -> FALSE | Q24: =IF(データセット1!$B24<>"",IF($Q$1=データセット1!$B24,データセット1!$D24),"") -> FALSE | R24: =IF(データセット1!$B24<>"",IF($R$1=データセット1!$B24,データセット1!$D24),"") -> FALSE | S24: =IF(データセット1!$B24<>"",IF($S$1=データセット1!$B24,データセット1!$D24),"") -> FALSE | T24: =IF(データセット1!$B24<>"",IF($T$1=データセット1!$B24,データセット1!$D24),"") -> FALSE | U24: =IF(データセット1!$B24<>"",IF($U$1=データセット1!$B24,データセット1!$D24),"") -> FALSE
B25: ②回帰分析が終了したらカテゴリースコア計算を行う | M25: =IF(データセット1!$B25<>"",IF($M$1=データセット1!$B25,データセット1!$D25),"") -> FALSE | N25: =IF(データセット1!$B25<>"",IF($N$1=データセット1!$B25,データセット1!$D25),"") -> 606 | O25: =IF(データセット1!$B25<>"",IF($O$1=データセット1!$B25,データセット1!$D25),"") -> FALSE | P25: =IF(データセット1!$B25<>"",IF($P$1=データセット1!$B25,データセット1!$D25),"") -> FALSE | Q25: =IF(データセット1!$B25<>"",IF($Q$1=データセット1!$B25,データセット1!$D25),"") -> FALSE | R25: =IF(データセット1!$B25<>"",IF($R$1=データセット1!$B25,データセット1!$D25),"") -> FALSE | S25: =IF(データセット1!$B25<>"",IF($S$1=データセット1!$B25,データセット1!$D25),"") -> FALSE | T25: =IF(データセット1!$B25<>"",IF($T$1=データセット1!$B25,データセット1!$D25),"") -> FALSE | U25: =IF(データセット1!$B25<>"",IF($U$1=データセット1!$B25,データセット1!$D25),"") -> FALSE
M26: =IF(データセット1!$B26<>"",IF($M$1=データセット1!$B26,データセット1!$D26),"") -> FALSE | N26: =IF(データセット1!$B26<>"",IF($N$1=データセット1!$B26,データセット1!$D26),"") -> 853 | O26: =IF(データセット1!$B26<>"",IF($O$1=データセット1!$B26,データセット1!$D26),"") -> FALSE | P26: =IF(データセット1!$B26<>"",IF($P$1=データセット1!$B26,データセット1!$D26),"") -> FALSE | Q26: =IF(データセット1!$B26<>"",IF($Q$1=データセット1!$B26,データセット1!$D26),"") -> FALSE | R26: =IF(データセット1!$B26<>"",IF($R$1=データセット1!$B26,データセット1!$D26),"") -> FALSE | S26: =IF(データセット1!$B26<>"",IF($S$1=データセット1!$B26,データセット1!$D26),"") -> FALSE | T26: =IF(データセット1!$B26<>"",IF($T$1=データセット1!$B26,データセット1!$D26),"") -> FALSE | U26: =IF(データセット1!$B26<>"",IF($U$1=データセット1!$B26,データセット1!$D26),"") -> FALSE
C27: カテゴリースコア計算ボタン | E27: → | M27: =IF(データセット1!$B27<>"",IF($M$1=データセット1!$B27,データセット1!$D27),"") -> FALSE | N27: =IF(データセット1!$B27<>"",IF($N$1=データセット1!$B27,データセット1!$D27),"") -> FALSE | O27: =IF(データセット1!$B27<>"",IF($O$1=データセット1!$B27,データセット1!$D27),"") -> 492 | P27: =IF(データセット1!$B27<>"",IF($P$1=データセット1!$B27,データセット1!$D27),"") -> FALSE | Q27: =IF(データセット1!$B27<>"",IF($Q$1=データセット1!$B27,データセット1!$D27),"") -> FALSE | R27: =IF(データセット1!$B27<>"",IF($R$1=データセット1!$B27,データセット1!$D27),"") -> FALSE | S27: =IF(データセット1!$B27<>"",IF($S$1=データセット1!$B27,データセット1!$D27),"") -> FALSE | T27: =IF(データセット1!$B27<>"",IF($T$1=データセット1!$B27,データセット1!$D27),"") -> FALSE | U27: =IF(データセット1!$B27<>"",IF($U$1=データセット1!$B27,データセット1!$D27),"") -> FALSE
M28: =IF(データセット1!$B28<>"",IF($M$1=データセット1!$B28,データセット1!$D28),"") -> FALSE | N28: =IF(データセット1!$B28<>"",IF($N$1=データセット1!$B28,データセット1!$D28),"") -> FALSE | O28: =IF(データセット1!$B28<>"",IF($O$1=データセット1!$B28,データセット1!$D28),"") -> 459 | P28: =IF(データセット1!$B28<>"",IF($P$1=データセット1!$B28,データセット1!$D28),"") -> FALSE | Q28: =IF(データセット1!$B28<>"",IF($Q$1=データセット1!$B28,データセット1!$D28),"") -> FALSE | R28: =IF(データセット1!$B28<>"",IF($R$1=データセット1!$B28,データセット1!$D28),"") -> FALSE | S28: =IF(データセット1!$B28<>"",IF($S$1=データセット1!$B28,データセット1!$D28),"") -> FALSE | T28: =IF(データセット1!$B28<>"",IF($T$1=データセット1!$B28,データセット1!$D28),"") -> FALSE | U28: =IF(データセット1!$B28<>"",IF($U$1=データセット1!$B28,データセット1!$D28),"") -> FALSE
M29: =IF(データセット1!$B29<>"",IF($M$1=データセット1!$B29,データセット1!$D29),"") -> FALSE | N29: =IF(データセット1!$B29<>"",IF($N$1=データセット1!$B29,データセット1!$D29),"") -> 821 | O29: =IF(データセット1!$B29<>"",IF($O$1=データセット1!$B29,データセット1!$D29),"") -> FALSE | P29: =IF(データセット1!$B29<>"",IF($P$1=データセット1!$B29,データセット1!$D29),"") -> FALSE | Q29: =IF(データセット1!$B29<>"",IF($Q$1=データセット1!$B29,データセット1!$D29),"") -> FALSE | R29: =IF(データセット1!$B29<>"",IF($R$1=データセット1!$B29,データセット1!$D29),"") -> FALSE | S29: =IF(データセット1!$B29<>"",IF($S$1=データセット1!$B29,データセット1!$D29),"") -> FALSE | T29: =IF(データセット1!$B29<>"",IF($T$1=データセット1!$B29,データセット1!$D29),"") -> FALSE | U29: =IF(データセット1!$B29<>"",IF($U$1=データセット1!$B29,データセット1!$D29),"") -> FALSE
B32: スコア分析 | M32: =IF(データセット1!$B30<>"",IF($M$1=データセット1!$B30,データセット1!$D30),"") -> FALSE | N32: =IF(データセット1!$B30<>"",IF($N$1=データセット1!$B30,データセット1!$D30),"") -> FALSE | O32: =IF(データセット1!$B30<>"",IF($O$1=データセット1!$B30,データセット1!$D30),"") -> 406 | P32: =IF(データセット1!$B30<>"",IF($P$1=データセット1!$B30,データセット1!$D30),"") -> FALSE | Q32: =IF(データセット1!$B30<>"",IF($Q$1=データセット1!$B30,データセット1!$D30),"") -> FALSE | R32: =IF(データセット1!$B30<>"",IF($R$1=データセット1!$B30,データセット1!$D30),"") -> FALSE | S32: =IF(データセット1!$B30<>"",IF($S$1=データセット1!$B30,データセット1!$D30),"") -> FALSE | T32: =IF(データセット1!$B30<>"",IF($T$1=データセット1!$B30,データセット1!$D30),"") -> FALSE | U32: =IF(データセット1!$B30<>"",IF($U$1=データセット1!$B30,データセット1!$D30),"") -> FALSE
B33: 回帰式 | C33: 係数 | D33: * | E33: 変数名 | M33: =IF(データセット1!$B31<>"",IF($M$1=データセット1!$B31,データセット1!$D31),"") -> FALSE | N33: =IF(データセット1!$B31<>"",IF($N$1=データセット1!$B31,データセット1!$D31),"") -> 713 | O33: =IF(データセット1!$B31<>"",IF($O$1=データセット1!$B31,データセット1!$D31),"") -> FALSE | P33: =IF(データセット1!$B31<>"",IF($P$1=データセット1!$B31,データセット1!$D31),"") -> FALSE | Q33: =IF(データセット1!$B31<>"",IF($Q$1=データセット1!$B31,データセット1!$D31),"") -> FALSE | R33: =IF(データセット1!$B31<>"",IF($R$1=データセット1!$B31,データセット1!$D31),"") -> FALSE | S33: =IF(データセット1!$B31<>"",IF($S$1=データセット1!$B31,データセット1!$D31),"") -> FALSE | T33: =IF(データセット1!$B31<>"",IF($T$1=データセット1!$B31,データセット1!$D31),"") -> FALSE | U33: =IF(データセット1!$B31<>"",IF($U$1=データセット1!$B31,データセット1!$D31),"") -> FALSE
C34: =J2 -> -1410.809942 | D34: * | E34: =B2 -> 18-24 | G34: カテゴリーデータの説明変数が一つ選択されるたびに | M34: =IF(データセット1!$B32<>"",IF($M$1=データセット1!$B32,データセット1!$D32),"") -> FALSE | N34: =IF(データセット1!$B32<>"",IF($N$1=データセット1!$B32,データセット1!$D32),"") -> FALSE | O34: =IF(データセット1!$B32<>"",IF($O$1=データセット1!$B32,データセット1!$D32),"") -> 678 | P34: =IF(データセット1!$B32<>"",IF($P$1=データセット1!$B32,データセット1!$D32),"") -> FALSE | Q34: =IF(データセット1!$B32<>"",IF($Q$1=データセット1!$B32,データセット1!$D32),"") -> FALSE | R34: =IF(データセット1!$B32<>"",IF($R$1=データセット1!$B32,データセット1!$D32),"") -> FALSE | S34: =IF(データセット1!$B32<>"",IF($S$1=データセット1!$B32,データセット1!$D32),"") -> FALSE | T34: =IF(データセット1!$B32<>"",IF($T$1=データセット1!$B32,データセット1!$D32),"") -> FALSE | U34: =IF(データセット1!$B32<>"",IF($U$1=データセット1!$B32,データセット1!$D32),"") -> FALSE
C35: 1123.188711 | D35: * | E35: 25-34 | G35: 係数の分だけ切片のYの平均値が変動する。 | M35: =IF(データセット1!$B33<>"",IF($M$1=データセット1!$B33,データセット1!$D33),"") -> FALSE | N35: =IF(データセット1!$B33<>"",IF($N$1=データセット1!$B33,データセット1!$D33),"") -> FALSE | O35: =IF(データセット1!$B33<>"",IF($O$1=データセット1!$B33,データセット1!$D33),"") -> 386 | P35: =IF(データセット1!$B33<>"",IF($P$1=データセット1!$B33,データセット1!$D33),"") -> FALSE | Q35: =IF(データセット1!$B33<>"",IF($Q$1=データセット1!$B33,データセット1!$D33),"") -> FALSE | R35: =IF(データセット1!$B33<>"",IF($R$1=データセット1!$B33,データセット1!$D33),"") -> FALSE | S35: =IF(データセット1!$B33<>"",IF($S$1=データセット1!$B33,データセット1!$D33),"") -> FALSE | T35: =IF(データセット1!$B33<>"",IF($T$1=データセット1!$B33,データセット1!$D33),"") -> FALSE | U35: =IF(データセット1!$B33<>"",IF($U$1=データセット1!$B33,データセット1!$D33),"") -> FALSE
C36: 1712.646248 | D36: * | E36: 35-44 | M36: =IF(データセット1!$B34<>"",IF($M$1=データセット1!$B34,データセット1!$D34),"") -> FALSE | N36: =IF(データセット1!$B34<>"",IF($N$1=データセット1!$B34,データセット1!$D34),"") -> 790 | O36: =IF(データセット1!$B34<>"",IF($O$1=データセット1!$B34,データセット1!$D34),"") -> FALSE | P36: =IF(データセット1!$B34<>"",IF($P$1=データセット1!$B34,データセット1!$D34),"") -> FALSE | Q36: =IF(データセット1!$B34<>"",IF($Q$1=データセット1!$B34,データセット1!$D34),"") -> FALSE | R36: =IF(データセット1!$B34<>"",IF($R$1=データセット1!$B34,データセット1!$D34),"") -> FALSE | S36: =IF(データセット1!$B34<>"",IF($S$1=データセット1!$B34,データセット1!$D34),"") -> FALSE | T36: =IF(データセット1!$B34<>"",IF($T$1=データセット1!$B34,データセット1!$D34),"") -> FALSE | U36: =IF(データセット1!$B34<>"",IF($U$1=データセット1!$B34,データセット1!$D34),"") -> FALSE
C37: -178.3191272 | D37: * | E37: 45-54 | G37: ="例）"&E35&"が一つ選択されると" -> 例）25-34が一つ選択されると | M37: =IF(データセット1!$B35<>"",IF($M$1=データセット1!$B35,データセット1!$D35),"") -> FALSE | N37: =IF(データセット1!$B35<>"",IF($N$1=データセット1!$B35,データセット1!$D35),"") -> FALSE | O37: =IF(データセット1!$B35<>"",IF($O$1=データセット1!$B35,データセット1!$D35),"") -> 558 | P37: =IF(データセット1!$B35<>"",IF($P$1=データセット1!$B35,データセット1!$D35),"") -> FALSE | Q37: =IF(データセット1!$B35<>"",IF($Q$1=データセット1!$B35,データセット1!$D35),"") -> FALSE | R37: =IF(データセット1!$B35<>"",IF($R$1=データセット1!$B35,データセット1!$D35),"") -> FALSE | S37: =IF(データセット1!$B35<>"",IF($S$1=データセット1!$B35,データセット1!$D35),"") -> FALSE | T37: =IF(データセット1!$B35<>"",IF($T$1=データセット1!$B35,データセット1!$D35),"") -> FALSE | U37: =IF(データセット1!$B35<>"",IF($U$1=データセット1!$B35,データセット1!$D35),"") -> FALSE
C38: -614.6799035 | D38: * | E38: 55-64 | G38: =F23 -> 865.0310563 | H38: ="+("&C35&")" -> +(1123.18871100528) | J38: となり | M38: =IF(データセット1!$B36<>"",IF($M$1=データセット1!$B36,データセット1!$D36),"") -> FALSE | N38: =IF(データセット1!$B36<>"",IF($N$1=データセット1!$B36,データセット1!$D36),"") -> FALSE | O38: =IF(データセット1!$B36<>"",IF($O$1=データセット1!$B36,データセット1!$D36),"") -> 382 | P38: =IF(データセット1!$B36<>"",IF($P$1=データセット1!$B36,データセット1!$D36),"") -> FALSE | Q38: =IF(データセット1!$B36<>"",IF($Q$1=データセット1!$B36,データセット1!$D36),"") -> FALSE | R38: =IF(データセット1!$B36<>"",IF($R$1=データセット1!$B36,データセット1!$D36),"") -> FALSE | S38: =IF(データセット1!$B36<>"",IF($S$1=データセット1!$B36,データセット1!$D36),"") -> FALSE | T38: =IF(データセット1!$B36<>"",IF($T$1=データセット1!$B36,データセット1!$D36),"") -> FALSE | U38: =IF(データセット1!$B36<>"",IF($U$1=データセット1!$B36,データセット1!$D36),"") -> FALSE
C39: -632.0259867 | D39: * | E39: 65+ | G39: Yは | H39: =F23+C35 -> 1988.219767 | I39: 変動する | M39: =IF(データセット1!$B37<>"",IF($M$1=データセット1!$B37,データセット1!$D37),"") -> FALSE | N39: =IF(データセット1!$B37<>"",IF($N$1=データセット1!$B37,データセット1!$D37),"") -> 660 | O39: =IF(データセット1!$B37<>"",IF($O$1=データセット1!$B37,データセット1!$D37),"") -> FALSE | P39: =IF(データセット1!$B37<>"",IF($P$1=データセット1!$B37,データセット1!$D37),"") -> FALSE | Q39: =IF(データセット1!$B37<>"",IF($Q$1=データセット1!$B37,データセット1!$D37),"") -> FALSE | R39: =IF(データセット1!$B37<>"",IF($R$1=データセット1!$B37,データセット1!$D37),"") -> FALSE | S39: =IF(データセット1!$B37<>"",IF($S$1=データセット1!$B37,データセット1!$D37),"") -> FALSE | T39: =IF(データセット1!$B37<>"",IF($T$1=データセット1!$B37,データセット1!$D37),"") -> FALSE | U39: =IF(データセット1!$B37<>"",IF($U$1=データセット1!$B37,データセット1!$D37),"") -> FALSE
D40: * | E40: 0 | M40: =IF(データセット1!$B38<>"",IF($M$1=データセット1!$B38,データセット1!$D38),"") -> FALSE | N40: =IF(データセット1!$B38<>"",IF($N$1=データセット1!$B38,データセット1!$D38),"") -> FALSE | O40: =IF(データセット1!$B38<>"",IF($O$1=データセット1!$B38,データセット1!$D38),"") -> 339 | P40: =IF(データセット1!$B38<>"",IF($P$1=データセット1!$B38,データセット1!$D38),"") -> FALSE | Q40: =IF(データセット1!$B38<>"",IF($Q$1=データセット1!$B38,データセット1!$D38),"") -> FALSE | R40: =IF(データセット1!$B38<>"",IF($R$1=データセット1!$B38,データセット1!$D38),"") -> FALSE | S40: =IF(データセット1!$B38<>"",IF($S$1=データセット1!$B38,データセット1!$D38),"") -> FALSE | T40: =IF(データセット1!$B38<>"",IF($T$1=データセット1!$B38,データセット1!$D38),"") -> FALSE | U40: =IF(データセット1!$B38<>"",IF($U$1=データセット1!$B38,データセット1!$D38),"") -> FALSE
D41: * | E41: 0 | M41: =IF(データセット1!$B39<>"",IF($M$1=データセット1!$B39,データセット1!$D39),"") -> FALSE | N41: =IF(データセット1!$B39<>"",IF($N$1=データセット1!$B39,データセット1!$D39),"") -> FALSE | O41: =IF(データセット1!$B39<>"",IF($O$1=データセット1!$B39,データセット1!$D39),"") -> 244 | P41: =IF(データセット1!$B39<>"",IF($P$1=データセット1!$B39,データセット1!$D39),"") -> FALSE | Q41: =IF(データセット1!$B39<>"",IF($Q$1=データセット1!$B39,データセット1!$D39),"") -> FALSE | R41: =IF(データセット1!$B39<>"",IF($R$1=データセット1!$B39,データセット1!$D39),"") -> FALSE | S41: =IF(データセット1!$B39<>"",IF($S$1=データセット1!$B39,データセット1!$D39),"") -> FALSE | T41: =IF(データセット1!$B39<>"",IF($T$1=データセット1!$B39,データセット1!$D39),"") -> FALSE | U41: =IF(データセット1!$B39<>"",IF($U$1=データセット1!$B39,データセット1!$D39),"") -> FALSE
D42: * | E42: 0 | M42: =IF(データセット1!$B40<>"",IF($M$1=データセット1!$B40,データセット1!$D40),"") -> FALSE | N42: =IF(データセット1!$B40<>"",IF($N$1=データセット1!$B40,データセット1!$D40),"") -> FALSE | O42: =IF(データセット1!$B40<>"",IF($O$1=データセット1!$B40,データセット1!$D40),"") -> FALSE | P42: =IF(データセット1!$B40<>"",IF($P$1=データセット1!$B40,データセット1!$D40),"") -> 146 | Q42: =IF(データセット1!$B40<>"",IF($Q$1=データセット1!$B40,データセット1!$D40),"") -> FALSE | R42: =IF(データセット1!$B40<>"",IF($R$1=データセット1!$B40,データセット1!$D40),"") -> FALSE | S42: =IF(データセット1!$B40<>"",IF($S$1=データセット1!$B40,データセット1!$D40),"") -> FALSE | T42: =IF(データセット1!$B40<>"",IF($T$1=データセット1!$B40,データセット1!$D40),"") -> FALSE | U42: =IF(データセット1!$B40<>"",IF($U$1=データセット1!$B40,データセット1!$D40),"") -> FALSE
M43: =IF(データセット1!$B41<>"",IF($M$1=データセット1!$B41,データセット1!$D41),"") -> FALSE | N43: =IF(データセット1!$B41<>"",IF($N$1=データセット1!$B41,データセット1!$D41),"") -> 661 | O43: =IF(データセット1!$B41<>"",IF($O$1=データセット1!$B41,データセット1!$D41),"") -> FALSE | P43: =IF(データセット1!$B41<>"",IF($P$1=データセット1!$B41,データセット1!$D41),"") -> FALSE | Q43: =IF(データセット1!$B41<>"",IF($Q$1=データセット1!$B41,データセット1!$D41),"") -> FALSE | R43: =IF(データセット1!$B41<>"",IF($R$1=データセット1!$B41,データセット1!$D41),"") -> FALSE | S43: =IF(データセット1!$B41<>"",IF($S$1=データセット1!$B41,データセット1!$D41),"") -> FALSE | T43: =IF(データセット1!$B41<>"",IF($T$1=データセット1!$B41,データセット1!$D41),"") -> FALSE | U43: =IF(データセット1!$B41<>"",IF($U$1=データセット1!$B41,データセット1!$D41),"") -> FALSE
M44: =IF(データセット1!$B42<>"",IF($M$1=データセット1!$B42,データセット1!$D42),"") -> FALSE | N44: =IF(データセット1!$B42<>"",IF($N$1=データセット1!$B42,データセット1!$D42),"") -> FALSE | O44: =IF(データセット1!$B42<>"",IF($O$1=データセット1!$B42,データセット1!$D42),"") -> 375 | P44: =IF(データセット1!$B42<>"",IF($P$1=データセット1!$B42,データセット1!$D42),"") -> FALSE | Q44: =IF(データセット1!$B42<>"",IF($Q$1=データセット1!$B42,データセット1!$D42),"") -> FALSE | R44: =IF(データセット1!$B42<>"",IF($R$1=データセット1!$B42,データセット1!$D42),"") -> FALSE | S44: =IF(データセット1!$B42<>"",IF($S$1=データセット1!$B42,データセット1!$D42),"") -> FALSE | T44: =IF(データセット1!$B42<>"",IF($T$1=データセット1!$B42,データセット1!$D42),"") -> FALSE | U44: =IF(データセット1!$B42<>"",IF($U$1=データセット1!$B42,データセット1!$D42),"") -> FALSE
M45: =IF(データセット1!$B43<>"",IF($M$1=データセット1!$B43,データセット1!$D43),"") -> FALSE | N45: =IF(データセット1!$B43<>"",IF($N$1=データセット1!$B43,データセット1!$D43),"") -> 854 | O45: =IF(データセット1!$B43<>"",IF($O$1=データセット1!$B43,データセット1!$D43),"") -> FALSE | P45: =IF(データセット1!$B43<>"",IF($P$1=データセット1!$B43,データセット1!$D43),"") -> FALSE | Q45: =IF(データセット1!$B43<>"",IF($Q$1=データセット1!$B43,データセット1!$D43),"") -> FALSE | R45: =IF(データセット1!$B43<>"",IF($R$1=データセット1!$B43,データセット1!$D43),"") -> FALSE | S45: =IF(データセット1!$B43<>"",IF($S$1=データセット1!$B43,データセット1!$D43),"") -> FALSE | T45: =IF(データセット1!$B43<>"",IF($T$1=データセット1!$B43,データセット1!$D43),"") -> FALSE | U45: =IF(データセット1!$B43<>"",IF($U$1=データセット1!$B43,データセット1!$D43),"") -> FALSE
B46: 考え方は係数の値が大きいものが効果が高い。（Yに与える影響は大きい） | M46: =IF(データセット1!$B44<>"",IF($M$1=データセット1!$B44,データセット1!$D44),"") -> FALSE | N46: =IF(データセット1!$B44<>"",IF($N$1=データセット1!$B44,データセット1!$D44),"") -> 363 | O46: =IF(データセット1!$B44<>"",IF($O$1=データセット1!$B44,データセット1!$D44),"") -> FALSE | P46: =IF(データセット1!$B44<>"",IF($P$1=データセット1!$B44,データセット1!$D44),"") -> FALSE | Q46: =IF(データセット1!$B44<>"",IF($Q$1=データセット1!$B44,データセット1!$D44),"") -> FALSE | R46: =IF(データセット1!$B44<>"",IF($R$1=データセット1!$B44,データセット1!$D44),"") -> FALSE | S46: =IF(データセット1!$B44<>"",IF($S$1=データセット1!$B44,データセット1!$D44),"") -> FALSE | T46: =IF(データセット1!$B44<>"",IF($T$1=データセット1!$B44,データセット1!$D44),"") -> FALSE | U46: =IF(データセット1!$B44<>"",IF($U$1=データセット1!$B44,データセット1!$D44),"") -> FALSE
B47: このため優先的に手をいれたいところであるが、実際に着手できる内容かを考える必要がある。 | M47: =IF(データセット1!$B45<>"",IF($M$1=データセット1!$B45,データセット1!$D45),"") -> FALSE | N47: =IF(データセット1!$B45<>"",IF($N$1=データセット1!$B45,データセット1!$D45),"") -> 500 | O47: =IF(データセット1!$B45<>"",IF($O$1=データセット1!$B45,データセット1!$D45),"") -> FALSE | P47: =IF(データセット1!$B45<>"",IF($P$1=データセット1!$B45,データセット1!$D45),"") -> FALSE | Q47: =IF(データセット1!$B45<>"",IF($Q$1=データセット1!$B45,データセット1!$D45),"") -> FALSE | R47: =IF(データセット1!$B45<>"",IF($R$1=データセット1!$B45,データセット1!$D45),"") -> FALSE | S47: =IF(データセット1!$B45<>"",IF($S$1=データセット1!$B45,データセット1!$D45),"") -> FALSE | T47: =IF(データセット1!$B45<>"",IF($T$1=データセット1!$B45,データセット1!$D45),"") -> FALSE | U47: =IF(データセット1!$B45<>"",IF($U$1=データセット1!$B45,データセット1!$D45),"") -> FALSE
B48: また、施策が効果を及ぼす余地も多く残っていることが必要。 | M48: =IF(データセット1!$B46<>"",IF($M$1=データセット1!$B46,データセット1!$D46),"") -> FALSE | N48: =IF(データセット1!$B46<>"",IF($N$1=データセット1!$B46,データセット1!$D46),"") -> FALSE | O48: =IF(データセット1!$B46<>"",IF($O$1=データセット1!$B46,データセット1!$D46),"") -> 367 | P48: =IF(データセット1!$B46<>"",IF($P$1=データセット1!$B46,データセット1!$D46),"") -> FALSE | Q48: =IF(データセット1!$B46<>"",IF($Q$1=データセット1!$B46,データセット1!$D46),"") -> FALSE | R48: =IF(データセット1!$B46<>"",IF($R$1=データセット1!$B46,データセット1!$D46),"") -> FALSE | S48: =IF(データセット1!$B46<>"",IF($S$1=データセット1!$B46,データセット1!$D46),"") -> FALSE | T48: =IF(データセット1!$B46<>"",IF($T$1=データセット1!$B46,データセット1!$D46),"") -> FALSE | U48: =IF(データセット1!$B46<>"",IF($U$1=データセット1!$B46,データセット1!$D46),"") -> FALSE
M49: =IF(データセット1!$B47<>"",IF($M$1=データセット1!$B47,データセット1!$D47),"") -> FALSE | N49: =IF(データセット1!$B47<>"",IF($N$1=データセット1!$B47,データセット1!$D47),"") -> 408 | O49: =IF(データセット1!$B47<>"",IF($O$1=データセット1!$B47,データセット1!$D47),"") -> FALSE | P49: =IF(データセット1!$B47<>"",IF($P$1=データセット1!$B47,データセット1!$D47),"") -> FALSE | Q49: =IF(データセット1!$B47<>"",IF($Q$1=データセット1!$B47,データセット1!$D47),"") -> FALSE | R49: =IF(データセット1!$B47<>"",IF($R$1=データセット1!$B47,データセット1!$D47),"") -> FALSE | S49: =IF(データセット1!$B47<>"",IF($S$1=データセット1!$B47,データセット1!$D47),"") -> FALSE | T49: =IF(データセット1!$B47<>"",IF($T$1=データセット1!$B47,データセット1!$D47),"") -> FALSE | U49: =IF(データセット1!$B47<>"",IF($U$1=データセット1!$B47,データセット1!$D47),"") -> FALSE
M50: =IF(データセット1!$B48<>"",IF($M$1=データセット1!$B48,データセット1!$D48),"") -> FALSE | N50: =IF(データセット1!$B48<>"",IF($N$1=データセット1!$B48,データセット1!$D48),"") -> FALSE | O50: =IF(データセット1!$B48<>"",IF($O$1=データセット1!$B48,データセット1!$D48),"") -> 355 | P50: =IF(データセット1!$B48<>"",IF($P$1=データセット1!$B48,データセット1!$D48),"") -> FALSE | Q50: =IF(データセット1!$B48<>"",IF($Q$1=データセット1!$B48,データセット1!$D48),"") -> FALSE | R50: =IF(データセット1!$B48<>"",IF($R$1=データセット1!$B48,データセット1!$D48),"") -> FALSE | S50: =IF(データセット1!$B48<>"",IF($S$1=データセット1!$B48,データセット1!$D48),"") -> FALSE | T50: =IF(データセット1!$B48<>"",IF($T$1=データセット1!$B48,データセット1!$D48),"") -> FALSE | U50: =IF(データセット1!$B48<>"",IF($U$1=データセット1!$B48,データセット1!$D48),"") -> FALSE
M51: =IF(データセット1!$B49<>"",IF($M$1=データセット1!$B49,データセット1!$D49),"") -> FALSE | N51: =IF(データセット1!$B49<>"",IF($N$1=データセット1!$B49,データセット1!$D49),"") -> FALSE | O51: =IF(データセット1!$B49<>"",IF($O$1=データセット1!$B49,データセット1!$D49),"") -> FALSE | P51: =IF(データセット1!$B49<>"",IF($P$1=データセット1!$B49,データセット1!$D49),"") -> 263 | Q51: =IF(データセット1!$B49<>"",IF($Q$1=データセット1!$B49,データセット1!$D49),"") -> FALSE | R51: =IF(データセット1!$B49<>"",IF($R$1=データセット1!$B49,データセット1!$D49),"") -> FALSE | S51: =IF(データセット1!$B49<>"",IF($S$1=データセット1!$B49,データセット1!$D49),"") -> FALSE | T51: =IF(データセット1!$B49<>"",IF($T$1=データセット1!$B49,データセット1!$D49),"") -> FALSE | U51: =IF(データセット1!$B49<>"",IF($U$1=データセット1!$B49,データセット1!$D49),"") -> FALSE
M52: =IF(データセット1!$B50<>"",IF($M$1=データセット1!$B50,データセット1!$D50),"") -> FALSE | N52: =IF(データセット1!$B50<>"",IF($N$1=データセット1!$B50,データセット1!$D50),"") -> 1039 | O52: =IF(データセット1!$B50<>"",IF($O$1=データセット1!$B50,データセット1!$D50),"") -> FALSE | P52: =IF(データセット1!$B50<>"",IF($P$1=データセット1!$B50,データセット1!$D50),"") -> FALSE | Q52: =IF(データセット1!$B50<>"",IF($Q$1=データセット1!$B50,データセット1!$D50),"") -> FALSE | R52: =IF(データセット1!$B50<>"",IF($R$1=データセット1!$B50,データセット1!$D50),"") -> FALSE | S52: =IF(データセット1!$B50<>"",IF($S$1=データセット1!$B50,データセット1!$D50),"") -> FALSE | T52: =IF(データセット1!$B50<>"",IF($T$1=データセット1!$B50,データセット1!$D50),"") -> FALSE | U52: =IF(データセット1!$B50<>"",IF($U$1=データセット1!$B50,データセット1!$D50),"") -> FALSE
M53: =IF(データセット1!$B51<>"",IF($M$1=データセット1!$B51,データセット1!$D51),"") -> FALSE | N53: =IF(データセット1!$B51<>"",IF($N$1=データセット1!$B51,データセット1!$D51),"") -> 544 | O53: =IF(データセット1!$B51<>"",IF($O$1=データセット1!$B51,データセット1!$D51),"") -> FALSE | P53: =IF(データセット1!$B51<>"",IF($P$1=データセット1!$B51,データセット1!$D51),"") -> FALSE | Q53: =IF(データセット1!$B51<>"",IF($Q$1=データセット1!$B51,データセット1!$D51),"") -> FALSE | R53: =IF(データセット1!$B51<>"",IF($R$1=データセット1!$B51,データセット1!$D51),"") -> FALSE | S53: =IF(データセット1!$B51<>"",IF($S$1=データセット1!$B51,データセット1!$D51),"") -> FALSE | T53: =IF(データセット1!$B51<>"",IF($T$1=データセット1!$B51,データセット1!$D51),"") -> FALSE | U53: =IF(データセット1!$B51<>"",IF($U$1=データセット1!$B51,データセット1!$D51),"") -> FALSE
M54: =IF(データセット1!$B52<>"",IF($M$1=データセット1!$B52,データセット1!$D52),"") -> FALSE | N54: =IF(データセット1!$B52<>"",IF($N$1=データセット1!$B52,データセット1!$D52),"") -> FALSE | O54: =IF(データセット1!$B52<>"",IF($O$1=データセット1!$B52,データセット1!$D52),"") -> 223 | P54: =IF(データセット1!$B52<>"",IF($P$1=データセット1!$B52,データセット1!$D52),"") -> FALSE | Q54: =IF(データセット1!$B52<>"",IF($Q$1=データセット1!$B52,データセット1!$D52),"") -> FALSE | R54: =IF(データセット1!$B52<>"",IF($R$1=データセット1!$B52,データセット1!$D52),"") -> FALSE | S54: =IF(データセット1!$B52<>"",IF($S$1=データセット1!$B52,データセット1!$D52),"") -> FALSE | T54: =IF(データセット1!$B52<>"",IF($T$1=データセット1!$B52,データセット1!$D52),"") -> FALSE | U54: =IF(データセット1!$B52<>"",IF($U$1=データセット1!$B52,データセット1!$D52),"") -> FALSE
M55: =IF(データセット1!$B53<>"",IF($M$1=データセット1!$B53,データセット1!$D53),"") -> FALSE | N55: =IF(データセット1!$B53<>"",IF($N$1=データセット1!$B53,データセット1!$D53),"") -> FALSE | O55: =IF(データセット1!$B53<>"",IF($O$1=データセット1!$B53,データセット1!$D53),"") -> 428 | P55: =IF(データセット1!$B53<>"",IF($P$1=データセット1!$B53,データセット1!$D53),"") -> FALSE | Q55: =IF(データセット1!$B53<>"",IF($Q$1=データセット1!$B53,データセット1!$D53),"") -> FALSE | R55: =IF(データセット1!$B53<>"",IF($R$1=データセット1!$B53,データセット1!$D53),"") -> FALSE | S55: =IF(データセット1!$B53<>"",IF($S$1=データセット1!$B53,データセット1!$D53),"") -> FALSE | T55: =IF(データセット1!$B53<>"",IF($T$1=データセット1!$B53,データセット1!$D53),"") -> FALSE | U55: =IF(データセット1!$B53<>"",IF($U$1=データセット1!$B53,データセット1!$D53),"") -> FALSE
M56: =IF(データセット1!$B54<>"",IF($M$1=データセット1!$B54,データセット1!$D54),"") -> FALSE | N56: =IF(データセット1!$B54<>"",IF($N$1=データセット1!$B54,データセット1!$D54),"") -> 824 | O56: =IF(データセット1!$B54<>"",IF($O$1=データセット1!$B54,データセット1!$D54),"") -> FALSE | P56: =IF(データセット1!$B54<>"",IF($P$1=データセット1!$B54,データセット1!$D54),"") -> FALSE | Q56: =IF(データセット1!$B54<>"",IF($Q$1=データセット1!$B54,データセット1!$D54),"") -> FALSE | R56: =IF(データセット1!$B54<>"",IF($R$1=データセット1!$B54,データセット1!$D54),"") -> FALSE | S56: =IF(データセット1!$B54<>"",IF($S$1=データセット1!$B54,データセット1!$D54),"") -> FALSE | T56: =IF(データセット1!$B54<>"",IF($T$1=データセット1!$B54,データセット1!$D54),"") -> FALSE | U56: =IF(データセット1!$B54<>"",IF($U$1=データセット1!$B54,データセット1!$D54),"") -> FALSE
M57: =IF(データセット1!$B55<>"",IF($M$1=データセット1!$B55,データセット1!$D55),"") -> FALSE | N57: =IF(データセット1!$B55<>"",IF($N$1=データセット1!$B55,データセット1!$D55),"") -> FALSE | O57: =IF(データセット1!$B55<>"",IF($O$1=データセット1!$B55,データセット1!$D55),"") -> 332 | P57: =IF(データセット1!$B55<>"",IF($P$1=データセット1!$B55,データセット1!$D55),"") -> FALSE | Q57: =IF(データセット1!$B55<>"",IF($Q$1=データセット1!$B55,データセット1!$D55),"") -> FALSE | R57: =IF(データセット1!$B55<>"",IF($R$1=データセット1!$B55,データセット1!$D55),"") -> FALSE | S57: =IF(データセット1!$B55<>"",IF($S$1=データセット1!$B55,データセット1!$D55),"") -> FALSE | T57: =IF(データセット1!$B55<>"",IF($T$1=データセット1!$B55,データセット1!$D55),"") -> FALSE | U57: =IF(データセット1!$B55<>"",IF($U$1=データセット1!$B55,データセット1!$D55),"") -> FALSE
M58: =IF(データセット1!$B56<>"",IF($M$1=データセット1!$B56,データセット1!$D56),"") -> FALSE | N58: =IF(データセット1!$B56<>"",IF($N$1=データセット1!$B56,データセット1!$D56),"") -> 758 | O58: =IF(データセット1!$B56<>"",IF($O$1=データセット1!$B56,データセット1!$D56),"") -> FALSE | P58: =IF(データセット1!$B56<>"",IF($P$1=データセット1!$B56,データセット1!$D56),"") -> FALSE | Q58: =IF(データセット1!$B56<>"",IF($Q$1=データセット1!$B56,データセット1!$D56),"") -> FALSE | R58: =IF(データセット1!$B56<>"",IF($R$1=データセット1!$B56,データセット1!$D56),"") -> FALSE | S58: =IF(データセット1!$B56<>"",IF($S$1=データセット1!$B56,データセット1!$D56),"") -> FALSE | T58: =IF(データセット1!$B56<>"",IF($T$1=データセット1!$B56,データセット1!$D56),"") -> FALSE | U58: =IF(データセット1!$B56<>"",IF($U$1=データセット1!$B56,データセット1!$D56),"") -> FALSE
M59: =IF(データセット1!$B57<>"",IF($M$1=データセット1!$B57,データセット1!$D57),"") -> FALSE | N59: =IF(データセット1!$B57<>"",IF($N$1=データセット1!$B57,データセット1!$D57),"") -> FALSE | O59: =IF(データセット1!$B57<>"",IF($O$1=データセット1!$B57,データセット1!$D57),"") -> 240 | P59: =IF(データセット1!$B57<>"",IF($P$1=データセット1!$B57,データセット1!$D57),"") -> FALSE | Q59: =IF(データセット1!$B57<>"",IF($Q$1=データセット1!$B57,データセット1!$D57),"") -> FALSE | R59: =IF(データセット1!$B57<>"",IF($R$1=データセット1!$B57,データセット1!$D57),"") -> FALSE | S59: =IF(データセット1!$B57<>"",IF($S$1=データセット1!$B57,データセット1!$D57),"") -> FALSE | T59: =IF(データセット1!$B57<>"",IF($T$1=データセット1!$B57,データセット1!$D57),"") -> FALSE | U59: =IF(データセット1!$B57<>"",IF($U$1=データセット1!$B57,データセット1!$D57),"") -> FALSE
M60: =IF(データセット1!$B58<>"",IF($M$1=データセット1!$B58,データセット1!$D58),"") -> FALSE | N60: =IF(データセット1!$B58<>"",IF($N$1=データセット1!$B58,データセット1!$D58),"") -> 946 | O60: =IF(データセット1!$B58<>"",IF($O$1=データセット1!$B58,データセット1!$D58),"") -> FALSE | P60: =IF(データセット1!$B58<>"",IF($P$1=データセット1!$B58,データセット1!$D58),"") -> FALSE | Q60: =IF(データセット1!$B58<>"",IF($Q$1=データセット1!$B58,データセット1!$D58),"") -> FALSE | R60: =IF(データセット1!$B58<>"",IF($R$1=データセット1!$B58,データセット1!$D58),"") -> FALSE | S60: =IF(データセット1!$B58<>"",IF($S$1=データセット1!$B58,データセット1!$D58),"") -> FALSE | T60: =IF(データセット1!$B58<>"",IF($T$1=データセット1!$B58,データセット1!$D58),"") -> FALSE | U60: =IF(データセット1!$B58<>"",IF($U$1=データセット1!$B58,データセット1!$D58),"") -> FALSE
M61: =IF(データセット1!$B59<>"",IF($M$1=データセット1!$B59,データセット1!$D59),"") -> FALSE | N61: =IF(データセット1!$B59<>"",IF($N$1=データセット1!$B59,データセット1!$D59),"") -> FALSE | O61: =IF(データセット1!$B59<>"",IF($O$1=データセット1!$B59,データセット1!$D59),"") -> FALSE | P61: =IF(データセット1!$B59<>"",IF($P$1=データセット1!$B59,データセット1!$D59),"") -> 176 | Q61: =IF(データセット1!$B59<>"",IF($Q$1=データセット1!$B59,データセット1!$D59),"") -> FALSE | R61: =IF(データセット1!$B59<>"",IF($R$1=データセット1!$B59,データセット1!$D59),"") -> FALSE | S61: =IF(データセット1!$B59<>"",IF($S$1=データセット1!$B59,データセット1!$D59),"") -> FALSE | T61: =IF(データセット1!$B59<>"",IF($T$1=データセット1!$B59,データセット1!$D59),"") -> FALSE | U61: =IF(データセット1!$B59<>"",IF($U$1=データセット1!$B59,データセット1!$D59),"") -> FALSE
M62: =IF(データセット1!$B60<>"",IF($M$1=データセット1!$B60,データセット1!$D60),"") -> FALSE | N62: =IF(データセット1!$B60<>"",IF($N$1=データセット1!$B60,データセット1!$D60),"") -> FALSE | O62: =IF(データセット1!$B60<>"",IF($O$1=データセット1!$B60,データセット1!$D60),"") -> 300 | P62: =IF(データセット1!$B60<>"",IF($P$1=データセット1!$B60,データセット1!$D60),"") -> FALSE | Q62: =IF(データセット1!$B60<>"",IF($Q$1=データセット1!$B60,データセット1!$D60),"") -> FALSE | R62: =IF(データセット1!$B60<>"",IF($R$1=データセット1!$B60,データセット1!$D60),"") -> FALSE | S62: =IF(データセット1!$B60<>"",IF($S$1=データセット1!$B60,データセット1!$D60),"") -> FALSE | T62: =IF(データセット1!$B60<>"",IF($T$1=データセット1!$B60,データセット1!$D60),"") -> FALSE | U62: =IF(データセット1!$B60<>"",IF($U$1=データセット1!$B60,データセット1!$D60),"") -> FALSE
M63: =IF(データセット1!$B61<>"",IF($M$1=データセット1!$B61,データセット1!$D61),"") -> FALSE | N63: =IF(データセット1!$B61<>"",IF($N$1=データセット1!$B61,データセット1!$D61),"") -> FALSE | O63: =IF(データセット1!$B61<>"",IF($O$1=データセット1!$B61,データセット1!$D61),"") -> 431 | P63: =IF(データセット1!$B61<>"",IF($P$1=データセット1!$B61,データセット1!$D61),"") -> FALSE | Q63: =IF(データセット1!$B61<>"",IF($Q$1=データセット1!$B61,データセット1!$D61),"") -> FALSE | R63: =IF(データセット1!$B61<>"",IF($R$1=データセット1!$B61,データセット1!$D61),"") -> FALSE | S63: =IF(データセット1!$B61<>"",IF($S$1=データセット1!$B61,データセット1!$D61),"") -> FALSE | T63: =IF(データセット1!$B61<>"",IF($T$1=データセット1!$B61,データセット1!$D61),"") -> FALSE | U63: =IF(データセット1!$B61<>"",IF($U$1=データセット1!$B61,データセット1!$D61),"") -> FALSE
M64: =IF(データセット1!$B62<>"",IF($M$1=データセット1!$B62,データセット1!$D62),"") -> FALSE | N64: =IF(データセット1!$B62<>"",IF($N$1=データセット1!$B62,データセット1!$D62),"") -> FALSE | O64: =IF(データセット1!$B62<>"",IF($O$1=データセット1!$B62,データセット1!$D62),"") -> 441 | P64: =IF(データセット1!$B62<>"",IF($P$1=データセット1!$B62,データセット1!$D62),"") -> FALSE | Q64: =IF(データセット1!$B62<>"",IF($Q$1=データセット1!$B62,データセット1!$D62),"") -> FALSE | R64: =IF(データセット1!$B62<>"",IF($R$1=データセット1!$B62,データセット1!$D62),"") -> FALSE | S64: =IF(データセット1!$B62<>"",IF($S$1=データセット1!$B62,データセット1!$D62),"") -> FALSE | T64: =IF(データセット1!$B62<>"",IF($T$1=データセット1!$B62,データセット1!$D62),"") -> FALSE | U64: =IF(データセット1!$B62<>"",IF($U$1=データセット1!$B62,データセット1!$D62),"") -> FALSE
M65: =IF(データセット1!$B63<>"",IF($M$1=データセット1!$B63,データセット1!$D63),"") -> 474 | N65: =IF(データセット1!$B63<>"",IF($N$1=データセット1!$B63,データセット1!$D63),"") -> FALSE | O65: =IF(データセット1!$B63<>"",IF($O$1=データセット1!$B63,データセット1!$D63),"") -> FALSE | P65: =IF(データセット1!$B63<>"",IF($P$1=データセット1!$B63,データセット1!$D63),"") -> FALSE | Q65: =IF(データセット1!$B63<>"",IF($Q$1=データセット1!$B63,データセット1!$D63),"") -> FALSE | R65: =IF(データセット1!$B63<>"",IF($R$1=データセット1!$B63,データセット1!$D63),"") -> FALSE | S65: =IF(データセット1!$B63<>"",IF($S$1=データセット1!$B63,データセット1!$D63),"") -> FALSE | T65: =IF(データセット1!$B63<>"",IF($T$1=データセット1!$B63,データセット1!$D63),"") -> FALSE | U65: =IF(データセット1!$B63<>"",IF($U$1=データセット1!$B63,データセット1!$D63),"") -> FALSE
M66: =IF(データセット1!$B64<>"",IF($M$1=データセット1!$B64,データセット1!$D64),"") -> FALSE | N66: =IF(データセット1!$B64<>"",IF($N$1=データセット1!$B64,データセット1!$D64),"") -> 624 | O66: =IF(データセット1!$B64<>"",IF($O$1=データセット1!$B64,データセット1!$D64),"") -> FALSE | P66: =IF(データセット1!$B64<>"",IF($P$1=データセット1!$B64,データセット1!$D64),"") -> FALSE | Q66: =IF(データセット1!$B64<>"",IF($Q$1=データセット1!$B64,データセット1!$D64),"") -> FALSE | R66: =IF(データセット1!$B64<>"",IF($R$1=データセット1!$B64,データセット1!$D64),"") -> FALSE | S66: =IF(データセット1!$B64<>"",IF($S$1=データセット1!$B64,データセット1!$D64),"") -> FALSE | T66: =IF(データセット1!$B64<>"",IF($T$1=データセット1!$B64,データセット1!$D64),"") -> FALSE | U66: =IF(データセット1!$B64<>"",IF($U$1=データセット1!$B64,データセット1!$D64),"") -> FALSE
M67: =IF(データセット1!$B65<>"",IF($M$1=データセット1!$B65,データセット1!$D65),"") -> FALSE | N67: =IF(データセット1!$B65<>"",IF($N$1=データセット1!$B65,データセット1!$D65),"") -> FALSE | O67: =IF(データセット1!$B65<>"",IF($O$1=データセット1!$B65,データセット1!$D65),"") -> FALSE | P67: =IF(データセット1!$B65<>"",IF($P$1=データセット1!$B65,データセット1!$D65),"") -> 162 | Q67: =IF(データセット1!$B65<>"",IF($Q$1=データセット1!$B65,データセット1!$D65),"") -> FALSE | R67: =IF(データセット1!$B65<>"",IF($R$1=データセット1!$B65,データセット1!$D65),"") -> FALSE | S67: =IF(データセット1!$B65<>"",IF($S$1=データセット1!$B65,データセット1!$D65),"") -> FALSE | T67: =IF(データセット1!$B65<>"",IF($T$1=データセット1!$B65,データセット1!$D65),"") -> FALSE | U67: =IF(データセット1!$B65<>"",IF($U$1=データセット1!$B65,データセット1!$D65),"") -> FALSE
M68: =IF(データセット1!$B66<>"",IF($M$1=データセット1!$B66,データセット1!$D66),"") -> FALSE | N68: =IF(データセット1!$B66<>"",IF($N$1=データセット1!$B66,データセット1!$D66),"") -> 351 | O68: =IF(データセット1!$B66<>"",IF($O$1=データセット1!$B66,データセット1!$D66),"") -> FALSE | P68: =IF(データセット1!$B66<>"",IF($P$1=データセット1!$B66,データセット1!$D66),"") -> FALSE | Q68: =IF(データセット1!$B66<>"",IF($Q$1=データセット1!$B66,データセット1!$D66),"") -> FALSE | R68: =IF(データセット1!$B66<>"",IF($R$1=データセット1!$B66,データセット1!$D66),"") -> FALSE | S68: =IF(データセット1!$B66<>"",IF($S$1=データセット1!$B66,データセット1!$D66),"") -> FALSE | T68: =IF(データセット1!$B66<>"",IF($T$1=データセット1!$B66,データセット1!$D66),"") -> FALSE | U68: =IF(データセット1!$B66<>"",IF($U$1=データセット1!$B66,データセット1!$D66),"") -> FALSE
M69: =IF(データセット1!$B67<>"",IF($M$1=データセット1!$B67,データセット1!$D67),"") -> FALSE | N69: =IF(データセット1!$B67<>"",IF($N$1=データセット1!$B67,データセット1!$D67),"") -> FALSE | O69: =IF(データセット1!$B67<>"",IF($O$1=データセット1!$B67,データセット1!$D67),"") -> FALSE | P69: =IF(データセット1!$B67<>"",IF($P$1=データセット1!$B67,データセット1!$D67),"") -> 190 | Q69: =IF(データセット1!$B67<>"",IF($Q$1=データセット1!$B67,データセット1!$D67),"") -> FALSE | R69: =IF(データセット1!$B67<>"",IF($R$1=データセット1!$B67,データセット1!$D67),"") -> FALSE | S69: =IF(データセット1!$B67<>"",IF($S$1=データセット1!$B67,データセット1!$D67),"") -> FALSE | T69: =IF(データセット1!$B67<>"",IF($T$1=データセット1!$B67,データセット1!$D67),"") -> FALSE | U69: =IF(データセット1!$B67<>"",IF($U$1=データセット1!$B67,データセット1!$D67),"") -> FALSE
M70: =IF(データセット1!$B68<>"",IF($M$1=データセット1!$B68,データセット1!$D68),"") -> FALSE | N70: =IF(データセット1!$B68<>"",IF($N$1=データセット1!$B68,データセット1!$D68),"") -> FALSE | O70: =IF(データセット1!$B68<>"",IF($O$1=データセット1!$B68,データセット1!$D68),"") -> 242 | P70: =IF(データセット1!$B68<>"",IF($P$1=データセット1!$B68,データセット1!$D68),"") -> FALSE | Q70: =IF(データセット1!$B68<>"",IF($Q$1=データセット1!$B68,データセット1!$D68),"") -> FALSE | R70: =IF(データセット1!$B68<>"",IF($R$1=データセット1!$B68,データセット1!$D68),"") -> FALSE | S70: =IF(データセット1!$B68<>"",IF($S$1=データセット1!$B68,データセット1!$D68),"") -> FALSE | T70: =IF(データセット1!$B68<>"",IF($T$1=データセット1!$B68,データセット1!$D68),"") -> FALSE | U70: =IF(データセット1!$B68<>"",IF($U$1=データセット1!$B68,データセット1!$D68),"") -> FALSE
M71: =IF(データセット1!$B69<>"",IF($M$1=データセット1!$B69,データセット1!$D69),"") -> 711 | N71: =IF(データセット1!$B69<>"",IF($N$1=データセット1!$B69,データセット1!$D69),"") -> FALSE | O71: =IF(データセット1!$B69<>"",IF($O$1=データセット1!$B69,データセット1!$D69),"") -> FALSE | P71: =IF(データセット1!$B69<>"",IF($P$1=データセット1!$B69,データセット1!$D69),"") -> FALSE | Q71: =IF(データセット1!$B69<>"",IF($Q$1=データセット1!$B69,データセット1!$D69),"") -> FALSE | R71: =IF(データセット1!$B69<>"",IF($R$1=データセット1!$B69,データセット1!$D69),"") -> FALSE | S71: =IF(データセット1!$B69<>"",IF($S$1=データセット1!$B69,データセット1!$D69),"") -> FALSE | T71: =IF(データセット1!$B69<>"",IF($T$1=データセット1!$B69,データセット1!$D69),"") -> FALSE | U71: =IF(データセット1!$B69<>"",IF($U$1=データセット1!$B69,データセット1!$D69),"") -> FALSE
M72: =IF(データセット1!$B70<>"",IF($M$1=データセット1!$B70,データセット1!$D70),"") -> 504 | N72: =IF(データセット1!$B70<>"",IF($N$1=データセット1!$B70,データセット1!$D70),"") -> FALSE | O72: =IF(データセット1!$B70<>"",IF($O$1=データセット1!$B70,データセット1!$D70),"") -> FALSE | P72: =IF(データセット1!$B70<>"",IF($P$1=データセット1!$B70,データセット1!$D70),"") -> FALSE | Q72: =IF(データセット1!$B70<>"",IF($Q$1=データセット1!$B70,データセット1!$D70),"") -> FALSE | R72: =IF(データセット1!$B70<>"",IF($R$1=データセット1!$B70,データセット1!$D70),"") -> FALSE | S72: =IF(データセット1!$B70<>"",IF($S$1=データセット1!$B70,データセット1!$D70),"") -> FALSE | T72: =IF(データセット1!$B70<>"",IF($T$1=データセット1!$B70,データセット1!$D70),"") -> FALSE | U72: =IF(データセット1!$B70<>"",IF($U$1=データセット1!$B70,データセット1!$D70),"") -> FALSE
M73: =IF(データセット1!$B71<>"",IF($M$1=データセット1!$B71,データセット1!$D71),"") -> FALSE | N73: =IF(データセット1!$B71<>"",IF($N$1=データセット1!$B71,データセット1!$D71),"") -> FALSE | O73: =IF(データセット1!$B71<>"",IF($O$1=データセット1!$B71,データセット1!$D71),"") -> FALSE | P73: =IF(データセット1!$B71<>"",IF($P$1=データセット1!$B71,データセット1!$D71),"") -> 120 | Q73: =IF(データセット1!$B71<>"",IF($Q$1=データセット1!$B71,データセット1!$D71),"") -> FALSE | R73: =IF(データセット1!$B71<>"",IF($R$1=データセット1!$B71,データセット1!$D71),"") -> FALSE | S73: =IF(データセット1!$B71<>"",IF($S$1=データセット1!$B71,データセット1!$D71),"") -> FALSE | T73: =IF(データセット1!$B71<>"",IF($T$1=データセット1!$B71,データセット1!$D71),"") -> FALSE | U73: =IF(データセット1!$B71<>"",IF($U$1=データセット1!$B71,データセット1!$D71),"") -> FALSE
M74: =IF(データセット1!$B72<>"",IF($M$1=データセット1!$B72,データセット1!$D72),"") -> 453 | N74: =IF(データセット1!$B72<>"",IF($N$1=データセット1!$B72,データセット1!$D72),"") -> FALSE | O74: =IF(データセット1!$B72<>"",IF($O$1=データセット1!$B72,データセット1!$D72),"") -> FALSE | P74: =IF(データセット1!$B72<>"",IF($P$1=データセット1!$B72,データセット1!$D72),"") -> FALSE | Q74: =IF(データセット1!$B72<>"",IF($Q$1=データセット1!$B72,データセット1!$D72),"") -> FALSE | R74: =IF(データセット1!$B72<>"",IF($R$1=データセット1!$B72,データセット1!$D72),"") -> FALSE | S74: =IF(データセット1!$B72<>"",IF($S$1=データセット1!$B72,データセット1!$D72),"") -> FALSE | T74: =IF(データセット1!$B72<>"",IF($T$1=データセット1!$B72,データセット1!$D72),"") -> FALSE | U74: =IF(データセット1!$B72<>"",IF($U$1=データセット1!$B72,データセット1!$D72),"") -> FALSE
M75: =IF(データセット1!$B73<>"",IF($M$1=データセット1!$B73,データセット1!$D73),"") -> FALSE | N75: =IF(データセット1!$B73<>"",IF($N$1=データセット1!$B73,データセット1!$D73),"") -> FALSE | O75: =IF(データセット1!$B73<>"",IF($O$1=データセット1!$B73,データセット1!$D73),"") -> FALSE | P75: =IF(データセット1!$B73<>"",IF($P$1=データセット1!$B73,データセット1!$D73),"") -> 250 | Q75: =IF(データセット1!$B73<>"",IF($Q$1=データセット1!$B73,データセット1!$D73),"") -> FALSE | R75: =IF(データセット1!$B73<>"",IF($R$1=データセット1!$B73,データセット1!$D73),"") -> FALSE | S75: =IF(データセット1!$B73<>"",IF($S$1=データセット1!$B73,データセット1!$D73),"") -> FALSE | T75: =IF(データセット1!$B73<>"",IF($T$1=データセット1!$B73,データセット1!$D73),"") -> FALSE | U75: =IF(データセット1!$B73<>"",IF($U$1=データセット1!$B73,データセット1!$D73),"") -> FALSE
M76: =IF(データセット1!$B74<>"",IF($M$1=データセット1!$B74,データセット1!$D74),"") -> FALSE | N76: =IF(データセット1!$B74<>"",IF($N$1=データセット1!$B74,データセット1!$D74),"") -> FALSE | O76: =IF(データセット1!$B74<>"",IF($O$1=データセット1!$B74,データセット1!$D74),"") -> FALSE | P76: =IF(データセット1!$B74<>"",IF($P$1=データセット1!$B74,データセット1!$D74),"") -> FALSE | Q76: =IF(データセット1!$B74<>"",IF($Q$1=データセット1!$B74,データセット1!$D74),"") -> 68 | R76: =IF(データセット1!$B74<>"",IF($R$1=データセット1!$B74,データセット1!$D74),"") -> FALSE | S76: =IF(データセット1!$B74<>"",IF($S$1=データセット1!$B74,データセット1!$D74),"") -> FALSE | T76: =IF(データセット1!$B74<>"",IF($T$1=データセット1!$B74,データセット1!$D74),"") -> FALSE | U76: =IF(データセット1!$B74<>"",IF($U$1=データセット1!$B74,データセット1!$D74),"") -> FALSE
M77: =IF(データセット1!$B75<>"",IF($M$1=データセット1!$B75,データセット1!$D75),"") -> 509 | N77: =IF(データセット1!$B75<>"",IF($N$1=データセット1!$B75,データセット1!$D75),"") -> FALSE | O77: =IF(データセット1!$B75<>"",IF($O$1=データセット1!$B75,データセット1!$D75),"") -> FALSE | P77: =IF(データセット1!$B75<>"",IF($P$1=データセット1!$B75,データセット1!$D75),"") -> FALSE | Q77: =IF(データセット1!$B75<>"",IF($Q$1=データセット1!$B75,データセット1!$D75),"") -> FALSE | R77: =IF(データセット1!$B75<>"",IF($R$1=データセット1!$B75,データセット1!$D75),"") -> FALSE | S77: =IF(データセット1!$B75<>"",IF($S$1=データセット1!$B75,データセット1!$D75),"") -> FALSE | T77: =IF(データセット1!$B75<>"",IF($T$1=データセット1!$B75,データセット1!$D75),"") -> FALSE | U77: =IF(データセット1!$B75<>"",IF($U$1=データセット1!$B75,データセット1!$D75),"") -> FALSE
M78: =IF(データセット1!$B76<>"",IF($M$1=データセット1!$B76,データセット1!$D76),"") -> FALSE | N78: =IF(データセット1!$B76<>"",IF($N$1=データセット1!$B76,データセット1!$D76),"") -> FALSE | O78: =IF(データセット1!$B76<>"",IF($O$1=データセット1!$B76,データセット1!$D76),"") -> FALSE | P78: =IF(データセット1!$B76<>"",IF($P$1=データセット1!$B76,データセット1!$D76),"") -> 150 | Q78: =IF(データセット1!$B76<>"",IF($Q$1=データセット1!$B76,データセット1!$D76),"") -> FALSE | R78: =IF(データセット1!$B76<>"",IF($R$1=データセット1!$B76,データセット1!$D76),"") -> FALSE | S78: =IF(データセット1!$B76<>"",IF($S$1=データセット1!$B76,データセット1!$D76),"") -> FALSE | T78: =IF(データセット1!$B76<>"",IF($T$1=データセット1!$B76,データセット1!$D76),"") -> FALSE | U78: =IF(データセット1!$B76<>"",IF($U$1=データセット1!$B76,データセット1!$D76),"") -> FALSE
M79: =IF(データセット1!$B77<>"",IF($M$1=データセット1!$B77,データセット1!$D77),"") -> 505 | N79: =IF(データセット1!$B77<>"",IF($N$1=データセット1!$B77,データセット1!$D77),"") -> FALSE | O79: =IF(データセット1!$B77<>"",IF($O$1=データセット1!$B77,データセット1!$D77),"") -> FALSE | P79: =IF(データセット1!$B77<>"",IF($P$1=データセット1!$B77,データセット1!$D77),"") -> FALSE | Q79: =IF(データセット1!$B77<>"",IF($Q$1=データセット1!$B77,データセット1!$D77),"") -> FALSE | R79: =IF(データセット1!$B77<>"",IF($R$1=データセット1!$B77,データセット1!$D77),"") -> FALSE | S79: =IF(データセット1!$B77<>"",IF($S$1=データセット1!$B77,データセット1!$D77),"") -> FALSE | T79: =IF(データセット1!$B77<>"",IF($T$1=データセット1!$B77,データセット1!$D77),"") -> FALSE | U79: =IF(データセット1!$B77<>"",IF($U$1=データセット1!$B77,データセット1!$D77),"") -> FALSE
M80: =IF(データセット1!$B78<>"",IF($M$1=データセット1!$B78,データセット1!$D78),"") -> FALSE | N80: =IF(データセット1!$B78<>"",IF($N$1=データセット1!$B78,データセット1!$D78),"") -> FALSE | O80: =IF(データセット1!$B78<>"",IF($O$1=データセット1!$B78,データセット1!$D78),"") -> FALSE | P80: =IF(データセット1!$B78<>"",IF($P$1=データセット1!$B78,データセット1!$D78),"") -> 168 | Q80: =IF(データセット1!$B78<>"",IF($Q$1=データセット1!$B78,データセット1!$D78),"") -> FALSE | R80: =IF(データセット1!$B78<>"",IF($R$1=データセット1!$B78,データセット1!$D78),"") -> FALSE | S80: =IF(データセット1!$B78<>"",IF($S$1=データセット1!$B78,データセット1!$D78),"") -> FALSE | T80: =IF(データセット1!$B78<>"",IF($T$1=データセット1!$B78,データセット1!$D78),"") -> FALSE | U80: =IF(データセット1!$B78<>"",IF($U$1=データセット1!$B78,データセット1!$D78),"") -> FALSE
M81: =IF(データセット1!$B79<>"",IF($M$1=データセット1!$B79,データセット1!$D79),"") -> FALSE | N81: =IF(データセット1!$B79<>"",IF($N$1=データセット1!$B79,データセット1!$D79),"") -> FALSE | O81: =IF(データセット1!$B79<>"",IF($O$1=データセット1!$B79,データセット1!$D79),"") -> FALSE | P81: =IF(データセット1!$B79<>"",IF($P$1=データセット1!$B79,データセット1!$D79),"") -> 236 | Q81: =IF(データセット1!$B79<>"",IF($Q$1=データセット1!$B79,データセット1!$D79),"") -> FALSE | R81: =IF(データセット1!$B79<>"",IF($R$1=データセット1!$B79,データセット1!$D79),"") -> FALSE | S81: =IF(データセット1!$B79<>"",IF($S$1=データセット1!$B79,データセット1!$D79),"") -> FALSE | T81: =IF(データセット1!$B79<>"",IF($T$1=データセット1!$B79,データセット1!$D79),"") -> FALSE | U81: =IF(データセット1!$B79<>"",IF($U$1=データセット1!$B79,データセット1!$D79),"") -> FALSE
M82: =IF(データセット1!$B80<>"",IF($M$1=データセット1!$B80,データセット1!$D80),"") -> 435 | N82: =IF(データセット1!$B80<>"",IF($N$1=データセット1!$B80,データセット1!$D80),"") -> FALSE | O82: =IF(データセット1!$B80<>"",IF($O$1=データセット1!$B80,データセット1!$D80),"") -> FALSE | P82: =IF(データセット1!$B80<>"",IF($P$1=データセット1!$B80,データセット1!$D80),"") -> FALSE | Q82: =IF(データセット1!$B80<>"",IF($Q$1=データセット1!$B80,データセット1!$D80),"") -> FALSE | R82: =IF(データセット1!$B80<>"",IF($R$1=データセット1!$B80,データセット1!$D80),"") -> FALSE | S82: =IF(データセット1!$B80<>"",IF($S$1=データセット1!$B80,データセット1!$D80),"") -> FALSE | T82: =IF(データセット1!$B80<>"",IF($T$1=データセット1!$B80,データセット1!$D80),"") -> FALSE | U82: =IF(データセット1!$B80<>"",IF($U$1=データセット1!$B80,データセット1!$D80),"") -> FALSE
M83: =IF(データセット1!$B81<>"",IF($M$1=データセット1!$B81,データセット1!$D81),"") -> FALSE | N83: =IF(データセット1!$B81<>"",IF($N$1=データセット1!$B81,データセット1!$D81),"") -> FALSE | O83: =IF(データセット1!$B81<>"",IF($O$1=データセット1!$B81,データセット1!$D81),"") -> 409 | P83: =IF(データセット1!$B81<>"",IF($P$1=データセット1!$B81,データセット1!$D81),"") -> FALSE | Q83: =IF(データセット1!$B81<>"",IF($Q$1=データセット1!$B81,データセット1!$D81),"") -> FALSE | R83: =IF(データセット1!$B81<>"",IF($R$1=データセット1!$B81,データセット1!$D81),"") -> FALSE | S83: =IF(データセット1!$B81<>"",IF($S$1=データセット1!$B81,データセット1!$D81),"") -> FALSE | T83: =IF(データセット1!$B81<>"",IF($T$1=データセット1!$B81,データセット1!$D81),"") -> FALSE | U83: =IF(データセット1!$B81<>"",IF($U$1=データセット1!$B81,データセット1!$D81),"") -> FALSE
M84: =IF(データセット1!$B82<>"",IF($M$1=データセット1!$B82,データセット1!$D82),"") -> 440 | N84: =IF(データセット1!$B82<>"",IF($N$1=データセット1!$B82,データセット1!$D82),"") -> FALSE | O84: =IF(データセット1!$B82<>"",IF($O$1=データセット1!$B82,データセット1!$D82),"") -> FALSE | P84: =IF(データセット1!$B82<>"",IF($P$1=データセット1!$B82,データセット1!$D82),"") -> FALSE | Q84: =IF(データセット1!$B82<>"",IF($Q$1=データセット1!$B82,データセット1!$D82),"") -> FALSE | R84: =IF(データセット1!$B82<>"",IF($R$1=データセット1!$B82,データセット1!$D82),"") -> FALSE | S84: =IF(データセット1!$B82<>"",IF($S$1=データセット1!$B82,データセット1!$D82),"") -> FALSE | T84: =IF(データセット1!$B82<>"",IF($T$1=データセット1!$B82,データセット1!$D82),"") -> FALSE | U84: =IF(データセット1!$B82<>"",IF($U$1=データセット1!$B82,データセット1!$D82),"") -> FALSE
M85: =IF(データセット1!$B83<>"",IF($M$1=データセット1!$B83,データセット1!$D83),"") -> FALSE | N85: =IF(データセット1!$B83<>"",IF($N$1=データセット1!$B83,データセット1!$D83),"") -> FALSE | O85: =IF(データセット1!$B83<>"",IF($O$1=データセット1!$B83,データセット1!$D83),"") -> FALSE | P85: =IF(データセット1!$B83<>"",IF($P$1=データセット1!$B83,データセット1!$D83),"") -> 116 | Q85: =IF(データセット1!$B83<>"",IF($Q$1=データセット1!$B83,データセット1!$D83),"") -> FALSE | R85: =IF(データセット1!$B83<>"",IF($R$1=データセット1!$B83,データセット1!$D83),"") -> FALSE | S85: =IF(データセット1!$B83<>"",IF($S$1=データセット1!$B83,データセット1!$D83),"") -> FALSE | T85: =IF(データセット1!$B83<>"",IF($T$1=データセット1!$B83,データセット1!$D83),"") -> FALSE | U85: =IF(データセット1!$B83<>"",IF($U$1=データセット1!$B83,データセット1!$D83),"") -> FALSE
M86: =IF(データセット1!$B84<>"",IF($M$1=データセット1!$B84,データセット1!$D84),"") -> FALSE | N86: =IF(データセット1!$B84<>"",IF($N$1=データセット1!$B84,データセット1!$D84),"") -> FALSE | O86: =IF(データセット1!$B84<>"",IF($O$1=データセット1!$B84,データセット1!$D84),"") -> FALSE | P86: =IF(データセット1!$B84<>"",IF($P$1=データセット1!$B84,データセット1!$D84),"") -> FALSE | Q86: =IF(データセット1!$B84<>"",IF($Q$1=データセット1!$B84,データセット1!$D84),"") -> 111 | R86: =IF(データセット1!$B84<>"",IF($R$1=データセット1!$B84,データセット1!$D84),"") -> FALSE | S86: =IF(データセット1!$B84<>"",IF($S$1=データセット1!$B84,データセット1!$D84),"") -> FALSE | T86: =IF(データセット1!$B84<>"",IF($T$1=データセット1!$B84,データセット1!$D84),"") -> FALSE | U86: =IF(データセット1!$B84<>"",IF($U$1=データセット1!$B84,データセット1!$D84),"") -> FALSE
M87: =IF(データセット1!$B85<>"",IF($M$1=データセット1!$B85,データセット1!$D85),"") -> 402 | N87: =IF(データセット1!$B85<>"",IF($N$1=データセット1!$B85,データセット1!$D85),"") -> FALSE | O87: =IF(データセット1!$B85<>"",IF($O$1=データセット1!$B85,データセット1!$D85),"") -> FALSE | P87: =IF(データセット1!$B85<>"",IF($P$1=データセット1!$B85,データセット1!$D85),"") -> FALSE | Q87: =IF(データセット1!$B85<>"",IF($Q$1=データセット1!$B85,データセット1!$D85),"") -> FALSE | R87: =IF(データセット1!$B85<>"",IF($R$1=データセット1!$B85,データセット1!$D85),"") -> FALSE | S87: =IF(データセット1!$B85<>"",IF($S$1=データセット1!$B85,データセット1!$D85),"") -> FALSE | T87: =IF(データセット1!$B85<>"",IF($T$1=データセット1!$B85,データセット1!$D85),"") -> FALSE | U87: =IF(データセット1!$B85<>"",IF($U$1=データセット1!$B85,データセット1!$D85),"") -> FALSE
M88: =IF(データセット1!$B86<>"",IF($M$1=データセット1!$B86,データセット1!$D86),"") -> 288 | N88: =IF(データセット1!$B86<>"",IF($N$1=データセット1!$B86,データセット1!$D86),"") -> FALSE | O88: =IF(データセット1!$B86<>"",IF($O$1=データセット1!$B86,データセット1!$D86),"") -> FALSE | P88: =IF(データセット1!$B86<>"",IF($P$1=データセット1!$B86,データセット1!$D86),"") -> FALSE | Q88: =IF(データセット1!$B86<>"",IF($Q$1=データセット1!$B86,データセット1!$D86),"") -> FALSE | R88: =IF(データセット1!$B86<>"",IF($R$1=データセット1!$B86,データセット1!$D86),"") -> FALSE | S88: =IF(データセット1!$B86<>"",IF($S$1=データセット1!$B86,データセット1!$D86),"") -> FALSE | T88: =IF(データセット1!$B86<>"",IF($T$1=データセット1!$B86,データセット1!$D86),"") -> FALSE | U88: =IF(データセット1!$B86<>"",IF($U$1=データセット1!$B86,データセット1!$D86),"") -> FALSE
M89: =IF(データセット1!$B87<>"",IF($M$1=データセット1!$B87,データセット1!$D87),"") -> FALSE | N89: =IF(データセット1!$B87<>"",IF($N$1=データセット1!$B87,データセット1!$D87),"") -> FALSE | O89: =IF(データセット1!$B87<>"",IF($O$1=データセット1!$B87,データセット1!$D87),"") -> FALSE | P89: =IF(データセット1!$B87<>"",IF($P$1=データセット1!$B87,データセット1!$D87),"") -> 165 | Q89: =IF(データセット1!$B87<>"",IF($Q$1=データセット1!$B87,データセット1!$D87),"") -> FALSE | R89: =IF(データセット1!$B87<>"",IF($R$1=データセット1!$B87,データセット1!$D87),"") -> FALSE | S89: =IF(データセット1!$B87<>"",IF($S$1=データセット1!$B87,データセット1!$D87),"") -> FALSE | T89: =IF(データセット1!$B87<>"",IF($T$1=データセット1!$B87,データセット1!$D87),"") -> FALSE | U89: =IF(データセット1!$B87<>"",IF($U$1=データセット1!$B87,データセット1!$D87),"") -> FALSE
M90: =IF(データセット1!$B88<>"",IF($M$1=データセット1!$B88,データセット1!$D88),"") -> FALSE | N90: =IF(データセット1!$B88<>"",IF($N$1=データセット1!$B88,データセット1!$D88),"") -> FALSE | O90: =IF(データセット1!$B88<>"",IF($O$1=データセット1!$B88,データセット1!$D88),"") -> FALSE | P90: =IF(データセット1!$B88<>"",IF($P$1=データセット1!$B88,データセット1!$D88),"") -> 140 | Q90: =IF(データセット1!$B88<>"",IF($Q$1=データセット1!$B88,データセット1!$D88),"") -> FALSE | R90: =IF(データセット1!$B88<>"",IF($R$1=データセット1!$B88,データセット1!$D88),"") -> FALSE | S90: =IF(データセット1!$B88<>"",IF($S$1=データセット1!$B88,データセット1!$D88),"") -> FALSE | T90: =IF(データセット1!$B88<>"",IF($T$1=データセット1!$B88,データセット1!$D88),"") -> FALSE | U90: =IF(データセット1!$B88<>"",IF($U$1=データセット1!$B88,データセット1!$D88),"") -> FALSE
M91: =IF(データセット1!$B89<>"",IF($M$1=データセット1!$B89,データセット1!$D89),"") -> FALSE | N91: =IF(データセット1!$B89<>"",IF($N$1=データセット1!$B89,データセット1!$D89),"") -> FALSE | O91: =IF(データセット1!$B89<>"",IF($O$1=データセット1!$B89,データセット1!$D89),"") -> FALSE | P91: =IF(データセット1!$B89<>"",IF($P$1=データセット1!$B89,データセット1!$D89),"") -> 107 | Q91: =IF(データセット1!$B89<>"",IF($Q$1=データセット1!$B89,データセット1!$D89),"") -> FALSE | R91: =IF(データセット1!$B89<>"",IF($R$1=データセット1!$B89,データセット1!$D89),"") -> FALSE | S91: =IF(データセット1!$B89<>"",IF($S$1=データセット1!$B89,データセット1!$D89),"") -> FALSE | T91: =IF(データセット1!$B89<>"",IF($T$1=データセット1!$B89,データセット1!$D89),"") -> FALSE | U91: =IF(データセット1!$B89<>"",IF($U$1=データセット1!$B89,データセット1!$D89),"") -> FALSE
M92: =IF(データセット1!$B90<>"",IF($M$1=データセット1!$B90,データセット1!$D90),"") -> FALSE | N92: =IF(データセット1!$B90<>"",IF($N$1=データセット1!$B90,データセット1!$D90),"") -> FALSE | O92: =IF(データセット1!$B90<>"",IF($O$1=データセット1!$B90,データセット1!$D90),"") -> FALSE | P92: =IF(データセット1!$B90<>"",IF($P$1=データセット1!$B90,データセット1!$D90),"") -> 114 | Q92: =IF(データセット1!$B90<>"",IF($Q$1=データセット1!$B90,データセット1!$D90),"") -> FALSE | R92: =IF(データセット1!$B90<>"",IF($R$1=データセット1!$B90,データセット1!$D90),"") -> FALSE | S92: =IF(データセット1!$B90<>"",IF($S$1=データセット1!$B90,データセット1!$D90),"") -> FALSE | T92: =IF(データセット1!$B90<>"",IF($T$1=データセット1!$B90,データセット1!$D90),"") -> FALSE | U92: =IF(データセット1!$B90<>"",IF($U$1=データセット1!$B90,データセット1!$D90),"") -> FALSE
M93: =IF(データセット1!$B91<>"",IF($M$1=データセット1!$B91,データセット1!$D91),"") -> 492 | N93: =IF(データセット1!$B91<>"",IF($N$1=データセット1!$B91,データセット1!$D91),"") -> FALSE | O93: =IF(データセット1!$B91<>"",IF($O$1=データセット1!$B91,データセット1!$D91),"") -> FALSE | P93: =IF(データセット1!$B91<>"",IF($P$1=データセット1!$B91,データセット1!$D91),"") -> FALSE | Q93: =IF(データセット1!$B91<>"",IF($Q$1=データセット1!$B91,データセット1!$D91),"") -> FALSE | R93: =IF(データセット1!$B91<>"",IF($R$1=データセット1!$B91,データセット1!$D91),"") -> FALSE | S93: =IF(データセット1!$B91<>"",IF($S$1=データセット1!$B91,データセット1!$D91),"") -> FALSE | T93: =IF(データセット1!$B91<>"",IF($T$1=データセット1!$B91,データセット1!$D91),"") -> FALSE | U93: =IF(データセット1!$B91<>"",IF($U$1=データセット1!$B91,データセット1!$D91),"") -> FALSE
M94: =IF(データセット1!$B92<>"",IF($M$1=データセット1!$B92,データセット1!$D92),"") -> FALSE | N94: =IF(データセット1!$B92<>"",IF($N$1=データセット1!$B92,データセット1!$D92),"") -> FALSE | O94: =IF(データセット1!$B92<>"",IF($O$1=データセット1!$B92,データセット1!$D92),"") -> FALSE | P94: =IF(データセット1!$B92<>"",IF($P$1=データセット1!$B92,データセット1!$D92),"") -> 178 | Q94: =IF(データセット1!$B92<>"",IF($Q$1=データセット1!$B92,データセット1!$D92),"") -> FALSE | R94: =IF(データセット1!$B92<>"",IF($R$1=データセット1!$B92,データセット1!$D92),"") -> FALSE | S94: =IF(データセット1!$B92<>"",IF($S$1=データセット1!$B92,データセット1!$D92),"") -> FALSE | T94: =IF(データセット1!$B92<>"",IF($T$1=データセット1!$B92,データセット1!$D92),"") -> FALSE | U94: =IF(データセット1!$B92<>"",IF($U$1=データセット1!$B92,データセット1!$D92),"") -> FALSE
M95: =IF(データセット1!$B93<>"",IF($M$1=データセット1!$B93,データセット1!$D93),"") -> FALSE | N95: =IF(データセット1!$B93<>"",IF($N$1=データセット1!$B93,データセット1!$D93),"") -> FALSE | O95: =IF(データセット1!$B93<>"",IF($O$1=データセット1!$B93,データセット1!$D93),"") -> FALSE | P95: =IF(データセット1!$B93<>"",IF($P$1=データセット1!$B93,データセット1!$D93),"") -> 156 | Q95: =IF(データセット1!$B93<>"",IF($Q$1=データセット1!$B93,データセット1!$D93),"") -> FALSE | R95: =IF(データセット1!$B93<>"",IF($R$1=データセット1!$B93,データセット1!$D93),"") -> FALSE | S95: =IF(データセット1!$B93<>"",IF($S$1=データセット1!$B93,データセット1!$D93),"") -> FALSE | T95: =IF(データセット1!$B93<>"",IF($T$1=データセット1!$B93,データセット1!$D93),"") -> FALSE | U95: =IF(データセット1!$B93<>"",IF($U$1=データセット1!$B93,データセット1!$D93),"") -> FALSE
M96: =IF(データセット1!$B94<>"",IF($M$1=データセット1!$B94,データセット1!$D94),"") -> FALSE | N96: =IF(データセット1!$B94<>"",IF($N$1=データセット1!$B94,データセット1!$D94),"") -> FALSE | O96: =IF(データセット1!$B94<>"",IF($O$1=データセット1!$B94,データセット1!$D94),"") -> FALSE | P96: =IF(データセット1!$B94<>"",IF($P$1=データセット1!$B94,データセット1!$D94),"") -> 110 | Q96: =IF(データセット1!$B94<>"",IF($Q$1=データセット1!$B94,データセット1!$D94),"") -> FALSE | R96: =IF(データセット1!$B94<>"",IF($R$1=データセット1!$B94,データセット1!$D94),"") -> FALSE | S96: =IF(データセット1!$B94<>"",IF($S$1=データセット1!$B94,データセット1!$D94),"") -> FALSE | T96: =IF(データセット1!$B94<>"",IF($T$1=データセット1!$B94,データセット1!$D94),"") -> FALSE | U96: =IF(データセット1!$B94<>"",IF($U$1=データセット1!$B94,データセット1!$D94),"") -> FALSE
M97: =IF(データセット1!$B95<>"",IF($M$1=データセット1!$B95,データセット1!$D95),"") -> 304 | N97: =IF(データセット1!$B95<>"",IF($N$1=データセット1!$B95,データセット1!$D95),"") -> FALSE | O97: =IF(データセット1!$B95<>"",IF($O$1=データセット1!$B95,データセット1!$D95),"") -> FALSE | P97: =IF(データセット1!$B95<>"",IF($P$1=データセット1!$B95,データセット1!$D95),"") -> FALSE | Q97: =IF(データセット1!$B95<>"",IF($Q$1=データセット1!$B95,データセット1!$D95),"") -> FALSE | R97: =IF(データセット1!$B95<>"",IF($R$1=データセット1!$B95,データセット1!$D95),"") -> FALSE | S97: =IF(データセット1!$B95<>"",IF($S$1=データセット1!$B95,データセット1!$D95),"") -> FALSE | T97: =IF(データセット1!$B95<>"",IF($T$1=データセット1!$B95,データセット1!$D95),"") -> FALSE | U97: =IF(データセット1!$B95<>"",IF($U$1=データセット1!$B95,データセット1!$D95),"") -> FALSE
M98: =IF(データセット1!$B96<>"",IF($M$1=データセット1!$B96,データセット1!$D96),"") -> FALSE | N98: =IF(データセット1!$B96<>"",IF($N$1=データセット1!$B96,データセット1!$D96),"") -> FALSE | O98: =IF(データセット1!$B96<>"",IF($O$1=データセット1!$B96,データセット1!$D96),"") -> FALSE | P98: =IF(データセット1!$B96<>"",IF($P$1=データセット1!$B96,データセット1!$D96),"") -> FALSE | Q98: =IF(データセット1!$B96<>"",IF($Q$1=データセット1!$B96,データセット1!$D96),"") -> 63 | R98: =IF(データセット1!$B96<>"",IF($R$1=データセット1!$B96,データセット1!$D96),"") -> FALSE | S98: =IF(データセット1!$B96<>"",IF($S$1=データセット1!$B96,データセット1!$D96),"") -> FALSE | T98: =IF(データセット1!$B96<>"",IF($T$1=データセット1!$B96,データセット1!$D96),"") -> FALSE | U98: =IF(データセット1!$B96<>"",IF($U$1=データセット1!$B96,データセット1!$D96),"") -> FALSE
M99: =IF(データセット1!$B97<>"",IF($M$1=データセット1!$B97,データセット1!$D97),"") -> 402 | N99: =IF(データセット1!$B97<>"",IF($N$1=データセット1!$B97,データセット1!$D97),"") -> FALSE | O99: =IF(データセット1!$B97<>"",IF($O$1=データセット1!$B97,データセット1!$D97),"") -> FALSE | P99: =IF(データセット1!$B97<>"",IF($P$1=データセット1!$B97,データセット1!$D97),"") -> FALSE | Q99: =IF(データセット1!$B97<>"",IF($Q$1=データセット1!$B97,データセット1!$D97),"") -> FALSE | R99: =IF(データセット1!$B97<>"",IF($R$1=データセット1!$B97,データセット1!$D97),"") -> FALSE | S99: =IF(データセット1!$B97<>"",IF($S$1=データセット1!$B97,データセット1!$D97),"") -> FALSE | T99: =IF(データセット1!$B97<>"",IF($T$1=データセット1!$B97,データセット1!$D97),"") -> FALSE | U99: =IF(データセット1!$B97<>"",IF($U$1=データセット1!$B97,データセット1!$D97),"") -> FALSE
M100: =IF(データセット1!$B98<>"",IF($M$1=データセット1!$B98,データセット1!$D98),"") -> FALSE | N100: =IF(データセット1!$B98<>"",IF($N$1=データセット1!$B98,データセット1!$D98),"") -> FALSE | O100: =IF(データセット1!$B98<>"",IF($O$1=データセット1!$B98,データセット1!$D98),"") -> FALSE | P100: =IF(データセット1!$B98<>"",IF($P$1=データセット1!$B98,データセット1!$D98),"") -> 160 | Q100: =IF(データセット1!$B98<>"",IF($Q$1=データセット1!$B98,データセット1!$D98),"") -> FALSE | R100: =IF(データセット1!$B98<>"",IF($R$1=データセット1!$B98,データセット1!$D98),"") -> FALSE | S100: =IF(データセット1!$B98<>"",IF($S$1=データセット1!$B98,データセット1!$D98),"") -> FALSE | T100: =IF(データセット1!$B98<>"",IF($T$1=データセット1!$B98,データセット1!$D98),"") -> FALSE | U100: =IF(データセット1!$B98<>"",IF($U$1=データセット1!$B98,データセット1!$D98),"") -> FALSE
M101: =IF(データセット1!$B99<>"",IF($M$1=データセット1!$B99,データセット1!$D99),"") -> FALSE | N101: =IF(データセット1!$B99<>"",IF($N$1=データセット1!$B99,データセット1!$D99),"") -> FALSE | O101: =IF(データセット1!$B99<>"",IF($O$1=データセット1!$B99,データセット1!$D99),"") -> FALSE | P101: =IF(データセット1!$B99<>"",IF($P$1=データセット1!$B99,データセット1!$D99),"") -> 144 | Q101: =IF(データセット1!$B99<>"",IF($Q$1=データセット1!$B99,データセット1!$D99),"") -> FALSE | R101: =IF(データセット1!$B99<>"",IF($R$1=データセット1!$B99,データセット1!$D99),"") -> FALSE | S101: =IF(データセット1!$B99<>"",IF($S$1=データセット1!$B99,データセット1!$D99),"") -> FALSE | T101: =IF(データセット1!$B99<>"",IF($T$1=データセット1!$B99,データセット1!$D99),"") -> FALSE | U101: =IF(データセット1!$B99<>"",IF($U$1=データセット1!$B99,データセット1!$D99),"") -> FALSE
M102: =IF(データセット1!$B100<>"",IF($M$1=データセット1!$B100,データセット1!$D100),"") -> FALSE | N102: =IF(データセット1!$B100<>"",IF($N$1=データセット1!$B100,データセット1!$D100),"") -> FALSE | O102: =IF(データセット1!$B100<>"",IF($O$1=データセット1!$B100,データセット1!$D100),"") -> FALSE | P102: =IF(データセット1!$B100<>"",IF($P$1=データセット1!$B100,データセット1!$D100),"") -> FALSE | Q102: =IF(データセット1!$B100<>"",IF($Q$1=データセット1!$B100,データセット1!$D100),"") -> 65 | R102: =IF(データセット1!$B100<>"",IF($R$1=データセット1!$B100,データセット1!$D100),"") -> FALSE | S102: =IF(データセット1!$B100<>"",IF($S$1=データセット1!$B100,データセット1!$D100),"") -> FALSE | T102: =IF(データセット1!$B100<>"",IF($T$1=データセット1!$B100,データセット1!$D100),"") -> FALSE | U102: =IF(データセット1!$B100<>"",IF($U$1=データセット1!$B100,データセット1!$D100),"") -> FALSE
M103: =IF(データセット1!$B101<>"",IF($M$1=データセット1!$B101,データセット1!$D101),"") -> 485 | N103: =IF(データセット1!$B101<>"",IF($N$1=データセット1!$B101,データセット1!$D101),"") -> FALSE | O103: =IF(データセット1!$B101<>"",IF($O$1=データセット1!$B101,データセット1!$D101),"") -> FALSE | P103: =IF(データセット1!$B101<>"",IF($P$1=データセット1!$B101,データセット1!$D101),"") -> FALSE | Q103: =IF(データセット1!$B101<>"",IF($Q$1=データセット1!$B101,データセット1!$D101),"") -> FALSE | R103: =IF(データセット1!$B101<>"",IF($R$1=データセット1!$B101,データセット1!$D101),"") -> FALSE | S103: =IF(データセット1!$B101<>"",IF($S$1=データセット1!$B101,データセット1!$D101),"") -> FALSE | T103: =IF(データセット1!$B101<>"",IF($T$1=データセット1!$B101,データセット1!$D101),"") -> FALSE | U103: =IF(データセット1!$B101<>"",IF($U$1=データセット1!$B101,データセット1!$D101),"") -> FALSE
M104: =IF(データセット1!$B102<>"",IF($M$1=データセット1!$B102,データセット1!$D102),"") -> 520 | N104: =IF(データセット1!$B102<>"",IF($N$1=データセット1!$B102,データセット1!$D102),"") -> FALSE | O104: =IF(データセット1!$B102<>"",IF($O$1=データセット1!$B102,データセット1!$D102),"") -> FALSE | P104: =IF(データセット1!$B102<>"",IF($P$1=データセット1!$B102,データセット1!$D102),"") -> FALSE | Q104: =IF(データセット1!$B102<>"",IF($Q$1=データセット1!$B102,データセット1!$D102),"") -> FALSE | R104: =IF(データセット1!$B102<>"",IF($R$1=データセット1!$B102,データセット1!$D102),"") -> FALSE | S104: =IF(データセット1!$B102<>"",IF($S$1=データセット1!$B102,データセット1!$D102),"") -> FALSE | T104: =IF(データセット1!$B102<>"",IF($T$1=データセット1!$B102,データセット1!$D102),"") -> FALSE | U104: =IF(データセット1!$B102<>"",IF($U$1=データセット1!$B102,データセット1!$D102),"") -> FALSE
M105: =IF(データセット1!$B103<>"",IF($M$1=データセット1!$B103,データセット1!$D103),"") -> FALSE | N105: =IF(データセット1!$B103<>"",IF($N$1=データセット1!$B103,データセット1!$D103),"") -> FALSE | O105: =IF(データセット1!$B103<>"",IF($O$1=データセット1!$B103,データセット1!$D103),"") -> FALSE | P105: =IF(データセット1!$B103<>"",IF($P$1=データセット1!$B103,データセット1!$D103),"") -> 147 | Q105: =IF(データセット1!$B103<>"",IF($Q$1=データセット1!$B103,データセット1!$D103),"") -> FALSE | R105: =IF(データセット1!$B103<>"",IF($R$1=データセット1!$B103,データセット1!$D103),"") -> FALSE | S105: =IF(データセット1!$B103<>"",IF($S$1=データセット1!$B103,データセット1!$D103),"") -> FALSE | T105: =IF(データセット1!$B103<>"",IF($T$1=データセット1!$B103,データセット1!$D103),"") -> FALSE | U105: =IF(データセット1!$B103<>"",IF($U$1=データセット1!$B103,データセット1!$D103),"") -> FALSE
M106: =IF(データセット1!$B104<>"",IF($M$1=データセット1!$B104,データセット1!$D104),"") -> 564 | N106: =IF(データセット1!$B104<>"",IF($N$1=データセット1!$B104,データセット1!$D104),"") -> FALSE | O106: =IF(データセット1!$B104<>"",IF($O$1=データセット1!$B104,データセット1!$D104),"") -> FALSE | P106: =IF(データセット1!$B104<>"",IF($P$1=データセット1!$B104,データセット1!$D104),"") -> FALSE | Q106: =IF(データセット1!$B104<>"",IF($Q$1=データセット1!$B104,データセット1!$D104),"") -> FALSE | R106: =IF(データセット1!$B104<>"",IF($R$1=データセット1!$B104,データセット1!$D104),"") -> FALSE | S106: =IF(データセット1!$B104<>"",IF($S$1=データセット1!$B104,データセット1!$D104),"") -> FALSE | T106: =IF(データセット1!$B104<>"",IF($T$1=データセット1!$B104,データセット1!$D104),"") -> FALSE | U106: =IF(データセット1!$B104<>"",IF($U$1=データセット1!$B104,データセット1!$D104),"") -> FALSE
M107: =IF(データセット1!$B105<>"",IF($M$1=データセット1!$B105,データセット1!$D105),"") -> FALSE | N107: =IF(データセット1!$B105<>"",IF($N$1=データセット1!$B105,データセット1!$D105),"") -> FALSE | O107: =IF(データセット1!$B105<>"",IF($O$1=データセット1!$B105,データセット1!$D105),"") -> FALSE | P107: =IF(データセット1!$B105<>"",IF($P$1=データセット1!$B105,データセット1!$D105),"") -> 175 | Q107: =IF(データセット1!$B105<>"",IF($Q$1=データセット1!$B105,データセット1!$D105),"") -> FALSE | R107: =IF(データセット1!$B105<>"",IF($R$1=データセット1!$B105,データセット1!$D105),"") -> FALSE | S107: =IF(データセット1!$B105<>"",IF($S$1=データセット1!$B105,データセット1!$D105),"") -> FALSE | T107: =IF(データセット1!$B105<>"",IF($T$1=データセット1!$B105,データセット1!$D105),"") -> FALSE | U107: =IF(データセット1!$B105<>"",IF($U$1=データセット1!$B105,データセット1!$D105),"") -> FALSE
M108: =IF(データセット1!$B106<>"",IF($M$1=データセット1!$B106,データセット1!$D106),"") -> FALSE | N108: =IF(データセット1!$B106<>"",IF($N$1=データセット1!$B106,データセット1!$D106),"") -> FALSE | O108: =IF(データセット1!$B106<>"",IF($O$1=データセット1!$B106,データセット1!$D106),"") -> FALSE | P108: =IF(データセット1!$B106<>"",IF($P$1=データセット1!$B106,データセット1!$D106),"") -> FALSE | Q108: =IF(データセット1!$B106<>"",IF($Q$1=データセット1!$B106,データセット1!$D106),"") -> FALSE | R108: =IF(データセット1!$B106<>"",IF($R$1=データセット1!$B106,データセット1!$D106),"") -> 43 | S108: =IF(データセット1!$B106<>"",IF($S$1=データセット1!$B106,データセット1!$D106),"") -> FALSE | T108: =IF(データセット1!$B106<>"",IF($T$1=データセット1!$B106,データセット1!$D106),"") -> FALSE | U108: =IF(データセット1!$B106<>"",IF($U$1=データセット1!$B106,データセット1!$D106),"") -> FALSE
M109: =IF(データセット1!$B107<>"",IF($M$1=データセット1!$B107,データセット1!$D107),"") -> FALSE | N109: =IF(データセット1!$B107<>"",IF($N$1=データセット1!$B107,データセット1!$D107),"") -> FALSE | O109: =IF(データセット1!$B107<>"",IF($O$1=データセット1!$B107,データセット1!$D107),"") -> FALSE | P109: =IF(データセット1!$B107<>"",IF($P$1=データセット1!$B107,データセット1!$D107),"") -> 188 | Q109: =IF(データセット1!$B107<>"",IF($Q$1=データセット1!$B107,データセット1!$D107),"") -> FALSE | R109: =IF(データセット1!$B107<>"",IF($R$1=データセット1!$B107,データセット1!$D107),"") -> FALSE | S109: =IF(データセット1!$B107<>"",IF($S$1=データセット1!$B107,データセット1!$D107),"") -> FALSE | T109: =IF(データセット1!$B107<>"",IF($T$1=データセット1!$B107,データセット1!$D107),"") -> FALSE | U109: =IF(データセット1!$B107<>"",IF($U$1=データセット1!$B107,データセット1!$D107),"") -> FALSE
M110: =IF(データセット1!$B108<>"",IF($M$1=データセット1!$B108,データセット1!$D108),"") -> FALSE | N110: =IF(データセット1!$B108<>"",IF($N$1=データセット1!$B108,データセット1!$D108),"") -> FALSE | O110: =IF(データセット1!$B108<>"",IF($O$1=データセット1!$B108,データセット1!$D108),"") -> FALSE | P110: =IF(データセット1!$B108<>"",IF($P$1=データセット1!$B108,データセット1!$D108),"") -> 183 | Q110: =IF(データセット1!$B108<>"",IF($Q$1=データセット1!$B108,データセット1!$D108),"") -> FALSE | R110: =IF(データセット1!$B108<>"",IF($R$1=データセット1!$B108,データセット1!$D108),"") -> FALSE | S110: =IF(データセット1!$B108<>"",IF($S$1=データセット1!$B108,データセット1!$D108),"") -> FALSE | T110: =IF(データセット1!$B108<>"",IF($T$1=データセット1!$B108,データセット1!$D108),"") -> FALSE | U110: =IF(データセット1!$B108<>"",IF($U$1=データセット1!$B108,データセット1!$D108),"") -> FALSE
M111: =IF(データセット1!$B109<>"",IF($M$1=データセット1!$B109,データセット1!$D109),"") -> 422 | N111: =IF(データセット1!$B109<>"",IF($N$1=データセット1!$B109,データセット1!$D109),"") -> FALSE | O111: =IF(データセット1!$B109<>"",IF($O$1=データセット1!$B109,データセット1!$D109),"") -> FALSE | P111: =IF(データセット1!$B109<>"",IF($P$1=データセット1!$B109,データセット1!$D109),"") -> FALSE | Q111: =IF(データセット1!$B109<>"",IF($Q$1=データセット1!$B109,データセット1!$D109),"") -> FALSE | R111: =IF(データセット1!$B109<>"",IF($R$1=データセット1!$B109,データセット1!$D109),"") -> FALSE | S111: =IF(データセット1!$B109<>"",IF($S$1=データセット1!$B109,データセット1!$D109),"") -> FALSE | T111: =IF(データセット1!$B109<>"",IF($T$1=データセット1!$B109,データセット1!$D109),"") -> FALSE | U111: =IF(データセット1!$B109<>"",IF($U$1=データセット1!$B109,データセット1!$D109),"") -> FALSE
M112: =IF(データセット1!$B110<>"",IF($M$1=データセット1!$B110,データセット1!$D110),"") -> 406 | N112: =IF(データセット1!$B110<>"",IF($N$1=データセット1!$B110,データセット1!$D110),"") -> FALSE | O112: =IF(データセット1!$B110<>"",IF($O$1=データセット1!$B110,データセット1!$D110),"") -> FALSE | P112: =IF(データセット1!$B110<>"",IF($P$1=データセット1!$B110,データセット1!$D110),"") -> FALSE | Q112: =IF(データセット1!$B110<>"",IF($Q$1=データセット1!$B110,データセット1!$D110),"") -> FALSE | R112: =IF(データセット1!$B110<>"",IF($R$1=データセット1!$B110,データセット1!$D110),"") -> FALSE | S112: =IF(データセット1!$B110<>"",IF($S$1=データセット1!$B110,データセット1!$D110),"") -> FALSE | T112: =IF(データセット1!$B110<>"",IF($T$1=データセット1!$B110,データセット1!$D110),"") -> FALSE | U112: =IF(データセット1!$B110<>"",IF($U$1=データセット1!$B110,データセット1!$D110),"") -> FALSE
M113: =IF(データセット1!$B111<>"",IF($M$1=データセット1!$B111,データセット1!$D111),"") -> FALSE | N113: =IF(データセット1!$B111<>"",IF($N$1=データセット1!$B111,データセット1!$D111),"") -> FALSE | O113: =IF(データセット1!$B111<>"",IF($O$1=データセット1!$B111,データセット1!$D111),"") -> FALSE | P113: =IF(データセット1!$B111<>"",IF($P$1=データセット1!$B111,データセット1!$D111),"") -> 158 | Q113: =IF(データセット1!$B111<>"",IF($Q$1=データセット1!$B111,データセット1!$D111),"") -> FALSE | R113: =IF(データセット1!$B111<>"",IF($R$1=データセット1!$B111,データセット1!$D111),"") -> FALSE | S113: =IF(データセット1!$B111<>"",IF($S$1=データセット1!$B111,データセット1!$D111),"") -> FALSE | T113: =IF(データセット1!$B111<>"",IF($T$1=データセット1!$B111,データセット1!$D111),"") -> FALSE | U113: =IF(データセット1!$B111<>"",IF($U$1=データセット1!$B111,データセット1!$D111),"") -> FALSE
M114: =IF(データセット1!$B112<>"",IF($M$1=データセット1!$B112,データセット1!$D112),"") -> 410 | N114: =IF(データセット1!$B112<>"",IF($N$1=データセット1!$B112,データセット1!$D112),"") -> FALSE | O114: =IF(データセット1!$B112<>"",IF($O$1=データセット1!$B112,データセット1!$D112),"") -> FALSE | P114: =IF(データセット1!$B112<>"",IF($P$1=データセット1!$B112,データセット1!$D112),"") -> FALSE | Q114: =IF(データセット1!$B112<>"",IF($Q$1=データセット1!$B112,データセット1!$D112),"") -> FALSE | R114: =IF(データセット1!$B112<>"",IF($R$1=データセット1!$B112,データセット1!$D112),"") -> FALSE | S114: =IF(データセット1!$B112<>"",IF($S$1=データセット1!$B112,データセット1!$D112),"") -> FALSE | T114: =IF(データセット1!$B112<>"",IF($T$1=データセット1!$B112,データセット1!$D112),"") -> FALSE | U114: =IF(データセット1!$B112<>"",IF($U$1=データセット1!$B112,データセット1!$D112),"") -> FALSE
M115: =IF(データセット1!$B113<>"",IF($M$1=データセット1!$B113,データセット1!$D113),"") -> FALSE | N115: =IF(データセット1!$B113<>"",IF($N$1=データセット1!$B113,データセット1!$D113),"") -> FALSE | O115: =IF(データセット1!$B113<>"",IF($O$1=データセット1!$B113,データセット1!$D113),"") -> FALSE | P115: =IF(データセット1!$B113<>"",IF($P$1=データセット1!$B113,データセット1!$D113),"") -> FALSE | Q115: =IF(データセット1!$B113<>"",IF($Q$1=データセット1!$B113,データセット1!$D113),"") -> 64 | R115: =IF(データセット1!$B113<>"",IF($R$1=データセット1!$B113,データセット1!$D113),"") -> FALSE | S115: =IF(データセット1!$B113<>"",IF($S$1=データセット1!$B113,データセット1!$D113),"") -> FALSE | T115: =IF(データセット1!$B113<>"",IF($T$1=データセット1!$B113,データセット1!$D113),"") -> FALSE | U115: =IF(データセット1!$B113<>"",IF($U$1=データセット1!$B113,データセット1!$D113),"") -> FALSE
M116: =IF(データセット1!$B114<>"",IF($M$1=データセット1!$B114,データセット1!$D114),"") -> FALSE | N116: =IF(データセット1!$B114<>"",IF($N$1=データセット1!$B114,データセット1!$D114),"") -> FALSE | O116: =IF(データセット1!$B114<>"",IF($O$1=データセット1!$B114,データセット1!$D114),"") -> FALSE | P116: =IF(データセット1!$B114<>"",IF($P$1=データセット1!$B114,データセット1!$D114),"") -> 197 | Q116: =IF(データセット1!$B114<>"",IF($Q$1=データセット1!$B114,データセット1!$D114),"") -> FALSE | R116: =IF(データセット1!$B114<>"",IF($R$1=データセット1!$B114,データセット1!$D114),"") -> FALSE | S116: =IF(データセット1!$B114<>"",IF($S$1=データセット1!$B114,データセット1!$D114),"") -> FALSE | T116: =IF(データセット1!$B114<>"",IF($T$1=データセット1!$B114,データセット1!$D114),"") -> FALSE | U116: =IF(データセット1!$B114<>"",IF($U$1=データセット1!$B114,データセット1!$D114),"") -> FALSE
M117: =IF(データセット1!$B115<>"",IF($M$1=データセット1!$B115,データセット1!$D115),"") -> FALSE | N117: =IF(データセット1!$B115<>"",IF($N$1=データセット1!$B115,データセット1!$D115),"") -> FALSE | O117: =IF(データセット1!$B115<>"",IF($O$1=データセット1!$B115,データセット1!$D115),"") -> FALSE | P117: =IF(データセット1!$B115<>"",IF($P$1=データセット1!$B115,データセット1!$D115),"") -> 166 | Q117: =IF(データセット1!$B115<>"",IF($Q$1=データセット1!$B115,データセット1!$D115),"") -> FALSE | R117: =IF(データセット1!$B115<>"",IF($R$1=データセット1!$B115,データセット1!$D115),"") -> FALSE | S117: =IF(データセット1!$B115<>"",IF($S$1=データセット1!$B115,データセット1!$D115),"") -> FALSE | T117: =IF(データセット1!$B115<>"",IF($T$1=データセット1!$B115,データセット1!$D115),"") -> FALSE | U117: =IF(データセット1!$B115<>"",IF($U$1=データセット1!$B115,データセット1!$D115),"") -> FALSE
M118: =IF(データセット1!$B116<>"",IF($M$1=データセット1!$B116,データセット1!$D116),"") -> 599 | N118: =IF(データセット1!$B116<>"",IF($N$1=データセット1!$B116,データセット1!$D116),"") -> FALSE | O118: =IF(データセット1!$B116<>"",IF($O$1=データセット1!$B116,データセット1!$D116),"") -> FALSE | P118: =IF(データセット1!$B116<>"",IF($P$1=データセット1!$B116,データセット1!$D116),"") -> FALSE | Q118: =IF(データセット1!$B116<>"",IF($Q$1=データセット1!$B116,データセット1!$D116),"") -> FALSE | R118: =IF(データセット1!$B116<>"",IF($R$1=データセット1!$B116,データセット1!$D116),"") -> FALSE | S118: =IF(データセット1!$B116<>"",IF($S$1=データセット1!$B116,データセット1!$D116),"") -> FALSE | T118: =IF(データセット1!$B116<>"",IF($T$1=データセット1!$B116,データセット1!$D116),"") -> FALSE | U118: =IF(データセット1!$B116<>"",IF($U$1=データセット1!$B116,データセット1!$D116),"") -> FALSE
M119: =IF(データセット1!$B117<>"",IF($M$1=データセット1!$B117,データセット1!$D117),"") -> FALSE | N119: =IF(データセット1!$B117<>"",IF($N$1=データセット1!$B117,データセット1!$D117),"") -> FALSE | O119: =IF(データセット1!$B117<>"",IF($O$1=データセット1!$B117,データセット1!$D117),"") -> FALSE | P119: =IF(データセット1!$B117<>"",IF($P$1=データセット1!$B117,データセット1!$D117),"") -> FALSE | Q119: =IF(データセット1!$B117<>"",IF($Q$1=データセット1!$B117,データセット1!$D117),"") -> 68 | R119: =IF(データセット1!$B117<>"",IF($R$1=データセット1!$B117,データセット1!$D117),"") -> FALSE | S119: =IF(データセット1!$B117<>"",IF($S$1=データセット1!$B117,データセット1!$D117),"") -> FALSE | T119: =IF(データセット1!$B117<>"",IF($T$1=データセット1!$B117,データセット1!$D117),"") -> FALSE | U119: =IF(データセット1!$B117<>"",IF($U$1=データセット1!$B117,データセット1!$D117),"") -> FALSE
M120: =IF(データセット1!$B118<>"",IF($M$1=データセット1!$B118,データセット1!$D118),"") -> 337 | N120: =IF(データセット1!$B118<>"",IF($N$1=データセット1!$B118,データセット1!$D118),"") -> FALSE | O120: =IF(データセット1!$B118<>"",IF($O$1=データセット1!$B118,データセット1!$D118),"") -> FALSE | P120: =IF(データセット1!$B118<>"",IF($P$1=データセット1!$B118,データセット1!$D118),"") -> FALSE | Q120: =IF(データセット1!$B118<>"",IF($Q$1=データセット1!$B118,データセット1!$D118),"") -> FALSE | R120: =IF(データセット1!$B118<>"",IF($R$1=データセット1!$B118,データセット1!$D118),"") -> FALSE | S120: =IF(データセット1!$B118<>"",IF($S$1=データセット1!$B118,データセット1!$D118),"") -> FALSE | T120: =IF(データセット1!$B118<>"",IF($T$1=データセット1!$B118,データセット1!$D118),"") -> FALSE | U120: =IF(データセット1!$B118<>"",IF($U$1=データセット1!$B118,データセット1!$D118),"") -> FALSE
M121: =IF(データセット1!$B119<>"",IF($M$1=データセット1!$B119,データセット1!$D119),"") -> 623 | N121: =IF(データセット1!$B119<>"",IF($N$1=データセット1!$B119,データセット1!$D119),"") -> FALSE | O121: =IF(データセット1!$B119<>"",IF($O$1=データセット1!$B119,データセット1!$D119),"") -> FALSE | P121: =IF(データセット1!$B119<>"",IF($P$1=データセット1!$B119,データセット1!$D119),"") -> FALSE | Q121: =IF(データセット1!$B119<>"",IF($Q$1=データセット1!$B119,データセット1!$D119),"") -> FALSE | R121: =IF(データセット1!$B119<>"",IF($R$1=データセット1!$B119,データセット1!$D119),"") -> FALSE | S121: =IF(データセット1!$B119<>"",IF($S$1=データセット1!$B119,データセット1!$D119),"") -> FALSE | T121: =IF(データセット1!$B119<>"",IF($T$1=データセット1!$B119,データセット1!$D119),"") -> FALSE | U121: =IF(データセット1!$B119<>"",IF($U$1=データセット1!$B119,データセット1!$D119),"") -> FALSE
M122: =IF(データセット1!$B120<>"",IF($M$1=データセット1!$B120,データセット1!$D120),"") -> 335 | N122: =IF(データセット1!$B120<>"",IF($N$1=データセット1!$B120,データセット1!$D120),"") -> FALSE | O122: =IF(データセット1!$B120<>"",IF($O$1=データセット1!$B120,データセット1!$D120),"") -> FALSE | P122: =IF(データセット1!$B120<>"",IF($P$1=データセット1!$B120,データセット1!$D120),"") -> FALSE | Q122: =IF(データセット1!$B120<>"",IF($Q$1=データセット1!$B120,データセット1!$D120),"") -> FALSE | R122: =IF(データセット1!$B120<>"",IF($R$1=データセット1!$B120,データセット1!$D120),"") -> FALSE | S122: =IF(データセット1!$B120<>"",IF($S$1=データセット1!$B120,データセット1!$D120),"") -> FALSE | T122: =IF(データセット1!$B120<>"",IF($T$1=データセット1!$B120,データセット1!$D120),"") -> FALSE | U122: =IF(データセット1!$B120<>"",IF($U$1=データセット1!$B120,データセット1!$D120),"") -> FALSE
M123: =IF(データセット1!$B121<>"",IF($M$1=データセット1!$B121,データセット1!$D121),"") -> 512 | N123: =IF(データセット1!$B121<>"",IF($N$1=データセット1!$B121,データセット1!$D121),"") -> FALSE | O123: =IF(データセット1!$B121<>"",IF($O$1=データセット1!$B121,データセット1!$D121),"") -> FALSE | P123: =IF(データセット1!$B121<>"",IF($P$1=データセット1!$B121,データセット1!$D121),"") -> FALSE | Q123: =IF(データセット1!$B121<>"",IF($Q$1=データセット1!$B121,データセット1!$D121),"") -> FALSE | R123: =IF(データセット1!$B121<>"",IF($R$1=データセット1!$B121,データセット1!$D121),"") -> FALSE | S123: =IF(データセット1!$B121<>"",IF($S$1=データセット1!$B121,データセット1!$D121),"") -> FALSE | T123: =IF(データセット1!$B121<>"",IF($T$1=データセット1!$B121,データセット1!$D121),"") -> FALSE | U123: =IF(データセット1!$B121<>"",IF($U$1=データセット1!$B121,データセット1!$D121),"") -> FALSE
M124: =IF(データセット1!$B122<>"",IF($M$1=データセット1!$B122,データセット1!$D122),"") -> FALSE | N124: =IF(データセット1!$B122<>"",IF($N$1=データセット1!$B122,データセット1!$D122),"") -> FALSE | O124: =IF(データセット1!$B122<>"",IF($O$1=データセット1!$B122,データセット1!$D122),"") -> FALSE | P124: =IF(データセット1!$B122<>"",IF($P$1=データセット1!$B122,データセット1!$D122),"") -> 119 | Q124: =IF(データセット1!$B122<>"",IF($Q$1=データセット1!$B122,データセット1!$D122),"") -> FALSE | R124: =IF(データセット1!$B122<>"",IF($R$1=データセット1!$B122,データセット1!$D122),"") -> FALSE | S124: =IF(データセット1!$B122<>"",IF($S$1=データセット1!$B122,データセット1!$D122),"") -> FALSE | T124: =IF(データセット1!$B122<>"",IF($T$1=データセット1!$B122,データセット1!$D122),"") -> FALSE | U124: =IF(データセット1!$B122<>"",IF($U$1=データセット1!$B122,データセット1!$D122),"") -> FALSE
M125: =IF(データセット1!$B123<>"",IF($M$1=データセット1!$B123,データセット1!$D123),"") -> FALSE | N125: =IF(データセット1!$B123<>"",IF($N$1=データセット1!$B123,データセット1!$D123),"") -> FALSE | O125: =IF(データセット1!$B123<>"",IF($O$1=データセット1!$B123,データセット1!$D123),"") -> FALSE | P125: =IF(データセット1!$B123<>"",IF($P$1=データセット1!$B123,データセット1!$D123),"") -> FALSE | Q125: =IF(データセット1!$B123<>"",IF($Q$1=データセット1!$B123,データセット1!$D123),"") -> 128 | R125: =IF(データセット1!$B123<>"",IF($R$1=データセット1!$B123,データセット1!$D123),"") -> FALSE | S125: =IF(データセット1!$B123<>"",IF($S$1=データセット1!$B123,データセット1!$D123),"") -> FALSE | T125: =IF(データセット1!$B123<>"",IF($T$1=データセット1!$B123,データセット1!$D123),"") -> FALSE | U125: =IF(データセット1!$B123<>"",IF($U$1=データセット1!$B123,データセット1!$D123),"") -> FALSE
M126: =IF(データセット1!$B124<>"",IF($M$1=データセット1!$B124,データセット1!$D124),"") -> 467 | N126: =IF(データセット1!$B124<>"",IF($N$1=データセット1!$B124,データセット1!$D124),"") -> FALSE | O126: =IF(データセット1!$B124<>"",IF($O$1=データセット1!$B124,データセット1!$D124),"") -> FALSE | P126: =IF(データセット1!$B124<>"",IF($P$1=データセット1!$B124,データセット1!$D124),"") -> FALSE | Q126: =IF(データセット1!$B124<>"",IF($Q$1=データセット1!$B124,データセット1!$D124),"") -> FALSE | R126: =IF(データセット1!$B124<>"",IF($R$1=データセット1!$B124,データセット1!$D124),"") -> FALSE | S126: =IF(データセット1!$B124<>"",IF($S$1=データセット1!$B124,データセット1!$D124),"") -> FALSE | T126: =IF(データセット1!$B124<>"",IF($T$1=データセット1!$B124,データセット1!$D124),"") -> FALSE | U126: =IF(データセット1!$B124<>"",IF($U$1=データセット1!$B124,データセット1!$D124),"") -> FALSE
M127: =IF(データセット1!$B125<>"",IF($M$1=データセット1!$B125,データセット1!$D125),"") -> 337 | N127: =IF(データセット1!$B125<>"",IF($N$1=データセット1!$B125,データセット1!$D125),"") -> FALSE | O127: =IF(データセット1!$B125<>"",IF($O$1=データセット1!$B125,データセット1!$D125),"") -> FALSE | P127: =IF(データセット1!$B125<>"",IF($P$1=データセット1!$B125,データセット1!$D125),"") -> FALSE | Q127: =IF(データセット1!$B125<>"",IF($Q$1=データセット1!$B125,データセット1!$D125),"") -> FALSE | R127: =IF(データセット1!$B125<>"",IF($R$1=データセット1!$B125,データセット1!$D125),"") -> FALSE | S127: =IF(データセット1!$B125<>"",IF($S$1=データセット1!$B125,データセット1!$D125),"") -> FALSE | T127: =IF(データセット1!$B125<>"",IF($T$1=データセット1!$B125,データセット1!$D125),"") -> FALSE | U127: =IF(データセット1!$B125<>"",IF($U$1=データセット1!$B125,データセット1!$D125),"") -> FALSE
M128: =IF(データセット1!$B126<>"",IF($M$1=データセット1!$B126,データセット1!$D126),"") -> FALSE | N128: =IF(データセット1!$B126<>"",IF($N$1=データセット1!$B126,データセット1!$D126),"") -> FALSE | O128: =IF(データセット1!$B126<>"",IF($O$1=データセット1!$B126,データセット1!$D126),"") -> FALSE | P128: =IF(データセット1!$B126<>"",IF($P$1=データセット1!$B126,データセット1!$D126),"") -> FALSE | Q128: =IF(データセット1!$B126<>"",IF($Q$1=データセット1!$B126,データセット1!$D126),"") -> FALSE | R128: =IF(データセット1!$B126<>"",IF($R$1=データセット1!$B126,データセット1!$D126),"") -> 61 | S128: =IF(データセット1!$B126<>"",IF($S$1=データセット1!$B126,データセット1!$D126),"") -> FALSE | T128: =IF(データセット1!$B126<>"",IF($T$1=データセット1!$B126,データセット1!$D126),"") -> FALSE | U128: =IF(データセット1!$B126<>"",IF($U$1=データセット1!$B126,データセット1!$D126),"") -> FALSE
M129: =IF(データセット1!$B127<>"",IF($M$1=データセット1!$B127,データセット1!$D127),"") -> FALSE | N129: =IF(データセット1!$B127<>"",IF($N$1=データセット1!$B127,データセット1!$D127),"") -> FALSE | O129: =IF(データセット1!$B127<>"",IF($O$1=データセット1!$B127,データセット1!$D127),"") -> FALSE | P129: =IF(データセット1!$B127<>"",IF($P$1=データセット1!$B127,データセット1!$D127),"") -> 218 | Q129: =IF(データセット1!$B127<>"",IF($Q$1=データセット1!$B127,データセット1!$D127),"") -> FALSE | R129: =IF(データセット1!$B127<>"",IF($R$1=データセット1!$B127,データセット1!$D127),"") -> FALSE | S129: =IF(データセット1!$B127<>"",IF($S$1=データセット1!$B127,データセット1!$D127),"") -> FALSE | T129: =IF(データセット1!$B127<>"",IF($T$1=データセット1!$B127,データセット1!$D127),"") -> FALSE | U129: =IF(データセット1!$B127<>"",IF($U$1=データセット1!$B127,データセット1!$D127),"") -> FALSE
M130: =IF(データセット1!$B128<>"",IF($M$1=データセット1!$B128,データセット1!$D128),"") -> FALSE | N130: =IF(データセット1!$B128<>"",IF($N$1=データセット1!$B128,データセット1!$D128),"") -> FALSE | O130: =IF(データセット1!$B128<>"",IF($O$1=データセット1!$B128,データセット1!$D128),"") -> FALSE | P130: =IF(データセット1!$B128<>"",IF($P$1=データセット1!$B128,データセット1!$D128),"") -> FALSE | Q130: =IF(データセット1!$B128<>"",IF($Q$1=データセット1!$B128,データセット1!$D128),"") -> 111 | R130: =IF(データセット1!$B128<>"",IF($R$1=データセット1!$B128,データセット1!$D128),"") -> FALSE | S130: =IF(データセット1!$B128<>"",IF($S$1=データセット1!$B128,データセット1!$D128),"") -> FALSE | T130: =IF(データセット1!$B128<>"",IF($T$1=データセット1!$B128,データセット1!$D128),"") -> FALSE | U130: =IF(データセット1!$B128<>"",IF($U$1=データセット1!$B128,データセット1!$D128),"") -> FALSE
M131: =IF(データセット1!$B129<>"",IF($M$1=データセット1!$B129,データセット1!$D129),"") -> 425 | N131: =IF(データセット1!$B129<>"",IF($N$1=データセット1!$B129,データセット1!$D129),"") -> FALSE | O131: =IF(データセット1!$B129<>"",IF($O$1=データセット1!$B129,データセット1!$D129),"") -> FALSE | P131: =IF(データセット1!$B129<>"",IF($P$1=データセット1!$B129,データセット1!$D129),"") -> FALSE | Q131: =IF(データセット1!$B129<>"",IF($Q$1=データセット1!$B129,データセット1!$D129),"") -> FALSE | R131: =IF(データセット1!$B129<>"",IF($R$1=データセット1!$B129,データセット1!$D129),"") -> FALSE | S131: =IF(データセット1!$B129<>"",IF($S$1=データセット1!$B129,データセット1!$D129),"") -> FALSE | T131: =IF(データセット1!$B129<>"",IF($T$1=データセット1!$B129,データセット1!$D129),"") -> FALSE | U131: =IF(データセット1!$B129<>"",IF($U$1=データセット1!$B129,データセット1!$D129),"") -> FALSE
M132: =IF(データセット1!$B130<>"",IF($M$1=データセット1!$B130,データセット1!$D130),"") -> 519 | N132: =IF(データセット1!$B130<>"",IF($N$1=データセット1!$B130,データセット1!$D130),"") -> FALSE | O132: =IF(データセット1!$B130<>"",IF($O$1=データセット1!$B130,データセット1!$D130),"") -> FALSE | P132: =IF(データセット1!$B130<>"",IF($P$1=データセット1!$B130,データセット1!$D130),"") -> FALSE | Q132: =IF(データセット1!$B130<>"",IF($Q$1=データセット1!$B130,データセット1!$D130),"") -> FALSE | R132: =IF(データセット1!$B130<>"",IF($R$1=データセット1!$B130,データセット1!$D130),"") -> FALSE | S132: =IF(データセット1!$B130<>"",IF($S$1=データセット1!$B130,データセット1!$D130),"") -> FALSE | T132: =IF(データセット1!$B130<>"",IF($T$1=データセット1!$B130,データセット1!$D130),"") -> FALSE | U132: =IF(データセット1!$B130<>"",IF($U$1=データセット1!$B130,データセット1!$D130),"") -> FALSE
M133: =IF(データセット1!$B131<>"",IF($M$1=データセット1!$B131,データセット1!$D131),"") -> FALSE | N133: =IF(データセット1!$B131<>"",IF($N$1=データセット1!$B131,データセット1!$D131),"") -> FALSE | O133: =IF(データセット1!$B131<>"",IF($O$1=データセット1!$B131,データセット1!$D131),"") -> FALSE | P133: =IF(データセット1!$B131<>"",IF($P$1=データセット1!$B131,データセット1!$D131),"") -> FALSE | Q133: =IF(データセット1!$B131<>"",IF($Q$1=データセット1!$B131,データセット1!$D131),"") -> 83 | R133: =IF(データセット1!$B131<>"",IF($R$1=データセット1!$B131,データセット1!$D131),"") -> FALSE | S133: =IF(データセット1!$B131<>"",IF($S$1=データセット1!$B131,データセット1!$D131),"") -> FALSE | T133: =IF(データセット1!$B131<>"",IF($T$1=データセット1!$B131,データセット1!$D131),"") -> FALSE | U133: =IF(データセット1!$B131<>"",IF($U$1=データセット1!$B131,データセット1!$D131),"") -> FALSE
M134: =IF(データセット1!$B132<>"",IF($M$1=データセット1!$B132,データセット1!$D132),"") -> FALSE | N134: =IF(データセット1!$B132<>"",IF($N$1=データセット1!$B132,データセット1!$D132),"") -> FALSE | O134: =IF(データセット1!$B132<>"",IF($O$1=データセット1!$B132,データセット1!$D132),"") -> FALSE | P134: =IF(データセット1!$B132<>"",IF($P$1=データセット1!$B132,データセット1!$D132),"") -> FALSE | Q134: =IF(データセット1!$B132<>"",IF($Q$1=データセット1!$B132,データセット1!$D132),"") -> 71 | R134: =IF(データセット1!$B132<>"",IF($R$1=データセット1!$B132,データセット1!$D132),"") -> FALSE | S134: =IF(データセット1!$B132<>"",IF($S$1=データセット1!$B132,データセット1!$D132),"") -> FALSE | T134: =IF(データセット1!$B132<>"",IF($T$1=データセット1!$B132,データセット1!$D132),"") -> FALSE | U134: =IF(データセット1!$B132<>"",IF($U$1=データセット1!$B132,データセット1!$D132),"") -> FALSE
M135: =IF(データセット1!$B133<>"",IF($M$1=データセット1!$B133,データセット1!$D133),"") -> FALSE | N135: =IF(データセット1!$B133<>"",IF($N$1=データセット1!$B133,データセット1!$D133),"") -> FALSE | O135: =IF(データセット1!$B133<>"",IF($O$1=データセット1!$B133,データセット1!$D133),"") -> FALSE | P135: =IF(データセット1!$B133<>"",IF($P$1=データセット1!$B133,データセット1!$D133),"") -> FALSE | Q135: =IF(データセット1!$B133<>"",IF($Q$1=データセット1!$B133,データセット1!$D133),"") -> 120 | R135: =IF(データセット1!$B133<>"",IF($R$1=データセット1!$B133,データセット1!$D133),"") -> FALSE | S135: =IF(データセット1!$B133<>"",IF($S$1=データセット1!$B133,データセット1!$D133),"") -> FALSE | T135: =IF(データセット1!$B133<>"",IF($T$1=データセット1!$B133,データセット1!$D133),"") -> FALSE | U135: =IF(データセット1!$B133<>"",IF($U$1=データセット1!$B133,データセット1!$D133),"") -> FALSE
M136: =IF(データセット1!$B134<>"",IF($M$1=データセット1!$B134,データセット1!$D134),"") -> FALSE | N136: =IF(データセット1!$B134<>"",IF($N$1=データセット1!$B134,データセット1!$D134),"") -> FALSE | O136: =IF(データセット1!$B134<>"",IF($O$1=データセット1!$B134,データセット1!$D134),"") -> FALSE | P136: =IF(データセット1!$B134<>"",IF($P$1=データセット1!$B134,データセット1!$D134),"") -> FALSE | Q136: =IF(データセット1!$B134<>"",IF($Q$1=データセット1!$B134,データセット1!$D134),"") -> FALSE | R136: =IF(データセット1!$B134<>"",IF($R$1=データセット1!$B134,データセット1!$D134),"") -> 53 | S136: =IF(データセット1!$B134<>"",IF($S$1=データセット1!$B134,データセット1!$D134),"") -> FALSE | T136: =IF(データセット1!$B134<>"",IF($T$1=データセット1!$B134,データセット1!$D134),"") -> FALSE | U136: =IF(データセット1!$B134<>"",IF($U$1=データセット1!$B134,データセット1!$D134),"") -> FALSE
M137: =IF(データセット1!$B135<>"",IF($M$1=データセット1!$B135,データセット1!$D135),"") -> 443 | N137: =IF(データセット1!$B135<>"",IF($N$1=データセット1!$B135,データセット1!$D135),"") -> FALSE | O137: =IF(データセット1!$B135<>"",IF($O$1=データセット1!$B135,データセット1!$D135),"") -> FALSE | P137: =IF(データセット1!$B135<>"",IF($P$1=データセット1!$B135,データセット1!$D135),"") -> FALSE | Q137: =IF(データセット1!$B135<>"",IF($Q$1=データセット1!$B135,データセット1!$D135),"") -> FALSE | R137: =IF(データセット1!$B135<>"",IF($R$1=データセット1!$B135,データセット1!$D135),"") -> FALSE | S137: =IF(データセット1!$B135<>"",IF($S$1=データセット1!$B135,データセット1!$D135),"") -> FALSE | T137: =IF(データセット1!$B135<>"",IF($T$1=データセット1!$B135,データセット1!$D135),"") -> FALSE | U137: =IF(データセット1!$B135<>"",IF($U$1=データセット1!$B135,データセット1!$D135),"") -> FALSE
M138: =IF(データセット1!$B136<>"",IF($M$1=データセット1!$B136,データセット1!$D136),"") -> FALSE | N138: =IF(データセット1!$B136<>"",IF($N$1=データセット1!$B136,データセット1!$D136),"") -> FALSE | O138: =IF(データセット1!$B136<>"",IF($O$1=データセット1!$B136,データセット1!$D136),"") -> FALSE | P138: =IF(データセット1!$B136<>"",IF($P$1=データセット1!$B136,データセット1!$D136),"") -> FALSE | Q138: =IF(データセット1!$B136<>"",IF($Q$1=データセット1!$B136,データセット1!$D136),"") -> 122 | R138: =IF(データセット1!$B136<>"",IF($R$1=データセット1!$B136,データセット1!$D136),"") -> FALSE | S138: =IF(データセット1!$B136<>"",IF($S$1=データセット1!$B136,データセット1!$D136),"") -> FALSE | T138: =IF(データセット1!$B136<>"",IF($T$1=データセット1!$B136,データセット1!$D136),"") -> FALSE | U138: =IF(データセット1!$B136<>"",IF($U$1=データセット1!$B136,データセット1!$D136),"") -> FALSE
M139: =IF(データセット1!$B137<>"",IF($M$1=データセット1!$B137,データセット1!$D137),"") -> 514 | N139: =IF(データセット1!$B137<>"",IF($N$1=データセット1!$B137,データセット1!$D137),"") -> FALSE | O139: =IF(データセット1!$B137<>"",IF($O$1=データセット1!$B137,データセット1!$D137),"") -> FALSE | P139: =IF(データセット1!$B137<>"",IF($P$1=データセット1!$B137,データセット1!$D137),"") -> FALSE | Q139: =IF(データセット1!$B137<>"",IF($Q$1=データセット1!$B137,データセット1!$D137),"") -> FALSE | R139: =IF(データセット1!$B137<>"",IF($R$1=データセット1!$B137,データセット1!$D137),"") -> FALSE | S139: =IF(データセット1!$B137<>"",IF($S$1=データセット1!$B137,データセット1!$D137),"") -> FALSE | T139: =IF(データセット1!$B137<>"",IF($T$1=データセット1!$B137,データセット1!$D137),"") -> FALSE | U139: =IF(データセット1!$B137<>"",IF($U$1=データセット1!$B137,データセット1!$D137),"") -> FALSE
M140: =IF(データセット1!$B138<>"",IF($M$1=データセット1!$B138,データセット1!$D138),"") -> FALSE | N140: =IF(データセット1!$B138<>"",IF($N$1=データセット1!$B138,データセット1!$D138),"") -> FALSE | O140: =IF(データセット1!$B138<>"",IF($O$1=データセット1!$B138,データセット1!$D138),"") -> FALSE | P140: =IF(データセット1!$B138<>"",IF($P$1=データセット1!$B138,データセット1!$D138),"") -> FALSE | Q140: =IF(データセット1!$B138<>"",IF($Q$1=データセット1!$B138,データセット1!$D138),"") -> 75 | R140: =IF(データセット1!$B138<>"",IF($R$1=データセット1!$B138,データセット1!$D138),"") -> FALSE | S140: =IF(データセット1!$B138<>"",IF($S$1=データセット1!$B138,データセット1!$D138),"") -> FALSE | T140: =IF(データセット1!$B138<>"",IF($T$1=データセット1!$B138,データセット1!$D138),"") -> FALSE | U140: =IF(データセット1!$B138<>"",IF($U$1=データセット1!$B138,データセット1!$D138),"") -> FALSE
M141: =IF(データセット1!$B139<>"",IF($M$1=データセット1!$B139,データセット1!$D139),"") -> FALSE | N141: =IF(データセット1!$B139<>"",IF($N$1=データセット1!$B139,データセット1!$D139),"") -> FALSE | O141: =IF(データセット1!$B139<>"",IF($O$1=データセット1!$B139,データセット1!$D139),"") -> FALSE | P141: =IF(データセット1!$B139<>"",IF($P$1=データセット1!$B139,データセット1!$D139),"") -> FALSE | Q141: =IF(データセット1!$B139<>"",IF($Q$1=データセット1!$B139,データセット1!$D139),"") -> FALSE | R141: =IF(データセット1!$B139<>"",IF($R$1=データセット1!$B139,データセット1!$D139),"") -> 80 | S141: =IF(データセット1!$B139<>"",IF($S$1=データセット1!$B139,データセット1!$D139),"") -> FALSE | T141: =IF(データセット1!$B139<>"",IF($T$1=データセット1!$B139,データセット1!$D139),"") -> FALSE | U141: =IF(データセット1!$B139<>"",IF($U$1=データセット1!$B139,データセット1!$D139),"") -> FALSE
M142: =IF(データセット1!$B140<>"",IF($M$1=データセット1!$B140,データセット1!$D140),"") -> FALSE | N142: =IF(データセット1!$B140<>"",IF($N$1=データセット1!$B140,データセット1!$D140),"") -> FALSE | O142: =IF(データセット1!$B140<>"",IF($O$1=データセット1!$B140,データセット1!$D140),"") -> FALSE | P142: =IF(データセット1!$B140<>"",IF($P$1=データセット1!$B140,データセット1!$D140),"") -> FALSE | Q142: =IF(データセット1!$B140<>"",IF($Q$1=データセット1!$B140,データセット1!$D140),"") -> 109 | R142: =IF(データセット1!$B140<>"",IF($R$1=データセット1!$B140,データセット1!$D140),"") -> FALSE | S142: =IF(データセット1!$B140<>"",IF($S$1=データセット1!$B140,データセット1!$D140),"") -> FALSE | T142: =IF(データセット1!$B140<>"",IF($T$1=データセット1!$B140,データセット1!$D140),"") -> FALSE | U142: =IF(データセット1!$B140<>"",IF($U$1=データセット1!$B140,データセット1!$D140),"") -> FALSE
M143: =IF(データセット1!$B141<>"",IF($M$1=データセット1!$B141,データセット1!$D141),"") -> FALSE | N143: =IF(データセット1!$B141<>"",IF($N$1=データセット1!$B141,データセット1!$D141),"") -> FALSE | O143: =IF(データセット1!$B141<>"",IF($O$1=データセット1!$B141,データセット1!$D141),"") -> FALSE | P143: =IF(データセット1!$B141<>"",IF($P$1=データセット1!$B141,データセット1!$D141),"") -> FALSE | Q143: =IF(データセット1!$B141<>"",IF($Q$1=データセット1!$B141,データセット1!$D141),"") -> 86 | R143: =IF(データセット1!$B141<>"",IF($R$1=データセット1!$B141,データセット1!$D141),"") -> FALSE | S143: =IF(データセット1!$B141<>"",IF($S$1=データセット1!$B141,データセット1!$D141),"") -> FALSE | T143: =IF(データセット1!$B141<>"",IF($T$1=データセット1!$B141,データセット1!$D141),"") -> FALSE | U143: =IF(データセット1!$B141<>"",IF($U$1=データセット1!$B141,データセット1!$D141),"") -> FALSE
M144: =IF(データセット1!$B142<>"",IF($M$1=データセット1!$B142,データセット1!$D142),"") -> 363 | N144: =IF(データセット1!$B142<>"",IF($N$1=データセット1!$B142,データセット1!$D142),"") -> FALSE | O144: =IF(データセット1!$B142<>"",IF($O$1=データセット1!$B142,データセット1!$D142),"") -> FALSE | P144: =IF(データセット1!$B142<>"",IF($P$1=データセット1!$B142,データセット1!$D142),"") -> FALSE | Q144: =IF(データセット1!$B142<>"",IF($Q$1=データセット1!$B142,データセット1!$D142),"") -> FALSE | R144: =IF(データセット1!$B142<>"",IF($R$1=データセット1!$B142,データセット1!$D142),"") -> FALSE | S144: =IF(データセット1!$B142<>"",IF($S$1=データセット1!$B142,データセット1!$D142),"") -> FALSE | T144: =IF(データセット1!$B142<>"",IF($T$1=データセット1!$B142,データセット1!$D142),"") -> FALSE | U144: =IF(データセット1!$B142<>"",IF($U$1=データセット1!$B142,データセット1!$D142),"") -> FALSE
M145: =IF(データセット1!$B143<>"",IF($M$1=データセット1!$B143,データセット1!$D143),"") -> FALSE | N145: =IF(データセット1!$B143<>"",IF($N$1=データセット1!$B143,データセット1!$D143),"") -> FALSE | O145: =IF(データセット1!$B143<>"",IF($O$1=データセット1!$B143,データセット1!$D143),"") -> FALSE | P145: =IF(データセット1!$B143<>"",IF($P$1=データセット1!$B143,データセット1!$D143),"") -> FALSE | Q145: =IF(データセット1!$B143<>"",IF($Q$1=データセット1!$B143,データセット1!$D143),"") -> 154 | R145: =IF(データセット1!$B143<>"",IF($R$1=データセット1!$B143,データセット1!$D143),"") -> FALSE | S145: =IF(データセット1!$B143<>"",IF($S$1=データセット1!$B143,データセット1!$D143),"") -> FALSE | T145: =IF(データセット1!$B143<>"",IF($T$1=データセット1!$B143,データセット1!$D143),"") -> FALSE | U145: =IF(データセット1!$B143<>"",IF($U$1=データセット1!$B143,データセット1!$D143),"") -> FALSE
M146: =IF(データセット1!$B144<>"",IF($M$1=データセット1!$B144,データセット1!$D144),"") -> FALSE | N146: =IF(データセット1!$B144<>"",IF($N$1=データセット1!$B144,データセット1!$D144),"") -> FALSE | O146: =IF(データセット1!$B144<>"",IF($O$1=データセット1!$B144,データセット1!$D144),"") -> FALSE | P146: =IF(データセット1!$B144<>"",IF($P$1=データセット1!$B144,データセット1!$D144),"") -> FALSE | Q146: =IF(データセット1!$B144<>"",IF($Q$1=データセット1!$B144,データセット1!$D144),"") -> FALSE | R146: =IF(データセット1!$B144<>"",IF($R$1=データセット1!$B144,データセット1!$D144),"") -> 73 | S146: =IF(データセット1!$B144<>"",IF($S$1=データセット1!$B144,データセット1!$D144),"") -> FALSE | T146: =IF(データセット1!$B144<>"",IF($T$1=データセット1!$B144,データセット1!$D144),"") -> FALSE | U146: =IF(データセット1!$B144<>"",IF($U$1=データセット1!$B144,データセット1!$D144),"") -> FALSE
M147: =IF(データセット1!$B145<>"",IF($M$1=データセット1!$B145,データセット1!$D145),"") -> FALSE | N147: =IF(データセット1!$B145<>"",IF($N$1=データセット1!$B145,データセット1!$D145),"") -> FALSE | O147: =IF(データセット1!$B145<>"",IF($O$1=データセット1!$B145,データセット1!$D145),"") -> FALSE | P147: =IF(データセット1!$B145<>"",IF($P$1=データセット1!$B145,データセット1!$D145),"") -> FALSE | Q147: =IF(データセット1!$B145<>"",IF($Q$1=データセット1!$B145,データセット1!$D145),"") -> FALSE | R147: =IF(データセット1!$B145<>"",IF($R$1=データセット1!$B145,データセット1!$D145),"") -> 64 | S147: =IF(データセット1!$B145<>"",IF($S$1=データセット1!$B145,データセット1!$D145),"") -> FALSE | T147: =IF(データセット1!$B145<>"",IF($T$1=データセット1!$B145,データセット1!$D145),"") -> FALSE | U147: =IF(データセット1!$B145<>"",IF($U$1=データセット1!$B145,データセット1!$D145),"") -> FALSE
M148: =IF(データセット1!$B146<>"",IF($M$1=データセット1!$B146,データセット1!$D146),"") -> FALSE | N148: =IF(データセット1!$B146<>"",IF($N$1=データセット1!$B146,データセット1!$D146),"") -> FALSE | O148: =IF(データセット1!$B146<>"",IF($O$1=データセット1!$B146,データセット1!$D146),"") -> FALSE | P148: =IF(データセット1!$B146<>"",IF($P$1=データセット1!$B146,データセット1!$D146),"") -> FALSE | Q148: =IF(データセット1!$B146<>"",IF($Q$1=データセット1!$B146,データセット1!$D146),"") -> 113 | R148: =IF(データセット1!$B146<>"",IF($R$1=データセット1!$B146,データセット1!$D146),"") -> FALSE | S148: =IF(データセット1!$B146<>"",IF($S$1=データセット1!$B146,データセット1!$D146),"") -> FALSE | T148: =IF(データセット1!$B146<>"",IF($T$1=データセット1!$B146,データセット1!$D146),"") -> FALSE | U148: =IF(データセット1!$B146<>"",IF($U$1=データセット1!$B146,データセット1!$D146),"") -> FALSE
M149: =IF(データセット1!$B147<>"",IF($M$1=データセット1!$B147,データセット1!$D147),"") -> FALSE | N149: =IF(データセット1!$B147<>"",IF($N$1=データセット1!$B147,データセット1!$D147),"") -> FALSE | O149: =IF(データセット1!$B147<>"",IF($O$1=データセット1!$B147,データセット1!$D147),"") -> FALSE | P149: =IF(データセット1!$B147<>"",IF($P$1=データセット1!$B147,データセット1!$D147),"") -> FALSE | Q149: =IF(データセット1!$B147<>"",IF($Q$1=データセット1!$B147,データセット1!$D147),"") -> FALSE | R149: =IF(データセット1!$B147<>"",IF($R$1=データセット1!$B147,データセット1!$D147),"") -> 66 | S149: =IF(データセット1!$B147<>"",IF($S$1=データセット1!$B147,データセット1!$D147),"") -> FALSE | T149: =IF(データセット1!$B147<>"",IF($T$1=データセット1!$B147,データセット1!$D147),"") -> FALSE | U149: =IF(データセット1!$B147<>"",IF($U$1=データセット1!$B147,データセット1!$D147),"") -> FALSE
M150: =IF(データセット1!$B148<>"",IF($M$1=データセット1!$B148,データセット1!$D148),"") -> FALSE | N150: =IF(データセット1!$B148<>"",IF($N$1=データセット1!$B148,データセット1!$D148),"") -> FALSE | O150: =IF(データセット1!$B148<>"",IF($O$1=データセット1!$B148,データセット1!$D148),"") -> FALSE | P150: =IF(データセット1!$B148<>"",IF($P$1=データセット1!$B148,データセット1!$D148),"") -> FALSE | Q150: =IF(データセット1!$B148<>"",IF($Q$1=データセット1!$B148,データセット1!$D148),"") -> 134 | R150: =IF(データセット1!$B148<>"",IF($R$1=データセット1!$B148,データセット1!$D148),"") -> FALSE | S150: =IF(データセット1!$B148<>"",IF($S$1=データセット1!$B148,データセット1!$D148),"") -> FALSE | T150: =IF(データセット1!$B148<>"",IF($T$1=データセット1!$B148,データセット1!$D148),"") -> FALSE | U150: =IF(データセット1!$B148<>"",IF($U$1=データセット1!$B148,データセット1!$D148),"") -> FALSE
M151: =IF(データセット1!$B149<>"",IF($M$1=データセット1!$B149,データセット1!$D149),"") -> FALSE | N151: =IF(データセット1!$B149<>"",IF($N$1=データセット1!$B149,データセット1!$D149),"") -> FALSE | O151: =IF(データセット1!$B149<>"",IF($O$1=データセット1!$B149,データセット1!$D149),"") -> FALSE | P151: =IF(データセット1!$B149<>"",IF($P$1=データセット1!$B149,データセット1!$D149),"") -> FALSE | Q151: =IF(データセット1!$B149<>"",IF($Q$1=データセット1!$B149,データセット1!$D149),"") -> FALSE | R151: =IF(データセット1!$B149<>"",IF($R$1=データセット1!$B149,データセット1!$D149),"") -> 63 | S151: =IF(データセット1!$B149<>"",IF($S$1=データセット1!$B149,データセット1!$D149),"") -> FALSE | T151: =IF(データセット1!$B149<>"",IF($T$1=データセット1!$B149,データセット1!$D149),"") -> FALSE | U151: =IF(データセット1!$B149<>"",IF($U$1=データセット1!$B149,データセット1!$D149),"") -> FALSE
M152: =IF(データセット1!$B150<>"",IF($M$1=データセット1!$B150,データセット1!$D150),"") -> FALSE | N152: =IF(データセット1!$B150<>"",IF($N$1=データセット1!$B150,データセット1!$D150),"") -> FALSE | O152: =IF(データセット1!$B150<>"",IF($O$1=データセット1!$B150,データセット1!$D150),"") -> FALSE | P152: =IF(データセット1!$B150<>"",IF($P$1=データセット1!$B150,データセット1!$D150),"") -> FALSE | Q152: =IF(データセット1!$B150<>"",IF($Q$1=データセット1!$B150,データセット1!$D150),"") -> FALSE | R152: =IF(データセット1!$B150<>"",IF($R$1=データセット1!$B150,データセット1!$D150),"") -> 68 | S152: =IF(データセット1!$B150<>"",IF($S$1=データセット1!$B150,データセット1!$D150),"") -> FALSE | T152: =IF(データセット1!$B150<>"",IF($T$1=データセット1!$B150,データセット1!$D150),"") -> FALSE | U152: =IF(データセット1!$B150<>"",IF($U$1=データセット1!$B150,データセット1!$D150),"") -> FALSE
M153: =IF(データセット1!$B151<>"",IF($M$1=データセット1!$B151,データセット1!$D151),"") -> FALSE | N153: =IF(データセット1!$B151<>"",IF($N$1=データセット1!$B151,データセット1!$D151),"") -> FALSE | O153: =IF(データセット1!$B151<>"",IF($O$1=データセット1!$B151,データセット1!$D151),"") -> FALSE | P153: =IF(データセット1!$B151<>"",IF($P$1=データセット1!$B151,データセット1!$D151),"") -> FALSE | Q153: =IF(データセット1!$B151<>"",IF($Q$1=データセット1!$B151,データセット1!$D151),"") -> FALSE | R153: =IF(データセット1!$B151<>"",IF($R$1=データセット1!$B151,データセット1!$D151),"") -> 77 | S153: =IF(データセット1!$B151<>"",IF($S$1=データセット1!$B151,データセット1!$D151),"") -> FALSE | T153: =IF(データセット1!$B151<>"",IF($T$1=データセット1!$B151,データセット1!$D151),"") -> FALSE | U153: =IF(データセット1!$B151<>"",IF($U$1=データセット1!$B151,データセット1!$D151),"") -> FALSE
M154: =IF(データセット1!$B152<>"",IF($M$1=データセット1!$B152,データセット1!$D152),"") -> FALSE | N154: =IF(データセット1!$B152<>"",IF($N$1=データセット1!$B152,データセット1!$D152),"") -> FALSE | O154: =IF(データセット1!$B152<>"",IF($O$1=データセット1!$B152,データセット1!$D152),"") -> FALSE | P154: =IF(データセット1!$B152<>"",IF($P$1=データセット1!$B152,データセット1!$D152),"") -> 144 | Q154: =IF(データセット1!$B152<>"",IF($Q$1=データセット1!$B152,データセット1!$D152),"") -> FALSE | R154: =IF(データセット1!$B152<>"",IF($R$1=データセット1!$B152,データセット1!$D152),"") -> FALSE | S154: =IF(データセット1!$B152<>"",IF($S$1=データセット1!$B152,データセット1!$D152),"") -> FALSE | T154: =IF(データセット1!$B152<>"",IF($T$1=データセット1!$B152,データセット1!$D152),"") -> FALSE | U154: =IF(データセット1!$B152<>"",IF($U$1=データセット1!$B152,データセット1!$D152),"") -> FALSE
M155: =IF(データセット1!$B153<>"",IF($M$1=データセット1!$B153,データセット1!$D153),"") -> FALSE | N155: =IF(データセット1!$B153<>"",IF($N$1=データセット1!$B153,データセット1!$D153),"") -> FALSE | O155: =IF(データセット1!$B153<>"",IF($O$1=データセット1!$B153,データセット1!$D153),"") -> FALSE | P155: =IF(データセット1!$B153<>"",IF($P$1=データセット1!$B153,データセット1!$D153),"") -> FALSE | Q155: =IF(データセット1!$B153<>"",IF($Q$1=データセット1!$B153,データセット1!$D153),"") -> 77 | R155: =IF(データセット1!$B153<>"",IF($R$1=データセット1!$B153,データセット1!$D153),"") -> FALSE | S155: =IF(データセット1!$B153<>"",IF($S$1=データセット1!$B153,データセット1!$D153),"") -> FALSE | T155: =IF(データセット1!$B153<>"",IF($T$1=データセット1!$B153,データセット1!$D153),"") -> FALSE | U155: =IF(データセット1!$B153<>"",IF($U$1=データセット1!$B153,データセット1!$D153),"") -> FALSE
M156: =IF(データセット1!$B154<>"",IF($M$1=データセット1!$B154,データセット1!$D154),"") -> FALSE | N156: =IF(データセット1!$B154<>"",IF($N$1=データセット1!$B154,データセット1!$D154),"") -> FALSE | O156: =IF(データセット1!$B154<>"",IF($O$1=データセット1!$B154,データセット1!$D154),"") -> FALSE | P156: =IF(データセット1!$B154<>"",IF($P$1=データセット1!$B154,データセット1!$D154),"") -> FALSE | Q156: =IF(データセット1!$B154<>"",IF($Q$1=データセット1!$B154,データセット1!$D154),"") -> FALSE | R156: =IF(データセット1!$B154<>"",IF($R$1=データセット1!$B154,データセット1!$D154),"") -> 58 | S156: =IF(データセット1!$B154<>"",IF($S$1=データセット1!$B154,データセット1!$D154),"") -> FALSE | T156: =IF(データセット1!$B154<>"",IF($T$1=データセット1!$B154,データセット1!$D154),"") -> FALSE | U156: =IF(データセット1!$B154<>"",IF($U$1=データセット1!$B154,データセット1!$D154),"") -> FALSE
M157: =IF(データセット1!$B155<>"",IF($M$1=データセット1!$B155,データセット1!$D155),"") -> FALSE | N157: =IF(データセット1!$B155<>"",IF($N$1=データセット1!$B155,データセット1!$D155),"") -> FALSE | O157: =IF(データセット1!$B155<>"",IF($O$1=データセット1!$B155,データセット1!$D155),"") -> FALSE | P157: =IF(データセット1!$B155<>"",IF($P$1=データセット1!$B155,データセット1!$D155),"") -> FALSE | Q157: =IF(データセット1!$B155<>"",IF($Q$1=データセット1!$B155,データセット1!$D155),"") -> FALSE | R157: =IF(データセット1!$B155<>"",IF($R$1=データセット1!$B155,データセット1!$D155),"") -> 60 | S157: =IF(データセット1!$B155<>"",IF($S$1=データセット1!$B155,データセット1!$D155),"") -> FALSE | T157: =IF(データセット1!$B155<>"",IF($T$1=データセット1!$B155,データセット1!$D155),"") -> FALSE | U157: =IF(データセット1!$B155<>"",IF($U$1=データセット1!$B155,データセット1!$D155),"") -> FALSE
M158: =IF(データセット1!$B156<>"",IF($M$1=データセット1!$B156,データセット1!$D156),"") -> FALSE | N158: =IF(データセット1!$B156<>"",IF($N$1=データセット1!$B156,データセット1!$D156),"") -> FALSE | O158: =IF(データセット1!$B156<>"",IF($O$1=データセット1!$B156,データセット1!$D156),"") -> FALSE | P158: =IF(データセット1!$B156<>"",IF($P$1=データセット1!$B156,データセット1!$D156),"") -> FALSE | Q158: =IF(データセット1!$B156<>"",IF($Q$1=データセット1!$B156,データセット1!$D156),"") -> FALSE | R158: =IF(データセット1!$B156<>"",IF($R$1=データセット1!$B156,データセット1!$D156),"") -> 63 | S158: =IF(データセット1!$B156<>"",IF($S$1=データセット1!$B156,データセット1!$D156),"") -> FALSE | T158: =IF(データセット1!$B156<>"",IF($T$1=データセット1!$B156,データセット1!$D156),"") -> FALSE | U158: =IF(データセット1!$B156<>"",IF($U$1=データセット1!$B156,データセット1!$D156),"") -> FALSE
M159: =IF(データセット1!$B157<>"",IF($M$1=データセット1!$B157,データセット1!$D157),"") -> FALSE | N159: =IF(データセット1!$B157<>"",IF($N$1=データセット1!$B157,データセット1!$D157),"") -> FALSE | O159: =IF(データセット1!$B157<>"",IF($O$1=データセット1!$B157,データセット1!$D157),"") -> FALSE | P159: =IF(データセット1!$B157<>"",IF($P$1=データセット1!$B157,データセット1!$D157),"") -> FALSE | Q159: =IF(データセット1!$B157<>"",IF($Q$1=データセット1!$B157,データセット1!$D157),"") -> 74 | R159: =IF(データセット1!$B157<>"",IF($R$1=データセット1!$B157,データセット1!$D157),"") -> FALSE | S159: =IF(データセット1!$B157<>"",IF($S$1=データセット1!$B157,データセット1!$D157),"") -> FALSE | T159: =IF(データセット1!$B157<>"",IF($T$1=データセット1!$B157,データセット1!$D157),"") -> FALSE | U159: =IF(データセット1!$B157<>"",IF($U$1=データセット1!$B157,データセット1!$D157),"") -> FALSE
M160: =IF(データセット1!$B158<>"",IF($M$1=データセット1!$B158,データセット1!$D158),"") -> FALSE | N160: =IF(データセット1!$B158<>"",IF($N$1=データセット1!$B158,データセット1!$D158),"") -> FALSE | O160: =IF(データセット1!$B158<>"",IF($O$1=データセット1!$B158,データセット1!$D158),"") -> FALSE | P160: =IF(データセット1!$B158<>"",IF($P$1=データセット1!$B158,データセット1!$D158),"") -> FALSE | Q160: =IF(データセット1!$B158<>"",IF($Q$1=データセット1!$B158,データセット1!$D158),"") -> FALSE | R160: =IF(データセット1!$B158<>"",IF($R$1=データセット1!$B158,データセット1!$D158),"") -> 48 | S160: =IF(データセット1!$B158<>"",IF($S$1=データセット1!$B158,データセット1!$D158),"") -> FALSE | T160: =IF(データセット1!$B158<>"",IF($T$1=データセット1!$B158,データセット1!$D158),"") -> FALSE | U160: =IF(データセット1!$B158<>"",IF($U$1=データセット1!$B158,データセット1!$D158),"") -> FALSE
M161: =IF(データセット1!$B159<>"",IF($M$1=データセット1!$B159,データセット1!$D159),"") -> FALSE | N161: =IF(データセット1!$B159<>"",IF($N$1=データセット1!$B159,データセット1!$D159),"") -> FALSE | O161: =IF(データセット1!$B159<>"",IF($O$1=データセット1!$B159,データセット1!$D159),"") -> FALSE | P161: =IF(データセット1!$B159<>"",IF($P$1=データセット1!$B159,データセット1!$D159),"") -> FALSE | Q161: =IF(データセット1!$B159<>"",IF($Q$1=データセット1!$B159,データセット1!$D159),"") -> 63 | R161: =IF(データセット1!$B159<>"",IF($R$1=データセット1!$B159,データセット1!$D159),"") -> FALSE | S161: =IF(データセット1!$B159<>"",IF($S$1=データセット1!$B159,データセット1!$D159),"") -> FALSE | T161: =IF(データセット1!$B159<>"",IF($T$1=データセット1!$B159,データセット1!$D159),"") -> FALSE | U161: =IF(データセット1!$B159<>"",IF($U$1=データセット1!$B159,データセット1!$D159),"") -> FALSE
M162: =IF(データセット1!$B160<>"",IF($M$1=データセット1!$B160,データセット1!$D160),"") -> FALSE | N162: =IF(データセット1!$B160<>"",IF($N$1=データセット1!$B160,データセット1!$D160),"") -> FALSE | O162: =IF(データセット1!$B160<>"",IF($O$1=データセット1!$B160,データセット1!$D160),"") -> FALSE | P162: =IF(データセット1!$B160<>"",IF($P$1=データセット1!$B160,データセット1!$D160),"") -> FALSE | Q162: =IF(データセット1!$B160<>"",IF($Q$1=データセット1!$B160,データセット1!$D160),"") -> FALSE | R162: =IF(データセット1!$B160<>"",IF($R$1=データセット1!$B160,データセット1!$D160),"") -> 31 | S162: =IF(データセット1!$B160<>"",IF($S$1=データセット1!$B160,データセット1!$D160),"") -> FALSE | T162: =IF(データセット1!$B160<>"",IF($T$1=データセット1!$B160,データセット1!$D160),"") -> FALSE | U162: =IF(データセット1!$B160<>"",IF($U$1=データセット1!$B160,データセット1!$D160),"") -> FALSE
M163: =IF(データセット1!$B161<>"",IF($M$1=データセット1!$B161,データセット1!$D161),"") -> FALSE | N163: =IF(データセット1!$B161<>"",IF($N$1=データセット1!$B161,データセット1!$D161),"") -> FALSE | O163: =IF(データセット1!$B161<>"",IF($O$1=データセット1!$B161,データセット1!$D161),"") -> FALSE | P163: =IF(データセット1!$B161<>"",IF($P$1=データセット1!$B161,データセット1!$D161),"") -> FALSE | Q163: =IF(データセット1!$B161<>"",IF($Q$1=データセット1!$B161,データセット1!$D161),"") -> 58 | R163: =IF(データセット1!$B161<>"",IF($R$1=データセット1!$B161,データセット1!$D161),"") -> FALSE | S163: =IF(データセット1!$B161<>"",IF($S$1=データセット1!$B161,データセット1!$D161),"") -> FALSE | T163: =IF(データセット1!$B161<>"",IF($T$1=データセット1!$B161,データセット1!$D161),"") -> FALSE | U163: =IF(データセット1!$B161<>"",IF($U$1=データセット1!$B161,データセット1!$D161),"") -> FALSE
M164: =IF(データセット1!$B162<>"",IF($M$1=データセット1!$B162,データセット1!$D162),"") -> FALSE | N164: =IF(データセット1!$B162<>"",IF($N$1=データセット1!$B162,データセット1!$D162),"") -> FALSE | O164: =IF(データセット1!$B162<>"",IF($O$1=データセット1!$B162,データセット1!$D162),"") -> FALSE | P164: =IF(データセット1!$B162<>"",IF($P$1=データセット1!$B162,データセット1!$D162),"") -> FALSE | Q164: =IF(データセット1!$B162<>"",IF($Q$1=データセット1!$B162,データセット1!$D162),"") -> FALSE | R164: =IF(データセット1!$B162<>"",IF($R$1=データセット1!$B162,データセット1!$D162),"") -> 45 | S164: =IF(データセット1!$B162<>"",IF($S$1=データセット1!$B162,データセット1!$D162),"") -> FALSE | T164: =IF(データセット1!$B162<>"",IF($T$1=データセット1!$B162,データセット1!$D162),"") -> FALSE | U164: =IF(データセット1!$B162<>"",IF($U$1=データセット1!$B162,データセット1!$D162),"") -> FALSE
M165: =IF(データセット1!$B163<>"",IF($M$1=データセット1!$B163,データセット1!$D163),"") -> FALSE | N165: =IF(データセット1!$B163<>"",IF($N$1=データセット1!$B163,データセット1!$D163),"") -> FALSE | O165: =IF(データセット1!$B163<>"",IF($O$1=データセット1!$B163,データセット1!$D163),"") -> FALSE | P165: =IF(データセット1!$B163<>"",IF($P$1=データセット1!$B163,データセット1!$D163),"") -> 104 | Q165: =IF(データセット1!$B163<>"",IF($Q$1=データセット1!$B163,データセット1!$D163),"") -> FALSE | R165: =IF(データセット1!$B163<>"",IF($R$1=データセット1!$B163,データセット1!$D163),"") -> FALSE | S165: =IF(データセット1!$B163<>"",IF($S$1=データセット1!$B163,データセット1!$D163),"") -> FALSE | T165: =IF(データセット1!$B163<>"",IF($T$1=データセット1!$B163,データセット1!$D163),"") -> FALSE | U165: =IF(データセット1!$B163<>"",IF($U$1=データセット1!$B163,データセット1!$D163),"") -> FALSE
M166: =IF(データセット1!$B164<>"",IF($M$1=データセット1!$B164,データセット1!$D164),"") -> FALSE | N166: =IF(データセット1!$B164<>"",IF($N$1=データセット1!$B164,データセット1!$D164),"") -> FALSE | O166: =IF(データセット1!$B164<>"",IF($O$1=データセット1!$B164,データセット1!$D164),"") -> FALSE | P166: =IF(データセット1!$B164<>"",IF($P$1=データセット1!$B164,データセット1!$D164),"") -> FALSE | Q166: =IF(データセット1!$B164<>"",IF($Q$1=データセット1!$B164,データセット1!$D164),"") -> 44 | R166: =IF(データセット1!$B164<>"",IF($R$1=データセット1!$B164,データセット1!$D164),"") -> FALSE | S166: =IF(データセット1!$B164<>"",IF($S$1=データセット1!$B164,データセット1!$D164),"") -> FALSE | T166: =IF(データセット1!$B164<>"",IF($T$1=データセット1!$B164,データセット1!$D164),"") -> FALSE | U166: =IF(データセット1!$B164<>"",IF($U$1=データセット1!$B164,データセット1!$D164),"") -> FALSE
M167: =IF(データセット1!$B165<>"",IF($M$1=データセット1!$B165,データセット1!$D165),"") -> FALSE | N167: =IF(データセット1!$B165<>"",IF($N$1=データセット1!$B165,データセット1!$D165),"") -> FALSE | O167: =IF(データセット1!$B165<>"",IF($O$1=データセット1!$B165,データセット1!$D165),"") -> FALSE | P167: =IF(データセット1!$B165<>"",IF($P$1=データセット1!$B165,データセット1!$D165),"") -> FALSE | Q167: =IF(データセット1!$B165<>"",IF($Q$1=データセット1!$B165,データセット1!$D165),"") -> FALSE | R167: =IF(データセット1!$B165<>"",IF($R$1=データセット1!$B165,データセット1!$D165),"") -> 28 | S167: =IF(データセット1!$B165<>"",IF($S$1=データセット1!$B165,データセット1!$D165),"") -> FALSE | T167: =IF(データセット1!$B165<>"",IF($T$1=データセット1!$B165,データセット1!$D165),"") -> FALSE | U167: =IF(データセット1!$B165<>"",IF($U$1=データセット1!$B165,データセット1!$D165),"") -> FALSE
M168: =IF(データセット1!$B166<>"",IF($M$1=データセット1!$B166,データセット1!$D166),"") -> FALSE | N168: =IF(データセット1!$B166<>"",IF($N$1=データセット1!$B166,データセット1!$D166),"") -> FALSE | O168: =IF(データセット1!$B166<>"",IF($O$1=データセット1!$B166,データセット1!$D166),"") -> FALSE | P168: =IF(データセット1!$B166<>"",IF($P$1=データセット1!$B166,データセット1!$D166),"") -> FALSE | Q168: =IF(データセット1!$B166<>"",IF($Q$1=データセット1!$B166,データセット1!$D166),"") -> 44 | R168: =IF(データセット1!$B166<>"",IF($R$1=データセット1!$B166,データセット1!$D166),"") -> FALSE | S168: =IF(データセット1!$B166<>"",IF($S$1=データセット1!$B166,データセット1!$D166),"") -> FALSE | T168: =IF(データセット1!$B166<>"",IF($T$1=データセット1!$B166,データセット1!$D166),"") -> FALSE | U168: =IF(データセット1!$B166<>"",IF($U$1=データセット1!$B166,データセット1!$D166),"") -> FALSE
M169: =IF(データセット1!$B167<>"",IF($M$1=データセット1!$B167,データセット1!$D167),"") -> FALSE | N169: =IF(データセット1!$B167<>"",IF($N$1=データセット1!$B167,データセット1!$D167),"") -> FALSE | O169: =IF(データセット1!$B167<>"",IF($O$1=データセット1!$B167,データセット1!$D167),"") -> FALSE | P169: =IF(データセット1!$B167<>"",IF($P$1=データセット1!$B167,データセット1!$D167),"") -> FALSE | Q169: =IF(データセット1!$B167<>"",IF($Q$1=データセット1!$B167,データセット1!$D167),"") -> FALSE | R169: =IF(データセット1!$B167<>"",IF($R$1=データセット1!$B167,データセット1!$D167),"") -> 19 | S169: =IF(データセット1!$B167<>"",IF($S$1=データセット1!$B167,データセット1!$D167),"") -> FALSE | T169: =IF(データセット1!$B167<>"",IF($T$1=データセット1!$B167,データセット1!$D167),"") -> FALSE | U169: =IF(データセット1!$B167<>"",IF($U$1=データセット1!$B167,データセット1!$D167),"") -> FALSE
M170: =IF(データセット1!$B168<>"",IF($M$1=データセット1!$B168,データセット1!$D168),"") -> FALSE | N170: =IF(データセット1!$B168<>"",IF($N$1=データセット1!$B168,データセット1!$D168),"") -> FALSE | O170: =IF(データセット1!$B168<>"",IF($O$1=データセット1!$B168,データセット1!$D168),"") -> FALSE | P170: =IF(データセット1!$B168<>"",IF($P$1=データセット1!$B168,データセット1!$D168),"") -> FALSE | Q170: =IF(データセット1!$B168<>"",IF($Q$1=データセット1!$B168,データセット1!$D168),"") -> 78 | R170: =IF(データセット1!$B168<>"",IF($R$1=データセット1!$B168,データセット1!$D168),"") -> FALSE | S170: =IF(データセット1!$B168<>"",IF($S$1=データセット1!$B168,データセット1!$D168),"") -> FALSE | T170: =IF(データセット1!$B168<>"",IF($T$1=データセット1!$B168,データセット1!$D168),"") -> FALSE | U170: =IF(データセット1!$B168<>"",IF($U$1=データセット1!$B168,データセット1!$D168),"") -> FALSE
M171: =IF(データセット1!$B169<>"",IF($M$1=データセット1!$B169,データセット1!$D169),"") -> FALSE | N171: =IF(データセット1!$B169<>"",IF($N$1=データセット1!$B169,データセット1!$D169),"") -> FALSE | O171: =IF(データセット1!$B169<>"",IF($O$1=データセット1!$B169,データセット1!$D169),"") -> FALSE | P171: =IF(データセット1!$B169<>"",IF($P$1=データセット1!$B169,データセット1!$D169),"") -> FALSE | Q171: =IF(データセット1!$B169<>"",IF($Q$1=データセット1!$B169,データセット1!$D169),"") -> FALSE | R171: =IF(データセット1!$B169<>"",IF($R$1=データセット1!$B169,データセット1!$D169),"") -> 68 | S171: =IF(データセット1!$B169<>"",IF($S$1=データセット1!$B169,データセット1!$D169),"") -> FALSE | T171: =IF(データセット1!$B169<>"",IF($T$1=データセット1!$B169,データセット1!$D169),"") -> FALSE | U171: =IF(データセット1!$B169<>"",IF($U$1=データセット1!$B169,データセット1!$D169),"") -> FALSE
M172: =IF(データセット1!$B170<>"",IF($M$1=データセット1!$B170,データセット1!$D170),"") -> FALSE | N172: =IF(データセット1!$B170<>"",IF($N$1=データセット1!$B170,データセット1!$D170),"") -> FALSE | O172: =IF(データセット1!$B170<>"",IF($O$1=データセット1!$B170,データセット1!$D170),"") -> FALSE | P172: =IF(データセット1!$B170<>"",IF($P$1=データセット1!$B170,データセット1!$D170),"") -> FALSE | Q172: =IF(データセット1!$B170<>"",IF($Q$1=データセット1!$B170,データセット1!$D170),"") -> 78 | R172: =IF(データセット1!$B170<>"",IF($R$1=データセット1!$B170,データセット1!$D170),"") -> FALSE | S172: =IF(データセット1!$B170<>"",IF($S$1=データセット1!$B170,データセット1!$D170),"") -> FALSE | T172: =IF(データセット1!$B170<>"",IF($T$1=データセット1!$B170,データセット1!$D170),"") -> FALSE | U172: =IF(データセット1!$B170<>"",IF($U$1=データセット1!$B170,データセット1!$D170),"") -> FALSE
M173: =IF(データセット1!$B171<>"",IF($M$1=データセット1!$B171,データセット1!$D171),"") -> FALSE | N173: =IF(データセット1!$B171<>"",IF($N$1=データセット1!$B171,データセット1!$D171),"") -> FALSE | O173: =IF(データセット1!$B171<>"",IF($O$1=データセット1!$B171,データセット1!$D171),"") -> FALSE | P173: =IF(データセット1!$B171<>"",IF($P$1=データセット1!$B171,データセット1!$D171),"") -> FALSE | Q173: =IF(データセット1!$B171<>"",IF($Q$1=データセット1!$B171,データセット1!$D171),"") -> FALSE | R173: =IF(データセット1!$B171<>"",IF($R$1=データセット1!$B171,データセット1!$D171),"") -> 64 | S173: =IF(データセット1!$B171<>"",IF($S$1=データセット1!$B171,データセット1!$D171),"") -> FALSE | T173: =IF(データセット1!$B171<>"",IF($T$1=データセット1!$B171,データセット1!$D171),"") -> FALSE | U173: =IF(データセット1!$B171<>"",IF($U$1=データセット1!$B171,データセット1!$D171),"") -> FALSE
M174: =IF(データセット1!$B172<>"",IF($M$1=データセット1!$B172,データセット1!$D172),"") -> FALSE | N174: =IF(データセット1!$B172<>"",IF($N$1=データセット1!$B172,データセット1!$D172),"") -> FALSE | O174: =IF(データセット1!$B172<>"",IF($O$1=データセット1!$B172,データセット1!$D172),"") -> FALSE | P174: =IF(データセット1!$B172<>"",IF($P$1=データセット1!$B172,データセット1!$D172),"") -> FALSE | Q174: =IF(データセット1!$B172<>"",IF($Q$1=データセット1!$B172,データセット1!$D172),"") -> 71 | R174: =IF(データセット1!$B172<>"",IF($R$1=データセット1!$B172,データセット1!$D172),"") -> FALSE | S174: =IF(データセット1!$B172<>"",IF($S$1=データセット1!$B172,データセット1!$D172),"") -> FALSE | T174: =IF(データセット1!$B172<>"",IF($T$1=データセット1!$B172,データセット1!$D172),"") -> FALSE | U174: =IF(データセット1!$B172<>"",IF($U$1=データセット1!$B172,データセット1!$D172),"") -> FALSE
M175: =IF(データセット1!$B173<>"",IF($M$1=データセット1!$B173,データセット1!$D173),"") -> FALSE | N175: =IF(データセット1!$B173<>"",IF($N$1=データセット1!$B173,データセット1!$D173),"") -> FALSE | O175: =IF(データセット1!$B173<>"",IF($O$1=データセット1!$B173,データセット1!$D173),"") -> FALSE | P175: =IF(データセット1!$B173<>"",IF($P$1=データセット1!$B173,データセット1!$D173),"") -> FALSE | Q175: =IF(データセット1!$B173<>"",IF($Q$1=データセット1!$B173,データセット1!$D173),"") -> FALSE | R175: =IF(データセット1!$B173<>"",IF($R$1=データセット1!$B173,データセット1!$D173),"") -> 40 | S175: =IF(データセット1!$B173<>"",IF($S$1=データセット1!$B173,データセット1!$D173),"") -> FALSE | T175: =IF(データセット1!$B173<>"",IF($T$1=データセット1!$B173,データセット1!$D173),"") -> FALSE | U175: =IF(データセット1!$B173<>"",IF($U$1=データセット1!$B173,データセット1!$D173),"") -> FALSE
M176: =IF(データセット1!$B174<>"",IF($M$1=データセット1!$B174,データセット1!$D174),"") -> FALSE | N176: =IF(データセット1!$B174<>"",IF($N$1=データセット1!$B174,データセット1!$D174),"") -> FALSE | O176: =IF(データセット1!$B174<>"",IF($O$1=データセット1!$B174,データセット1!$D174),"") -> FALSE | P176: =IF(データセット1!$B174<>"",IF($P$1=データセット1!$B174,データセット1!$D174),"") -> FALSE | Q176: =IF(データセット1!$B174<>"",IF($Q$1=データセット1!$B174,データセット1!$D174),"") -> 62 | R176: =IF(データセット1!$B174<>"",IF($R$1=データセット1!$B174,データセット1!$D174),"") -> FALSE | S176: =IF(データセット1!$B174<>"",IF($S$1=データセット1!$B174,データセット1!$D174),"") -> FALSE | T176: =IF(データセット1!$B174<>"",IF($T$1=データセット1!$B174,データセット1!$D174),"") -> FALSE | U176: =IF(データセット1!$B174<>"",IF($U$1=データセット1!$B174,データセット1!$D174),"") -> FALSE
M177: =IF(データセット1!$B175<>"",IF($M$1=データセット1!$B175,データセット1!$D175),"") -> FALSE | N177: =IF(データセット1!$B175<>"",IF($N$1=データセット1!$B175,データセット1!$D175),"") -> FALSE | O177: =IF(データセット1!$B175<>"",IF($O$1=データセット1!$B175,データセット1!$D175),"") -> FALSE | P177: =IF(データセット1!$B175<>"",IF($P$1=データセット1!$B175,データセット1!$D175),"") -> FALSE | Q177: =IF(データセット1!$B175<>"",IF($Q$1=データセット1!$B175,データセット1!$D175),"") -> FALSE | R177: =IF(データセット1!$B175<>"",IF($R$1=データセット1!$B175,データセット1!$D175),"") -> 41 | S177: =IF(データセット1!$B175<>"",IF($S$1=データセット1!$B175,データセット1!$D175),"") -> FALSE | T177: =IF(データセット1!$B175<>"",IF($T$1=データセット1!$B175,データセット1!$D175),"") -> FALSE | U177: =IF(データセット1!$B175<>"",IF($U$1=データセット1!$B175,データセット1!$D175),"") -> FALSE
M178: =IF(データセット1!$B176<>"",IF($M$1=データセット1!$B176,データセット1!$D176),"") -> FALSE | N178: =IF(データセット1!$B176<>"",IF($N$1=データセット1!$B176,データセット1!$D176),"") -> FALSE | O178: =IF(データセット1!$B176<>"",IF($O$1=データセット1!$B176,データセット1!$D176),"") -> FALSE | P178: =IF(データセット1!$B176<>"",IF($P$1=データセット1!$B176,データセット1!$D176),"") -> FALSE | Q178: =IF(データセット1!$B176<>"",IF($Q$1=データセット1!$B176,データセット1!$D176),"") -> 61 | R178: =IF(データセット1!$B176<>"",IF($R$1=データセット1!$B176,データセット1!$D176),"") -> FALSE | S178: =IF(データセット1!$B176<>"",IF($S$1=データセット1!$B176,データセット1!$D176),"") -> FALSE | T178: =IF(データセット1!$B176<>"",IF($T$1=データセット1!$B176,データセット1!$D176),"") -> FALSE | U178: =IF(データセット1!$B176<>"",IF($U$1=データセット1!$B176,データセット1!$D176),"") -> FALSE
M179: =IF(データセット1!$B177<>"",IF($M$1=データセット1!$B177,データセット1!$D177),"") -> FALSE | N179: =IF(データセット1!$B177<>"",IF($N$1=データセット1!$B177,データセット1!$D177),"") -> FALSE | O179: =IF(データセット1!$B177<>"",IF($O$1=データセット1!$B177,データセット1!$D177),"") -> FALSE | P179: =IF(データセット1!$B177<>"",IF($P$1=データセット1!$B177,データセット1!$D177),"") -> FALSE | Q179: =IF(データセット1!$B177<>"",IF($Q$1=データセット1!$B177,データセット1!$D177),"") -> FALSE | R179: =IF(データセット1!$B177<>"",IF($R$1=データセット1!$B177,データセット1!$D177),"") -> 65 | S179: =IF(データセット1!$B177<>"",IF($S$1=データセット1!$B177,データセット1!$D177),"") -> FALSE | T179: =IF(データセット1!$B177<>"",IF($T$1=データセット1!$B177,データセット1!$D177),"") -> FALSE | U179: =IF(データセット1!$B177<>"",IF($U$1=データセット1!$B177,データセット1!$D177),"") -> FALSE
M180: =IF(データセット1!$B178<>"",IF($M$1=データセット1!$B178,データセット1!$D178),"") -> FALSE | N180: =IF(データセット1!$B178<>"",IF($N$1=データセット1!$B178,データセット1!$D178),"") -> FALSE | O180: =IF(データセット1!$B178<>"",IF($O$1=データセット1!$B178,データセット1!$D178),"") -> FALSE | P180: =IF(データセット1!$B178<>"",IF($P$1=データセット1!$B178,データセット1!$D178),"") -> FALSE | Q180: =IF(データセット1!$B178<>"",IF($Q$1=データセット1!$B178,データセット1!$D178),"") -> 75 | R180: =IF(データセット1!$B178<>"",IF($R$1=データセット1!$B178,データセット1!$D178),"") -> FALSE | S180: =IF(データセット1!$B178<>"",IF($S$1=データセット1!$B178,データセット1!$D178),"") -> FALSE | T180: =IF(データセット1!$B178<>"",IF($T$1=データセット1!$B178,データセット1!$D178),"") -> FALSE | U180: =IF(データセット1!$B178<>"",IF($U$1=データセット1!$B178,データセット1!$D178),"") -> FALSE
M181: =IF(データセット1!$B179<>"",IF($M$1=データセット1!$B179,データセット1!$D179),"") -> FALSE | N181: =IF(データセット1!$B179<>"",IF($N$1=データセット1!$B179,データセット1!$D179),"") -> FALSE | O181: =IF(データセット1!$B179<>"",IF($O$1=データセット1!$B179,データセット1!$D179),"") -> FALSE | P181: =IF(データセット1!$B179<>"",IF($P$1=データセット1!$B179,データセット1!$D179),"") -> FALSE | Q181: =IF(データセット1!$B179<>"",IF($Q$1=データセット1!$B179,データセット1!$D179),"") -> FALSE | R181: =IF(データセット1!$B179<>"",IF($R$1=データセット1!$B179,データセット1!$D179),"") -> 50 | S181: =IF(データセット1!$B179<>"",IF($S$1=データセット1!$B179,データセット1!$D179),"") -> FALSE | T181: =IF(データセット1!$B179<>"",IF($T$1=データセット1!$B179,データセット1!$D179),"") -> FALSE | U181: =IF(データセット1!$B179<>"",IF($U$1=データセット1!$B179,データセット1!$D179),"") -> FALSE
M182: =IF(データセット1!$B180<>"",IF($M$1=データセット1!$B180,データセット1!$D180),"") -> FALSE | N182: =IF(データセット1!$B180<>"",IF($N$1=データセット1!$B180,データセット1!$D180),"") -> FALSE | O182: =IF(データセット1!$B180<>"",IF($O$1=データセット1!$B180,データセット1!$D180),"") -> FALSE | P182: =IF(データセット1!$B180<>"",IF($P$1=データセット1!$B180,データセット1!$D180),"") -> FALSE | Q182: =IF(データセット1!$B180<>"",IF($Q$1=データセット1!$B180,データセット1!$D180),"") -> FALSE | R182: =IF(データセット1!$B180<>"",IF($R$1=データセット1!$B180,データセット1!$D180),"") -> 58 | S182: =IF(データセット1!$B180<>"",IF($S$1=データセット1!$B180,データセット1!$D180),"") -> FALSE | T182: =IF(データセット1!$B180<>"",IF($T$1=データセット1!$B180,データセット1!$D180),"") -> FALSE | U182: =IF(データセット1!$B180<>"",IF($U$1=データセット1!$B180,データセット1!$D180),"") -> FALSE
M183: =IF(データセット1!$B181<>"",IF($M$1=データセット1!$B181,データセット1!$D181),"") -> FALSE | N183: =IF(データセット1!$B181<>"",IF($N$1=データセット1!$B181,データセット1!$D181),"") -> FALSE | O183: =IF(データセット1!$B181<>"",IF($O$1=データセット1!$B181,データセット1!$D181),"") -> FALSE | P183: =IF(データセット1!$B181<>"",IF($P$1=データセット1!$B181,データセット1!$D181),"") -> FALSE | Q183: =IF(データセット1!$B181<>"",IF($Q$1=データセット1!$B181,データセット1!$D181),"") -> FALSE | R183: =IF(データセット1!$B181<>"",IF($R$1=データセット1!$B181,データセット1!$D181),"") -> 43 | S183: =IF(データセット1!$B181<>"",IF($S$1=データセット1!$B181,データセット1!$D181),"") -> FALSE | T183: =IF(データセット1!$B181<>"",IF($T$1=データセット1!$B181,データセット1!$D181),"") -> FALSE | U183: =IF(データセット1!$B181<>"",IF($U$1=データセット1!$B181,データセット1!$D181),"") -> FALSE
M184: =IF(データセット1!$B182<>"",IF($M$1=データセット1!$B182,データセット1!$D182),"") -> FALSE | N184: =IF(データセット1!$B182<>"",IF($N$1=データセット1!$B182,データセット1!$D182),"") -> FALSE | O184: =IF(データセット1!$B182<>"",IF($O$1=データセット1!$B182,データセット1!$D182),"") -> FALSE | P184: =IF(データセット1!$B182<>"",IF($P$1=データセット1!$B182,データセット1!$D182),"") -> FALSE | Q184: =IF(データセット1!$B182<>"",IF($Q$1=データセット1!$B182,データセット1!$D182),"") -> FALSE | R184: =IF(データセット1!$B182<>"",IF($R$1=データセット1!$B182,データセット1!$D182),"") -> 52 | S184: =IF(データセット1!$B182<>"",IF($S$1=データセット1!$B182,データセット1!$D182),"") -> FALSE | T184: =IF(データセット1!$B182<>"",IF($T$1=データセット1!$B182,データセット1!$D182),"") -> FALSE | U184: =IF(データセット1!$B182<>"",IF($U$1=データセット1!$B182,データセット1!$D182),"") -> FALSE
M185: =IF(データセット1!$B183<>"",IF($M$1=データセット1!$B183,データセット1!$D183),"") -> FALSE | N185: =IF(データセット1!$B183<>"",IF($N$1=データセット1!$B183,データセット1!$D183),"") -> FALSE | O185: =IF(データセット1!$B183<>"",IF($O$1=データセット1!$B183,データセット1!$D183),"") -> FALSE | P185: =IF(データセット1!$B183<>"",IF($P$1=データセット1!$B183,データセット1!$D183),"") -> FALSE | Q185: =IF(データセット1!$B183<>"",IF($Q$1=データセット1!$B183,データセット1!$D183),"") -> FALSE | R185: =IF(データセット1!$B183<>"",IF($R$1=データセット1!$B183,データセット1!$D183),"") -> 42 | S185: =IF(データセット1!$B183<>"",IF($S$1=データセット1!$B183,データセット1!$D183),"") -> FALSE | T185: =IF(データセット1!$B183<>"",IF($T$1=データセット1!$B183,データセット1!$D183),"") -> FALSE | U185: =IF(データセット1!$B183<>"",IF($U$1=データセット1!$B183,データセット1!$D183),"") -> FALSE
M186: =IF(データセット1!$B184<>"",IF($M$1=データセット1!$B184,データセット1!$D184),"") -> FALSE | N186: =IF(データセット1!$B184<>"",IF($N$1=データセット1!$B184,データセット1!$D184),"") -> FALSE | O186: =IF(データセット1!$B184<>"",IF($O$1=データセット1!$B184,データセット1!$D184),"") -> FALSE | P186: =IF(データセット1!$B184<>"",IF($P$1=データセット1!$B184,データセット1!$D184),"") -> FALSE | Q186: =IF(データセット1!$B184<>"",IF($Q$1=データセット1!$B184,データセット1!$D184),"") -> FALSE | R186: =IF(データセット1!$B184<>"",IF($R$1=データセット1!$B184,データセット1!$D184),"") -> 41 | S186: =IF(データセット1!$B184<>"",IF($S$1=データセット1!$B184,データセット1!$D184),"") -> FALSE | T186: =IF(データセット1!$B184<>"",IF($T$1=データセット1!$B184,データセット1!$D184),"") -> FALSE | U186: =IF(データセット1!$B184<>"",IF($U$1=データセット1!$B184,データセット1!$D184),"") -> FALSE
M187: =IF(データセット1!$B185<>"",IF($M$1=データセット1!$B185,データセット1!$D185),"") -> FALSE | N187: =IF(データセット1!$B185<>"",IF($N$1=データセット1!$B185,データセット1!$D185),"") -> FALSE | O187: =IF(データセット1!$B185<>"",IF($O$1=データセット1!$B185,データセット1!$D185),"") -> FALSE | P187: =IF(データセット1!$B185<>"",IF($P$1=データセット1!$B185,データセット1!$D185),"") -> FALSE | Q187: =IF(データセット1!$B185<>"",IF($Q$1=データセット1!$B185,データセット1!$D185),"") -> 49 | R187: =IF(データセット1!$B185<>"",IF($R$1=データセット1!$B185,データセット1!$D185),"") -> FALSE | S187: =IF(データセット1!$B185<>"",IF($S$1=データセット1!$B185,データセット1!$D185),"") -> FALSE | T187: =IF(データセット1!$B185<>"",IF($T$1=データセット1!$B185,データセット1!$D185),"") -> FALSE | U187: =IF(データセット1!$B185<>"",IF($U$1=データセット1!$B185,データセット1!$D185),"") -> FALSE
M188: =IF(データセット1!$B186<>"",IF($M$1=データセット1!$B186,データセット1!$D186),"") -> FALSE | N188: =IF(データセット1!$B186<>"",IF($N$1=データセット1!$B186,データセット1!$D186),"") -> FALSE | O188: =IF(データセット1!$B186<>"",IF($O$1=データセット1!$B186,データセット1!$D186),"") -> FALSE | P188: =IF(データセット1!$B186<>"",IF($P$1=データセット1!$B186,データセット1!$D186),"") -> FALSE | Q188: =IF(データセット1!$B186<>"",IF($Q$1=データセット1!$B186,データセット1!$D186),"") -> FALSE | R188: =IF(データセット1!$B186<>"",IF($R$1=データセット1!$B186,データセット1!$D186),"") -> 41 | S188: =IF(データセット1!$B186<>"",IF($S$1=データセット1!$B186,データセット1!$D186),"") -> FALSE | T188: =IF(データセット1!$B186<>"",IF($T$1=データセット1!$B186,データセット1!$D186),"") -> FALSE | U188: =IF(データセット1!$B186<>"",IF($U$1=データセット1!$B186,データセット1!$D186),"") -> FALSE
M189: =IF(データセット1!$B187<>"",IF($M$1=データセット1!$B187,データセット1!$D187),"") -> FALSE | N189: =IF(データセット1!$B187<>"",IF($N$1=データセット1!$B187,データセット1!$D187),"") -> FALSE | O189: =IF(データセット1!$B187<>"",IF($O$1=データセット1!$B187,データセット1!$D187),"") -> FALSE | P189: =IF(データセット1!$B187<>"",IF($P$1=データセット1!$B187,データセット1!$D187),"") -> FALSE | Q189: =IF(データセット1!$B187<>"",IF($Q$1=データセット1!$B187,データセット1!$D187),"") -> FALSE | R189: =IF(データセット1!$B187<>"",IF($R$1=データセット1!$B187,データセット1!$D187),"") -> 42 | S189: =IF(データセット1!$B187<>"",IF($S$1=データセット1!$B187,データセット1!$D187),"") -> FALSE | T189: =IF(データセット1!$B187<>"",IF($T$1=データセット1!$B187,データセット1!$D187),"") -> FALSE | U189: =IF(データセット1!$B187<>"",IF($U$1=データセット1!$B187,データセット1!$D187),"") -> FALSE
M190: =IF(データセット1!$B188<>"",IF($M$1=データセット1!$B188,データセット1!$D188),"") ->  | N190: =IF(データセット1!$B188<>"",IF($N$1=データセット1!$B188,データセット1!$D188),"") ->  | O190: =IF(データセット1!$B188<>"",IF($O$1=データセット1!$B188,データセット1!$D188),"") ->  | P190: =IF(データセット1!$B188<>"",IF($P$1=データセット1!$B188,データセット1!$D188),"") ->  | Q190: =IF(データセット1!$B188<>"",IF($Q$1=データセット1!$B188,データセット1!$D188),"") ->  | R190: =IF(データセット1!$B188<>"",IF($R$1=データセット1!$B188,データセット1!$D188),"") ->  | S190: =IF(データセット1!$B188<>"",IF($S$1=データセット1!$B188,データセット1!$D188),"") ->  | T190: =IF(データセット1!$B188<>"",IF($T$1=データセット1!$B188,データセット1!$D188),"") ->  | U190: =IF(データセット1!$B188<>"",IF($U$1=データセット1!$B188,データセット1!$D188),"") -> 
M191: =IF(データセット1!$B189<>"",IF($M$1=データセット1!$B189,データセット1!$D189),"") ->  | N191: =IF(データセット1!$B189<>"",IF($N$1=データセット1!$B189,データセット1!$D189),"") ->  | O191: =IF(データセット1!$B189<>"",IF($O$1=データセット1!$B189,データセット1!$D189),"") ->  | P191: =IF(データセット1!$B189<>"",IF($P$1=データセット1!$B189,データセット1!$D189),"") ->  | Q191: =IF(データセット1!$B189<>"",IF($Q$1=データセット1!$B189,データセット1!$D189),"") ->  | R191: =IF(データセット1!$B189<>"",IF($R$1=データセット1!$B189,データセット1!$D189),"") ->  | S191: =IF(データセット1!$B189<>"",IF($S$1=データセット1!$B189,データセット1!$D189),"") ->  | T191: =IF(データセット1!$B189<>"",IF($T$1=データセット1!$B189,データセット1!$D189),"") ->  | U191: =IF(データセット1!$B189<>"",IF($U$1=データセット1!$B189,データセット1!$D189),"") -> 
M192: =IF(データセット1!$B190<>"",IF($M$1=データセット1!$B190,データセット1!$D190),"") ->  | N192: =IF(データセット1!$B190<>"",IF($N$1=データセット1!$B190,データセット1!$D190),"") ->  | O192: =IF(データセット1!$B190<>"",IF($O$1=データセット1!$B190,データセット1!$D190),"") ->  | P192: =IF(データセット1!$B190<>"",IF($P$1=データセット1!$B190,データセット1!$D190),"") ->  | Q192: =IF(データセット1!$B190<>"",IF($Q$1=データセット1!$B190,データセット1!$D190),"") ->  | R192: =IF(データセット1!$B190<>"",IF($R$1=データセット1!$B190,データセット1!$D190),"") ->  | S192: =IF(データセット1!$B190<>"",IF($S$1=データセット1!$B190,データセット1!$D190),"") ->  | T192: =IF(データセット1!$B190<>"",IF($T$1=データセット1!$B190,データセット1!$D190),"") ->  | U192: =IF(データセット1!$B190<>"",IF($U$1=データセット1!$B190,データセット1!$D190),"") -> 
M193: =IF(データセット1!$B191<>"",IF($M$1=データセット1!$B191,データセット1!$D191),"") ->  | N193: =IF(データセット1!$B191<>"",IF($N$1=データセット1!$B191,データセット1!$D191),"") ->  | O193: =IF(データセット1!$B191<>"",IF($O$1=データセット1!$B191,データセット1!$D191),"") ->  | P193: =IF(データセット1!$B191<>"",IF($P$1=データセット1!$B191,データセット1!$D191),"") ->  | Q193: =IF(データセット1!$B191<>"",IF($Q$1=データセット1!$B191,データセット1!$D191),"") ->  | R193: =IF(データセット1!$B191<>"",IF($R$1=データセット1!$B191,データセット1!$D191),"") ->  | S193: =IF(データセット1!$B191<>"",IF($S$1=データセット1!$B191,データセット1!$D191),"") ->  | T193: =IF(データセット1!$B191<>"",IF($T$1=データセット1!$B191,データセット1!$D191),"") ->  | U193: =IF(データセット1!$B191<>"",IF($U$1=データセット1!$B191,データセット1!$D191),"") -> 
M194: =IF(データセット1!$B192<>"",IF($M$1=データセット1!$B192,データセット1!$D192),"") ->  | N194: =IF(データセット1!$B192<>"",IF($N$1=データセット1!$B192,データセット1!$D192),"") ->  | O194: =IF(データセット1!$B192<>"",IF($O$1=データセット1!$B192,データセット1!$D192),"") ->  | P194: =IF(データセット1!$B192<>"",IF($P$1=データセット1!$B192,データセット1!$D192),"") ->  | Q194: =IF(データセット1!$B192<>"",IF($Q$1=データセット1!$B192,データセット1!$D192),"") ->  | R194: =IF(データセット1!$B192<>"",IF($R$1=データセット1!$B192,データセット1!$D192),"") ->  | S194: =IF(データセット1!$B192<>"",IF($S$1=データセット1!$B192,データセット1!$D192),"") ->  | T194: =IF(データセット1!$B192<>"",IF($T$1=データセット1!$B192,データセット1!$D192),"") ->  | U194: =IF(データセット1!$B192<>"",IF($U$1=データセット1!$B192,データセット1!$D192),"") -> 
M195: =IF(データセット1!$B193<>"",IF($M$1=データセット1!$B193,データセット1!$D193),"") ->  | N195: =IF(データセット1!$B193<>"",IF($N$1=データセット1!$B193,データセット1!$D193),"") ->  | O195: =IF(データセット1!$B193<>"",IF($O$1=データセット1!$B193,データセット1!$D193),"") ->  | P195: =IF(データセット1!$B193<>"",IF($P$1=データセット1!$B193,データセット1!$D193),"") ->  | Q195: =IF(データセット1!$B193<>"",IF($Q$1=データセット1!$B193,データセット1!$D193),"") ->  | R195: =IF(データセット1!$B193<>"",IF($R$1=データセット1!$B193,データセット1!$D193),"") ->  | S195: =IF(データセット1!$B193<>"",IF($S$1=データセット1!$B193,データセット1!$D193),"") ->  | T195: =IF(データセット1!$B193<>"",IF($T$1=データセット1!$B193,データセット1!$D193),"") ->  | U195: =IF(データセット1!$B193<>"",IF($U$1=データセット1!$B193,データセット1!$D193),"") -> 
M196: =IF(データセット1!$B194<>"",IF($M$1=データセット1!$B194,データセット1!$D194),"") ->  | N196: =IF(データセット1!$B194<>"",IF($N$1=データセット1!$B194,データセット1!$D194),"") ->  | O196: =IF(データセット1!$B194<>"",IF($O$1=データセット1!$B194,データセット1!$D194),"") ->  | P196: =IF(データセット1!$B194<>"",IF($P$1=データセット1!$B194,データセット1!$D194),"") ->  | Q196: =IF(データセット1!$B194<>"",IF($Q$1=データセット1!$B194,データセット1!$D194),"") ->  | R196: =IF(データセット1!$B194<>"",IF($R$1=データセット1!$B194,データセット1!$D194),"") ->  | S196: =IF(データセット1!$B194<>"",IF($S$1=データセット1!$B194,データセット1!$D194),"") ->  | T196: =IF(データセット1!$B194<>"",IF($T$1=データセット1!$B194,データセット1!$D194),"") ->  | U196: =IF(データセット1!$B194<>"",IF($U$1=データセット1!$B194,データセット1!$D194),"") -> 
M197: =IF(データセット1!$B195<>"",IF($M$1=データセット1!$B195,データセット1!$D195),"") ->  | N197: =IF(データセット1!$B195<>"",IF($N$1=データセット1!$B195,データセット1!$D195),"") ->  | O197: =IF(データセット1!$B195<>"",IF($O$1=データセット1!$B195,データセット1!$D195),"") ->  | P197: =IF(データセット1!$B195<>"",IF($P$1=データセット1!$B195,データセット1!$D195),"") ->  | Q197: =IF(データセット1!$B195<>"",IF($Q$1=データセット1!$B195,データセット1!$D195),"") ->  | R197: =IF(データセット1!$B195<>"",IF($R$1=データセット1!$B195,データセット1!$D195),"") ->  | S197: =IF(データセット1!$B195<>"",IF($S$1=データセット1!$B195,データセット1!$D195),"") ->  | T197: =IF(データセット1!$B195<>"",IF($T$1=データセット1!$B195,データセット1!$D195),"") ->  | U197: =IF(データセット1!$B195<>"",IF($U$1=データセット1!$B195,データセット1!$D195),"") -> 
M198: =IF(データセット1!$B196<>"",IF($M$1=データセット1!$B196,データセット1!$D196),"") ->  | N198: =IF(データセット1!$B196<>"",IF($N$1=データセット1!$B196,データセット1!$D196),"") ->  | O198: =IF(データセット1!$B196<>"",IF($O$1=データセット1!$B196,データセット1!$D196),"") ->  | P198: =IF(データセット1!$B196<>"",IF($P$1=データセット1!$B196,データセット1!$D196),"") ->  | Q198: =IF(データセット1!$B196<>"",IF($Q$1=データセット1!$B196,データセット1!$D196),"") ->  | R198: =IF(データセット1!$B196<>"",IF($R$1=データセット1!$B196,データセット1!$D196),"") ->  | S198: =IF(データセット1!$B196<>"",IF($S$1=データセット1!$B196,データセット1!$D196),"") ->  | T198: =IF(データセット1!$B196<>"",IF($T$1=データセット1!$B196,データセット1!$D196),"") ->  | U198: =IF(データセット1!$B196<>"",IF($U$1=データセット1!$B196,データセット1!$D196),"") -> 
M199: =IF(データセット1!$B197<>"",IF($M$1=データセット1!$B197,データセット1!$D197),"") ->  | N199: =IF(データセット1!$B197<>"",IF($N$1=データセット1!$B197,データセット1!$D197),"") ->  | O199: =IF(データセット1!$B197<>"",IF($O$1=データセット1!$B197,データセット1!$D197),"") ->  | P199: =IF(データセット1!$B197<>"",IF($P$1=データセット1!$B197,データセット1!$D197),"") ->  | Q199: =IF(データセット1!$B197<>"",IF($Q$1=データセット1!$B197,データセット1!$D197),"") ->  | R199: =IF(データセット1!$B197<>"",IF($R$1=データセット1!$B197,データセット1!$D197),"") ->  | S199: =IF(データセット1!$B197<>"",IF($S$1=データセット1!$B197,データセット1!$D197),"") ->  | T199: =IF(データセット1!$B197<>"",IF($T$1=データセット1!$B197,データセット1!$D197),"") ->  | U199: =IF(データセット1!$B197<>"",IF($U$1=データセット1!$B197,データセット1!$D197),"") -> 
M200: =IF(データセット1!$B198<>"",IF($M$1=データセット1!$B198,データセット1!$D198),"") ->  | N200: =IF(データセット1!$B198<>"",IF($N$1=データセット1!$B198,データセット1!$D198),"") ->  | O200: =IF(データセット1!$B198<>"",IF($O$1=データセット1!$B198,データセット1!$D198),"") ->  | P200: =IF(データセット1!$B198<>"",IF($P$1=データセット1!$B198,データセット1!$D198),"") ->  | Q200: =IF(データセット1!$B198<>"",IF($Q$1=データセット1!$B198,データセット1!$D198),"") ->  | R200: =IF(データセット1!$B198<>"",IF($R$1=データセット1!$B198,データセット1!$D198),"") ->  | S200: =IF(データセット1!$B198<>"",IF($S$1=データセット1!$B198,データセット1!$D198),"") ->  | T200: =IF(データセット1!$B198<>"",IF($T$1=データセット1!$B198,データセット1!$D198),"") ->  | U200: =IF(データセット1!$B198<>"",IF($U$1=データセット1!$B198,データセット1!$D198),"") -> 
M201: =IF(データセット1!$B199<>"",IF($M$1=データセット1!$B199,データセット1!$D199),"") ->  | N201: =IF(データセット1!$B199<>"",IF($N$1=データセット1!$B199,データセット1!$D199),"") ->  | O201: =IF(データセット1!$B199<>"",IF($O$1=データセット1!$B199,データセット1!$D199),"") ->  | P201: =IF(データセット1!$B199<>"",IF($P$1=データセット1!$B199,データセット1!$D199),"") ->  | Q201: =IF(データセット1!$B199<>"",IF($Q$1=データセット1!$B199,データセット1!$D199),"") ->  | R201: =IF(データセット1!$B199<>"",IF($R$1=データセット1!$B199,データセット1!$D199),"") ->  | S201: =IF(データセット1!$B199<>"",IF($S$1=データセット1!$B199,データセット1!$D199),"") ->  | T201: =IF(データセット1!$B199<>"",IF($T$1=データセット1!$B199,データセット1!$D199),"") ->  | U201: =IF(データセット1!$B199<>"",IF($U$1=データセット1!$B199,データセット1!$D199),"") -> 
M202: =IF(データセット1!$B200<>"",IF($M$1=データセット1!$B200,データセット1!$D200),"") ->  | N202: =IF(データセット1!$B200<>"",IF($N$1=データセット1!$B200,データセット1!$D200),"") ->  | O202: =IF(データセット1!$B200<>"",IF($O$1=データセット1!$B200,データセット1!$D200),"") ->  | P202: =IF(データセット1!$B200<>"",IF($P$1=データセット1!$B200,データセット1!$D200),"") ->  | Q202: =IF(データセット1!$B200<>"",IF($Q$1=データセット1!$B200,データセット1!$D200),"") ->  | R202: =IF(データセット1!$B200<>"",IF($R$1=データセット1!$B200,データセット1!$D200),"") ->  | S202: =IF(データセット1!$B200<>"",IF($S$1=データセット1!$B200,データセット1!$D200),"") ->  | T202: =IF(データセット1!$B200<>"",IF($T$1=データセット1!$B200,データセット1!$D200),"") ->  | U202: =IF(データセット1!$B200<>"",IF($U$1=データセット1!$B200,データセット1!$D200),"") -> 
... 800 more rows

Sheet Sheet1
A1: 概要
A3: 回帰統計
A4: 重相関 R | B4: 0.8967221225
A5: 重決定 R2 | B5: 0.804110565
A6: 補正 R2 | B6: 0.7919578465
A7: 標準誤差 | B7: 822.725676
A8: 観測数 | B8: 186
A10: 分散分析表
B11: 自由度 | C11: 変動 | D11: 分散 | E11: 観測された分散比 | F11: 有意 F
A12: 回帰 | B12: 7 | C12: 497356602.7 | D12: 71050943.25 | E12: 122.4634627 | F12: 1.315955516e-64
A13: 残差 | B13: 179 | C13: 121161079.3 | D13: 676877.5379
A14: 合計 | B14: 186 | C14: 618517682
B16: 係数 | C16: 標準誤差 | D16: t | E16: P-値 | F16: 下限 95% | G16: 上限 95% | H16: 下限 95.0% | I16: 上限 95.0%
A17: 切片 | B17: 865.0310563 | C17: 210.803447 | D17: 4.103495785 | E17: 6.173983317e-05 | F17: 449.0514688 | G17: 1281.010644 | H17: 449.0514688 | I17: 1281.010644
A18: セッション | B18: 3.22264101 | C18: 0.5751068132 | D18: 5.603552134 | E18: 7.816419565e-08 | F18: 2.087779611 | G18: 4.35750241 | H18: 2.087779611 | I18: 4.35750241
A19: 18-24 | B19: -778.7839549 | C19: 312.8947926 | D19: -2.488964257 | E19: 0.01372469088 | F19: -1396.220949 | G19: -161.3469604 | H19: -1396.220949 | I19: -161.3469604
A20: 25-34 | B20: 1755.214698 | C20: 437.5414357 | D20: 4.011539375 | E20: 8.851947285e-05 | F20: 891.811805 | G20: 2618.61759 | H20: 891.811805 | I20: 2618.61759
A21: 35-44 | B21: 2344.672235 | C21: 292.2803488 | D21: 8.021997525 | E21: 1.316904466e-13 | F21: 1767.913834 | G21: 2921.430635 | H21: 1767.913834 | I21: 2921.430635
A22: 45-54 | B22: 453.7068594 | C22: 218.3006039 | D22: 2.078358242 | E22: 0.03910281761 | F22: 22.93309146 | G22: 884.4806274 | H22: 22.93309146 | I22: 884.4806274
A23: 55-64 | B23: 17.34608318 | C23: 209.6866074 | D23: 0.08272384866 | E23: 0.9341635543 | F23: -396.4296386 | G23: 431.121805 | H23: -396.4296386 | I23: 431.121805
A24: 65+ | B24: 0 | C24: 0 | D24: 65535 | F24: 0 | G24: 0 | H24: 0 | I24: 0

Sheet 説明変数のダミー化
A1: =IF(データセット1!C1<>"",データセット1!C1,"") -> 収益 | B1: =IF(データセット1!D1<>"",データセット1!D1,"") -> セッション | C1: =カテゴリースコア!M1 -> 18-24 | D1: =カテゴリースコア!N1 -> 25-34 | E1: =カテゴリースコア!O1 -> 35-44 | F1: =カテゴリースコア!P1 -> 45-54 | G1: =カテゴリースコア!Q1 -> 55-64 | H1: =カテゴリースコア!R1 -> 65+ | I1: =カテゴリースコア!S1 ->  | J1: =カテゴリースコア!T1 ->  | K1: =カテゴリースコア!U1 -> 
A2: =IF(データセット1!C2<>"",データセット1!C2,"") -> 8349.49 | B2: =IF(データセット1!C2<>"",データセット1!D2-カテゴリースコア!$E$11,"") -> 534.4516129 | C2: =IF(C$1<>"",IF($A2<>"",COUNT(カテゴリースコア!M2),""),"") -> 0 | D2: =IF(D$1<>"",IF($A2<>"",COUNT(カテゴリースコア!N2),""),"") -> 1 | E2: =IF(E$1<>"",IF($A2<>"",COUNT(カテゴリースコア!O2),""),"") -> 0 | F2: =IF(F$1<>"",IF($A2<>"",COUNT(カテゴリースコア!P2),""),"") -> 0 | G2: =IF(G$1<>"",IF($A2<>"",COUNT(カテゴリースコア!Q2),""),"") -> 0 | H2: =IF(H$1<>"",IF($A2<>"",COUNT(カテゴリースコア!R2),""),"") -> 0 | I2: =IF(I$1<>"",IF($A2<>"",COUNT(カテゴリースコア!S2),""),"") ->  | J2: =IF(J$1<>"",IF($A2<>"",COUNT(カテゴリースコア!T2),""),"") ->  | K2: =IF(K$1<>"",IF($A2<>"",COUNT(カテゴリースコア!U2),""),"") ->  | M2: ①データ＞データ分析＞回帰分析 を選択する
A3: =IF(データセット1!C3<>"",データセット1!C3,"") -> 6725.62 | B3: =IF(データセット1!C3<>"",データセット1!D3-カテゴリースコア!$E$11,"") -> 985.4516129 | C3: =IF(C$1<>"",IF($A3<>"",COUNT(カテゴリースコア!M3),""),"") -> 0 | D3: =IF(D$1<>"",IF($A3<>"",COUNT(カテゴリースコア!N3),""),"") -> 1 | E3: =IF(E$1<>"",IF($A3<>"",COUNT(カテゴリースコア!O3),""),"") -> 0 | F3: =IF(F$1<>"",IF($A3<>"",COUNT(カテゴリースコア!P3),""),"") -> 0 | G3: =IF(G$1<>"",IF($A3<>"",COUNT(カテゴリースコア!Q3),""),"") -> 0 | H3: =IF(H$1<>"",IF($A3<>"",COUNT(カテゴリースコア!R3),""),"") -> 0 | I3: =IF(I$1<>"",IF($A3<>"",COUNT(カテゴリースコア!S3),""),"") ->  | J3: =IF(J$1<>"",IF($A3<>"",COUNT(カテゴリースコア!T3),""),"") ->  | K3: =IF(K$1<>"",IF($A3<>"",COUNT(カテゴリースコア!U3),""),"") ->  | M3: ②入力範囲YにA列の数値すべてを設定
A4: =IF(データセット1!C4<>"",データセット1!C4,"") -> 6677.38 | B4: =IF(データセット1!C4<>"",データセット1!D4-カテゴリースコア!$E$11,"") -> 521.4516129 | C4: =IF(C$1<>"",IF($A4<>"",COUNT(カテゴリースコア!M4),""),"") -> 0 | D4: =IF(D$1<>"",IF($A4<>"",COUNT(カテゴリースコア!N4),""),"") -> 1 | E4: =IF(E$1<>"",IF($A4<>"",COUNT(カテゴリースコア!O4),""),"") -> 0 | F4: =IF(F$1<>"",IF($A4<>"",COUNT(カテゴリースコア!P4),""),"") -> 0 | G4: =IF(G$1<>"",IF($A4<>"",COUNT(カテゴリースコア!Q4),""),"") -> 0 | H4: =IF(H$1<>"",IF($A4<>"",COUNT(カテゴリースコア!R4),""),"") -> 0 | I4: =IF(I$1<>"",IF($A4<>"",COUNT(カテゴリースコア!S4),""),"") ->  | J4: =IF(J$1<>"",IF($A4<>"",COUNT(カテゴリースコア!T4),""),"") ->  | K4: =IF(K$1<>"",IF($A4<>"",COUNT(カテゴリースコア!U4),""),"") ->  | M4: ③入力範囲XにB～K列から最後の一列を除いて、残りの数値すべてを設定
A5: =IF(データセット1!C5<>"",データセット1!C5,"") -> 5773.21 | B5: =IF(データセット1!C5<>"",データセット1!D5-カテゴリースコア!$E$11,"") -> 405.4516129 | C5: =IF(C$1<>"",IF($A5<>"",COUNT(カテゴリースコア!M5),""),"") -> 0 | D5: =IF(D$1<>"",IF($A5<>"",COUNT(カテゴリースコア!N5),""),"") -> 0 | E5: =IF(E$1<>"",IF($A5<>"",COUNT(カテゴリースコア!O5),""),"") -> 1 | F5: =IF(F$1<>"",IF($A5<>"",COUNT(カテゴリースコア!P5),""),"") -> 0 | G5: =IF(G$1<>"",IF($A5<>"",COUNT(カテゴリースコア!Q5),""),"") -> 0 | H5: =IF(H$1<>"",IF($A5<>"",COUNT(カテゴリースコア!R5),""),"") -> 0 | I5: =IF(I$1<>"",IF($A5<>"",COUNT(カテゴリースコア!S5),""),"") ->  | J5: =IF(J$1<>"",IF($A5<>"",COUNT(カテゴリースコア!T5),""),"") ->  | K5: =IF(K$1<>"",IF($A5<>"",COUNT(カテゴリースコア!U5),""),"") ->  | M5: ④ラベルにチェックを入れる
A6: =IF(データセット1!C6<>"",データセット1!C6,"") -> 5571.51 | B6: =IF(データセット1!C6<>"",データセット1!D6-カテゴリースコア!$E$11,"") -> 495.4516129 | C6: =IF(C$1<>"",IF($A6<>"",COUNT(カテゴリースコア!M6),""),"") -> 0 | D6: =IF(D$1<>"",IF($A6<>"",COUNT(カテゴリースコア!N6),""),"") -> 1 | E6: =IF(E$1<>"",IF($A6<>"",COUNT(カテゴリースコア!O6),""),"") -> 0 | F6: =IF(F$1<>"",IF($A6<>"",COUNT(カテゴリースコア!P6),""),"") -> 0 | G6: =IF(G$1<>"",IF($A6<>"",COUNT(カテゴリースコア!Q6),""),"") -> 0 | H6: =IF(H$1<>"",IF($A6<>"",COUNT(カテゴリースコア!R6),""),"") -> 0 | I6: =IF(I$1<>"",IF($A6<>"",COUNT(カテゴリースコア!S6),""),"") ->  | J6: =IF(J$1<>"",IF($A6<>"",COUNT(カテゴリースコア!T6),""),"") ->  | K6: =IF(K$1<>"",IF($A6<>"",COUNT(カテゴリースコア!U6),""),"") ->  | M6: ⑤別シートで回帰分析を実行する
A7: =IF(データセット1!C7<>"",データセット1!C7,"") -> 5533.83 | B7: =IF(データセット1!C7<>"",データセット1!D7-カテゴリースコア!$E$11,"") -> 153.4516129 | C7: =IF(C$1<>"",IF($A7<>"",COUNT(カテゴリースコア!M7),""),"") -> 0 | D7: =IF(D$1<>"",IF($A7<>"",COUNT(カテゴリースコア!N7),""),"") -> 0 | E7: =IF(E$1<>"",IF($A7<>"",COUNT(カテゴリースコア!O7),""),"") -> 1 | F7: =IF(F$1<>"",IF($A7<>"",COUNT(カテゴリースコア!P7),""),"") -> 0 | G7: =IF(G$1<>"",IF($A7<>"",COUNT(カテゴリースコア!Q7),""),"") -> 0 | H7: =IF(H$1<>"",IF($A7<>"",COUNT(カテゴリースコア!R7),""),"") -> 0 | I7: =IF(I$1<>"",IF($A7<>"",COUNT(カテゴリースコア!S7),""),"") ->  | J7: =IF(J$1<>"",IF($A7<>"",COUNT(カテゴリースコア!T7),""),"") ->  | K7: =IF(K$1<>"",IF($A7<>"",COUNT(カテゴリースコア!U7),""),"") ->  | M7: ⑥新しくできたシートの名前をSheet1にする。
A8: =IF(データセット1!C8<>"",データセット1!C8,"") -> 5370.78 | B8: =IF(データセット1!C8<>"",データセット1!D8-カテゴリースコア!$E$11,"") -> 118.4516129 | C8: =IF(C$1<>"",IF($A8<>"",COUNT(カテゴリースコア!M8),""),"") -> 0 | D8: =IF(D$1<>"",IF($A8<>"",COUNT(カテゴリースコア!N8),""),"") -> 0 | E8: =IF(E$1<>"",IF($A8<>"",COUNT(カテゴリースコア!O8),""),"") -> 1 | F8: =IF(F$1<>"",IF($A8<>"",COUNT(カテゴリースコア!P8),""),"") -> 0 | G8: =IF(G$1<>"",IF($A8<>"",COUNT(カテゴリースコア!Q8),""),"") -> 0 | H8: =IF(H$1<>"",IF($A8<>"",COUNT(カテゴリースコア!R8),""),"") -> 0 | I8: =IF(I$1<>"",IF($A8<>"",COUNT(カテゴリースコア!S8),""),"") ->  | J8: =IF(J$1<>"",IF($A8<>"",COUNT(カテゴリースコア!T8),""),"") ->  | K8: =IF(K$1<>"",IF($A8<>"",COUNT(カテゴリースコア!U8),""),"") ->  | M8: ⑦カテゴリースコアシートへ移動する
A9: =IF(データセット1!C9<>"",データセット1!C9,"") -> 5278.24 | B9: =IF(データセット1!C9<>"",データセット1!D9-カテゴリースコア!$E$11,"") -> 452.4516129 | C9: =IF(C$1<>"",IF($A9<>"",COUNT(カテゴリースコア!M9),""),"") -> 0 | D9: =IF(D$1<>"",IF($A9<>"",COUNT(カテゴリースコア!N9),""),"") -> 1 | E9: =IF(E$1<>"",IF($A9<>"",COUNT(カテゴリースコア!O9),""),"") -> 0 | F9: =IF(F$1<>"",IF($A9<>"",COUNT(カテゴリースコア!P9),""),"") -> 0 | G9: =IF(G$1<>"",IF($A9<>"",COUNT(カテゴリースコア!Q9),""),"") -> 0 | H9: =IF(H$1<>"",IF($A9<>"",COUNT(カテゴリースコア!R9),""),"") -> 0 | I9: =IF(I$1<>"",IF($A9<>"",COUNT(カテゴリースコア!S9),""),"") ->  | J9: =IF(J$1<>"",IF($A9<>"",COUNT(カテゴリースコア!T9),""),"") ->  | K9: =IF(K$1<>"",IF($A9<>"",COUNT(カテゴリースコア!U9),""),"") -> 
A10: =IF(データセット1!C10<>"",データセット1!C10,"") -> 5238.51 | B10: =IF(データセット1!C10<>"",データセット1!D10-カテゴリースコア!$E$11,"") -> 171.4516129 | C10: =IF(C$1<>"",IF($A10<>"",COUNT(カテゴリースコア!M10),""),"") -> 0 | D10: =IF(D$1<>"",IF($A10<>"",COUNT(カテゴリースコア!N10),""),"") -> 0 | E10: =IF(E$1<>"",IF($A10<>"",COUNT(カテゴリースコア!O10),""),"") -> 1 | F10: =IF(F$1<>"",IF($A10<>"",COUNT(カテゴリースコア!P10),""),"") -> 0 | G10: =IF(G$1<>"",IF($A10<>"",COUNT(カテゴリースコア!Q10),""),"") -> 0 | H10: =IF(H$1<>"",IF($A10<>"",COUNT(カテゴリースコア!R10),""),"") -> 0 | I10: =IF(I$1<>"",IF($A10<>"",COUNT(カテゴリースコア!S10),""),"") ->  | J10: =IF(J$1<>"",IF($A10<>"",COUNT(カテゴリースコア!T10),""),"") ->  | K10: =IF(K$1<>"",IF($A10<>"",COUNT(カテゴリースコア!U10),""),"") -> 
A11: =IF(データセット1!C11<>"",データセット1!C11,"") -> 5220.36 | B11: =IF(データセット1!C11<>"",データセット1!D11-カテゴリースコア!$E$11,"") -> 152.4516129 | C11: =IF(C$1<>"",IF($A11<>"",COUNT(カテゴリースコア!M11),""),"") -> 0 | D11: =IF(D$1<>"",IF($A11<>"",COUNT(カテゴリースコア!N11),""),"") -> 0 | E11: =IF(E$1<>"",IF($A11<>"",COUNT(カテゴリースコア!O11),""),"") -> 1 | F11: =IF(F$1<>"",IF($A11<>"",COUNT(カテゴリースコア!P11),""),"") -> 0 | G11: =IF(G$1<>"",IF($A11<>"",COUNT(カテゴリースコア!Q11),""),"") -> 0 | H11: =IF(H$1<>"",IF($A11<>"",COUNT(カテゴリースコア!R11),""),"") -> 0 | I11: =IF(I$1<>"",IF($A11<>"",COUNT(カテゴリースコア!S11),""),"") ->  | J11: =IF(J$1<>"",IF($A11<>"",COUNT(カテゴリースコア!T11),""),"") ->  | K11: =IF(K$1<>"",IF($A11<>"",COUNT(カテゴリースコア!U11),""),"") -> 
A12: =IF(データセット1!C12<>"",データセット1!C12,"") -> 5136.94 | B12: =IF(データセット1!C12<>"",データセット1!D12-カテゴリースコア!$E$11,"") -> 574.4516129 | C12: =IF(C$1<>"",IF($A12<>"",COUNT(カテゴリースコア!M12),""),"") -> 0 | D12: =IF(D$1<>"",IF($A12<>"",COUNT(カテゴリースコア!N12),""),"") -> 1 | E12: =IF(E$1<>"",IF($A12<>"",COUNT(カテゴリースコア!O12),""),"") -> 0 | F12: =IF(F$1<>"",IF($A12<>"",COUNT(カテゴリースコア!P12),""),"") -> 0 | G12: =IF(G$1<>"",IF($A12<>"",COUNT(カテゴリースコア!Q12),""),"") -> 0 | H12: =IF(H$1<>"",IF($A12<>"",COUNT(カテゴリースコア!R12),""),"") -> 0 | I12: =IF(I$1<>"",IF($A12<>"",COUNT(カテゴリースコア!S12),""),"") ->  | J12: =IF(J$1<>"",IF($A12<>"",COUNT(カテゴリースコア!T12),""),"") ->  | K12: =IF(K$1<>"",IF($A12<>"",COUNT(カテゴリースコア!U12),""),"") -> 
A13: =IF(データセット1!C13<>"",データセット1!C13,"") -> 4790.1 | B13: =IF(データセット1!C13<>"",データセット1!D13-カテゴリースコア!$E$11,"") -> 419.4516129 | C13: =IF(C$1<>"",IF($A13<>"",COUNT(カテゴリースコア!M13),""),"") -> 0 | D13: =IF(D$1<>"",IF($A13<>"",COUNT(カテゴリースコア!N13),""),"") -> 1 | E13: =IF(E$1<>"",IF($A13<>"",COUNT(カテゴリースコア!O13),""),"") -> 0 | F13: =IF(F$1<>"",IF($A13<>"",COUNT(カテゴリースコア!P13),""),"") -> 0 | G13: =IF(G$1<>"",IF($A13<>"",COUNT(カテゴリースコア!Q13),""),"") -> 0 | H13: =IF(H$1<>"",IF($A13<>"",COUNT(カテゴリースコア!R13),""),"") -> 0 | I13: =IF(I$1<>"",IF($A13<>"",COUNT(カテゴリースコア!S13),""),"") ->  | J13: =IF(J$1<>"",IF($A13<>"",COUNT(カテゴリースコア!T13),""),"") ->  | K13: =IF(K$1<>"",IF($A13<>"",COUNT(カテゴリースコア!U13),""),"") -> 
A14: =IF(データセット1!C14<>"",データセット1!C14,"") -> 4767.35 | B14: =IF(データセット1!C14<>"",データセット1!D14-カテゴリースコア!$E$11,"") -> 212.4516129 | C14: =IF(C$1<>"",IF($A14<>"",COUNT(カテゴリースコア!M14),""),"") -> 0 | D14: =IF(D$1<>"",IF($A14<>"",COUNT(カテゴリースコア!N14),""),"") -> 0 | E14: =IF(E$1<>"",IF($A14<>"",COUNT(カテゴリースコア!O14),""),"") -> 1 | F14: =IF(F$1<>"",IF($A14<>"",COUNT(カテゴリースコア!P14),""),"") -> 0 | G14: =IF(G$1<>"",IF($A14<>"",COUNT(カテゴリースコア!Q14),""),"") -> 0 | H14: =IF(H$1<>"",IF($A14<>"",COUNT(カテゴリースコア!R14),""),"") -> 0 | I14: =IF(I$1<>"",IF($A14<>"",COUNT(カテゴリースコア!S14),""),"") ->  | J14: =IF(J$1<>"",IF($A14<>"",COUNT(カテゴリースコア!T14),""),"") ->  | K14: =IF(K$1<>"",IF($A14<>"",COUNT(カテゴリースコア!U14),""),"") -> 
A15: =IF(データセット1!C15<>"",データセット1!C15,"") -> 4663.15 | B15: =IF(データセット1!C15<>"",データセット1!D15-カテゴリースコア!$E$11,"") -> 362.4516129 | C15: =IF(C$1<>"",IF($A15<>"",COUNT(カテゴリースコア!M15),""),"") -> 0 | D15: =IF(D$1<>"",IF($A15<>"",COUNT(カテゴリースコア!N15),""),"") -> 1 | E15: =IF(E$1<>"",IF($A15<>"",COUNT(カテゴリースコア!O15),""),"") -> 0 | F15: =IF(F$1<>"",IF($A15<>"",COUNT(カテゴリースコア!P15),""),"") -> 0 | G15: =IF(G$1<>"",IF($A15<>"",COUNT(カテゴリースコア!Q15),""),"") -> 0 | H15: =IF(H$1<>"",IF($A15<>"",COUNT(カテゴリースコア!R15),""),"") -> 0 | I15: =IF(I$1<>"",IF($A15<>"",COUNT(カテゴリースコア!S15),""),"") ->  | J15: =IF(J$1<>"",IF($A15<>"",COUNT(カテゴリースコア!T15),""),"") ->  | K15: =IF(K$1<>"",IF($A15<>"",COUNT(カテゴリースコア!U15),""),"") -> 
A16: =IF(データセット1!C16<>"",データセット1!C16,"") -> 4543.69 | B16: =IF(データセット1!C16<>"",データセット1!D16-カテゴリースコア!$E$11,"") -> 80.4516129 | C16: =IF(C$1<>"",IF($A16<>"",COUNT(カテゴリースコア!M16),""),"") -> 0 | D16: =IF(D$1<>"",IF($A16<>"",COUNT(カテゴリースコア!N16),""),"") -> 0 | E16: =IF(E$1<>"",IF($A16<>"",COUNT(カテゴリースコア!O16),""),"") -> 1 | F16: =IF(F$1<>"",IF($A16<>"",COUNT(カテゴリースコア!P16),""),"") -> 0 | G16: =IF(G$1<>"",IF($A16<>"",COUNT(カテゴリースコア!Q16),""),"") -> 0 | H16: =IF(H$1<>"",IF($A16<>"",COUNT(カテゴリースコア!R16),""),"") -> 0 | I16: =IF(I$1<>"",IF($A16<>"",COUNT(カテゴリースコア!S16),""),"") ->  | J16: =IF(J$1<>"",IF($A16<>"",COUNT(カテゴリースコア!T16),""),"") ->  | K16: =IF(K$1<>"",IF($A16<>"",COUNT(カテゴリースコア!U16),""),"") -> 
A17: =IF(データセット1!C17<>"",データセット1!C17,"") -> 4541.46 | B17: =IF(データセット1!C17<>"",データセット1!D17-カテゴリースコア!$E$11,"") -> -51.5483871 | C17: =IF(C$1<>"",IF($A17<>"",COUNT(カテゴリースコア!M17),""),"") -> 0 | D17: =IF(D$1<>"",IF($A17<>"",COUNT(カテゴリースコア!N17),""),"") -> 0 | E17: =IF(E$1<>"",IF($A17<>"",COUNT(カテゴリースコア!O17),""),"") -> 1 | F17: =IF(F$1<>"",IF($A17<>"",COUNT(カテゴリースコア!P17),""),"") -> 0 | G17: =IF(G$1<>"",IF($A17<>"",COUNT(カテゴリースコア!Q17),""),"") -> 0 | H17: =IF(H$1<>"",IF($A17<>"",COUNT(カテゴリースコア!R17),""),"") -> 0 | I17: =IF(I$1<>"",IF($A17<>"",COUNT(カテゴリースコア!S17),""),"") ->  | J17: =IF(J$1<>"",IF($A17<>"",COUNT(カテゴリースコア!T17),""),"") ->  | K17: =IF(K$1<>"",IF($A17<>"",COUNT(カテゴリースコア!U17),""),"") -> 
A18: =IF(データセット1!C18<>"",データセット1!C18,"") -> 4533.85 | B18: =IF(データセット1!C18<>"",データセット1!D18-カテゴリースコア!$E$11,"") -> 97.4516129 | C18: =IF(C$1<>"",IF($A18<>"",COUNT(カテゴリースコア!M18),""),"") -> 0 | D18: =IF(D$1<>"",IF($A18<>"",COUNT(カテゴリースコア!N18),""),"") -> 1 | E18: =IF(E$1<>"",IF($A18<>"",COUNT(カテゴリースコア!O18),""),"") -> 0 | F18: =IF(F$1<>"",IF($A18<>"",COUNT(カテゴリースコア!P18),""),"") -> 0 | G18: =IF(G$1<>"",IF($A18<>"",COUNT(カテゴリースコア!Q18),""),"") -> 0 | H18: =IF(H$1<>"",IF($A18<>"",COUNT(カテゴリースコア!R18),""),"") -> 0 | I18: =IF(I$1<>"",IF($A18<>"",COUNT(カテゴリースコア!S18),""),"") ->  | J18: =IF(J$1<>"",IF($A18<>"",COUNT(カテゴリースコア!T18),""),"") ->  | K18: =IF(K$1<>"",IF($A18<>"",COUNT(カテゴリースコア!U18),""),"") -> 
A19: =IF(データセット1!C19<>"",データセット1!C19,"") -> 4496.02 | B19: =IF(データセット1!C19<>"",データセット1!D19-カテゴリースコア!$E$11,"") -> 558.4516129 | C19: =IF(C$1<>"",IF($A19<>"",COUNT(カテゴリースコア!M19),""),"") -> 0 | D19: =IF(D$1<>"",IF($A19<>"",COUNT(カテゴリースコア!N19),""),"") -> 1 | E19: =IF(E$1<>"",IF($A19<>"",COUNT(カテゴリースコア!O19),""),"") -> 0 | F19: =IF(F$1<>"",IF($A19<>"",COUNT(カテゴリースコア!P19),""),"") -> 0 | G19: =IF(G$1<>"",IF($A19<>"",COUNT(カテゴリースコア!Q19),""),"") -> 0 | H19: =IF(H$1<>"",IF($A19<>"",COUNT(カテゴリースコア!R19),""),"") -> 0 | I19: =IF(I$1<>"",IF($A19<>"",COUNT(カテゴリースコア!S19),""),"") ->  | J19: =IF(J$1<>"",IF($A19<>"",COUNT(カテゴリースコア!T19),""),"") ->  | K19: =IF(K$1<>"",IF($A19<>"",COUNT(カテゴリースコア!U19),""),"") -> 
A20: =IF(データセット1!C20<>"",データセット1!C20,"") -> 4434.78 | B20: =IF(データセット1!C20<>"",データセット1!D20-カテゴリースコア!$E$11,"") -> 112.4516129 | C20: =IF(C$1<>"",IF($A20<>"",COUNT(カテゴリースコア!M20),""),"") -> 0 | D20: =IF(D$1<>"",IF($A20<>"",COUNT(カテゴリースコア!N20),""),"") -> 0 | E20: =IF(E$1<>"",IF($A20<>"",COUNT(カテゴリースコア!O20),""),"") -> 1 | F20: =IF(F$1<>"",IF($A20<>"",COUNT(カテゴリースコア!P20),""),"") -> 0 | G20: =IF(G$1<>"",IF($A20<>"",COUNT(カテゴリースコア!Q20),""),"") -> 0 | H20: =IF(H$1<>"",IF($A20<>"",COUNT(カテゴリースコア!R20),""),"") -> 0 | I20: =IF(I$1<>"",IF($A20<>"",COUNT(カテゴリースコア!S20),""),"") ->  | J20: =IF(J$1<>"",IF($A20<>"",COUNT(カテゴリースコア!T20),""),"") ->  | K20: =IF(K$1<>"",IF($A20<>"",COUNT(カテゴリースコア!U20),""),"") -> 
A21: =IF(データセット1!C21<>"",データセット1!C21,"") -> 4220.74 | B21: =IF(データセット1!C21<>"",データセット1!D21-カテゴリースコア!$E$11,"") -> 505.4516129 | C21: =IF(C$1<>"",IF($A21<>"",COUNT(カテゴリースコア!M21),""),"") -> 0 | D21: =IF(D$1<>"",IF($A21<>"",COUNT(カテゴリースコア!N21),""),"") -> 1 | E21: =IF(E$1<>"",IF($A21<>"",COUNT(カテゴリースコア!O21),""),"") -> 0 | F21: =IF(F$1<>"",IF($A21<>"",COUNT(カテゴリースコア!P21),""),"") -> 0 | G21: =IF(G$1<>"",IF($A21<>"",COUNT(カテゴリースコア!Q21),""),"") -> 0 | H21: =IF(H$1<>"",IF($A21<>"",COUNT(カテゴリースコア!R21),""),"") -> 0 | I21: =IF(I$1<>"",IF($A21<>"",COUNT(カテゴリースコア!S21),""),"") ->  | J21: =IF(J$1<>"",IF($A21<>"",COUNT(カテゴリースコア!T21),""),"") ->  | K21: =IF(K$1<>"",IF($A21<>"",COUNT(カテゴリースコア!U21),""),"") -> 
A22: =IF(データセット1!C22<>"",データセット1!C22,"") -> 4212.37 | B22: =IF(データセット1!C22<>"",データセット1!D22-カテゴリースコア!$E$11,"") -> 74.4516129 | C22: =IF(C$1<>"",IF($A22<>"",COUNT(カテゴリースコア!M22),""),"") -> 0 | D22: =IF(D$1<>"",IF($A22<>"",COUNT(カテゴリースコア!N22),""),"") -> 0 | E22: =IF(E$1<>"",IF($A22<>"",COUNT(カテゴリースコア!O22),""),"") -> 1 | F22: =IF(F$1<>"",IF($A22<>"",COUNT(カテゴリースコア!P22),""),"") -> 0 | G22: =IF(G$1<>"",IF($A22<>"",COUNT(カテゴリースコア!Q22),""),"") -> 0 | H22: =IF(H$1<>"",IF($A22<>"",COUNT(カテゴリースコア!R22),""),"") -> 0 | I22: =IF(I$1<>"",IF($A22<>"",COUNT(カテゴリースコア!S22),""),"") ->  | J22: =IF(J$1<>"",IF($A22<>"",COUNT(カテゴリースコア!T22),""),"") ->  | K22: =IF(K$1<>"",IF($A22<>"",COUNT(カテゴリースコア!U22),""),"") -> 
A23: =IF(データセット1!C23<>"",データセット1!C23,"") -> 4156.85 | B23: =IF(データセット1!C23<>"",データセット1!D23-カテゴリースコア!$E$11,"") -> 320.4516129 | C23: =IF(C$1<>"",IF($A23<>"",COUNT(カテゴリースコア!M23),""),"") -> 0 | D23: =IF(D$1<>"",IF($A23<>"",COUNT(カテゴリースコア!N23),""),"") -> 1 | E23: =IF(E$1<>"",IF($A23<>"",COUNT(カテゴリースコア!O23),""),"") -> 0 | F23: =IF(F$1<>"",IF($A23<>"",COUNT(カテゴリースコア!P23),""),"") -> 0 | G23: =IF(G$1<>"",IF($A23<>"",COUNT(カテゴリースコア!Q23),""),"") -> 0 | H23: =IF(H$1<>"",IF($A23<>"",COUNT(カテゴリースコア!R23),""),"") -> 0 | I23: =IF(I$1<>"",IF($A23<>"",COUNT(カテゴリースコア!S23),""),"") ->  | J23: =IF(J$1<>"",IF($A23<>"",COUNT(カテゴリースコア!T23),""),"") ->  | K23: =IF(K$1<>"",IF($A23<>"",COUNT(カテゴリースコア!U23),""),"") -> 
A24: =IF(データセット1!C24<>"",データセット1!C24,"") -> 4156.29 | B24: =IF(データセット1!C24<>"",データセット1!D24-カテゴリースコア!$E$11,"") -> 136.4516129 | C24: =IF(C$1<>"",IF($A24<>"",COUNT(カテゴリースコア!M24),""),"") -> 0 | D24: =IF(D$1<>"",IF($A24<>"",COUNT(カテゴリースコア!N24),""),"") -> 1 | E24: =IF(E$1<>"",IF($A24<>"",COUNT(カテゴリースコア!O24),""),"") -> 0 | F24: =IF(F$1<>"",IF($A24<>"",COUNT(カテゴリースコア!P24),""),"") -> 0 | G24: =IF(G$1<>"",IF($A24<>"",COUNT(カテゴリースコア!Q24),""),"") -> 0 | H24: =IF(H$1<>"",IF($A24<>"",COUNT(カテゴリースコア!R24),""),"") -> 0 | I24: =IF(I$1<>"",IF($A24<>"",COUNT(カテゴリースコア!S24),""),"") ->  | J24: =IF(J$1<>"",IF($A24<>"",COUNT(カテゴリースコア!T24),""),"") ->  | K24: =IF(K$1<>"",IF($A24<>"",COUNT(カテゴリースコア!U24),""),"") -> 
A25: =IF(データセット1!C25<>"",データセット1!C25,"") -> 4080.02 | B25: =IF(データセット1!C25<>"",データセット1!D25-カテゴリースコア!$E$11,"") -> 291.4516129 | C25: =IF(C$1<>"",IF($A25<>"",COUNT(カテゴリースコア!M25),""),"") -> 0 | D25: =IF(D$1<>"",IF($A25<>"",COUNT(カテゴリースコア!N25),""),"") -> 1 | E25: =IF(E$1<>"",IF($A25<>"",COUNT(カテゴリースコア!O25),""),"") -> 0 | F25: =IF(F$1<>"",IF($A25<>"",COUNT(カテゴリースコア!P25),""),"") -> 0 | G25: =IF(G$1<>"",IF($A25<>"",COUNT(カテゴリースコア!Q25),""),"") -> 0 | H25: =IF(H$1<>"",IF($A25<>"",COUNT(カテゴリースコア!R25),""),"") -> 0 | I25: =IF(I$1<>"",IF($A25<>"",COUNT(カテゴリースコア!S25),""),"") ->  | J25: =IF(J$1<>"",IF($A25<>"",COUNT(カテゴリースコア!T25),""),"") ->  | K25: =IF(K$1<>"",IF($A25<>"",COUNT(カテゴリースコア!U25),""),"") -> 
A26: =IF(データセット1!C26<>"",データセット1!C26,"") -> 4030.11 | B26: =IF(データセット1!C26<>"",データセット1!D26-カテゴリースコア!$E$11,"") -> 538.4516129 | C26: =IF(C$1<>"",IF($A26<>"",COUNT(カテゴリースコア!M26),""),"") -> 0 | D26: =IF(D$1<>"",IF($A26<>"",COUNT(カテゴリースコア!N26),""),"") -> 1 | E26: =IF(E$1<>"",IF($A26<>"",COUNT(カテゴリースコア!O26),""),"") -> 0 | F26: =IF(F$1<>"",IF($A26<>"",COUNT(カテゴリースコア!P26),""),"") -> 0 | G26: =IF(G$1<>"",IF($A26<>"",COUNT(カテゴリースコア!Q26),""),"") -> 0 | H26: =IF(H$1<>"",IF($A26<>"",COUNT(カテゴリースコア!R26),""),"") -> 0 | I26: =IF(I$1<>"",IF($A26<>"",COUNT(カテゴリースコア!S26),""),"") ->  | J26: =IF(J$1<>"",IF($A26<>"",COUNT(カテゴリースコア!T26),""),"") ->  | K26: =IF(K$1<>"",IF($A26<>"",COUNT(カテゴリースコア!U26),""),"") -> 
A27: =IF(データセット1!C27<>"",データセット1!C27,"") -> 4003.89 | B27: =IF(データセット1!C27<>"",データセット1!D27-カテゴリースコア!$E$11,"") -> 177.4516129 | C27: =IF(C$1<>"",IF($A27<>"",COUNT(カテゴリースコア!M27),""),"") -> 0 | D27: =IF(D$1<>"",IF($A27<>"",COUNT(カテゴリースコア!N27),""),"") -> 0 | E27: =IF(E$1<>"",IF($A27<>"",COUNT(カテゴリースコア!O27),""),"") -> 1 | F27: =IF(F$1<>"",IF($A27<>"",COUNT(カテゴリースコア!P27),""),"") -> 0 | G27: =IF(G$1<>"",IF($A27<>"",COUNT(カテゴリースコア!Q27),""),"") -> 0 | H27: =IF(H$1<>"",IF($A27<>"",COUNT(カテゴリースコア!R27),""),"") -> 0 | I27: =IF(I$1<>"",IF($A27<>"",COUNT(カテゴリースコア!S27),""),"") ->  | J27: =IF(J$1<>"",IF($A27<>"",COUNT(カテゴリースコア!T27),""),"") ->  | K27: =IF(K$1<>"",IF($A27<>"",COUNT(カテゴリースコア!U27),""),"") -> 
A28: =IF(データセット1!C28<>"",データセット1!C28,"") -> 3933.74 | B28: =IF(データセット1!C28<>"",データセット1!D28-カテゴリースコア!$E$11,"") -> 144.4516129 | C28: =IF(C$1<>"",IF($A28<>"",COUNT(カテゴリースコア!M28),""),"") -> 0 | D28: =IF(D$1<>"",IF($A28<>"",COUNT(カテゴリースコア!N28),""),"") -> 0 | E28: =IF(E$1<>"",IF($A28<>"",COUNT(カテゴリースコア!O28),""),"") -> 1 | F28: =IF(F$1<>"",IF($A28<>"",COUNT(カテゴリースコア!P28),""),"") -> 0 | G28: =IF(G$1<>"",IF($A28<>"",COUNT(カテゴリースコア!Q28),""),"") -> 0 | H28: =IF(H$1<>"",IF($A28<>"",COUNT(カテゴリースコア!R28),""),"") -> 0 | I28: =IF(I$1<>"",IF($A28<>"",COUNT(カテゴリースコア!S28),""),"") ->  | J28: =IF(J$1<>"",IF($A28<>"",COUNT(カテゴリースコア!T28),""),"") ->  | K28: =IF(K$1<>"",IF($A28<>"",COUNT(カテゴリースコア!U28),""),"") -> 
A29: =IF(データセット1!C29<>"",データセット1!C29,"") -> 3849.72 | B29: =IF(データセット1!C29<>"",データセット1!D29-カテゴリースコア!$E$11,"") -> 506.4516129 | C29: =IF(C$1<>"",IF($A29<>"",COUNT(カテゴリースコア!M29),""),"") -> 0 | D29: =IF(D$1<>"",IF($A29<>"",COUNT(カテゴリースコア!N29),""),"") -> 1 | E29: =IF(E$1<>"",IF($A29<>"",COUNT(カテゴリースコア!O29),""),"") -> 0 | F29: =IF(F$1<>"",IF($A29<>"",COUNT(カテゴリースコア!P29),""),"") -> 0 | G29: =IF(G$1<>"",IF($A29<>"",COUNT(カテゴリースコア!Q29),""),"") -> 0 | H29: =IF(H$1<>"",IF($A29<>"",COUNT(カテゴリースコア!R29),""),"") -> 0 | I29: =IF(I$1<>"",IF($A29<>"",COUNT(カテゴリースコア!S29),""),"") ->  | J29: =IF(J$1<>"",IF($A29<>"",COUNT(カテゴリースコア!T29),""),"") ->  | K29: =IF(K$1<>"",IF($A29<>"",COUNT(カテゴリースコア!U29),""),"") -> 
A30: =IF(データセット1!C30<>"",データセット1!C30,"") -> 3819.18 | B30: =IF(データセット1!C30<>"",データセット1!D30-カテゴリースコア!$E$11,"") -> 91.4516129 | C30: =IF(C$1<>"",IF($A30<>"",COUNT(カテゴリースコア!M32),""),"") -> 0 | D30: =IF(D$1<>"",IF($A30<>"",COUNT(カテゴリースコア!N32),""),"") -> 0 | E30: =IF(E$1<>"",IF($A30<>"",COUNT(カテゴリースコア!O32),""),"") -> 1 | F30: =IF(F$1<>"",IF($A30<>"",COUNT(カテゴリースコア!P32),""),"") -> 0 | G30: =IF(G$1<>"",IF($A30<>"",COUNT(カテゴリースコア!Q32),""),"") -> 0 | H30: =IF(H$1<>"",IF($A30<>"",COUNT(カテゴリースコア!R32),""),"") -> 0 | I30: =IF(I$1<>"",IF($A30<>"",COUNT(カテゴリースコア!S32),""),"") ->  | J30: =IF(J$1<>"",IF($A30<>"",COUNT(カテゴリースコア!T32),""),"") ->  | K30: =IF(K$1<>"",IF($A30<>"",COUNT(カテゴリースコア!U32),""),"") -> 
A31: =IF(データセット1!C31<>"",データセット1!C31,"") -> 3718.95 | B31: =IF(データセット1!C31<>"",データセット1!D31-カテゴリースコア!$E$11,"") -> 398.4516129 | C31: =IF(C$1<>"",IF($A31<>"",COUNT(カテゴリースコア!M33),""),"") -> 0 | D31: =IF(D$1<>"",IF($A31<>"",COUNT(カテゴリースコア!N33),""),"") -> 1 | E31: =IF(E$1<>"",IF($A31<>"",COUNT(カテゴリースコア!O33),""),"") -> 0 | F31: =IF(F$1<>"",IF($A31<>"",COUNT(カテゴリースコア!P33),""),"") -> 0 | G31: =IF(G$1<>"",IF($A31<>"",COUNT(カテゴリースコア!Q33),""),"") -> 0 | H31: =IF(H$1<>"",IF($A31<>"",COUNT(カテゴリースコア!R33),""),"") -> 0 | I31: =IF(I$1<>"",IF($A31<>"",COUNT(カテゴリースコア!S33),""),"") ->  | J31: =IF(J$1<>"",IF($A31<>"",COUNT(カテゴリースコア!T33),""),"") ->  | K31: =IF(K$1<>"",IF($A31<>"",COUNT(カテゴリースコア!U33),""),"") -> 
A32: =IF(データセット1!C32<>"",データセット1!C32,"") -> 3511.68 | B32: =IF(データセット1!C32<>"",データセット1!D32-カテゴリースコア!$E$11,"") -> 363.4516129 | C32: =IF(C$1<>"",IF($A32<>"",COUNT(カテゴリースコア!M34),""),"") -> 0 | D32: =IF(D$1<>"",IF($A32<>"",COUNT(カテゴリースコア!N34),""),"") -> 0 | E32: =IF(E$1<>"",IF($A32<>"",COUNT(カテゴリースコア!O34),""),"") -> 1 | F32: =IF(F$1<>"",IF($A32<>"",COUNT(カテゴリースコア!P34),""),"") -> 0 | G32: =IF(G$1<>"",IF($A32<>"",COUNT(カテゴリースコア!Q34),""),"") -> 0 | H32: =IF(H$1<>"",IF($A32<>"",COUNT(カテゴリースコア!R34),""),"") -> 0 | I32: =IF(I$1<>"",IF($A32<>"",COUNT(カテゴリースコア!S34),""),"") ->  | J32: =IF(J$1<>"",IF($A32<>"",COUNT(カテゴリースコア!T34),""),"") ->  | K32: =IF(K$1<>"",IF($A32<>"",COUNT(カテゴリースコア!U34),""),"") -> 
A33: =IF(データセット1!C33<>"",データセット1!C33,"") -> 3482.78 | B33: =IF(データセット1!C33<>"",データセット1!D33-カテゴリースコア!$E$11,"") -> 71.4516129 | C33: =IF(C$1<>"",IF($A33<>"",COUNT(カテゴリースコア!M35),""),"") -> 0 | D33: =IF(D$1<>"",IF($A33<>"",COUNT(カテゴリースコア!N35),""),"") -> 0 | E33: =IF(E$1<>"",IF($A33<>"",COUNT(カテゴリースコア!O35),""),"") -> 1 | F33: =IF(F$1<>"",IF($A33<>"",COUNT(カテゴリースコア!P35),""),"") -> 0 | G33: =IF(G$1<>"",IF($A33<>"",COUNT(カテゴリースコア!Q35),""),"") -> 0 | H33: =IF(H$1<>"",IF($A33<>"",COUNT(カテゴリースコア!R35),""),"") -> 0 | I33: =IF(I$1<>"",IF($A33<>"",COUNT(カテゴリースコア!S35),""),"") ->  | J33: =IF(J$1<>"",IF($A33<>"",COUNT(カテゴリースコア!T35),""),"") ->  | K33: =IF(K$1<>"",IF($A33<>"",COUNT(カテゴリースコア!U35),""),"") -> 
A34: =IF(データセット1!C34<>"",データセット1!C34,"") -> 3446.53 | B34: =IF(データセット1!C34<>"",データセット1!D34-カテゴリースコア!$E$11,"") -> 475.4516129 | C34: =IF(C$1<>"",IF($A34<>"",COUNT(カテゴリースコア!M36),""),"") -> 0 | D34: =IF(D$1<>"",IF($A34<>"",COUNT(カテゴリースコア!N36),""),"") -> 1 | E34: =IF(E$1<>"",IF($A34<>"",COUNT(カテゴリースコア!O36),""),"") -> 0 | F34: =IF(F$1<>"",IF($A34<>"",COUNT(カテゴリースコア!P36),""),"") -> 0 | G34: =IF(G$1<>"",IF($A34<>"",COUNT(カテゴリースコア!Q36),""),"") -> 0 | H34: =IF(H$1<>"",IF($A34<>"",COUNT(カテゴリースコア!R36),""),"") -> 0 | I34: =IF(I$1<>"",IF($A34<>"",COUNT(カテゴリースコア!S36),""),"") ->  | J34: =IF(J$1<>"",IF($A34<>"",COUNT(カテゴリースコア!T36),""),"") ->  | K34: =IF(K$1<>"",IF($A34<>"",COUNT(カテゴリースコア!U36),""),"") -> 
A35: =IF(データセット1!C35<>"",データセット1!C35,"") -> 3420.4 | B35: =IF(データセット1!C35<>"",データセット1!D35-カテゴリースコア!$E$11,"") -> 243.4516129 | C35: =IF(C$1<>"",IF($A35<>"",COUNT(カテゴリースコア!M37),""),"") -> 0 | D35: =IF(D$1<>"",IF($A35<>"",COUNT(カテゴリースコア!N37),""),"") -> 0 | E35: =IF(E$1<>"",IF($A35<>"",COUNT(カテゴリースコア!O37),""),"") -> 1 | F35: =IF(F$1<>"",IF($A35<>"",COUNT(カテゴリースコア!P37),""),"") -> 0 | G35: =IF(G$1<>"",IF($A35<>"",COUNT(カテゴリースコア!Q37),""),"") -> 0 | H35: =IF(H$1<>"",IF($A35<>"",COUNT(カテゴリースコア!R37),""),"") -> 0 | I35: =IF(I$1<>"",IF($A35<>"",COUNT(カテゴリースコア!S37),""),"") ->  | J35: =IF(J$1<>"",IF($A35<>"",COUNT(カテゴリースコア!T37),""),"") ->  | K35: =IF(K$1<>"",IF($A35<>"",COUNT(カテゴリースコア!U37),""),"") -> 
A36: =IF(データセット1!C36<>"",データセット1!C36,"") -> 3388.52 | B36: =IF(データセット1!C36<>"",データセット1!D36-カテゴリースコア!$E$11,"") -> 67.4516129 | C36: =IF(C$1<>"",IF($A36<>"",COUNT(カテゴリースコア!M38),""),"") -> 0 | D36: =IF(D$1<>"",IF($A36<>"",COUNT(カテゴリースコア!N38),""),"") -> 0 | E36: =IF(E$1<>"",IF($A36<>"",COUNT(カテゴリースコア!O38),""),"") -> 1 | F36: =IF(F$1<>"",IF($A36<>"",COUNT(カテゴリースコア!P38),""),"") -> 0 | G36: =IF(G$1<>"",IF($A36<>"",COUNT(カテゴリースコア!Q38),""),"") -> 0 | H36: =IF(H$1<>"",IF($A36<>"",COUNT(カテゴリースコア!R38),""),"") -> 0 | I36: =IF(I$1<>"",IF($A36<>"",COUNT(カテゴリースコア!S38),""),"") ->  | J36: =IF(J$1<>"",IF($A36<>"",COUNT(カテゴリースコア!T38),""),"") ->  | K36: =IF(K$1<>"",IF($A36<>"",COUNT(カテゴリースコア!U38),""),"") -> 
A37: =IF(データセット1!C37<>"",データセット1!C37,"") -> 3385.52 | B37: =IF(データセット1!C37<>"",データセット1!D37-カテゴリースコア!$E$11,"") -> 345.4516129 | C37: =IF(C$1<>"",IF($A37<>"",COUNT(カテゴリースコア!M39),""),"") -> 0 | D37: =IF(D$1<>"",IF($A37<>"",COUNT(カテゴリースコア!N39),""),"") -> 1 | E37: =IF(E$1<>"",IF($A37<>"",COUNT(カテゴリースコア!O39),""),"") -> 0 | F37: =IF(F$1<>"",IF($A37<>"",COUNT(カテゴリースコア!P39),""),"") -> 0 | G37: =IF(G$1<>"",IF($A37<>"",COUNT(カテゴリースコア!Q39),""),"") -> 0 | H37: =IF(H$1<>"",IF($A37<>"",COUNT(カテゴリースコア!R39),""),"") -> 0 | I37: =IF(I$1<>"",IF($A37<>"",COUNT(カテゴリースコア!S39),""),"") ->  | J37: =IF(J$1<>"",IF($A37<>"",COUNT(カテゴリースコア!T39),""),"") ->  | K37: =IF(K$1<>"",IF($A37<>"",COUNT(カテゴリースコア!U39),""),"") -> 
A38: =IF(データセット1!C38<>"",データセット1!C38,"") -> 3332.93 | B38: =IF(データセット1!C38<>"",データセット1!D38-カテゴリースコア!$E$11,"") -> 24.4516129 | C38: =IF(C$1<>"",IF($A38<>"",COUNT(カテゴリースコア!M40),""),"") -> 0 | D38: =IF(D$1<>"",IF($A38<>"",COUNT(カテゴリースコア!N40),""),"") -> 0 | E38: =IF(E$1<>"",IF($A38<>"",COUNT(カテゴリースコア!O40),""),"") -> 1 | F38: =IF(F$1<>"",IF($A38<>"",COUNT(カテゴリースコア!P40),""),"") -> 0 | G38: =IF(G$1<>"",IF($A38<>"",COUNT(カテゴリースコア!Q40),""),"") -> 0 | H38: =IF(H$1<>"",IF($A38<>"",COUNT(カテゴリースコア!R40),""),"") -> 0 | I38: =IF(I$1<>"",IF($A38<>"",COUNT(カテゴリースコア!S40),""),"") ->  | J38: =IF(J$1<>"",IF($A38<>"",COUNT(カテゴリースコア!T40),""),"") ->  | K38: =IF(K$1<>"",IF($A38<>"",COUNT(カテゴリースコア!U40),""),"") -> 
A39: =IF(データセット1!C39<>"",データセット1!C39,"") -> 3238.4 | B39: =IF(データセット1!C39<>"",データセット1!D39-カテゴリースコア!$E$11,"") -> -70.5483871 | C39: =IF(C$1<>"",IF($A39<>"",COUNT(カテゴリースコア!M41),""),"") -> 0 | D39: =IF(D$1<>"",IF($A39<>"",COUNT(カテゴリースコア!N41),""),"") -> 0 | E39: =IF(E$1<>"",IF($A39<>"",COUNT(カテゴリースコア!O41),""),"") -> 1 | F39: =IF(F$1<>"",IF($A39<>"",COUNT(カテゴリースコア!P41),""),"") -> 0 | G39: =IF(G$1<>"",IF($A39<>"",COUNT(カテゴリースコア!Q41),""),"") -> 0 | H39: =IF(H$1<>"",IF($A39<>"",COUNT(カテゴリースコア!R41),""),"") -> 0 | I39: =IF(I$1<>"",IF($A39<>"",COUNT(カテゴリースコア!S41),""),"") ->  | J39: =IF(J$1<>"",IF($A39<>"",COUNT(カテゴリースコア!T41),""),"") ->  | K39: =IF(K$1<>"",IF($A39<>"",COUNT(カテゴリースコア!U41),""),"") -> 
A40: =IF(データセット1!C40<>"",データセット1!C40,"") -> 3237.96 | B40: =IF(データセット1!C40<>"",データセット1!D40-カテゴリースコア!$E$11,"") -> -168.5483871 | C40: =IF(C$1<>"",IF($A40<>"",COUNT(カテゴリースコア!M42),""),"") -> 0 | D40: =IF(D$1<>"",IF($A40<>"",COUNT(カテゴリースコア!N42),""),"") -> 0 | E40: =IF(E$1<>"",IF($A40<>"",COUNT(カテゴリースコア!O42),""),"") -> 0 | F40: =IF(F$1<>"",IF($A40<>"",COUNT(カテゴリースコア!P42),""),"") -> 1 | G40: =IF(G$1<>"",IF($A40<>"",COUNT(カテゴリースコア!Q42),""),"") -> 0 | H40: =IF(H$1<>"",IF($A40<>"",COUNT(カテゴリースコア!R42),""),"") -> 0 | I40: =IF(I$1<>"",IF($A40<>"",COUNT(カテゴリースコア!S42),""),"") ->  | J40: =IF(J$1<>"",IF($A40<>"",COUNT(カテゴリースコア!T42),""),"") ->  | K40: =IF(K$1<>"",IF($A40<>"",COUNT(カテゴリースコア!U42),""),"") -> 
A41: =IF(データセット1!C41<>"",データセット1!C41,"") -> 3204.68 | B41: =IF(データセット1!C41<>"",データセット1!D41-カテゴリースコア!$E$11,"") -> 346.4516129 | C41: =IF(C$1<>"",IF($A41<>"",COUNT(カテゴリースコア!M43),""),"") -> 0 | D41: =IF(D$1<>"",IF($A41<>"",COUNT(カテゴリースコア!N43),""),"") -> 1 | E41: =IF(E$1<>"",IF($A41<>"",COUNT(カテゴリースコア!O43),""),"") -> 0 | F41: =IF(F$1<>"",IF($A41<>"",COUNT(カテゴリースコア!P43),""),"") -> 0 | G41: =IF(G$1<>"",IF($A41<>"",COUNT(カテゴリースコア!Q43),""),"") -> 0 | H41: =IF(H$1<>"",IF($A41<>"",COUNT(カテゴリースコア!R43),""),"") -> 0 | I41: =IF(I$1<>"",IF($A41<>"",COUNT(カテゴリースコア!S43),""),"") ->  | J41: =IF(J$1<>"",IF($A41<>"",COUNT(カテゴリースコア!T43),""),"") ->  | K41: =IF(K$1<>"",IF($A41<>"",COUNT(カテゴリースコア!U43),""),"") -> 
A42: =IF(データセット1!C42<>"",データセット1!C42,"") -> 3143.71 | B42: =IF(データセット1!C42<>"",データセット1!D42-カテゴリースコア!$E$11,"") -> 60.4516129 | C42: =IF(C$1<>"",IF($A42<>"",COUNT(カテゴリースコア!M44),""),"") -> 0 | D42: =IF(D$1<>"",IF($A42<>"",COUNT(カテゴリースコア!N44),""),"") -> 0 | E42: =IF(E$1<>"",IF($A42<>"",COUNT(カテゴリースコア!O44),""),"") -> 1 | F42: =IF(F$1<>"",IF($A42<>"",COUNT(カテゴリースコア!P44),""),"") -> 0 | G42: =IF(G$1<>"",IF($A42<>"",COUNT(カテゴリースコア!Q44),""),"") -> 0 | H42: =IF(H$1<>"",IF($A42<>"",COUNT(カテゴリースコア!R44),""),"") -> 0 | I42: =IF(I$1<>"",IF($A42<>"",COUNT(カテゴリースコア!S44),""),"") ->  | J42: =IF(J$1<>"",IF($A42<>"",COUNT(カテゴリースコア!T44),""),"") ->  | K42: =IF(K$1<>"",IF($A42<>"",COUNT(カテゴリースコア!U44),""),"") -> 
A43: =IF(データセット1!C43<>"",データセット1!C43,"") -> 3011.97 | B43: =IF(データセット1!C43<>"",データセット1!D43-カテゴリースコア!$E$11,"") -> 539.4516129 | C43: =IF(C$1<>"",IF($A43<>"",COUNT(カテゴリースコア!M45),""),"") -> 0 | D43: =IF(D$1<>"",IF($A43<>"",COUNT(カテゴリースコア!N45),""),"") -> 1 | E43: =IF(E$1<>"",IF($A43<>"",COUNT(カテゴリースコア!O45),""),"") -> 0 | F43: =IF(F$1<>"",IF($A43<>"",COUNT(カテゴリースコア!P45),""),"") -> 0 | G43: =IF(G$1<>"",IF($A43<>"",COUNT(カテゴリースコア!Q45),""),"") -> 0 | H43: =IF(H$1<>"",IF($A43<>"",COUNT(カテゴリースコア!R45),""),"") -> 0 | I43: =IF(I$1<>"",IF($A43<>"",COUNT(カテゴリースコア!S45),""),"") ->  | J43: =IF(J$1<>"",IF($A43<>"",COUNT(カテゴリースコア!T45),""),"") ->  | K43: =IF(K$1<>"",IF($A43<>"",COUNT(カテゴリースコア!U45),""),"") -> 
A44: =IF(データセット1!C44<>"",データセット1!C44,"") -> 2892.24 | B44: =IF(データセット1!C44<>"",データセット1!D44-カテゴリースコア!$E$11,"") -> 48.4516129 | C44: =IF(C$1<>"",IF($A44<>"",COUNT(カテゴリースコア!M46),""),"") -> 0 | D44: =IF(D$1<>"",IF($A44<>"",COUNT(カテゴリースコア!N46),""),"") -> 1 | E44: =IF(E$1<>"",IF($A44<>"",COUNT(カテゴリースコア!O46),""),"") -> 0 | F44: =IF(F$1<>"",IF($A44<>"",COUNT(カテゴリースコア!P46),""),"") -> 0 | G44: =IF(G$1<>"",IF($A44<>"",COUNT(カテゴリースコア!Q46),""),"") -> 0 | H44: =IF(H$1<>"",IF($A44<>"",COUNT(カテゴリースコア!R46),""),"") -> 0 | I44: =IF(I$1<>"",IF($A44<>"",COUNT(カテゴリースコア!S46),""),"") ->  | J44: =IF(J$1<>"",IF($A44<>"",COUNT(カテゴリースコア!T46),""),"") ->  | K44: =IF(K$1<>"",IF($A44<>"",COUNT(カテゴリースコア!U46),""),"") -> 
A45: =IF(データセット1!C45<>"",データセット1!C45,"") -> 2888.88 | B45: =IF(データセット1!C45<>"",データセット1!D45-カテゴリースコア!$E$11,"") -> 185.4516129 | C45: =IF(C$1<>"",IF($A45<>"",COUNT(カテゴリースコア!M47),""),"") -> 0 | D45: =IF(D$1<>"",IF($A45<>"",COUNT(カテゴリースコア!N47),""),"") -> 1 | E45: =IF(E$1<>"",IF($A45<>"",COUNT(カテゴリースコア!O47),""),"") -> 0 | F45: =IF(F$1<>"",IF($A45<>"",COUNT(カテゴリースコア!P47),""),"") -> 0 | G45: =IF(G$1<>"",IF($A45<>"",COUNT(カテゴリースコア!Q47),""),"") -> 0 | H45: =IF(H$1<>"",IF($A45<>"",COUNT(カテゴリースコア!R47),""),"") -> 0 | I45: =IF(I$1<>"",IF($A45<>"",COUNT(カテゴリースコア!S47),""),"") ->  | J45: =IF(J$1<>"",IF($A45<>"",COUNT(カテゴリースコア!T47),""),"") ->  | K45: =IF(K$1<>"",IF($A45<>"",COUNT(カテゴリースコア!U47),""),"") -> 
A46: =IF(データセット1!C46<>"",データセット1!C46,"") -> 2861.17 | B46: =IF(データセット1!C46<>"",データセット1!D46-カテゴリースコア!$E$11,"") -> 52.4516129 | C46: =IF(C$1<>"",IF($A46<>"",COUNT(カテゴリースコア!M48),""),"") -> 0 | D46: =IF(D$1<>"",IF($A46<>"",COUNT(カテゴリースコア!N48),""),"") -> 0 | E46: =IF(E$1<>"",IF($A46<>"",COUNT(カテゴリースコア!O48),""),"") -> 1 | F46: =IF(F$1<>"",IF($A46<>"",COUNT(カテゴリースコア!P48),""),"") -> 0 | G46: =IF(G$1<>"",IF($A46<>"",COUNT(カテゴリースコア!Q48),""),"") -> 0 | H46: =IF(H$1<>"",IF($A46<>"",COUNT(カテゴリースコア!R48),""),"") -> 0 | I46: =IF(I$1<>"",IF($A46<>"",COUNT(カテゴリースコア!S48),""),"") ->  | J46: =IF(J$1<>"",IF($A46<>"",COUNT(カテゴリースコア!T48),""),"") ->  | K46: =IF(K$1<>"",IF($A46<>"",COUNT(カテゴリースコア!U48),""),"") -> 
A47: =IF(データセット1!C47<>"",データセット1!C47,"") -> 2857.4 | B47: =IF(データセット1!C47<>"",データセット1!D47-カテゴリースコア!$E$11,"") -> 93.4516129 | C47: =IF(C$1<>"",IF($A47<>"",COUNT(カテゴリースコア!M49),""),"") -> 0 | D47: =IF(D$1<>"",IF($A47<>"",COUNT(カテゴリースコア!N49),""),"") -> 1 | E47: =IF(E$1<>"",IF($A47<>"",COUNT(カテゴリースコア!O49),""),"") -> 0 | F47: =IF(F$1<>"",IF($A47<>"",COUNT(カテゴリースコア!P49),""),"") -> 0 | G47: =IF(G$1<>"",IF($A47<>"",COUNT(カテゴリースコア!Q49),""),"") -> 0 | H47: =IF(H$1<>"",IF($A47<>"",COUNT(カテゴリースコア!R49),""),"") -> 0 | I47: =IF(I$1<>"",IF($A47<>"",COUNT(カテゴリースコア!S49),""),"") ->  | J47: =IF(J$1<>"",IF($A47<>"",COUNT(カテゴリースコア!T49),""),"") ->  | K47: =IF(K$1<>"",IF($A47<>"",COUNT(カテゴリースコア!U49),""),"") -> 
A48: =IF(データセット1!C48<>"",データセット1!C48,"") -> 2836.91 | B48: =IF(データセット1!C48<>"",データセット1!D48-カテゴリースコア!$E$11,"") -> 40.4516129 | C48: =IF(C$1<>"",IF($A48<>"",COUNT(カテゴリースコア!M50),""),"") -> 0 | D48: =IF(D$1<>"",IF($A48<>"",COUNT(カテゴリースコア!N50),""),"") -> 0 | E48: =IF(E$1<>"",IF($A48<>"",COUNT(カテゴリースコア!O50),""),"") -> 1 | F48: =IF(F$1<>"",IF($A48<>"",COUNT(カテゴリースコア!P50),""),"") -> 0 | G48: =IF(G$1<>"",IF($A48<>"",COUNT(カテゴリースコア!Q50),""),"") -> 0 | H48: =IF(H$1<>"",IF($A48<>"",COUNT(カテゴリースコア!R50),""),"") -> 0 | I48: =IF(I$1<>"",IF($A48<>"",COUNT(カテゴリースコア!S50),""),"") ->  | J48: =IF(J$1<>"",IF($A48<>"",COUNT(カテゴリースコア!T50),""),"") ->  | K48: =IF(K$1<>"",IF($A48<>"",COUNT(カテゴリースコア!U50),""),"") -> 
A49: =IF(データセット1!C49<>"",データセット1!C49,"") -> 2734.01 | B49: =IF(データセット1!C49<>"",データセット1!D49-カテゴリースコア!$E$11,"") -> -51.5483871 | C49: =IF(C$1<>"",IF($A49<>"",COUNT(カテゴリースコア!M51),""),"") -> 0 | D49: =IF(D$1<>"",IF($A49<>"",COUNT(カテゴリースコア!N51),""),"") -> 0 | E49: =IF(E$1<>"",IF($A49<>"",COUNT(カテゴリースコア!O51),""),"") -> 0 | F49: =IF(F$1<>"",IF($A49<>"",COUNT(カテゴリースコア!P51),""),"") -> 1 | G49: =IF(G$1<>"",IF($A49<>"",COUNT(カテゴリースコア!Q51),""),"") -> 0 | H49: =IF(H$1<>"",IF($A49<>"",COUNT(カテゴリースコア!R51),""),"") -> 0 | I49: =IF(I$1<>"",IF($A49<>"",COUNT(カテゴリースコア!S51),""),"") ->  | J49: =IF(J$1<>"",IF($A49<>"",COUNT(カテゴリースコア!T51),""),"") ->  | K49: =IF(K$1<>"",IF($A49<>"",COUNT(カテゴリースコア!U51),""),"") -> 
A50: =IF(データセット1!C50<>"",データセット1!C50,"") -> 2726.13 | B50: =IF(データセット1!C50<>"",データセット1!D50-カテゴリースコア!$E$11,"") -> 724.4516129 | C50: =IF(C$1<>"",IF($A50<>"",COUNT(カテゴリースコア!M52),""),"") -> 0 | D50: =IF(D$1<>"",IF($A50<>"",COUNT(カテゴリースコア!N52),""),"") -> 1 | E50: =IF(E$1<>"",IF($A50<>"",COUNT(カテゴリースコア!O52),""),"") -> 0 | F50: =IF(F$1<>"",IF($A50<>"",COUNT(カテゴリースコア!P52),""),"") -> 0 | G50: =IF(G$1<>"",IF($A50<>"",COUNT(カテゴリースコア!Q52),""),"") -> 0 | H50: =IF(H$1<>"",IF($A50<>"",COUNT(カテゴリースコア!R52),""),"") -> 0 | I50: =IF(I$1<>"",IF($A50<>"",COUNT(カテゴリースコア!S52),""),"") ->  | J50: =IF(J$1<>"",IF($A50<>"",COUNT(カテゴリースコア!T52),""),"") ->  | K50: =IF(K$1<>"",IF($A50<>"",COUNT(カテゴリースコア!U52),""),"") -> 
A51: =IF(データセット1!C51<>"",データセット1!C51,"") -> 2599.93 | B51: =IF(データセット1!C51<>"",データセット1!D51-カテゴリースコア!$E$11,"") -> 229.4516129 | C51: =IF(C$1<>"",IF($A51<>"",COUNT(カテゴリースコア!M53),""),"") -> 0 | D51: =IF(D$1<>"",IF($A51<>"",COUNT(カテゴリースコア!N53),""),"") -> 1 | E51: =IF(E$1<>"",IF($A51<>"",COUNT(カテゴリースコア!O53),""),"") -> 0 | F51: =IF(F$1<>"",IF($A51<>"",COUNT(カテゴリースコア!P53),""),"") -> 0 | G51: =IF(G$1<>"",IF($A51<>"",COUNT(カテゴリースコア!Q53),""),"") -> 0 | H51: =IF(H$1<>"",IF($A51<>"",COUNT(カテゴリースコア!R53),""),"") -> 0 | I51: =IF(I$1<>"",IF($A51<>"",COUNT(カテゴリースコア!S53),""),"") ->  | J51: =IF(J$1<>"",IF($A51<>"",COUNT(カテゴリースコア!T53),""),"") ->  | K51: =IF(K$1<>"",IF($A51<>"",COUNT(カテゴリースコア!U53),""),"") -> 
A52: =IF(データセット1!C52<>"",データセット1!C52,"") -> 2596.41 | B52: =IF(データセット1!C52<>"",データセット1!D52-カテゴリースコア!$E$11,"") -> -91.5483871 | C52: =IF(C$1<>"",IF($A52<>"",COUNT(カテゴリースコア!M54),""),"") -> 0 | D52: =IF(D$1<>"",IF($A52<>"",COUNT(カテゴリースコア!N54),""),"") -> 0 | E52: =IF(E$1<>"",IF($A52<>"",COUNT(カテゴリースコア!O54),""),"") -> 1 | F52: =IF(F$1<>"",IF($A52<>"",COUNT(カテゴリースコア!P54),""),"") -> 0 | G52: =IF(G$1<>"",IF($A52<>"",COUNT(カテゴリースコア!Q54),""),"") -> 0 | H52: =IF(H$1<>"",IF($A52<>"",COUNT(カテゴリースコア!R54),""),"") -> 0 | I52: =IF(I$1<>"",IF($A52<>"",COUNT(カテゴリースコア!S54),""),"") ->  | J52: =IF(J$1<>"",IF($A52<>"",COUNT(カテゴリースコア!T54),""),"") ->  | K52: =IF(K$1<>"",IF($A52<>"",COUNT(カテゴリースコア!U54),""),"") -> 
A53: =IF(データセット1!C53<>"",データセット1!C53,"") -> 2538.39 | B53: =IF(データセット1!C53<>"",データセット1!D53-カテゴリースコア!$E$11,"") -> 113.4516129 | C53: =IF(C$1<>"",IF($A53<>"",COUNT(カテゴリースコア!M55),""),"") -> 0 | D53: =IF(D$1<>"",IF($A53<>"",COUNT(カテゴリースコア!N55),""),"") -> 0 | E53: =IF(E$1<>"",IF($A53<>"",COUNT(カテゴリースコア!O55),""),"") -> 1 | F53: =IF(F$1<>"",IF($A53<>"",COUNT(カテゴリースコア!P55),""),"") -> 0 | G53: =IF(G$1<>"",IF($A53<>"",COUNT(カテゴリースコア!Q55),""),"") -> 0 | H53: =IF(H$1<>"",IF($A53<>"",COUNT(カテゴリースコア!R55),""),"") -> 0 | I53: =IF(I$1<>"",IF($A53<>"",COUNT(カテゴリースコア!S55),""),"") ->  | J53: =IF(J$1<>"",IF($A53<>"",COUNT(カテゴリースコア!T55),""),"") ->  | K53: =IF(K$1<>"",IF($A53<>"",COUNT(カテゴリースコア!U55),""),"") -> 
A54: =IF(データセット1!C54<>"",データセット1!C54,"") -> 2489.26 | B54: =IF(データセット1!C54<>"",データセット1!D54-カテゴリースコア!$E$11,"") -> 509.4516129 | C54: =IF(C$1<>"",IF($A54<>"",COUNT(カテゴリースコア!M56),""),"") -> 0 | D54: =IF(D$1<>"",IF($A54<>"",COUNT(カテゴリースコア!N56),""),"") -> 1 | E54: =IF(E$1<>"",IF($A54<>"",COUNT(カテゴリースコア!O56),""),"") -> 0 | F54: =IF(F$1<>"",IF($A54<>"",COUNT(カテゴリースコア!P56),""),"") -> 0 | G54: =IF(G$1<>"",IF($A54<>"",COUNT(カテゴリースコア!Q56),""),"") -> 0 | H54: =IF(H$1<>"",IF($A54<>"",COUNT(カテゴリースコア!R56),""),"") -> 0 | I54: =IF(I$1<>"",IF($A54<>"",COUNT(カテゴリースコア!S56),""),"") ->  | J54: =IF(J$1<>"",IF($A54<>"",COUNT(カテゴリースコア!T56),""),"") ->  | K54: =IF(K$1<>"",IF($A54<>"",COUNT(カテゴリースコア!U56),""),"") -> 
A55: =IF(データセット1!C55<>"",データセット1!C55,"") -> 2444.44 | B55: =IF(データセット1!C55<>"",データセット1!D55-カテゴリースコア!$E$11,"") -> 17.4516129 | C55: =IF(C$1<>"",IF($A55<>"",COUNT(カテゴリースコア!M57),""),"") -> 0 | D55: =IF(D$1<>"",IF($A55<>"",COUNT(カテゴリースコア!N57),""),"") -> 0 | E55: =IF(E$1<>"",IF($A55<>"",COUNT(カテゴリースコア!O57),""),"") -> 1 | F55: =IF(F$1<>"",IF($A55<>"",COUNT(カテゴリースコア!P57),""),"") -> 0 | G55: =IF(G$1<>"",IF($A55<>"",COUNT(カテゴリースコア!Q57),""),"") -> 0 | H55: =IF(H$1<>"",IF($A55<>"",COUNT(カテゴリースコア!R57),""),"") -> 0 | I55: =IF(I$1<>"",IF($A55<>"",COUNT(カテゴリースコア!S57),""),"") ->  | J55: =IF(J$1<>"",IF($A55<>"",COUNT(カテゴリースコア!T57),""),"") ->  | K55: =IF(K$1<>"",IF($A55<>"",COUNT(カテゴリースコア!U57),""),"") -> 
A56: =IF(データセット1!C56<>"",データセット1!C56,"") -> 2315.89 | B56: =IF(データセット1!C56<>"",データセット1!D56-カテゴリースコア!$E$11,"") -> 443.4516129 | C56: =IF(C$1<>"",IF($A56<>"",COUNT(カテゴリースコア!M58),""),"") -> 0 | D56: =IF(D$1<>"",IF($A56<>"",COUNT(カテゴリースコア!N58),""),"") -> 1 | E56: =IF(E$1<>"",IF($A56<>"",COUNT(カテゴリースコア!O58),""),"") -> 0 | F56: =IF(F$1<>"",IF($A56<>"",COUNT(カテゴリースコア!P58),""),"") -> 0 | G56: =IF(G$1<>"",IF($A56<>"",COUNT(カテゴリースコア!Q58),""),"") -> 0 | H56: =IF(H$1<>"",IF($A56<>"",COUNT(カテゴリースコア!R58),""),"") -> 0 | I56: =IF(I$1<>"",IF($A56<>"",COUNT(カテゴリースコア!S58),""),"") ->  | J56: =IF(J$1<>"",IF($A56<>"",COUNT(カテゴリースコア!T58),""),"") ->  | K56: =IF(K$1<>"",IF($A56<>"",COUNT(カテゴリースコア!U58),""),"") -> 
A57: =IF(データセット1!C57<>"",データセット1!C57,"") -> 2278 | B57: =IF(データセット1!C57<>"",データセット1!D57-カテゴリースコア!$E$11,"") -> -74.5483871 | C57: =IF(C$1<>"",IF($A57<>"",COUNT(カテゴリースコア!M59),""),"") -> 0 | D57: =IF(D$1<>"",IF($A57<>"",COUNT(カテゴリースコア!N59),""),"") -> 0 | E57: =IF(E$1<>"",IF($A57<>"",COUNT(カテゴリースコア!O59),""),"") -> 1 | F57: =IF(F$1<>"",IF($A57<>"",COUNT(カテゴリースコア!P59),""),"") -> 0 | G57: =IF(G$1<>"",IF($A57<>"",COUNT(カテゴリースコア!Q59),""),"") -> 0 | H57: =IF(H$1<>"",IF($A57<>"",COUNT(カテゴリースコア!R59),""),"") -> 0 | I57: =IF(I$1<>"",IF($A57<>"",COUNT(カテゴリースコア!S59),""),"") ->  | J57: =IF(J$1<>"",IF($A57<>"",COUNT(カテゴリースコア!T59),""),"") ->  | K57: =IF(K$1<>"",IF($A57<>"",COUNT(カテゴリースコア!U59),""),"") -> 
A58: =IF(データセット1!C58<>"",データセット1!C58,"") -> 2253.98 | B58: =IF(データセット1!C58<>"",データセット1!D58-カテゴリースコア!$E$11,"") -> 631.4516129 | C58: =IF(C$1<>"",IF($A58<>"",COUNT(カテゴリースコア!M60),""),"") -> 0 | D58: =IF(D$1<>"",IF($A58<>"",COUNT(カテゴリースコア!N60),""),"") -> 1 | E58: =IF(E$1<>"",IF($A58<>"",COUNT(カテゴリースコア!O60),""),"") -> 0 | F58: =IF(F$1<>"",IF($A58<>"",COUNT(カテゴリースコア!P60),""),"") -> 0 | G58: =IF(G$1<>"",IF($A58<>"",COUNT(カテゴリースコア!Q60),""),"") -> 0 | H58: =IF(H$1<>"",IF($A58<>"",COUNT(カテゴリースコア!R60),""),"") -> 0 | I58: =IF(I$1<>"",IF($A58<>"",COUNT(カテゴリースコア!S60),""),"") ->  | J58: =IF(J$1<>"",IF($A58<>"",COUNT(カテゴリースコア!T60),""),"") ->  | K58: =IF(K$1<>"",IF($A58<>"",COUNT(カテゴリースコア!U60),""),"") -> 
A59: =IF(データセット1!C59<>"",データセット1!C59,"") -> 2130.74 | B59: =IF(データセット1!C59<>"",データセット1!D59-カテゴリースコア!$E$11,"") -> -138.5483871 | C59: =IF(C$1<>"",IF($A59<>"",COUNT(カテゴリースコア!M61),""),"") -> 0 | D59: =IF(D$1<>"",IF($A59<>"",COUNT(カテゴリースコア!N61),""),"") -> 0 | E59: =IF(E$1<>"",IF($A59<>"",COUNT(カテゴリースコア!O61),""),"") -> 0 | F59: =IF(F$1<>"",IF($A59<>"",COUNT(カテゴリースコア!P61),""),"") -> 1 | G59: =IF(G$1<>"",IF($A59<>"",COUNT(カテゴリースコア!Q61),""),"") -> 0 | H59: =IF(H$1<>"",IF($A59<>"",COUNT(カテゴリースコア!R61),""),"") -> 0 | I59: =IF(I$1<>"",IF($A59<>"",COUNT(カテゴリースコア!S61),""),"") ->  | J59: =IF(J$1<>"",IF($A59<>"",COUNT(カテゴリースコア!T61),""),"") ->  | K59: =IF(K$1<>"",IF($A59<>"",COUNT(カテゴリースコア!U61),""),"") -> 
A60: =IF(データセット1!C60<>"",データセット1!C60,"") -> 2103.96 | B60: =IF(データセット1!C60<>"",データセット1!D60-カテゴリースコア!$E$11,"") -> -14.5483871 | C60: =IF(C$1<>"",IF($A60<>"",COUNT(カテゴリースコア!M62),""),"") -> 0 | D60: =IF(D$1<>"",IF($A60<>"",COUNT(カテゴリースコア!N62),""),"") -> 0 | E60: =IF(E$1<>"",IF($A60<>"",COUNT(カテゴリースコア!O62),""),"") -> 1 | F60: =IF(F$1<>"",IF($A60<>"",COUNT(カテゴリースコア!P62),""),"") -> 0 | G60: =IF(G$1<>"",IF($A60<>"",COUNT(カテゴリースコア!Q62),""),"") -> 0 | H60: =IF(H$1<>"",IF($A60<>"",COUNT(カテゴリースコア!R62),""),"") -> 0 | I60: =IF(I$1<>"",IF($A60<>"",COUNT(カテゴリースコア!S62),""),"") ->  | J60: =IF(J$1<>"",IF($A60<>"",COUNT(カテゴリースコア!T62),""),"") ->  | K60: =IF(K$1<>"",IF($A60<>"",COUNT(カテゴリースコア!U62),""),"") -> 
A61: =IF(データセット1!C61<>"",データセット1!C61,"") -> 2094.87 | B61: =IF(データセット1!C61<>"",データセット1!D61-カテゴリースコア!$E$11,"") -> 116.4516129 | C61: =IF(C$1<>"",IF($A61<>"",COUNT(カテゴリースコア!M63),""),"") -> 0 | D61: =IF(D$1<>"",IF($A61<>"",COUNT(カテゴリースコア!N63),""),"") -> 0 | E61: =IF(E$1<>"",IF($A61<>"",COUNT(カテゴリースコア!O63),""),"") -> 1 | F61: =IF(F$1<>"",IF($A61<>"",COUNT(カテゴリースコア!P63),""),"") -> 0 | G61: =IF(G$1<>"",IF($A61<>"",COUNT(カテゴリースコア!Q63),""),"") -> 0 | H61: =IF(H$1<>"",IF($A61<>"",COUNT(カテゴリースコア!R63),""),"") -> 0 | I61: =IF(I$1<>"",IF($A61<>"",COUNT(カテゴリースコア!S63),""),"") ->  | J61: =IF(J$1<>"",IF($A61<>"",COUNT(カテゴリースコア!T63),""),"") ->  | K61: =IF(K$1<>"",IF($A61<>"",COUNT(カテゴリースコア!U63),""),"") -> 
A62: =IF(データセット1!C62<>"",データセット1!C62,"") -> 1743.78 | B62: =IF(データセット1!C62<>"",データセット1!D62-カテゴリースコア!$E$11,"") -> 126.4516129 | C62: =IF(C$1<>"",IF($A62<>"",COUNT(カテゴリースコア!M64),""),"") -> 0 | D62: =IF(D$1<>"",IF($A62<>"",COUNT(カテゴリースコア!N64),""),"") -> 0 | E62: =IF(E$1<>"",IF($A62<>"",COUNT(カテゴリースコア!O64),""),"") -> 1 | F62: =IF(F$1<>"",IF($A62<>"",COUNT(カテゴリースコア!P64),""),"") -> 0 | G62: =IF(G$1<>"",IF($A62<>"",COUNT(カテゴリースコア!Q64),""),"") -> 0 | H62: =IF(H$1<>"",IF($A62<>"",COUNT(カテゴリースコア!R64),""),"") -> 0 | I62: =IF(I$1<>"",IF($A62<>"",COUNT(カテゴリースコア!S64),""),"") ->  | J62: =IF(J$1<>"",IF($A62<>"",COUNT(カテゴリースコア!T64),""),"") ->  | K62: =IF(K$1<>"",IF($A62<>"",COUNT(カテゴリースコア!U64),""),"") -> 
A63: =IF(データセット1!C63<>"",データセット1!C63,"") -> 1710.16 | B63: =IF(データセット1!C63<>"",データセット1!D63-カテゴリースコア!$E$11,"") -> 159.4516129 | C63: =IF(C$1<>"",IF($A63<>"",COUNT(カテゴリースコア!M65),""),"") -> 1 | D63: =IF(D$1<>"",IF($A63<>"",COUNT(カテゴリースコア!N65),""),"") -> 0 | E63: =IF(E$1<>"",IF($A63<>"",COUNT(カテゴリースコア!O65),""),"") -> 0 | F63: =IF(F$1<>"",IF($A63<>"",COUNT(カテゴリースコア!P65),""),"") -> 0 | G63: =IF(G$1<>"",IF($A63<>"",COUNT(カテゴリースコア!Q65),""),"") -> 0 | H63: =IF(H$1<>"",IF($A63<>"",COUNT(カテゴリースコア!R65),""),"") -> 0 | I63: =IF(I$1<>"",IF($A63<>"",COUNT(カテゴリースコア!S65),""),"") ->  | J63: =IF(J$1<>"",IF($A63<>"",COUNT(カテゴリースコア!T65),""),"") ->  | K63: =IF(K$1<>"",IF($A63<>"",COUNT(カテゴリースコア!U65),""),"") -> 
A64: =IF(データセット1!C64<>"",データセット1!C64,"") -> 1706.2 | B64: =IF(データセット1!C64<>"",データセット1!D64-カテゴリースコア!$E$11,"") -> 309.4516129 | C64: =IF(C$1<>"",IF($A64<>"",COUNT(カテゴリースコア!M66),""),"") -> 0 | D64: =IF(D$1<>"",IF($A64<>"",COUNT(カテゴリースコア!N66),""),"") -> 1 | E64: =IF(E$1<>"",IF($A64<>"",COUNT(カテゴリースコア!O66),""),"") -> 0 | F64: =IF(F$1<>"",IF($A64<>"",COUNT(カテゴリースコア!P66),""),"") -> 0 | G64: =IF(G$1<>"",IF($A64<>"",COUNT(カテゴリースコア!Q66),""),"") -> 0 | H64: =IF(H$1<>"",IF($A64<>"",COUNT(カテゴリースコア!R66),""),"") -> 0 | I64: =IF(I$1<>"",IF($A64<>"",COUNT(カテゴリースコア!S66),""),"") ->  | J64: =IF(J$1<>"",IF($A64<>"",COUNT(カテゴリースコア!T66),""),"") ->  | K64: =IF(K$1<>"",IF($A64<>"",COUNT(カテゴリースコア!U66),""),"") -> 
A65: =IF(データセット1!C65<>"",データセット1!C65,"") -> 1704.15 | B65: =IF(データセット1!C65<>"",データセット1!D65-カテゴリースコア!$E$11,"") -> -152.5483871 | C65: =IF(C$1<>"",IF($A65<>"",COUNT(カテゴリースコア!M67),""),"") -> 0 | D65: =IF(D$1<>"",IF($A65<>"",COUNT(カテゴリースコア!N67),""),"") -> 0 | E65: =IF(E$1<>"",IF($A65<>"",COUNT(カテゴリースコア!O67),""),"") -> 0 | F65: =IF(F$1<>"",IF($A65<>"",COUNT(カテゴリースコア!P67),""),"") -> 1 | G65: =IF(G$1<>"",IF($A65<>"",COUNT(カテゴリースコア!Q67),""),"") -> 0 | H65: =IF(H$1<>"",IF($A65<>"",COUNT(カテゴリースコア!R67),""),"") -> 0 | I65: =IF(I$1<>"",IF($A65<>"",COUNT(カテゴリースコア!S67),""),"") ->  | J65: =IF(J$1<>"",IF($A65<>"",COUNT(カテゴリースコア!T67),""),"") ->  | K65: =IF(K$1<>"",IF($A65<>"",COUNT(カテゴリースコア!U67),""),"") -> 
A66: =IF(データセット1!C66<>"",データセット1!C66,"") -> 1674.09 | B66: =IF(データセット1!C66<>"",データセット1!D66-カテゴリースコア!$E$11,"") -> 36.4516129 | C66: =IF(C$1<>"",IF($A66<>"",COUNT(カテゴリースコア!M68),""),"") -> 0 | D66: =IF(D$1<>"",IF($A66<>"",COUNT(カテゴリースコア!N68),""),"") -> 1 | E66: =IF(E$1<>"",IF($A66<>"",COUNT(カテゴリースコア!O68),""),"") -> 0 | F66: =IF(F$1<>"",IF($A66<>"",COUNT(カテゴリースコア!P68),""),"") -> 0 | G66: =IF(G$1<>"",IF($A66<>"",COUNT(カテゴリースコア!Q68),""),"") -> 0 | H66: =IF(H$1<>"",IF($A66<>"",COUNT(カテゴリースコア!R68),""),"") -> 0 | I66: =IF(I$1<>"",IF($A66<>"",COUNT(カテゴリースコア!S68),""),"") ->  | J66: =IF(J$1<>"",IF($A66<>"",COUNT(カテゴリースコア!T68),""),"") ->  | K66: =IF(K$1<>"",IF($A66<>"",COUNT(カテゴリースコア!U68),""),"") -> 
A67: =IF(データセット1!C67<>"",データセット1!C67,"") -> 1604.35 | B67: =IF(データセット1!C67<>"",データセット1!D67-カテゴリースコア!$E$11,"") -> -124.5483871 | C67: =IF(C$1<>"",IF($A67<>"",COUNT(カテゴリースコア!M69),""),"") -> 0 | D67: =IF(D$1<>"",IF($A67<>"",COUNT(カテゴリースコア!N69),""),"") -> 0 | E67: =IF(E$1<>"",IF($A67<>"",COUNT(カテゴリースコア!O69),""),"") -> 0 | F67: =IF(F$1<>"",IF($A67<>"",COUNT(カテゴリースコア!P69),""),"") -> 1 | G67: =IF(G$1<>"",IF($A67<>"",COUNT(カテゴリースコア!Q69),""),"") -> 0 | H67: =IF(H$1<>"",IF($A67<>"",COUNT(カテゴリースコア!R69),""),"") -> 0 | I67: =IF(I$1<>"",IF($A67<>"",COUNT(カテゴリースコア!S69),""),"") ->  | J67: =IF(J$1<>"",IF($A67<>"",COUNT(カテゴリースコア!T69),""),"") ->  | K67: =IF(K$1<>"",IF($A67<>"",COUNT(カテゴリースコア!U69),""),"") -> 
A68: =IF(データセット1!C68<>"",データセット1!C68,"") -> 1516.72 | B68: =IF(データセット1!C68<>"",データセット1!D68-カテゴリースコア!$E$11,"") -> -72.5483871 | C68: =IF(C$1<>"",IF($A68<>"",COUNT(カテゴリースコア!M70),""),"") -> 0 | D68: =IF(D$1<>"",IF($A68<>"",COUNT(カテゴリースコア!N70),""),"") -> 0 | E68: =IF(E$1<>"",IF($A68<>"",COUNT(カテゴリースコア!O70),""),"") -> 1 | F68: =IF(F$1<>"",IF($A68<>"",COUNT(カテゴリースコア!P70),""),"") -> 0 | G68: =IF(G$1<>"",IF($A68<>"",COUNT(カテゴリースコア!Q70),""),"") -> 0 | H68: =IF(H$1<>"",IF($A68<>"",COUNT(カテゴリースコア!R70),""),"") -> 0 | I68: =IF(I$1<>"",IF($A68<>"",COUNT(カテゴリースコア!S70),""),"") ->  | J68: =IF(J$1<>"",IF($A68<>"",COUNT(カテゴリースコア!T70),""),"") ->  | K68: =IF(K$1<>"",IF($A68<>"",COUNT(カテゴリースコア!U70),""),"") -> 
A69: =IF(データセット1!C69<>"",データセット1!C69,"") -> 1505.99 | B69: =IF(データセット1!C69<>"",データセット1!D69-カテゴリースコア!$E$11,"") -> 396.4516129 | C69: =IF(C$1<>"",IF($A69<>"",COUNT(カテゴリースコア!M71),""),"") -> 1 | D69: =IF(D$1<>"",IF($A69<>"",COUNT(カテゴリースコア!N71),""),"") -> 0 | E69: =IF(E$1<>"",IF($A69<>"",COUNT(カテゴリースコア!O71),""),"") -> 0 | F69: =IF(F$1<>"",IF($A69<>"",COUNT(カテゴリースコア!P71),""),"") -> 0 | G69: =IF(G$1<>"",IF($A69<>"",COUNT(カテゴリースコア!Q71),""),"") -> 0 | H69: =IF(H$1<>"",IF($A69<>"",COUNT(カテゴリースコア!R71),""),"") -> 0 | I69: =IF(I$1<>"",IF($A69<>"",COUNT(カテゴリースコア!S71),""),"") ->  | J69: =IF(J$1<>"",IF($A69<>"",COUNT(カテゴリースコア!T71),""),"") ->  | K69: =IF(K$1<>"",IF($A69<>"",COUNT(カテゴリースコア!U71),""),"") -> 
A70: =IF(データセット1!C70<>"",データセット1!C70,"") -> 1455 | B70: =IF(データセット1!C70<>"",データセット1!D70-カテゴリースコア!$E$11,"") -> 189.4516129 | C70: =IF(C$1<>"",IF($A70<>"",COUNT(カテゴリースコア!M72),""),"") -> 1 | D70: =IF(D$1<>"",IF($A70<>"",COUNT(カテゴリースコア!N72),""),"") -> 0 | E70: =IF(E$1<>"",IF($A70<>"",COUNT(カテゴリースコア!O72),""),"") -> 0 | F70: =IF(F$1<>"",IF($A70<>"",COUNT(カテゴリースコア!P72),""),"") -> 0 | G70: =IF(G$1<>"",IF($A70<>"",COUNT(カテゴリースコア!Q72),""),"") -> 0 | H70: =IF(H$1<>"",IF($A70<>"",COUNT(カテゴリースコア!R72),""),"") -> 0 | I70: =IF(I$1<>"",IF($A70<>"",COUNT(カテゴリースコア!S72),""),"") ->  | J70: =IF(J$1<>"",IF($A70<>"",COUNT(カテゴリースコア!T72),""),"") ->  | K70: =IF(K$1<>"",IF($A70<>"",COUNT(カテゴリースコア!U72),""),"") -> 
A71: =IF(データセット1!C71<>"",データセット1!C71,"") -> 1320.87 | B71: =IF(データセット1!C71<>"",データセット1!D71-カテゴリースコア!$E$11,"") -> -194.5483871 | C71: =IF(C$1<>"",IF($A71<>"",COUNT(カテゴリースコア!M73),""),"") -> 0 | D71: =IF(D$1<>"",IF($A71<>"",COUNT(カテゴリースコア!N73),""),"") -> 0 | E71: =IF(E$1<>"",IF($A71<>"",COUNT(カテゴリースコア!O73),""),"") -> 0 | F71: =IF(F$1<>"",IF($A71<>"",COUNT(カテゴリースコア!P73),""),"") -> 1 | G71: =IF(G$1<>"",IF($A71<>"",COUNT(カテゴリースコア!Q73),""),"") -> 0 | H71: =IF(H$1<>"",IF($A71<>"",COUNT(カテゴリースコア!R73),""),"") -> 0 | I71: =IF(I$1<>"",IF($A71<>"",COUNT(カテゴリースコア!S73),""),"") ->  | J71: =IF(J$1<>"",IF($A71<>"",COUNT(カテゴリースコア!T73),""),"") ->  | K71: =IF(K$1<>"",IF($A71<>"",COUNT(カテゴリースコア!U73),""),"") -> 
A72: =IF(データセット1!C72<>"",データセット1!C72,"") -> 1152.74 | B72: =IF(データセット1!C72<>"",データセット1!D72-カテゴリースコア!$E$11,"") -> 138.4516129 | C72: =IF(C$1<>"",IF($A72<>"",COUNT(カテゴリースコア!M74),""),"") -> 1 | D72: =IF(D$1<>"",IF($A72<>"",COUNT(カテゴリースコア!N74),""),"") -> 0 | E72: =IF(E$1<>"",IF($A72<>"",COUNT(カテゴリースコア!O74),""),"") -> 0 | F72: =IF(F$1<>"",IF($A72<>"",COUNT(カテゴリースコア!P74),""),"") -> 0 | G72: =IF(G$1<>"",IF($A72<>"",COUNT(カテゴリースコア!Q74),""),"") -> 0 | H72: =IF(H$1<>"",IF($A72<>"",COUNT(カテゴリースコア!R74),""),"") -> 0 | I72: =IF(I$1<>"",IF($A72<>"",COUNT(カテゴリースコア!S74),""),"") ->  | J72: =IF(J$1<>"",IF($A72<>"",COUNT(カテゴリースコア!T74),""),"") ->  | K72: =IF(K$1<>"",IF($A72<>"",COUNT(カテゴリースコア!U74),""),"") -> 
A73: =IF(データセット1!C73<>"",データセット1!C73,"") -> 1117.88 | B73: =IF(データセット1!C73<>"",データセット1!D73-カテゴリースコア!$E$11,"") -> -64.5483871 | C73: =IF(C$1<>"",IF($A73<>"",COUNT(カテゴリースコア!M75),""),"") -> 0 | D73: =IF(D$1<>"",IF($A73<>"",COUNT(カテゴリースコア!N75),""),"") -> 0 | E73: =IF(E$1<>"",IF($A73<>"",COUNT(カテゴリースコア!O75),""),"") -> 0 | F73: =IF(F$1<>"",IF($A73<>"",COUNT(カテゴリースコア!P75),""),"") -> 1 | G73: =IF(G$1<>"",IF($A73<>"",COUNT(カテゴリースコア!Q75),""),"") -> 0 | H73: =IF(H$1<>"",IF($A73<>"",COUNT(カテゴリースコア!R75),""),"") -> 0 | I73: =IF(I$1<>"",IF($A73<>"",COUNT(カテゴリースコア!S75),""),"") ->  | J73: =IF(J$1<>"",IF($A73<>"",COUNT(カテゴリースコア!T75),""),"") ->  | K73: =IF(K$1<>"",IF($A73<>"",COUNT(カテゴリースコア!U75),""),"") -> 
A74: =IF(データセット1!C74<>"",データセット1!C74,"") -> 1115.99 | B74: =IF(データセット1!C74<>"",データセット1!D74-カテゴリースコア!$E$11,"") -> -246.5483871 | C74: =IF(C$1<>"",IF($A74<>"",COUNT(カテゴリースコア!M76),""),"") -> 0 | D74: =IF(D$1<>"",IF($A74<>"",COUNT(カテゴリースコア!N76),""),"") -> 0 | E74: =IF(E$1<>"",IF($A74<>"",COUNT(カテゴリースコア!O76),""),"") -> 0 | F74: =IF(F$1<>"",IF($A74<>"",COUNT(カテゴリースコア!P76),""),"") -> 0 | G74: =IF(G$1<>"",IF($A74<>"",COUNT(カテゴリースコア!Q76),""),"") -> 1 | H74: =IF(H$1<>"",IF($A74<>"",COUNT(カテゴリースコア!R76),""),"") -> 0 | I74: =IF(I$1<>"",IF($A74<>"",COUNT(カテゴリースコア!S76),""),"") ->  | J74: =IF(J$1<>"",IF($A74<>"",COUNT(カテゴリースコア!T76),""),"") ->  | K74: =IF(K$1<>"",IF($A74<>"",COUNT(カテゴリースコア!U76),""),"") -> 
A75: =IF(データセット1!C75<>"",データセット1!C75,"") -> 1062.58 | B75: =IF(データセット1!C75<>"",データセット1!D75-カテゴリースコア!$E$11,"") -> 194.4516129 | C75: =IF(C$1<>"",IF($A75<>"",COUNT(カテゴリースコア!M77),""),"") -> 1 | D75: =IF(D$1<>"",IF($A75<>"",COUNT(カテゴリースコア!N77),""),"") -> 0 | E75: =IF(E$1<>"",IF($A75<>"",COUNT(カテゴリースコア!O77),""),"") -> 0 | F75: =IF(F$1<>"",IF($A75<>"",COUNT(カテゴリースコア!P77),""),"") -> 0 | G75: =IF(G$1<>"",IF($A75<>"",COUNT(カテゴリースコア!Q77),""),"") -> 0 | H75: =IF(H$1<>"",IF($A75<>"",COUNT(カテゴリースコア!R77),""),"") -> 0 | I75: =IF(I$1<>"",IF($A75<>"",COUNT(カテゴリースコア!S77),""),"") ->  | J75: =IF(J$1<>"",IF($A75<>"",COUNT(カテゴリースコア!T77),""),"") ->  | K75: =IF(K$1<>"",IF($A75<>"",COUNT(カテゴリースコア!U77),""),"") -> 
A76: =IF(データセット1!C76<>"",データセット1!C76,"") -> 1005.27 | B76: =IF(データセット1!C76<>"",データセット1!D76-カテゴリースコア!$E$11,"") -> -164.5483871 | C76: =IF(C$1<>"",IF($A76<>"",COUNT(カテゴリースコア!M78),""),"") -> 0 | D76: =IF(D$1<>"",IF($A76<>"",COUNT(カテゴリースコア!N78),""),"") -> 0 | E76: =IF(E$1<>"",IF($A76<>"",COUNT(カテゴリースコア!O78),""),"") -> 0 | F76: =IF(F$1<>"",IF($A76<>"",COUNT(カテゴリースコア!P78),""),"") -> 1 | G76: =IF(G$1<>"",IF($A76<>"",COUNT(カテゴリースコア!Q78),""),"") -> 0 | H76: =IF(H$1<>"",IF($A76<>"",COUNT(カテゴリースコア!R78),""),"") -> 0 | I76: =IF(I$1<>"",IF($A76<>"",COUNT(カテゴリースコア!S78),""),"") ->  | J76: =IF(J$1<>"",IF($A76<>"",COUNT(カテゴリースコア!T78),""),"") ->  | K76: =IF(K$1<>"",IF($A76<>"",COUNT(カテゴリースコア!U78),""),"") -> 
A77: =IF(データセット1!C77<>"",データセット1!C77,"") -> 1001.25 | B77: =IF(データセット1!C77<>"",データセット1!D77-カテゴリースコア!$E$11,"") -> 190.4516129 | C77: =IF(C$1<>"",IF($A77<>"",COUNT(カテゴリースコア!M79),""),"") -> 1 | D77: =IF(D$1<>"",IF($A77<>"",COUNT(カテゴリースコア!N79),""),"") -> 0 | E77: =IF(E$1<>"",IF($A77<>"",COUNT(カテゴリースコア!O79),""),"") -> 0 | F77: =IF(F$1<>"",IF($A77<>"",COUNT(カテゴリースコア!P79),""),"") -> 0 | G77: =IF(G$1<>"",IF($A77<>"",COUNT(カテゴリースコア!Q79),""),"") -> 0 | H77: =IF(H$1<>"",IF($A77<>"",COUNT(カテゴリースコア!R79),""),"") -> 0 | I77: =IF(I$1<>"",IF($A77<>"",COUNT(カテゴリースコア!S79),""),"") ->  | J77: =IF(J$1<>"",IF($A77<>"",COUNT(カテゴリースコア!T79),""),"") ->  | K77: =IF(K$1<>"",IF($A77<>"",COUNT(カテゴリースコア!U79),""),"") -> 
A78: =IF(データセット1!C78<>"",データセット1!C78,"") -> 976.44 | B78: =IF(データセット1!C78<>"",データセット1!D78-カテゴリースコア!$E$11,"") -> -146.5483871 | C78: =IF(C$1<>"",IF($A78<>"",COUNT(カテゴリースコア!M80),""),"") -> 0 | D78: =IF(D$1<>"",IF($A78<>"",COUNT(カテゴリースコア!N80),""),"") -> 0 | E78: =IF(E$1<>"",IF($A78<>"",COUNT(カテゴリースコア!O80),""),"") -> 0 | F78: =IF(F$1<>"",IF($A78<>"",COUNT(カテゴリースコア!P80),""),"") -> 1 | G78: =IF(G$1<>"",IF($A78<>"",COUNT(カテゴリースコア!Q80),""),"") -> 0 | H78: =IF(H$1<>"",IF($A78<>"",COUNT(カテゴリースコア!R80),""),"") -> 0 | I78: =IF(I$1<>"",IF($A78<>"",COUNT(カテゴリースコア!S80),""),"") ->  | J78: =IF(J$1<>"",IF($A78<>"",COUNT(カテゴリースコア!T80),""),"") ->  | K78: =IF(K$1<>"",IF($A78<>"",COUNT(カテゴリースコア!U80),""),"") -> 
A79: =IF(データセット1!C79<>"",データセット1!C79,"") -> 967.55 | B79: =IF(データセット1!C79<>"",データセット1!D79-カテゴリースコア!$E$11,"") -> -78.5483871 | C79: =IF(C$1<>"",IF($A79<>"",COUNT(カテゴリースコア!M81),""),"") -> 0 | D79: =IF(D$1<>"",IF($A79<>"",COUNT(カテゴリースコア!N81),""),"") -> 0 | E79: =IF(E$1<>"",IF($A79<>"",COUNT(カテゴリースコア!O81),""),"") -> 0 | F79: =IF(F$1<>"",IF($A79<>"",COUNT(カテゴリースコア!P81),""),"") -> 1 | G79: =IF(G$1<>"",IF($A79<>"",COUNT(カテゴリースコア!Q81),""),"") -> 0 | H79: =IF(H$1<>"",IF($A79<>"",COUNT(カテゴリースコア!R81),""),"") -> 0 | I79: =IF(I$1<>"",IF($A79<>"",COUNT(カテゴリースコア!S81),""),"") ->  | J79: =IF(J$1<>"",IF($A79<>"",COUNT(カテゴリースコア!T81),""),"") ->  | K79: =IF(K$1<>"",IF($A79<>"",COUNT(カテゴリースコア!U81),""),"") -> 
A80: =IF(データセット1!C80<>"",データセット1!C80,"") -> 958.2 | B80: =IF(データセット1!C80<>"",データセット1!D80-カテゴリースコア!$E$11,"") -> 120.4516129 | C80: =IF(C$1<>"",IF($A80<>"",COUNT(カテゴリースコア!M82),""),"") -> 1 | D80: =IF(D$1<>"",IF($A80<>"",COUNT(カテゴリースコア!N82),""),"") -> 0 | E80: =IF(E$1<>"",IF($A80<>"",COUNT(カテゴリースコア!O82),""),"") -> 0 | F80: =IF(F$1<>"",IF($A80<>"",COUNT(カテゴリースコア!P82),""),"") -> 0 | G80: =IF(G$1<>"",IF($A80<>"",COUNT(カテゴリースコア!Q82),""),"") -> 0 | H80: =IF(H$1<>"",IF($A80<>"",COUNT(カテゴリースコア!R82),""),"") -> 0 | I80: =IF(I$1<>"",IF($A80<>"",COUNT(カテゴリースコア!S82),""),"") ->  | J80: =IF(J$1<>"",IF($A80<>"",COUNT(カテゴリースコア!T82),""),"") ->  | K80: =IF(K$1<>"",IF($A80<>"",COUNT(カテゴリースコア!U82),""),"") -> 
A81: =IF(データセット1!C81<>"",データセット1!C81,"") -> 955.69 | B81: =IF(データセット1!C81<>"",データセット1!D81-カテゴリースコア!$E$11,"") -> 94.4516129 | C81: =IF(C$1<>"",IF($A81<>"",COUNT(カテゴリースコア!M83),""),"") -> 0 | D81: =IF(D$1<>"",IF($A81<>"",COUNT(カテゴリースコア!N83),""),"") -> 0 | E81: =IF(E$1<>"",IF($A81<>"",COUNT(カテゴリースコア!O83),""),"") -> 1 | F81: =IF(F$1<>"",IF($A81<>"",COUNT(カテゴリースコア!P83),""),"") -> 0 | G81: =IF(G$1<>"",IF($A81<>"",COUNT(カテゴリースコア!Q83),""),"") -> 0 | H81: =IF(H$1<>"",IF($A81<>"",COUNT(カテゴリースコア!R83),""),"") -> 0 | I81: =IF(I$1<>"",IF($A81<>"",COUNT(カテゴリースコア!S83),""),"") ->  | J81: =IF(J$1<>"",IF($A81<>"",COUNT(カテゴリースコア!T83),""),"") ->  | K81: =IF(K$1<>"",IF($A81<>"",COUNT(カテゴリースコア!U83),""),"") -> 
A82: =IF(データセット1!C82<>"",データセット1!C82,"") -> 944.91 | B82: =IF(データセット1!C82<>"",データセット1!D82-カテゴリースコア!$E$11,"") -> 125.4516129 | C82: =IF(C$1<>"",IF($A82<>"",COUNT(カテゴリースコア!M84),""),"") -> 1 | D82: =IF(D$1<>"",IF($A82<>"",COUNT(カテゴリースコア!N84),""),"") -> 0 | E82: =IF(E$1<>"",IF($A82<>"",COUNT(カテゴリースコア!O84),""),"") -> 0 | F82: =IF(F$1<>"",IF($A82<>"",COUNT(カテゴリースコア!P84),""),"") -> 0 | G82: =IF(G$1<>"",IF($A82<>"",COUNT(カテゴリースコア!Q84),""),"") -> 0 | H82: =IF(H$1<>"",IF($A82<>"",COUNT(カテゴリースコア!R84),""),"") -> 0 | I82: =IF(I$1<>"",IF($A82<>"",COUNT(カテゴリースコア!S84),""),"") ->  | J82: =IF(J$1<>"",IF($A82<>"",COUNT(カテゴリースコア!T84),""),"") ->  | K82: =IF(K$1<>"",IF($A82<>"",COUNT(カテゴリースコア!U84),""),"") -> 
A83: =IF(データセット1!C83<>"",データセット1!C83,"") -> 899.83 | B83: =IF(データセット1!C83<>"",データセット1!D83-カテゴリースコア!$E$11,"") -> -198.5483871 | C83: =IF(C$1<>"",IF($A83<>"",COUNT(カテゴリースコア!M85),""),"") -> 0 | D83: =IF(D$1<>"",IF($A83<>"",COUNT(カテゴリースコア!N85),""),"") -> 0 | E83: =IF(E$1<>"",IF($A83<>"",COUNT(カテゴリースコア!O85),""),"") -> 0 | F83: =IF(F$1<>"",IF($A83<>"",COUNT(カテゴリースコア!P85),""),"") -> 1 | G83: =IF(G$1<>"",IF($A83<>"",COUNT(カテゴリースコア!Q85),""),"") -> 0 | H83: =IF(H$1<>"",IF($A83<>"",COUNT(カテゴリースコア!R85),""),"") -> 0 | I83: =IF(I$1<>"",IF($A83<>"",COUNT(カテゴリースコア!S85),""),"") ->  | J83: =IF(J$1<>"",IF($A83<>"",COUNT(カテゴリースコア!T85),""),"") ->  | K83: =IF(K$1<>"",IF($A83<>"",COUNT(カテゴリースコア!U85),""),"") -> 
A84: =IF(データセット1!C84<>"",データセット1!C84,"") -> 787.6 | B84: =IF(データセット1!C84<>"",データセット1!D84-カテゴリースコア!$E$11,"") -> -203.5483871 | C84: =IF(C$1<>"",IF($A84<>"",COUNT(カテゴリースコア!M86),""),"") -> 0 | D84: =IF(D$1<>"",IF($A84<>"",COUNT(カテゴリースコア!N86),""),"") -> 0 | E84: =IF(E$1<>"",IF($A84<>"",COUNT(カテゴリースコア!O86),""),"") -> 0 | F84: =IF(F$1<>"",IF($A84<>"",COUNT(カテゴリースコア!P86),""),"") -> 0 | G84: =IF(G$1<>"",IF($A84<>"",COUNT(カテゴリースコア!Q86),""),"") -> 1 | H84: =IF(H$1<>"",IF($A84<>"",COUNT(カテゴリースコア!R86),""),"") -> 0 | I84: =IF(I$1<>"",IF($A84<>"",COUNT(カテゴリースコア!S86),""),"") ->  | J84: =IF(J$1<>"",IF($A84<>"",COUNT(カテゴリースコア!T86),""),"") ->  | K84: =IF(K$1<>"",IF($A84<>"",COUNT(カテゴリースコア!U86),""),"") -> 
A85: =IF(データセット1!C85<>"",データセット1!C85,"") -> 730.33 | B85: =IF(データセット1!C85<>"",データセット1!D85-カテゴリースコア!$E$11,"") -> 87.4516129 | C85: =IF(C$1<>"",IF($A85<>"",COUNT(カテゴリースコア!M87),""),"") -> 1 | D85: =IF(D$1<>"",IF($A85<>"",COUNT(カテゴリースコア!N87),""),"") -> 0 | E85: =IF(E$1<>"",IF($A85<>"",COUNT(カテゴリースコア!O87),""),"") -> 0 | F85: =IF(F$1<>"",IF($A85<>"",COUNT(カテゴリースコア!P87),""),"") -> 0 | G85: =IF(G$1<>"",IF($A85<>"",COUNT(カテゴリースコア!Q87),""),"") -> 0 | H85: =IF(H$1<>"",IF($A85<>"",COUNT(カテゴリースコア!R87),""),"") -> 0 | I85: =IF(I$1<>"",IF($A85<>"",COUNT(カテゴリースコア!S87),""),"") ->  | J85: =IF(J$1<>"",IF($A85<>"",COUNT(カテゴリースコア!T87),""),"") ->  | K85: =IF(K$1<>"",IF($A85<>"",COUNT(カテゴリースコア!U87),""),"") -> 
A86: =IF(データセット1!C86<>"",データセット1!C86,"") -> 707.36 | B86: =IF(データセット1!C86<>"",データセット1!D86-カテゴリースコア!$E$11,"") -> -26.5483871 | C86: =IF(C$1<>"",IF($A86<>"",COUNT(カテゴリースコア!M88),""),"") -> 1 | D86: =IF(D$1<>"",IF($A86<>"",COUNT(カテゴリースコア!N88),""),"") -> 0 | E86: =IF(E$1<>"",IF($A86<>"",COUNT(カテゴリースコア!O88),""),"") -> 0 | F86: =IF(F$1<>"",IF($A86<>"",COUNT(カテゴリースコア!P88),""),"") -> 0 | G86: =IF(G$1<>"",IF($A86<>"",COUNT(カテゴリースコア!Q88),""),"") -> 0 | H86: =IF(H$1<>"",IF($A86<>"",COUNT(カテゴリースコア!R88),""),"") -> 0 | I86: =IF(I$1<>"",IF($A86<>"",COUNT(カテゴリースコア!S88),""),"") ->  | J86: =IF(J$1<>"",IF($A86<>"",COUNT(カテゴリースコア!T88),""),"") ->  | K86: =IF(K$1<>"",IF($A86<>"",COUNT(カテゴリースコア!U88),""),"") -> 
A87: =IF(データセット1!C87<>"",データセット1!C87,"") -> 701.88 | B87: =IF(データセット1!C87<>"",データセット1!D87-カテゴリースコア!$E$11,"") -> -149.5483871 | C87: =IF(C$1<>"",IF($A87<>"",COUNT(カテゴリースコア!M89),""),"") -> 0 | D87: =IF(D$1<>"",IF($A87<>"",COUNT(カテゴリースコア!N89),""),"") -> 0 | E87: =IF(E$1<>"",IF($A87<>"",COUNT(カテゴリースコア!O89),""),"") -> 0 | F87: =IF(F$1<>"",IF($A87<>"",COUNT(カテゴリースコア!P89),""),"") -> 1 | G87: =IF(G$1<>"",IF($A87<>"",COUNT(カテゴリースコア!Q89),""),"") -> 0 | H87: =IF(H$1<>"",IF($A87<>"",COUNT(カテゴリースコア!R89),""),"") -> 0 | I87: =IF(I$1<>"",IF($A87<>"",COUNT(カテゴリースコア!S89),""),"") ->  | J87: =IF(J$1<>"",IF($A87<>"",COUNT(カテゴリースコア!T89),""),"") ->  | K87: =IF(K$1<>"",IF($A87<>"",COUNT(カテゴリースコア!U89),""),"") -> 
A88: =IF(データセット1!C88<>"",データセット1!C88,"") -> 674.79 | B88: =IF(データセット1!C88<>"",データセット1!D88-カテゴリースコア!$E$11,"") -> -174.5483871 | C88: =IF(C$1<>"",IF($A88<>"",COUNT(カテゴリースコア!M90),""),"") -> 0 | D88: =IF(D$1<>"",IF($A88<>"",COUNT(カテゴリースコア!N90),""),"") -> 0 | E88: =IF(E$1<>"",IF($A88<>"",COUNT(カテゴリースコア!O90),""),"") -> 0 | F88: =IF(F$1<>"",IF($A88<>"",COUNT(カテゴリースコア!P90),""),"") -> 1 | G88: =IF(G$1<>"",IF($A88<>"",COUNT(カテゴリースコア!Q90),""),"") -> 0 | H88: =IF(H$1<>"",IF($A88<>"",COUNT(カテゴリースコア!R90),""),"") -> 0 | I88: =IF(I$1<>"",IF($A88<>"",COUNT(カテゴリースコア!S90),""),"") ->  | J88: =IF(J$1<>"",IF($A88<>"",COUNT(カテゴリースコア!T90),""),"") ->  | K88: =IF(K$1<>"",IF($A88<>"",COUNT(カテゴリースコア!U90),""),"") -> 
A89: =IF(データセット1!C89<>"",データセット1!C89,"") -> 655 | B89: =IF(データセット1!C89<>"",データセット1!D89-カテゴリースコア!$E$11,"") -> -207.5483871 | C89: =IF(C$1<>"",IF($A89<>"",COUNT(カテゴリースコア!M91),""),"") -> 0 | D89: =IF(D$1<>"",IF($A89<>"",COUNT(カテゴリースコア!N91),""),"") -> 0 | E89: =IF(E$1<>"",IF($A89<>"",COUNT(カテゴリースコア!O91),""),"") -> 0 | F89: =IF(F$1<>"",IF($A89<>"",COUNT(カテゴリースコア!P91),""),"") -> 1 | G89: =IF(G$1<>"",IF($A89<>"",COUNT(カテゴリースコア!Q91),""),"") -> 0 | H89: =IF(H$1<>"",IF($A89<>"",COUNT(カテゴリースコア!R91),""),"") -> 0 | I89: =IF(I$1<>"",IF($A89<>"",COUNT(カテゴリースコア!S91),""),"") ->  | J89: =IF(J$1<>"",IF($A89<>"",COUNT(カテゴリースコア!T91),""),"") ->  | K89: =IF(K$1<>"",IF($A89<>"",COUNT(カテゴリースコア!U91),""),"") -> 
A90: =IF(データセット1!C90<>"",データセット1!C90,"") -> 622.75 | B90: =IF(データセット1!C90<>"",データセット1!D90-カテゴリースコア!$E$11,"") -> -200.5483871 | C90: =IF(C$1<>"",IF($A90<>"",COUNT(カテゴリースコア!M92),""),"") -> 0 | D90: =IF(D$1<>"",IF($A90<>"",COUNT(カテゴリースコア!N92),""),"") -> 0 | E90: =IF(E$1<>"",IF($A90<>"",COUNT(カテゴリースコア!O92),""),"") -> 0 | F90: =IF(F$1<>"",IF($A90<>"",COUNT(カテゴリースコア!P92),""),"") -> 1 | G90: =IF(G$1<>"",IF($A90<>"",COUNT(カテゴリースコア!Q92),""),"") -> 0 | H90: =IF(H$1<>"",IF($A90<>"",COUNT(カテゴリースコア!R92),""),"") -> 0 | I90: =IF(I$1<>"",IF($A90<>"",COUNT(カテゴリースコア!S92),""),"") ->  | J90: =IF(J$1<>"",IF($A90<>"",COUNT(カテゴリースコア!T92),""),"") ->  | K90: =IF(K$1<>"",IF($A90<>"",COUNT(カテゴリースコア!U92),""),"") -> 
A91: =IF(データセット1!C91<>"",データセット1!C91,"") -> 615.23 | B91: =IF(データセット1!C91<>"",データセット1!D91-カテゴリースコア!$E$11,"") -> 177.4516129 | C91: =IF(C$1<>"",IF($A91<>"",COUNT(カテゴリースコア!M93),""),"") -> 1 | D91: =IF(D$1<>"",IF($A91<>"",COUNT(カテゴリースコア!N93),""),"") -> 0 | E91: =IF(E$1<>"",IF($A91<>"",COUNT(カテゴリースコア!O93),""),"") -> 0 | F91: =IF(F$1<>"",IF($A91<>"",COUNT(カテゴリースコア!P93),""),"") -> 0 | G91: =IF(G$1<>"",IF($A91<>"",COUNT(カテゴリースコア!Q93),""),"") -> 0 | H91: =IF(H$1<>"",IF($A91<>"",COUNT(カテゴリースコア!R93),""),"") -> 0 | I91: =IF(I$1<>"",IF($A91<>"",COUNT(カテゴリースコア!S93),""),"") ->  | J91: =IF(J$1<>"",IF($A91<>"",COUNT(カテゴリースコア!T93),""),"") ->  | K91: =IF(K$1<>"",IF($A91<>"",COUNT(カテゴリースコア!U93),""),"") -> 
A92: =IF(データセット1!C92<>"",データセット1!C92,"") -> 598.6 | B92: =IF(データセット1!C92<>"",データセット1!D92-カテゴリースコア!$E$11,"") -> -136.5483871 | C92: =IF(C$1<>"",IF($A92<>"",COUNT(カテゴリースコア!M94),""),"") -> 0 | D92: =IF(D$1<>"",IF($A92<>"",COUNT(カテゴリースコア!N94),""),"") -> 0 | E92: =IF(E$1<>"",IF($A92<>"",COUNT(カテゴリースコア!O94),""),"") -> 0 | F92: =IF(F$1<>"",IF($A92<>"",COUNT(カテゴリースコア!P94),""),"") -> 1 | G92: =IF(G$1<>"",IF($A92<>"",COUNT(カテゴリースコア!Q94),""),"") -> 0 | H92: =IF(H$1<>"",IF($A92<>"",COUNT(カテゴリースコア!R94),""),"") -> 0 | I92: =IF(I$1<>"",IF($A92<>"",COUNT(カテゴリースコア!S94),""),"") ->  | J92: =IF(J$1<>"",IF($A92<>"",COUNT(カテゴリースコア!T94),""),"") ->  | K92: =IF(K$1<>"",IF($A92<>"",COUNT(カテゴリースコア!U94),""),"") -> 
A93: =IF(データセット1!C93<>"",データセット1!C93,"") -> 596 | B93: =IF(データセット1!C93<>"",データセット1!D93-カテゴリースコア!$E$11,"") -> -158.5483871 | C93: =IF(C$1<>"",IF($A93<>"",COUNT(カテゴリースコア!M95),""),"") -> 0 | D93: =IF(D$1<>"",IF($A93<>"",COUNT(カテゴリースコア!N95),""),"") -> 0 | E93: =IF(E$1<>"",IF($A93<>"",COUNT(カテゴリースコア!O95),""),"") -> 0 | F93: =IF(F$1<>"",IF($A93<>"",COUNT(カテゴリースコア!P95),""),"") -> 1 | G93: =IF(G$1<>"",IF($A93<>"",COUNT(カテゴリースコア!Q95),""),"") -> 0 | H93: =IF(H$1<>"",IF($A93<>"",COUNT(カテゴリースコア!R95),""),"") -> 0 | I93: =IF(I$1<>"",IF($A93<>"",COUNT(カテゴリースコア!S95),""),"") ->  | J93: =IF(J$1<>"",IF($A93<>"",COUNT(カテゴリースコア!T95),""),"") ->  | K93: =IF(K$1<>"",IF($A93<>"",COUNT(カテゴリースコア!U95),""),"") -> 
A94: =IF(データセット1!C94<>"",データセット1!C94,"") -> 558 | B94: =IF(データセット1!C94<>"",データセット1!D94-カテゴリースコア!$E$11,"") -> -204.5483871 | C94: =IF(C$1<>"",IF($A94<>"",COUNT(カテゴリースコア!M96),""),"") -> 0 | D94: =IF(D$1<>"",IF($A94<>"",COUNT(カテゴリースコア!N96),""),"") -> 0 | E94: =IF(E$1<>"",IF($A94<>"",COUNT(カテゴリースコア!O96),""),"") -> 0 | F94: =IF(F$1<>"",IF($A94<>"",COUNT(カテゴリースコア!P96),""),"") -> 1 | G94: =IF(G$1<>"",IF($A94<>"",COUNT(カテゴリースコア!Q96),""),"") -> 0 | H94: =IF(H$1<>"",IF($A94<>"",COUNT(カテゴリースコア!R96),""),"") -> 0 | I94: =IF(I$1<>"",IF($A94<>"",COUNT(カテゴリースコア!S96),""),"") ->  | J94: =IF(J$1<>"",IF($A94<>"",COUNT(カテゴリースコア!T96),""),"") ->  | K94: =IF(K$1<>"",IF($A94<>"",COUNT(カテゴリースコア!U96),""),"") -> 
A95: =IF(データセット1!C95<>"",データセット1!C95,"") -> 550.71 | B95: =IF(データセット1!C95<>"",データセット1!D95-カテゴリースコア!$E$11,"") -> -10.5483871 | C95: =IF(C$1<>"",IF($A95<>"",COUNT(カテゴリースコア!M97),""),"") -> 1 | D95: =IF(D$1<>"",IF($A95<>"",COUNT(カテゴリースコア!N97),""),"") -> 0 | E95: =IF(E$1<>"",IF($A95<>"",COUNT(カテゴリースコア!O97),""),"") -> 0 | F95: =IF(F$1<>"",IF($A95<>"",COUNT(カテゴリースコア!P97),""),"") -> 0 | G95: =IF(G$1<>"",IF($A95<>"",COUNT(カテゴリースコア!Q97),""),"") -> 0 | H95: =IF(H$1<>"",IF($A95<>"",COUNT(カテゴリースコア!R97),""),"") -> 0 | I95: =IF(I$1<>"",IF($A95<>"",COUNT(カテゴリースコア!S97),""),"") ->  | J95: =IF(J$1<>"",IF($A95<>"",COUNT(カテゴリースコア!T97),""),"") ->  | K95: =IF(K$1<>"",IF($A95<>"",COUNT(カテゴリースコア!U97),""),"") -> 
A96: =IF(データセット1!C96<>"",データセット1!C96,"") -> 531.91 | B96: =IF(データセット1!C96<>"",データセット1!D96-カテゴリースコア!$E$11,"") -> -251.5483871 | C96: =IF(C$1<>"",IF($A96<>"",COUNT(カテゴリースコア!M98),""),"") -> 0 | D96: =IF(D$1<>"",IF($A96<>"",COUNT(カテゴリースコア!N98),""),"") -> 0 | E96: =IF(E$1<>"",IF($A96<>"",COUNT(カテゴリースコア!O98),""),"") -> 0 | F96: =IF(F$1<>"",IF($A96<>"",COUNT(カテゴリースコア!P98),""),"") -> 0 | G96: =IF(G$1<>"",IF($A96<>"",COUNT(カテゴリースコア!Q98),""),"") -> 1 | H96: =IF(H$1<>"",IF($A96<>"",COUNT(カテゴリースコア!R98),""),"") -> 0 | I96: =IF(I$1<>"",IF($A96<>"",COUNT(カテゴリースコア!S98),""),"") ->  | J96: =IF(J$1<>"",IF($A96<>"",COUNT(カテゴリースコア!T98),""),"") ->  | K96: =IF(K$1<>"",IF($A96<>"",COUNT(カテゴリースコア!U98),""),"") -> 
A97: =IF(データセット1!C97<>"",データセット1!C97,"") -> 508.62 | B97: =IF(データセット1!C97<>"",データセット1!D97-カテゴリースコア!$E$11,"") -> 87.4516129 | C97: =IF(C$1<>"",IF($A97<>"",COUNT(カテゴリースコア!M99),""),"") -> 1 | D97: =IF(D$1<>"",IF($A97<>"",COUNT(カテゴリースコア!N99),""),"") -> 0 | E97: =IF(E$1<>"",IF($A97<>"",COUNT(カテゴリースコア!O99),""),"") -> 0 | F97: =IF(F$1<>"",IF($A97<>"",COUNT(カテゴリースコア!P99),""),"") -> 0 | G97: =IF(G$1<>"",IF($A97<>"",COUNT(カテゴリースコア!Q99),""),"") -> 0 | H97: =IF(H$1<>"",IF($A97<>"",COUNT(カテゴリースコア!R99),""),"") -> 0 | I97: =IF(I$1<>"",IF($A97<>"",COUNT(カテゴリースコア!S99),""),"") ->  | J97: =IF(J$1<>"",IF($A97<>"",COUNT(カテゴリースコア!T99),""),"") ->  | K97: =IF(K$1<>"",IF($A97<>"",COUNT(カテゴリースコア!U99),""),"") -> 
A98: =IF(データセット1!C98<>"",データセット1!C98,"") -> 475.06 | B98: =IF(データセット1!C98<>"",データセット1!D98-カテゴリースコア!$E$11,"") -> -154.5483871 | C98: =IF(C$1<>"",IF($A98<>"",COUNT(カテゴリースコア!M100),""),"") -> 0 | D98: =IF(D$1<>"",IF($A98<>"",COUNT(カテゴリースコア!N100),""),"") -> 0 | E98: =IF(E$1<>"",IF($A98<>"",COUNT(カテゴリースコア!O100),""),"") -> 0 | F98: =IF(F$1<>"",IF($A98<>"",COUNT(カテゴリースコア!P100),""),"") -> 1 | G98: =IF(G$1<>"",IF($A98<>"",COUNT(カテゴリースコア!Q100),""),"") -> 0 | H98: =IF(H$1<>"",IF($A98<>"",COUNT(カテゴリースコア!R100),""),"") -> 0 | I98: =IF(I$1<>"",IF($A98<>"",COUNT(カテゴリースコア!S100),""),"") ->  | J98: =IF(J$1<>"",IF($A98<>"",COUNT(カテゴリースコア!T100),""),"") ->  | K98: =IF(K$1<>"",IF($A98<>"",COUNT(カテゴリースコア!U100),""),"") -> 
A99: =IF(データセット1!C99<>"",データセット1!C99,"") -> 467 | B99: =IF(データセット1!C99<>"",データセット1!D99-カテゴリースコア!$E$11,"") -> -170.5483871 | C99: =IF(C$1<>"",IF($A99<>"",COUNT(カテゴリースコア!M101),""),"") -> 0 | D99: =IF(D$1<>"",IF($A99<>"",COUNT(カテゴリースコア!N101),""),"") -> 0 | E99: =IF(E$1<>"",IF($A99<>"",COUNT(カテゴリースコア!O101),""),"") -> 0 | F99: =IF(F$1<>"",IF($A99<>"",COUNT(カテゴリースコア!P101),""),"") -> 1 | G99: =IF(G$1<>"",IF($A99<>"",COUNT(カテゴリースコア!Q101),""),"") -> 0 | H99: =IF(H$1<>"",IF($A99<>"",COUNT(カテゴリースコア!R101),""),"") -> 0 | I99: =IF(I$1<>"",IF($A99<>"",COUNT(カテゴリースコア!S101),""),"") ->  | J99: =IF(J$1<>"",IF($A99<>"",COUNT(カテゴリースコア!T101),""),"") ->  | K99: =IF(K$1<>"",IF($A99<>"",COUNT(カテゴリースコア!U101),""),"") -> 
A100: =IF(データセット1!C100<>"",データセット1!C100,"") -> 456 | B100: =IF(データセット1!C100<>"",データセット1!D100-カテゴリースコア!$E$11,"") -> -249.5483871 | C100: =IF(C$1<>"",IF($A100<>"",COUNT(カテゴリースコア!M102),""),"") -> 0 | D100: =IF(D$1<>"",IF($A100<>"",COUNT(カテゴリースコア!N102),""),"") -> 0 | E100: =IF(E$1<>"",IF($A100<>"",COUNT(カテゴリースコア!O102),""),"") -> 0 | F100: =IF(F$1<>"",IF($A100<>"",COUNT(カテゴリースコア!P102),""),"") -> 0 | G100: =IF(G$1<>"",IF($A100<>"",COUNT(カテゴリースコア!Q102),""),"") -> 1 | H100: =IF(H$1<>"",IF($A100<>"",COUNT(カテゴリースコア!R102),""),"") -> 0 | I100: =IF(I$1<>"",IF($A100<>"",COUNT(カテゴリースコア!S102),""),"") ->  | J100: =IF(J$1<>"",IF($A100<>"",COUNT(カテゴリースコア!T102),""),"") ->  | K100: =IF(K$1<>"",IF($A100<>"",COUNT(カテゴリースコア!U102),""),"") -> 
A101: =IF(データセット1!C101<>"",データセット1!C101,"") -> 449.8 | B101: =IF(データセット1!C101<>"",データセット1!D101-カテゴリースコア!$E$11,"") -> 170.4516129 | C101: =IF(C$1<>"",IF($A101<>"",COUNT(カテゴリースコア!M103),""),"") -> 1 | D101: =IF(D$1<>"",IF($A101<>"",COUNT(カテゴリースコア!N103),""),"") -> 0 | E101: =IF(E$1<>"",IF($A101<>"",COUNT(カテゴリースコア!O103),""),"") -> 0 | F101: =IF(F$1<>"",IF($A101<>"",COUNT(カテゴリースコア!P103),""),"") -> 0 | G101: =IF(G$1<>"",IF($A101<>"",COUNT(カテゴリースコア!Q103),""),"") -> 0 | H101: =IF(H$1<>"",IF($A101<>"",COUNT(カテゴリースコア!R103),""),"") -> 0 | I101: =IF(I$1<>"",IF($A101<>"",COUNT(カテゴリースコア!S103),""),"") ->  | J101: =IF(J$1<>"",IF($A101<>"",COUNT(カテゴリースコア!T103),""),"") ->  | K101: =IF(K$1<>"",IF($A101<>"",COUNT(カテゴリースコア!U103),""),"") -> 
A102: =IF(データセット1!C102<>"",データセット1!C102,"") -> 424.98 | B102: =IF(データセット1!C102<>"",データセット1!D102-カテゴリースコア!$E$11,"") -> 205.4516129 | C102: =IF(C$1<>"",IF($A102<>"",COUNT(カテゴリースコア!M104),""),"") -> 1 | D102: =IF(D$1<>"",IF($A102<>"",COUNT(カテゴリースコア!N104),""),"") -> 0 | E102: =IF(E$1<>"",IF($A102<>"",COUNT(カテゴリースコア!O104),""),"") -> 0 | F102: =IF(F$1<>"",IF($A102<>"",COUNT(カテゴリースコア!P104),""),"") -> 0 | G102: =IF(G$1<>"",IF($A102<>"",COUNT(カテゴリースコア!Q104),""),"") -> 0 | H102: =IF(H$1<>"",IF($A102<>"",COUNT(カテゴリースコア!R104),""),"") -> 0 | I102: =IF(I$1<>"",IF($A102<>"",COUNT(カテゴリースコア!S104),""),"") ->  | J102: =IF(J$1<>"",IF($A102<>"",COUNT(カテゴリースコア!T104),""),"") ->  | K102: =IF(K$1<>"",IF($A102<>"",COUNT(カテゴリースコア!U104),""),"") -> 
A103: =IF(データセット1!C103<>"",データセット1!C103,"") -> 404.47 | B103: =IF(データセット1!C103<>"",データセット1!D103-カテゴリースコア!$E$11,"") -> -167.5483871 | C103: =IF(C$1<>"",IF($A103<>"",COUNT(カテゴリースコア!M105),""),"") -> 0 | D103: =IF(D$1<>"",IF($A103<>"",COUNT(カテゴリースコア!N105),""),"") -> 0 | E103: =IF(E$1<>"",IF($A103<>"",COUNT(カテゴリースコア!O105),""),"") -> 0 | F103: =IF(F$1<>"",IF($A103<>"",COUNT(カテゴリースコア!P105),""),"") -> 1 | G103: =IF(G$1<>"",IF($A103<>"",COUNT(カテゴリースコア!Q105),""),"") -> 0 | H103: =IF(H$1<>"",IF($A103<>"",COUNT(カテゴリースコア!R105),""),"") -> 0 | I103: =IF(I$1<>"",IF($A103<>"",COUNT(カテゴリースコア!S105),""),"") ->  | J103: =IF(J$1<>"",IF($A103<>"",COUNT(カテゴリースコア!T105),""),"") ->  | K103: =IF(K$1<>"",IF($A103<>"",COUNT(カテゴリースコア!U105),""),"") -> 
A104: =IF(データセット1!C104<>"",データセット1!C104,"") -> 397 | B104: =IF(データセット1!C104<>"",データセット1!D104-カテゴリースコア!$E$11,"") -> 249.4516129 | C104: =IF(C$1<>"",IF($A104<>"",COUNT(カテゴリースコア!M106),""),"") -> 1 | D104: =IF(D$1<>"",IF($A104<>"",COUNT(カテゴリースコア!N106),""),"") -> 0 | E104: =IF(E$1<>"",IF($A104<>"",COUNT(カテゴリースコア!O106),""),"") -> 0 | F104: =IF(F$1<>"",IF($A104<>"",COUNT(カテゴリースコア!P106),""),"") -> 0 | G104: =IF(G$1<>"",IF($A104<>"",COUNT(カテゴリースコア!Q106),""),"") -> 0 | H104: =IF(H$1<>"",IF($A104<>"",COUNT(カテゴリースコア!R106),""),"") -> 0 | I104: =IF(I$1<>"",IF($A104<>"",COUNT(カテゴリースコア!S106),""),"") ->  | J104: =IF(J$1<>"",IF($A104<>"",COUNT(カテゴリースコア!T106),""),"") ->  | K104: =IF(K$1<>"",IF($A104<>"",COUNT(カテゴリースコア!U106),""),"") -> 
A105: =IF(データセット1!C105<>"",データセット1!C105,"") -> 391 | B105: =IF(データセット1!C105<>"",データセット1!D105-カテゴリースコア!$E$11,"") -> -139.5483871 | C105: =IF(C$1<>"",IF($A105<>"",COUNT(カテゴリースコア!M107),""),"") -> 0 | D105: =IF(D$1<>"",IF($A105<>"",COUNT(カテゴリースコア!N107),""),"") -> 0 | E105: =IF(E$1<>"",IF($A105<>"",COUNT(カテゴリースコア!O107),""),"") -> 0 | F105: =IF(F$1<>"",IF($A105<>"",COUNT(カテゴリースコア!P107),""),"") -> 1 | G105: =IF(G$1<>"",IF($A105<>"",COUNT(カテゴリースコア!Q107),""),"") -> 0 | H105: =IF(H$1<>"",IF($A105<>"",COUNT(カテゴリースコア!R107),""),"") -> 0 | I105: =IF(I$1<>"",IF($A105<>"",COUNT(カテゴリースコア!S107),""),"") ->  | J105: =IF(J$1<>"",IF($A105<>"",COUNT(カテゴリースコア!T107),""),"") ->  | K105: =IF(K$1<>"",IF($A105<>"",COUNT(カテゴリースコア!U107),""),"") -> 
A106: =IF(データセット1!C106<>"",データセット1!C106,"") -> 388.7 | B106: =IF(データセット1!C106<>"",データセット1!D106-カテゴリースコア!$E$11,"") -> -271.5483871 | C106: =IF(C$1<>"",IF($A106<>"",COUNT(カテゴリースコア!M108),""),"") -> 0 | D106: =IF(D$1<>"",IF($A106<>"",COUNT(カテゴリースコア!N108),""),"") -> 0 | E106: =IF(E$1<>"",IF($A106<>"",COUNT(カテゴリースコア!O108),""),"") -> 0 | F106: =IF(F$1<>"",IF($A106<>"",COUNT(カテゴリースコア!P108),""),"") -> 0 | G106: =IF(G$1<>"",IF($A106<>"",COUNT(カテゴリースコア!Q108),""),"") -> 0 | H106: =IF(H$1<>"",IF($A106<>"",COUNT(カテゴリースコア!R108),""),"") -> 1 | I106: =IF(I$1<>"",IF($A106<>"",COUNT(カテゴリースコア!S108),""),"") ->  | J106: =IF(J$1<>"",IF($A106<>"",COUNT(カテゴリースコア!T108),""),"") ->  | K106: =IF(K$1<>"",IF($A106<>"",COUNT(カテゴリースコア!U108),""),"") -> 
A107: =IF(データセット1!C107<>"",データセット1!C107,"") -> 383.47 | B107: =IF(データセット1!C107<>"",データセット1!D107-カテゴリースコア!$E$11,"") -> -126.5483871 | C107: =IF(C$1<>"",IF($A107<>"",COUNT(カテゴリースコア!M109),""),"") -> 0 | D107: =IF(D$1<>"",IF($A107<>"",COUNT(カテゴリースコア!N109),""),"") -> 0 | E107: =IF(E$1<>"",IF($A107<>"",COUNT(カテゴリースコア!O109),""),"") -> 0 | F107: =IF(F$1<>"",IF($A107<>"",COUNT(カテゴリースコア!P109),""),"") -> 1 | G107: =IF(G$1<>"",IF($A107<>"",COUNT(カテゴリースコア!Q109),""),"") -> 0 | H107: =IF(H$1<>"",IF($A107<>"",COUNT(カテゴリースコア!R109),""),"") -> 0 | I107: =IF(I$1<>"",IF($A107<>"",COUNT(カテゴリースコア!S109),""),"") ->  | J107: =IF(J$1<>"",IF($A107<>"",COUNT(カテゴリースコア!T109),""),"") ->  | K107: =IF(K$1<>"",IF($A107<>"",COUNT(カテゴリースコア!U109),""),"") -> 
A108: =IF(データセット1!C108<>"",データセット1!C108,"") -> 376 | B108: =IF(データセット1!C108<>"",データセット1!D108-カテゴリースコア!$E$11,"") -> -131.5483871 | C108: =IF(C$1<>"",IF($A108<>"",COUNT(カテゴリースコア!M110),""),"") -> 0 | D108: =IF(D$1<>"",IF($A108<>"",COUNT(カテゴリースコア!N110),""),"") -> 0 | E108: =IF(E$1<>"",IF($A108<>"",COUNT(カテゴリースコア!O110),""),"") -> 0 | F108: =IF(F$1<>"",IF($A108<>"",COUNT(カテゴリースコア!P110),""),"") -> 1 | G108: =IF(G$1<>"",IF($A108<>"",COUNT(カテゴリースコア!Q110),""),"") -> 0 | H108: =IF(H$1<>"",IF($A108<>"",COUNT(カテゴリースコア!R110),""),"") -> 0 | I108: =IF(I$1<>"",IF($A108<>"",COUNT(カテゴリースコア!S110),""),"") ->  | J108: =IF(J$1<>"",IF($A108<>"",COUNT(カテゴリースコア!T110),""),"") ->  | K108: =IF(K$1<>"",IF($A108<>"",COUNT(カテゴリースコア!U110),""),"") -> 
A109: =IF(データセット1!C109<>"",データセット1!C109,"") -> 367.88 | B109: =IF(データセット1!C109<>"",データセット1!D109-カテゴリースコア!$E$11,"") -> 107.4516129 | C109: =IF(C$1<>"",IF($A109<>"",COUNT(カテゴリースコア!M111),""),"") -> 1 | D109: =IF(D$1<>"",IF($A109<>"",COUNT(カテゴリースコア!N111),""),"") -> 0 | E109: =IF(E$1<>"",IF($A109<>"",COUNT(カテゴリースコア!O111),""),"") -> 0 | F109: =IF(F$1<>"",IF($A109<>"",COUNT(カテゴリースコア!P111),""),"") -> 0 | G109: =IF(G$1<>"",IF($A109<>"",COUNT(カテゴリースコア!Q111),""),"") -> 0 | H109: =IF(H$1<>"",IF($A109<>"",COUNT(カテゴリースコア!R111),""),"") -> 0 | I109: =IF(I$1<>"",IF($A109<>"",COUNT(カテゴリースコア!S111),""),"") ->  | J109: =IF(J$1<>"",IF($A109<>"",COUNT(カテゴリースコア!T111),""),"") ->  | K109: =IF(K$1<>"",IF($A109<>"",COUNT(カテゴリースコア!U111),""),"") -> 
A110: =IF(データセット1!C110<>"",データセット1!C110,"") -> 335.68 | B110: =IF(データセット1!C110<>"",データセット1!D110-カテゴリースコア!$E$11,"") -> 91.4516129 | C110: =IF(C$1<>"",IF($A110<>"",COUNT(カテゴリースコア!M112),""),"") -> 1 | D110: =IF(D$1<>"",IF($A110<>"",COUNT(カテゴリースコア!N112),""),"") -> 0 | E110: =IF(E$1<>"",IF($A110<>"",COUNT(カテゴリースコア!O112),""),"") -> 0 | F110: =IF(F$1<>"",IF($A110<>"",COUNT(カテゴリースコア!P112),""),"") -> 0 | G110: =IF(G$1<>"",IF($A110<>"",COUNT(カテゴリースコア!Q112),""),"") -> 0 | H110: =IF(H$1<>"",IF($A110<>"",COUNT(カテゴリースコア!R112),""),"") -> 0 | I110: =IF(I$1<>"",IF($A110<>"",COUNT(カテゴリースコア!S112),""),"") ->  | J110: =IF(J$1<>"",IF($A110<>"",COUNT(カテゴリースコア!T112),""),"") ->  | K110: =IF(K$1<>"",IF($A110<>"",COUNT(カテゴリースコア!U112),""),"") -> 
A111: =IF(データセット1!C111<>"",データセット1!C111,"") -> 327 | B111: =IF(データセット1!C111<>"",データセット1!D111-カテゴリースコア!$E$11,"") -> -156.5483871 | C111: =IF(C$1<>"",IF($A111<>"",COUNT(カテゴリースコア!M113),""),"") -> 0 | D111: =IF(D$1<>"",IF($A111<>"",COUNT(カテゴリースコア!N113),""),"") -> 0 | E111: =IF(E$1<>"",IF($A111<>"",COUNT(カテゴリースコア!O113),""),"") -> 0 | F111: =IF(F$1<>"",IF($A111<>"",COUNT(カテゴリースコア!P113),""),"") -> 1 | G111: =IF(G$1<>"",IF($A111<>"",COUNT(カテゴリースコア!Q113),""),"") -> 0 | H111: =IF(H$1<>"",IF($A111<>"",COUNT(カテゴリースコア!R113),""),"") -> 0 | I111: =IF(I$1<>"",IF($A111<>"",COUNT(カテゴリースコア!S113),""),"") ->  | J111: =IF(J$1<>"",IF($A111<>"",COUNT(カテゴリースコア!T113),""),"") ->  | K111: =IF(K$1<>"",IF($A111<>"",COUNT(カテゴリースコア!U113),""),"") -> 
A112: =IF(データセット1!C112<>"",データセット1!C112,"") -> 262.15 | B112: =IF(データセット1!C112<>"",データセット1!D112-カテゴリースコア!$E$11,"") -> 95.4516129 | C112: =IF(C$1<>"",IF($A112<>"",COUNT(カテゴリースコア!M114),""),"") -> 1 | D112: =IF(D$1<>"",IF($A112<>"",COUNT(カテゴリースコア!N114),""),"") -> 0 | E112: =IF(E$1<>"",IF($A112<>"",COUNT(カテゴリースコア!O114),""),"") -> 0 | F112: =IF(F$1<>"",IF($A112<>"",COUNT(カテゴリースコア!P114),""),"") -> 0 | G112: =IF(G$1<>"",IF($A112<>"",COUNT(カテゴリースコア!Q114),""),"") -> 0 | H112: =IF(H$1<>"",IF($A112<>"",COUNT(カテゴリースコア!R114),""),"") -> 0 | I112: =IF(I$1<>"",IF($A112<>"",COUNT(カテゴリースコア!S114),""),"") ->  | J112: =IF(J$1<>"",IF($A112<>"",COUNT(カテゴリースコア!T114),""),"") ->  | K112: =IF(K$1<>"",IF($A112<>"",COUNT(カテゴリースコア!U114),""),"") -> 
A113: =IF(データセット1!C113<>"",データセット1!C113,"") -> 254.5 | B113: =IF(データセット1!C113<>"",データセット1!D113-カテゴリースコア!$E$11,"") -> -250.5483871 | C113: =IF(C$1<>"",IF($A113<>"",COUNT(カテゴリースコア!M115),""),"") -> 0 | D113: =IF(D$1<>"",IF($A113<>"",COUNT(カテゴリースコア!N115),""),"") -> 0 | E113: =IF(E$1<>"",IF($A113<>"",COUNT(カテゴリースコア!O115),""),"") -> 0 | F113: =IF(F$1<>"",IF($A113<>"",COUNT(カテゴリースコア!P115),""),"") -> 0 | G113: =IF(G$1<>"",IF($A113<>"",COUNT(カテゴリースコア!Q115),""),"") -> 1 | H113: =IF(H$1<>"",IF($A113<>"",COUNT(カテゴリースコア!R115),""),"") -> 0 | I113: =IF(I$1<>"",IF($A113<>"",COUNT(カテゴリースコア!S115),""),"") ->  | J113: =IF(J$1<>"",IF($A113<>"",COUNT(カテゴリースコア!T115),""),"") ->  | K113: =IF(K$1<>"",IF($A113<>"",COUNT(カテゴリースコア!U115),""),"") -> 
A114: =IF(データセット1!C114<>"",データセット1!C114,"") -> 238 | B114: =IF(データセット1!C114<>"",データセット1!D114-カテゴリースコア!$E$11,"") -> -117.5483871 | C114: =IF(C$1<>"",IF($A114<>"",COUNT(カテゴリースコア!M116),""),"") -> 0 | D114: =IF(D$1<>"",IF($A114<>"",COUNT(カテゴリースコア!N116),""),"") -> 0 | E114: =IF(E$1<>"",IF($A114<>"",COUNT(カテゴリースコア!O116),""),"") -> 0 | F114: =IF(F$1<>"",IF($A114<>"",COUNT(カテゴリースコア!P116),""),"") -> 1 | G114: =IF(G$1<>"",IF($A114<>"",COUNT(カテゴリースコア!Q116),""),"") -> 0 | H114: =IF(H$1<>"",IF($A114<>"",COUNT(カテゴリースコア!R116),""),"") -> 0 | I114: =IF(I$1<>"",IF($A114<>"",COUNT(カテゴリースコア!S116),""),"") ->  | J114: =IF(J$1<>"",IF($A114<>"",COUNT(カテゴリースコア!T116),""),"") ->  | K114: =IF(K$1<>"",IF($A114<>"",COUNT(カテゴリースコア!U116),""),"") -> 
A115: =IF(データセット1!C115<>"",データセット1!C115,"") -> 228.28 | B115: =IF(データセット1!C115<>"",データセット1!D115-カテゴリースコア!$E$11,"") -> -148.5483871 | C115: =IF(C$1<>"",IF($A115<>"",COUNT(カテゴリースコア!M117),""),"") -> 0 | D115: =IF(D$1<>"",IF($A115<>"",COUNT(カテゴリースコア!N117),""),"") -> 0 | E115: =IF(E$1<>"",IF($A115<>"",COUNT(カテゴリースコア!O117),""),"") -> 0 | F115: =IF(F$1<>"",IF($A115<>"",COUNT(カテゴリースコア!P117),""),"") -> 1 | G115: =IF(G$1<>"",IF($A115<>"",COUNT(カテゴリースコア!Q117),""),"") -> 0 | H115: =IF(H$1<>"",IF($A115<>"",COUNT(カテゴリースコア!R117),""),"") -> 0 | I115: =IF(I$1<>"",IF($A115<>"",COUNT(カテゴリースコア!S117),""),"") ->  | J115: =IF(J$1<>"",IF($A115<>"",COUNT(カテゴリースコア!T117),""),"") ->  | K115: =IF(K$1<>"",IF($A115<>"",COUNT(カテゴリースコア!U117),""),"") -> 
A116: =IF(データセット1!C116<>"",データセット1!C116,"") -> 225.91 | B116: =IF(データセット1!C116<>"",データセット1!D116-カテゴリースコア!$E$11,"") -> 284.4516129 | C116: =IF(C$1<>"",IF($A116<>"",COUNT(カテゴリースコア!M118),""),"") -> 1 | D116: =IF(D$1<>"",IF($A116<>"",COUNT(カテゴリースコア!N118),""),"") -> 0 | E116: =IF(E$1<>"",IF($A116<>"",COUNT(カテゴリースコア!O118),""),"") -> 0 | F116: =IF(F$1<>"",IF($A116<>"",COUNT(カテゴリースコア!P118),""),"") -> 0 | G116: =IF(G$1<>"",IF($A116<>"",COUNT(カテゴリースコア!Q118),""),"") -> 0 | H116: =IF(H$1<>"",IF($A116<>"",COUNT(カテゴリースコア!R118),""),"") -> 0 | I116: =IF(I$1<>"",IF($A116<>"",COUNT(カテゴリースコア!S118),""),"") ->  | J116: =IF(J$1<>"",IF($A116<>"",COUNT(カテゴリースコア!T118),""),"") ->  | K116: =IF(K$1<>"",IF($A116<>"",COUNT(カテゴリースコア!U118),""),"") -> 
A117: =IF(データセット1!C117<>"",データセット1!C117,"") -> 224.85 | B117: =IF(データセット1!C117<>"",データセット1!D117-カテゴリースコア!$E$11,"") -> -246.5483871 | C117: =IF(C$1<>"",IF($A117<>"",COUNT(カテゴリースコア!M119),""),"") -> 0 | D117: =IF(D$1<>"",IF($A117<>"",COUNT(カテゴリースコア!N119),""),"") -> 0 | E117: =IF(E$1<>"",IF($A117<>"",COUNT(カテゴリースコア!O119),""),"") -> 0 | F117: =IF(F$1<>"",IF($A117<>"",COUNT(カテゴリースコア!P119),""),"") -> 0 | G117: =IF(G$1<>"",IF($A117<>"",COUNT(カテゴリースコア!Q119),""),"") -> 1 | H117: =IF(H$1<>"",IF($A117<>"",COUNT(カテゴリースコア!R119),""),"") -> 0 | I117: =IF(I$1<>"",IF($A117<>"",COUNT(カテゴリースコア!S119),""),"") ->  | J117: =IF(J$1<>"",IF($A117<>"",COUNT(カテゴリースコア!T119),""),"") ->  | K117: =IF(K$1<>"",IF($A117<>"",COUNT(カテゴリースコア!U119),""),"") -> 
A118: =IF(データセット1!C118<>"",データセット1!C118,"") -> 223.77 | B118: =IF(データセット1!C118<>"",データセット1!D118-カテゴリースコア!$E$11,"") -> 22.4516129 | C118: =IF(C$1<>"",IF($A118<>"",COUNT(カテゴリースコア!M120),""),"") -> 1 | D118: =IF(D$1<>"",IF($A118<>"",COUNT(カテゴリースコア!N120),""),"") -> 0 | E118: =IF(E$1<>"",IF($A118<>"",COUNT(カテゴリースコア!O120),""),"") -> 0 | F118: =IF(F$1<>"",IF($A118<>"",COUNT(カテゴリースコア!P120),""),"") -> 0 | G118: =IF(G$1<>"",IF($A118<>"",COUNT(カテゴリースコア!Q120),""),"") -> 0 | H118: =IF(H$1<>"",IF($A118<>"",COUNT(カテゴリースコア!R120),""),"") -> 0 | I118: =IF(I$1<>"",IF($A118<>"",COUNT(カテゴリースコア!S120),""),"") ->  | J118: =IF(J$1<>"",IF($A118<>"",COUNT(カテゴリースコア!T120),""),"") ->  | K118: =IF(K$1<>"",IF($A118<>"",COUNT(カテゴリースコア!U120),""),"") -> 
A119: =IF(データセット1!C119<>"",データセット1!C119,"") -> 218.2 | B119: =IF(データセット1!C119<>"",データセット1!D119-カテゴリースコア!$E$11,"") -> 308.4516129 | C119: =IF(C$1<>"",IF($A119<>"",COUNT(カテゴリースコア!M121),""),"") -> 1 | D119: =IF(D$1<>"",IF($A119<>"",COUNT(カテゴリースコア!N121),""),"") -> 0 | E119: =IF(E$1<>"",IF($A119<>"",COUNT(カテゴリースコア!O121),""),"") -> 0 | F119: =IF(F$1<>"",IF($A119<>"",COUNT(カテゴリースコア!P121),""),"") -> 0 | G119: =IF(G$1<>"",IF($A119<>"",COUNT(カテゴリースコア!Q121),""),"") -> 0 | H119: =IF(H$1<>"",IF($A119<>"",COUNT(カテゴリースコア!R121),""),"") -> 0 | I119: =IF(I$1<>"",IF($A119<>"",COUNT(カテゴリースコア!S121),""),"") ->  | J119: =IF(J$1<>"",IF($A119<>"",COUNT(カテゴリースコア!T121),""),"") ->  | K119: =IF(K$1<>"",IF($A119<>"",COUNT(カテゴリースコア!U121),""),"") -> 
A120: =IF(データセット1!C120<>"",データセット1!C120,"") -> 200.39 | B120: =IF(データセット1!C120<>"",データセット1!D120-カテゴリースコア!$E$11,"") -> 20.4516129 | C120: =IF(C$1<>"",IF($A120<>"",COUNT(カテゴリースコア!M122),""),"") -> 1 | D120: =IF(D$1<>"",IF($A120<>"",COUNT(カテゴリースコア!N122),""),"") -> 0 | E120: =IF(E$1<>"",IF($A120<>"",COUNT(カテゴリースコア!O122),""),"") -> 0 | F120: =IF(F$1<>"",IF($A120<>"",COUNT(カテゴリースコア!P122),""),"") -> 0 | G120: =IF(G$1<>"",IF($A120<>"",COUNT(カテゴリースコア!Q122),""),"") -> 0 | H120: =IF(H$1<>"",IF($A120<>"",COUNT(カテゴリースコア!R122),""),"") -> 0 | I120: =IF(I$1<>"",IF($A120<>"",COUNT(カテゴリースコア!S122),""),"") ->  | J120: =IF(J$1<>"",IF($A120<>"",COUNT(カテゴリースコア!T122),""),"") ->  | K120: =IF(K$1<>"",IF($A120<>"",COUNT(カテゴリースコア!U122),""),"") -> 
A121: =IF(データセット1!C121<>"",データセット1!C121,"") -> 198.86 | B121: =IF(データセット1!C121<>"",データセット1!D121-カテゴリースコア!$E$11,"") -> 197.4516129 | C121: =IF(C$1<>"",IF($A121<>"",COUNT(カテゴリースコア!M123),""),"") -> 1 | D121: =IF(D$1<>"",IF($A121<>"",COUNT(カテゴリースコア!N123),""),"") -> 0 | E121: =IF(E$1<>"",IF($A121<>"",COUNT(カテゴリースコア!O123),""),"") -> 0 | F121: =IF(F$1<>"",IF($A121<>"",COUNT(カテゴリースコア!P123),""),"") -> 0 | G121: =IF(G$1<>"",IF($A121<>"",COUNT(カテゴリースコア!Q123),""),"") -> 0 | H121: =IF(H$1<>"",IF($A121<>"",COUNT(カテゴリースコア!R123),""),"") -> 0 | I121: =IF(I$1<>"",IF($A121<>"",COUNT(カテゴリースコア!S123),""),"") ->  | J121: =IF(J$1<>"",IF($A121<>"",COUNT(カテゴリースコア!T123),""),"") ->  | K121: =IF(K$1<>"",IF($A121<>"",COUNT(カテゴリースコア!U123),""),"") -> 
A122: =IF(データセット1!C122<>"",データセット1!C122,"") -> 176.95 | B122: =IF(データセット1!C122<>"",データセット1!D122-カテゴリースコア!$E$11,"") -> -195.5483871 | C122: =IF(C$1<>"",IF($A122<>"",COUNT(カテゴリースコア!M124),""),"") -> 0 | D122: =IF(D$1<>"",IF($A122<>"",COUNT(カテゴリースコア!N124),""),"") -> 0 | E122: =IF(E$1<>"",IF($A122<>"",COUNT(カテゴリースコア!O124),""),"") -> 0 | F122: =IF(F$1<>"",IF($A122<>"",COUNT(カテゴリースコア!P124),""),"") -> 1 | G122: =IF(G$1<>"",IF($A122<>"",COUNT(カテゴリースコア!Q124),""),"") -> 0 | H122: =IF(H$1<>"",IF($A122<>"",COUNT(カテゴリースコア!R124),""),"") -> 0 | I122: =IF(I$1<>"",IF($A122<>"",COUNT(カテゴリースコア!S124),""),"") ->  | J122: =IF(J$1<>"",IF($A122<>"",COUNT(カテゴリースコア!T124),""),"") ->  | K122: =IF(K$1<>"",IF($A122<>"",COUNT(カテゴリースコア!U124),""),"") -> 
A123: =IF(データセット1!C123<>"",データセット1!C123,"") -> 168.19 | B123: =IF(データセット1!C123<>"",データセット1!D123-カテゴリースコア!$E$11,"") -> -186.5483871 | C123: =IF(C$1<>"",IF($A123<>"",COUNT(カテゴリースコア!M125),""),"") -> 0 | D123: =IF(D$1<>"",IF($A123<>"",COUNT(カテゴリースコア!N125),""),"") -> 0 | E123: =IF(E$1<>"",IF($A123<>"",COUNT(カテゴリースコア!O125),""),"") -> 0 | F123: =IF(F$1<>"",IF($A123<>"",COUNT(カテゴリースコア!P125),""),"") -> 0 | G123: =IF(G$1<>"",IF($A123<>"",COUNT(カテゴリースコア!Q125),""),"") -> 1 | H123: =IF(H$1<>"",IF($A123<>"",COUNT(カテゴリースコア!R125),""),"") -> 0 | I123: =IF(I$1<>"",IF($A123<>"",COUNT(カテゴリースコア!S125),""),"") ->  | J123: =IF(J$1<>"",IF($A123<>"",COUNT(カテゴリースコア!T125),""),"") ->  | K123: =IF(K$1<>"",IF($A123<>"",COUNT(カテゴリースコア!U125),""),"") -> 
A124: =IF(データセット1!C124<>"",データセット1!C124,"") -> 166.72 | B124: =IF(データセット1!C124<>"",データセット1!D124-カテゴリースコア!$E$11,"") -> 152.4516129 | C124: =IF(C$1<>"",IF($A124<>"",COUNT(カテゴリースコア!M126),""),"") -> 1 | D124: =IF(D$1<>"",IF($A124<>"",COUNT(カテゴリースコア!N126),""),"") -> 0 | E124: =IF(E$1<>"",IF($A124<>"",COUNT(カテゴリースコア!O126),""),"") -> 0 | F124: =IF(F$1<>"",IF($A124<>"",COUNT(カテゴリースコア!P126),""),"") -> 0 | G124: =IF(G$1<>"",IF($A124<>"",COUNT(カテゴリースコア!Q126),""),"") -> 0 | H124: =IF(H$1<>"",IF($A124<>"",COUNT(カテゴリースコア!R126),""),"") -> 0 | I124: =IF(I$1<>"",IF($A124<>"",COUNT(カテゴリースコア!S126),""),"") ->  | J124: =IF(J$1<>"",IF($A124<>"",COUNT(カテゴリースコア!T126),""),"") ->  | K124: =IF(K$1<>"",IF($A124<>"",COUNT(カテゴリースコア!U126),""),"") -> 
A125: =IF(データセット1!C125<>"",データセット1!C125,"") -> 158 | B125: =IF(データセット1!C125<>"",データセット1!D125-カテゴリースコア!$E$11,"") -> 22.4516129 | C125: =IF(C$1<>"",IF($A125<>"",COUNT(カテゴリースコア!M127),""),"") -> 1 | D125: =IF(D$1<>"",IF($A125<>"",COUNT(カテゴリースコア!N127),""),"") -> 0 | E125: =IF(E$1<>"",IF($A125<>"",COUNT(カテゴリースコア!O127),""),"") -> 0 | F125: =IF(F$1<>"",IF($A125<>"",COUNT(カテゴリースコア!P127),""),"") -> 0 | G125: =IF(G$1<>"",IF($A125<>"",COUNT(カテゴリースコア!Q127),""),"") -> 0 | H125: =IF(H$1<>"",IF($A125<>"",COUNT(カテゴリースコア!R127),""),"") -> 0 | I125: =IF(I$1<>"",IF($A125<>"",COUNT(カテゴリースコア!S127),""),"") ->  | J125: =IF(J$1<>"",IF($A125<>"",COUNT(カテゴリースコア!T127),""),"") ->  | K125: =IF(K$1<>"",IF($A125<>"",COUNT(カテゴリースコア!U127),""),"") -> 
A126: =IF(データセット1!C126<>"",データセット1!C126,"") -> 158 | B126: =IF(データセット1!C126<>"",データセット1!D126-カテゴリースコア!$E$11,"") -> -253.5483871 | C126: =IF(C$1<>"",IF($A126<>"",COUNT(カテゴリースコア!M128),""),"") -> 0 | D126: =IF(D$1<>"",IF($A126<>"",COUNT(カテゴリースコア!N128),""),"") -> 0 | E126: =IF(E$1<>"",IF($A126<>"",COUNT(カテゴリースコア!O128),""),"") -> 0 | F126: =IF(F$1<>"",IF($A126<>"",COUNT(カテゴリースコア!P128),""),"") -> 0 | G126: =IF(G$1<>"",IF($A126<>"",COUNT(カテゴリースコア!Q128),""),"") -> 0 | H126: =IF(H$1<>"",IF($A126<>"",COUNT(カテゴリースコア!R128),""),"") -> 1 | I126: =IF(I$1<>"",IF($A126<>"",COUNT(カテゴリースコア!S128),""),"") ->  | J126: =IF(J$1<>"",IF($A126<>"",COUNT(カテゴリースコア!T128),""),"") ->  | K126: =IF(K$1<>"",IF($A126<>"",COUNT(カテゴリースコア!U128),""),"") -> 
A127: =IF(データセット1!C127<>"",データセット1!C127,"") -> 157.94 | B127: =IF(データセット1!C127<>"",データセット1!D127-カテゴリースコア!$E$11,"") -> -96.5483871 | C127: =IF(C$1<>"",IF($A127<>"",COUNT(カテゴリースコア!M129),""),"") -> 0 | D127: =IF(D$1<>"",IF($A127<>"",COUNT(カテゴリースコア!N129),""),"") -> 0 | E127: =IF(E$1<>"",IF($A127<>"",COUNT(カテゴリースコア!O129),""),"") -> 0 | F127: =IF(F$1<>"",IF($A127<>"",COUNT(カテゴリースコア!P129),""),"") -> 1 | G127: =IF(G$1<>"",IF($A127<>"",COUNT(カテゴリースコア!Q129),""),"") -> 0 | H127: =IF(H$1<>"",IF($A127<>"",COUNT(カテゴリースコア!R129),""),"") -> 0 | I127: =IF(I$1<>"",IF($A127<>"",COUNT(カテゴリースコア!S129),""),"") ->  | J127: =IF(J$1<>"",IF($A127<>"",COUNT(カテゴリースコア!T129),""),"") ->  | K127: =IF(K$1<>"",IF($A127<>"",COUNT(カテゴリースコア!U129),""),"") -> 
A128: =IF(データセット1!C128<>"",データセット1!C128,"") -> 149 | B128: =IF(データセット1!C128<>"",データセット1!D128-カテゴリースコア!$E$11,"") -> -203.5483871 | C128: =IF(C$1<>"",IF($A128<>"",COUNT(カテゴリースコア!M130),""),"") -> 0 | D128: =IF(D$1<>"",IF($A128<>"",COUNT(カテゴリースコア!N130),""),"") -> 0 | E128: =IF(E$1<>"",IF($A128<>"",COUNT(カテゴリースコア!O130),""),"") -> 0 | F128: =IF(F$1<>"",IF($A128<>"",COUNT(カテゴリースコア!P130),""),"") -> 0 | G128: =IF(G$1<>"",IF($A128<>"",COUNT(カテゴリースコア!Q130),""),"") -> 1 | H128: =IF(H$1<>"",IF($A128<>"",COUNT(カテゴリースコア!R130),""),"") -> 0 | I128: =IF(I$1<>"",IF($A128<>"",COUNT(カテゴリースコア!S130),""),"") ->  | J128: =IF(J$1<>"",IF($A128<>"",COUNT(カテゴリースコア!T130),""),"") ->  | K128: =IF(K$1<>"",IF($A128<>"",COUNT(カテゴリースコア!U130),""),"") -> 
A129: =IF(データセット1!C129<>"",データセット1!C129,"") -> 149 | B129: =IF(データセット1!C129<>"",データセット1!D129-カテゴリースコア!$E$11,"") -> 110.4516129 | C129: =IF(C$1<>"",IF($A129<>"",COUNT(カテゴリースコア!M131),""),"") -> 1 | D129: =IF(D$1<>"",IF($A129<>"",COUNT(カテゴリースコア!N131),""),"") -> 0 | E129: =IF(E$1<>"",IF($A129<>"",COUNT(カテゴリースコア!O131),""),"") -> 0 | F129: =IF(F$1<>"",IF($A129<>"",COUNT(カテゴリースコア!P131),""),"") -> 0 | G129: =IF(G$1<>"",IF($A129<>"",COUNT(カテゴリースコア!Q131),""),"") -> 0 | H129: =IF(H$1<>"",IF($A129<>"",COUNT(カテゴリースコア!R131),""),"") -> 0 | I129: =IF(I$1<>"",IF($A129<>"",COUNT(カテゴリースコア!S131),""),"") ->  | J129: =IF(J$1<>"",IF($A129<>"",COUNT(カテゴリースコア!T131),""),"") ->  | K129: =IF(K$1<>"",IF($A129<>"",COUNT(カテゴリースコア!U131),""),"") -> 
A130: =IF(データセット1!C130<>"",データセット1!C130,"") -> 142.98 | B130: =IF(データセット1!C130<>"",データセット1!D130-カテゴリースコア!$E$11,"") -> 204.4516129 | C130: =IF(C$1<>"",IF($A130<>"",COUNT(カテゴリースコア!M132),""),"") -> 1 | D130: =IF(D$1<>"",IF($A130<>"",COUNT(カテゴリースコア!N132),""),"") -> 0 | E130: =IF(E$1<>"",IF($A130<>"",COUNT(カテゴリースコア!O132),""),"") -> 0 | F130: =IF(F$1<>"",IF($A130<>"",COUNT(カテゴリースコア!P132),""),"") -> 0 | G130: =IF(G$1<>"",IF($A130<>"",COUNT(カテゴリースコア!Q132),""),"") -> 0 | H130: =IF(H$1<>"",IF($A130<>"",COUNT(カテゴリースコア!R132),""),"") -> 0 | I130: =IF(I$1<>"",IF($A130<>"",COUNT(カテゴリースコア!S132),""),"") ->  | J130: =IF(J$1<>"",IF($A130<>"",COUNT(カテゴリースコア!T132),""),"") ->  | K130: =IF(K$1<>"",IF($A130<>"",COUNT(カテゴリースコア!U132),""),"") -> 
A131: =IF(データセット1!C131<>"",データセット1!C131,"") -> 129.62 | B131: =IF(データセット1!C131<>"",データセット1!D131-カテゴリースコア!$E$11,"") -> -231.5483871 | C131: =IF(C$1<>"",IF($A131<>"",COUNT(カテゴリースコア!M133),""),"") -> 0 | D131: =IF(D$1<>"",IF($A131<>"",COUNT(カテゴリースコア!N133),""),"") -> 0 | E131: =IF(E$1<>"",IF($A131<>"",COUNT(カテゴリースコア!O133),""),"") -> 0 | F131: =IF(F$1<>"",IF($A131<>"",COUNT(カテゴリースコア!P133),""),"") -> 0 | G131: =IF(G$1<>"",IF($A131<>"",COUNT(カテゴリースコア!Q133),""),"") -> 1 | H131: =IF(H$1<>"",IF($A131<>"",COUNT(カテゴリースコア!R133),""),"") -> 0 | I131: =IF(I$1<>"",IF($A131<>"",COUNT(カテゴリースコア!S133),""),"") ->  | J131: =IF(J$1<>"",IF($A131<>"",COUNT(カテゴリースコア!T133),""),"") ->  | K131: =IF(K$1<>"",IF($A131<>"",COUNT(カテゴリースコア!U133),""),"") -> 
A132: =IF(データセット1!C132<>"",データセット1!C132,"") -> 122.5 | B132: =IF(データセット1!C132<>"",データセット1!D132-カテゴリースコア!$E$11,"") -> -243.5483871 | C132: =IF(C$1<>"",IF($A132<>"",COUNT(カテゴリースコア!M134),""),"") -> 0 | D132: =IF(D$1<>"",IF($A132<>"",COUNT(カテゴリースコア!N134),""),"") -> 0 | E132: =IF(E$1<>"",IF($A132<>"",COUNT(カテゴリースコア!O134),""),"") -> 0 | F132: =IF(F$1<>"",IF($A132<>"",COUNT(カテゴリースコア!P134),""),"") -> 0 | G132: =IF(G$1<>"",IF($A132<>"",COUNT(カテゴリースコア!Q134),""),"") -> 1 | H132: =IF(H$1<>"",IF($A132<>"",COUNT(カテゴリースコア!R134),""),"") -> 0 | I132: =IF(I$1<>"",IF($A132<>"",COUNT(カテゴリースコア!S134),""),"") ->  | J132: =IF(J$1<>"",IF($A132<>"",COUNT(カテゴリースコア!T134),""),"") ->  | K132: =IF(K$1<>"",IF($A132<>"",COUNT(カテゴリースコア!U134),""),"") -> 
A133: =IF(データセット1!C133<>"",データセット1!C133,"") -> 119 | B133: =IF(データセット1!C133<>"",データセット1!D133-カテゴリースコア!$E$11,"") -> -194.5483871 | C133: =IF(C$1<>"",IF($A133<>"",COUNT(カテゴリースコア!M135),""),"") -> 0 | D133: =IF(D$1<>"",IF($A133<>"",COUNT(カテゴリースコア!N135),""),"") -> 0 | E133: =IF(E$1<>"",IF($A133<>"",COUNT(カテゴリースコア!O135),""),"") -> 0 | F133: =IF(F$1<>"",IF($A133<>"",COUNT(カテゴリースコア!P135),""),"") -> 0 | G133: =IF(G$1<>"",IF($A133<>"",COUNT(カテゴリースコア!Q135),""),"") -> 1 | H133: =IF(H$1<>"",IF($A133<>"",COUNT(カテゴリースコア!R135),""),"") -> 0 | I133: =IF(I$1<>"",IF($A133<>"",COUNT(カテゴリースコア!S135),""),"") ->  | J133: =IF(J$1<>"",IF($A133<>"",COUNT(カテゴリースコア!T135),""),"") ->  | K133: =IF(K$1<>"",IF($A133<>"",COUNT(カテゴリースコア!U135),""),"") -> 
A134: =IF(データセット1!C134<>"",データセット1!C134,"") -> 119 | B134: =IF(データセット1!C134<>"",データセット1!D134-カテゴリースコア!$E$11,"") -> -261.5483871 | C134: =IF(C$1<>"",IF($A134<>"",COUNT(カテゴリースコア!M136),""),"") -> 0 | D134: =IF(D$1<>"",IF($A134<>"",COUNT(カテゴリースコア!N136),""),"") -> 0 | E134: =IF(E$1<>"",IF($A134<>"",COUNT(カテゴリースコア!O136),""),"") -> 0 | F134: =IF(F$1<>"",IF($A134<>"",COUNT(カテゴリースコア!P136),""),"") -> 0 | G134: =IF(G$1<>"",IF($A134<>"",COUNT(カテゴリースコア!Q136),""),"") -> 0 | H134: =IF(H$1<>"",IF($A134<>"",COUNT(カテゴリースコア!R136),""),"") -> 1 | I134: =IF(I$1<>"",IF($A134<>"",COUNT(カテゴリースコア!S136),""),"") ->  | J134: =IF(J$1<>"",IF($A134<>"",COUNT(カテゴリースコア!T136),""),"") ->  | K134: =IF(K$1<>"",IF($A134<>"",COUNT(カテゴリースコア!U136),""),"") -> 
A135: =IF(データセット1!C135<>"",データセット1!C135,"") -> 112.49 | B135: =IF(データセット1!C135<>"",データセット1!D135-カテゴリースコア!$E$11,"") -> 128.4516129 | C135: =IF(C$1<>"",IF($A135<>"",COUNT(カテゴリースコア!M137),""),"") -> 1 | D135: =IF(D$1<>"",IF($A135<>"",COUNT(カテゴリースコア!N137),""),"") -> 0 | E135: =IF(E$1<>"",IF($A135<>"",COUNT(カテゴリースコア!O137),""),"") -> 0 | F135: =IF(F$1<>"",IF($A135<>"",COUNT(カテゴリースコア!P137),""),"") -> 0 | G135: =IF(G$1<>"",IF($A135<>"",COUNT(カテゴリースコア!Q137),""),"") -> 0 | H135: =IF(H$1<>"",IF($A135<>"",COUNT(カテゴリースコア!R137),""),"") -> 0 | I135: =IF(I$1<>"",IF($A135<>"",COUNT(カテゴリースコア!S137),""),"") ->  | J135: =IF(J$1<>"",IF($A135<>"",COUNT(カテゴリースコア!T137),""),"") ->  | K135: =IF(K$1<>"",IF($A135<>"",COUNT(カテゴリースコア!U137),""),"") -> 
A136: =IF(データセット1!C136<>"",データセット1!C136,"") -> 68.55 | B136: =IF(データセット1!C136<>"",データセット1!D136-カテゴリースコア!$E$11,"") -> -192.5483871 | C136: =IF(C$1<>"",IF($A136<>"",COUNT(カテゴリースコア!M138),""),"") -> 0 | D136: =IF(D$1<>"",IF($A136<>"",COUNT(カテゴリースコア!N138),""),"") -> 0 | E136: =IF(E$1<>"",IF($A136<>"",COUNT(カテゴリースコア!O138),""),"") -> 0 | F136: =IF(F$1<>"",IF($A136<>"",COUNT(カテゴリースコア!P138),""),"") -> 0 | G136: =IF(G$1<>"",IF($A136<>"",COUNT(カテゴリースコア!Q138),""),"") -> 1 | H136: =IF(H$1<>"",IF($A136<>"",COUNT(カテゴリースコア!R138),""),"") -> 0 | I136: =IF(I$1<>"",IF($A136<>"",COUNT(カテゴリースコア!S138),""),"") ->  | J136: =IF(J$1<>"",IF($A136<>"",COUNT(カテゴリースコア!T138),""),"") ->  | K136: =IF(K$1<>"",IF($A136<>"",COUNT(カテゴリースコア!U138),""),"") -> 
A137: =IF(データセット1!C137<>"",データセット1!C137,"") -> 58.56 | B137: =IF(データセット1!C137<>"",データセット1!D137-カテゴリースコア!$E$11,"") -> 199.4516129 | C137: =IF(C$1<>"",IF($A137<>"",COUNT(カテゴリースコア!M139),""),"") -> 1 | D137: =IF(D$1<>"",IF($A137<>"",COUNT(カテゴリースコア!N139),""),"") -> 0 | E137: =IF(E$1<>"",IF($A137<>"",COUNT(カテゴリースコア!O139),""),"") -> 0 | F137: =IF(F$1<>"",IF($A137<>"",COUNT(カテゴリースコア!P139),""),"") -> 0 | G137: =IF(G$1<>"",IF($A137<>"",COUNT(カテゴリースコア!Q139),""),"") -> 0 | H137: =IF(H$1<>"",IF($A137<>"",COUNT(カテゴリースコア!R139),""),"") -> 0 | I137: =IF(I$1<>"",IF($A137<>"",COUNT(カテゴリースコア!S139),""),"") ->  | J137: =IF(J$1<>"",IF($A137<>"",COUNT(カテゴリースコア!T139),""),"") ->  | K137: =IF(K$1<>"",IF($A137<>"",COUNT(カテゴリースコア!U139),""),"") -> 
A138: =IF(データセット1!C138<>"",データセット1!C138,"") -> 48.93 | B138: =IF(データセット1!C138<>"",データセット1!D138-カテゴリースコア!$E$11,"") -> -239.5483871 | C138: =IF(C$1<>"",IF($A138<>"",COUNT(カテゴリースコア!M140),""),"") -> 0 | D138: =IF(D$1<>"",IF($A138<>"",COUNT(カテゴリースコア!N140),""),"") -> 0 | E138: =IF(E$1<>"",IF($A138<>"",COUNT(カテゴリースコア!O140),""),"") -> 0 | F138: =IF(F$1<>"",IF($A138<>"",COUNT(カテゴリースコア!P140),""),"") -> 0 | G138: =IF(G$1<>"",IF($A138<>"",COUNT(カテゴリースコア!Q140),""),"") -> 1 | H138: =IF(H$1<>"",IF($A138<>"",COUNT(カテゴリースコア!R140),""),"") -> 0 | I138: =IF(I$1<>"",IF($A138<>"",COUNT(カテゴリースコア!S140),""),"") ->  | J138: =IF(J$1<>"",IF($A138<>"",COUNT(カテゴリースコア!T140),""),"") ->  | K138: =IF(K$1<>"",IF($A138<>"",COUNT(カテゴリースコア!U140),""),"") -> 
A139: =IF(データセット1!C139<>"",データセット1!C139,"") -> 33.98 | B139: =IF(データセット1!C139<>"",データセット1!D139-カテゴリースコア!$E$11,"") -> -234.5483871 | C139: =IF(C$1<>"",IF($A139<>"",COUNT(カテゴリースコア!M141),""),"") -> 0 | D139: =IF(D$1<>"",IF($A139<>"",COUNT(カテゴリースコア!N141),""),"") -> 0 | E139: =IF(E$1<>"",IF($A139<>"",COUNT(カテゴリースコア!O141),""),"") -> 0 | F139: =IF(F$1<>"",IF($A139<>"",COUNT(カテゴリースコア!P141),""),"") -> 0 | G139: =IF(G$1<>"",IF($A139<>"",COUNT(カテゴリースコア!Q141),""),"") -> 0 | H139: =IF(H$1<>"",IF($A139<>"",COUNT(カテゴリースコア!R141),""),"") -> 1 | I139: =IF(I$1<>"",IF($A139<>"",COUNT(カテゴリースコア!S141),""),"") ->  | J139: =IF(J$1<>"",IF($A139<>"",COUNT(カテゴリースコア!T141),""),"") ->  | K139: =IF(K$1<>"",IF($A139<>"",COUNT(カテゴリースコア!U141),""),"") -> 
A140: =IF(データセット1!C140<>"",データセット1!C140,"") -> 31.98 | B140: =IF(データセット1!C140<>"",データセット1!D140-カテゴリースコア!$E$11,"") -> -205.5483871 | C140: =IF(C$1<>"",IF($A140<>"",COUNT(カテゴリースコア!M142),""),"") -> 0 | D140: =IF(D$1<>"",IF($A140<>"",COUNT(カテゴリースコア!N142),""),"") -> 0 | E140: =IF(E$1<>"",IF($A140<>"",COUNT(カテゴリースコア!O142),""),"") -> 0 | F140: =IF(F$1<>"",IF($A140<>"",COUNT(カテゴリースコア!P142),""),"") -> 0 | G140: =IF(G$1<>"",IF($A140<>"",COUNT(カテゴリースコア!Q142),""),"") -> 1 | H140: =IF(H$1<>"",IF($A140<>"",COUNT(カテゴリースコア!R142),""),"") -> 0 | I140: =IF(I$1<>"",IF($A140<>"",COUNT(カテゴリースコア!S142),""),"") ->  | J140: =IF(J$1<>"",IF($A140<>"",COUNT(カテゴリースコア!T142),""),"") ->  | K140: =IF(K$1<>"",IF($A140<>"",COUNT(カテゴリースコア!U142),""),"") -> 
A141: =IF(データセット1!C141<>"",データセット1!C141,"") -> 21.79 | B141: =IF(データセット1!C141<>"",データセット1!D141-カテゴリースコア!$E$11,"") -> -228.5483871 | C141: =IF(C$1<>"",IF($A141<>"",COUNT(カテゴリースコア!M143),""),"") -> 0 | D141: =IF(D$1<>"",IF($A141<>"",COUNT(カテゴリースコア!N143),""),"") -> 0 | E141: =IF(E$1<>"",IF($A141<>"",COUNT(カテゴリースコア!O143),""),"") -> 0 | F141: =IF(F$1<>"",IF($A141<>"",COUNT(カテゴリースコア!P143),""),"") -> 0 | G141: =IF(G$1<>"",IF($A141<>"",COUNT(カテゴリースコア!Q143),""),"") -> 1 | H141: =IF(H$1<>"",IF($A141<>"",COUNT(カテゴリースコア!R143),""),"") -> 0 | I141: =IF(I$1<>"",IF($A141<>"",COUNT(カテゴリースコア!S143),""),"") ->  | J141: =IF(J$1<>"",IF($A141<>"",COUNT(カテゴリースコア!T143),""),"") ->  | K141: =IF(K$1<>"",IF($A141<>"",COUNT(カテゴリースコア!U143),""),"") -> 
A142: =IF(データセット1!C142<>"",データセット1!C142,"") -> 15.74 | B142: =IF(データセット1!C142<>"",データセット1!D142-カテゴリースコア!$E$11,"") -> 48.4516129 | C142: =IF(C$1<>"",IF($A142<>"",COUNT(カテゴリースコア!M144),""),"") -> 1 | D142: =IF(D$1<>"",IF($A142<>"",COUNT(カテゴリースコア!N144),""),"") -> 0 | E142: =IF(E$1<>"",IF($A142<>"",COUNT(カテゴリースコア!O144),""),"") -> 0 | F142: =IF(F$1<>"",IF($A142<>"",COUNT(カテゴリースコア!P144),""),"") -> 0 | G142: =IF(G$1<>"",IF($A142<>"",COUNT(カテゴリースコア!Q144),""),"") -> 0 | H142: =IF(H$1<>"",IF($A142<>"",COUNT(カテゴリースコア!R144),""),"") -> 0 | I142: =IF(I$1<>"",IF($A142<>"",COUNT(カテゴリースコア!S144),""),"") ->  | J142: =IF(J$1<>"",IF($A142<>"",COUNT(カテゴリースコア!T144),""),"") ->  | K142: =IF(K$1<>"",IF($A142<>"",COUNT(カテゴリースコア!U144),""),"") -> 
A143: =IF(データセット1!C143<>"",データセット1!C143,"") -> 10.5 | B143: =IF(データセット1!C143<>"",データセット1!D143-カテゴリースコア!$E$11,"") -> -160.5483871 | C143: =IF(C$1<>"",IF($A143<>"",COUNT(カテゴリースコア!M145),""),"") -> 0 | D143: =IF(D$1<>"",IF($A143<>"",COUNT(カテゴリースコア!N145),""),"") -> 0 | E143: =IF(E$1<>"",IF($A143<>"",COUNT(カテゴリースコア!O145),""),"") -> 0 | F143: =IF(F$1<>"",IF($A143<>"",COUNT(カテゴリースコア!P145),""),"") -> 0 | G143: =IF(G$1<>"",IF($A143<>"",COUNT(カテゴリースコア!Q145),""),"") -> 1 | H143: =IF(H$1<>"",IF($A143<>"",COUNT(カテゴリースコア!R145),""),"") -> 0 | I143: =IF(I$1<>"",IF($A143<>"",COUNT(カテゴリースコア!S145),""),"") ->  | J143: =IF(J$1<>"",IF($A143<>"",COUNT(カテゴリースコア!T145),""),"") ->  | K143: =IF(K$1<>"",IF($A143<>"",COUNT(カテゴリースコア!U145),""),"") -> 
A144: =IF(データセット1!C144<>"",データセット1!C144,"") -> 0 | B144: =IF(データセット1!C144<>"",データセット1!D144-カテゴリースコア!$E$11,"") -> -241.5483871 | C144: =IF(C$1<>"",IF($A144<>"",COUNT(カテゴリースコア!M146),""),"") -> 0 | D144: =IF(D$1<>"",IF($A144<>"",COUNT(カテゴリースコア!N146),""),"") -> 0 | E144: =IF(E$1<>"",IF($A144<>"",COUNT(カテゴリースコア!O146),""),"") -> 0 | F144: =IF(F$1<>"",IF($A144<>"",COUNT(カテゴリースコア!P146),""),"") -> 0 | G144: =IF(G$1<>"",IF($A144<>"",COUNT(カテゴリースコア!Q146),""),"") -> 0 | H144: =IF(H$1<>"",IF($A144<>"",COUNT(カテゴリースコア!R146),""),"") -> 1 | I144: =IF(I$1<>"",IF($A144<>"",COUNT(カテゴリースコア!S146),""),"") ->  | J144: =IF(J$1<>"",IF($A144<>"",COUNT(カテゴリースコア!T146),""),"") ->  | K144: =IF(K$1<>"",IF($A144<>"",COUNT(カテゴリースコア!U146),""),"") -> 
A145: =IF(データセット1!C145<>"",データセット1!C145,"") -> 0 | B145: =IF(データセット1!C145<>"",データセット1!D145-カテゴリースコア!$E$11,"") -> -250.5483871 | C145: =IF(C$1<>"",IF($A145<>"",COUNT(カテゴリースコア!M147),""),"") -> 0 | D145: =IF(D$1<>"",IF($A145<>"",COUNT(カテゴリースコア!N147),""),"") -> 0 | E145: =IF(E$1<>"",IF($A145<>"",COUNT(カテゴリースコア!O147),""),"") -> 0 | F145: =IF(F$1<>"",IF($A145<>"",COUNT(カテゴリースコア!P147),""),"") -> 0 | G145: =IF(G$1<>"",IF($A145<>"",COUNT(カテゴリースコア!Q147),""),"") -> 0 | H145: =IF(H$1<>"",IF($A145<>"",COUNT(カテゴリースコア!R147),""),"") -> 1 | I145: =IF(I$1<>"",IF($A145<>"",COUNT(カテゴリースコア!S147),""),"") ->  | J145: =IF(J$1<>"",IF($A145<>"",COUNT(カテゴリースコア!T147),""),"") ->  | K145: =IF(K$1<>"",IF($A145<>"",COUNT(カテゴリースコア!U147),""),"") -> 
A146: =IF(データセット1!C146<>"",データセット1!C146,"") -> 0 | B146: =IF(データセット1!C146<>"",データセット1!D146-カテゴリースコア!$E$11,"") -> -201.5483871 | C146: =IF(C$1<>"",IF($A146<>"",COUNT(カテゴリースコア!M148),""),"") -> 0 | D146: =IF(D$1<>"",IF($A146<>"",COUNT(カテゴリースコア!N148),""),"") -> 0 | E146: =IF(E$1<>"",IF($A146<>"",COUNT(カテゴリースコア!O148),""),"") -> 0 | F146: =IF(F$1<>"",IF($A146<>"",COUNT(カテゴリースコア!P148),""),"") -> 0 | G146: =IF(G$1<>"",IF($A146<>"",COUNT(カテゴリースコア!Q148),""),"") -> 1 | H146: =IF(H$1<>"",IF($A146<>"",COUNT(カテゴリースコア!R148),""),"") -> 0 | I146: =IF(I$1<>"",IF($A146<>"",COUNT(カテゴリースコア!S148),""),"") ->  | J146: =IF(J$1<>"",IF($A146<>"",COUNT(カテゴリースコア!T148),""),"") ->  | K146: =IF(K$1<>"",IF($A146<>"",COUNT(カテゴリースコア!U148),""),"") -> 
A147: =IF(データセット1!C147<>"",データセット1!C147,"") -> 0 | B147: =IF(データセット1!C147<>"",データセット1!D147-カテゴリースコア!$E$11,"") -> -248.5483871 | C147: =IF(C$1<>"",IF($A147<>"",COUNT(カテゴリースコア!M149),""),"") -> 0 | D147: =IF(D$1<>"",IF($A147<>"",COUNT(カテゴリースコア!N149),""),"") -> 0 | E147: =IF(E$1<>"",IF($A147<>"",COUNT(カテゴリースコア!O149),""),"") -> 0 | F147: =IF(F$1<>"",IF($A147<>"",COUNT(カテゴリースコア!P149),""),"") -> 0 | G147: =IF(G$1<>"",IF($A147<>"",COUNT(カテゴリースコア!Q149),""),"") -> 0 | H147: =IF(H$1<>"",IF($A147<>"",COUNT(カテゴリースコア!R149),""),"") -> 1 | I147: =IF(I$1<>"",IF($A147<>"",COUNT(カテゴリースコア!S149),""),"") ->  | J147: =IF(J$1<>"",IF($A147<>"",COUNT(カテゴリースコア!T149),""),"") ->  | K147: =IF(K$1<>"",IF($A147<>"",COUNT(カテゴリースコア!U149),""),"") -> 
A148: =IF(データセット1!C148<>"",データセット1!C148,"") -> 0 | B148: =IF(データセット1!C148<>"",データセット1!D148-カテゴリースコア!$E$11,"") -> -180.5483871 | C148: =IF(C$1<>"",IF($A148<>"",COUNT(カテゴリースコア!M150),""),"") -> 0 | D148: =IF(D$1<>"",IF($A148<>"",COUNT(カテゴリースコア!N150),""),"") -> 0 | E148: =IF(E$1<>"",IF($A148<>"",COUNT(カテゴリースコア!O150),""),"") -> 0 | F148: =IF(F$1<>"",IF($A148<>"",COUNT(カテゴリースコア!P150),""),"") -> 0 | G148: =IF(G$1<>"",IF($A148<>"",COUNT(カテゴリースコア!Q150),""),"") -> 1 | H148: =IF(H$1<>"",IF($A148<>"",COUNT(カテゴリースコア!R150),""),"") -> 0 | I148: =IF(I$1<>"",IF($A148<>"",COUNT(カテゴリースコア!S150),""),"") ->  | J148: =IF(J$1<>"",IF($A148<>"",COUNT(カテゴリースコア!T150),""),"") ->  | K148: =IF(K$1<>"",IF($A148<>"",COUNT(カテゴリースコア!U150),""),"") -> 
A149: =IF(データセット1!C149<>"",データセット1!C149,"") -> 0 | B149: =IF(データセット1!C149<>"",データセット1!D149-カテゴリースコア!$E$11,"") -> -251.5483871 | C149: =IF(C$1<>"",IF($A149<>"",COUNT(カテゴリースコア!M151),""),"") -> 0 | D149: =IF(D$1<>"",IF($A149<>"",COUNT(カテゴリースコア!N151),""),"") -> 0 | E149: =IF(E$1<>"",IF($A149<>"",COUNT(カテゴリースコア!O151),""),"") -> 0 | F149: =IF(F$1<>"",IF($A149<>"",COUNT(カテゴリースコア!P151),""),"") -> 0 | G149: =IF(G$1<>"",IF($A149<>"",COUNT(カテゴリースコア!Q151),""),"") -> 0 | H149: =IF(H$1<>"",IF($A149<>"",COUNT(カテゴリースコア!R151),""),"") -> 1 | I149: =IF(I$1<>"",IF($A149<>"",COUNT(カテゴリースコア!S151),""),"") ->  | J149: =IF(J$1<>"",IF($A149<>"",COUNT(カテゴリースコア!T151),""),"") ->  | K149: =IF(K$1<>"",IF($A149<>"",COUNT(カテゴリースコア!U151),""),"") -> 
A150: =IF(データセット1!C150<>"",データセット1!C150,"") -> 0 | B150: =IF(データセット1!C150<>"",データセット1!D150-カテゴリースコア!$E$11,"") -> -246.5483871 | C150: =IF(C$1<>"",IF($A150<>"",COUNT(カテゴリースコア!M152),""),"") -> 0 | D150: =IF(D$1<>"",IF($A150<>"",COUNT(カテゴリースコア!N152),""),"") -> 0 | E150: =IF(E$1<>"",IF($A150<>"",COUNT(カテゴリースコア!O152),""),"") -> 0 | F150: =IF(F$1<>"",IF($A150<>"",COUNT(カテゴリースコア!P152),""),"") -> 0 | G150: =IF(G$1<>"",IF($A150<>"",COUNT(カテゴリースコア!Q152),""),"") -> 0 | H150: =IF(H$1<>"",IF($A150<>"",COUNT(カテゴリースコア!R152),""),"") -> 1 | I150: =IF(I$1<>"",IF($A150<>"",COUNT(カテゴリースコア!S152),""),"") ->  | J150: =IF(J$1<>"",IF($A150<>"",COUNT(カテゴリースコア!T152),""),"") ->  | K150: =IF(K$1<>"",IF($A150<>"",COUNT(カテゴリースコア!U152),""),"") -> 
A151: =IF(データセット1!C151<>"",データセット1!C151,"") -> 0 | B151: =IF(データセット1!C151<>"",データセット1!D151-カテゴリースコア!$E$11,"") -> -237.5483871 | C151: =IF(C$1<>"",IF($A151<>"",COUNT(カテゴリースコア!M153),""),"") -> 0 | D151: =IF(D$1<>"",IF($A151<>"",COUNT(カテゴリースコア!N153),""),"") -> 0 | E151: =IF(E$1<>"",IF($A151<>"",COUNT(カテゴリースコア!O153),""),"") -> 0 | F151: =IF(F$1<>"",IF($A151<>"",COUNT(カテゴリースコア!P153),""),"") -> 0 | G151: =IF(G$1<>"",IF($A151<>"",COUNT(カテゴリースコア!Q153),""),"") -> 0 | H151: =IF(H$1<>"",IF($A151<>"",COUNT(カテゴリースコア!R153),""),"") -> 1 | I151: =IF(I$1<>"",IF($A151<>"",COUNT(カテゴリースコア!S153),""),"") ->  | J151: =IF(J$1<>"",IF($A151<>"",COUNT(カテゴリースコア!T153),""),"") ->  | K151: =IF(K$1<>"",IF($A151<>"",COUNT(カテゴリースコア!U153),""),"") -> 
A152: =IF(データセット1!C152<>"",データセット1!C152,"") -> 0 | B152: =IF(データセット1!C152<>"",データセット1!D152-カテゴリースコア!$E$11,"") -> -170.5483871 | C152: =IF(C$1<>"",IF($A152<>"",COUNT(カテゴリースコア!M154),""),"") -> 0 | D152: =IF(D$1<>"",IF($A152<>"",COUNT(カテゴリースコア!N154),""),"") -> 0 | E152: =IF(E$1<>"",IF($A152<>"",COUNT(カテゴリースコア!O154),""),"") -> 0 | F152: =IF(F$1<>"",IF($A152<>"",COUNT(カテゴリースコア!P154),""),"") -> 1 | G152: =IF(G$1<>"",IF($A152<>"",COUNT(カテゴリースコア!Q154),""),"") -> 0 | H152: =IF(H$1<>"",IF($A152<>"",COUNT(カテゴリースコア!R154),""),"") -> 0 | I152: =IF(I$1<>"",IF($A152<>"",COUNT(カテゴリースコア!S154),""),"") ->  | J152: =IF(J$1<>"",IF($A152<>"",COUNT(カテゴリースコア!T154),""),"") ->  | K152: =IF(K$1<>"",IF($A152<>"",COUNT(カテゴリースコア!U154),""),"") -> 
A153: =IF(データセット1!C153<>"",データセット1!C153,"") -> 0 | B153: =IF(データセット1!C153<>"",データセット1!D153-カテゴリースコア!$E$11,"") -> -237.5483871 | C153: =IF(C$1<>"",IF($A153<>"",COUNT(カテゴリースコア!M155),""),"") -> 0 | D153: =IF(D$1<>"",IF($A153<>"",COUNT(カテゴリースコア!N155),""),"") -> 0 | E153: =IF(E$1<>"",IF($A153<>"",COUNT(カテゴリースコア!O155),""),"") -> 0 | F153: =IF(F$1<>"",IF($A153<>"",COUNT(カテゴリースコア!P155),""),"") -> 0 | G153: =IF(G$1<>"",IF($A153<>"",COUNT(カテゴリースコア!Q155),""),"") -> 1 | H153: =IF(H$1<>"",IF($A153<>"",COUNT(カテゴリースコア!R155),""),"") -> 0 | I153: =IF(I$1<>"",IF($A153<>"",COUNT(カテゴリースコア!S155),""),"") ->  | J153: =IF(J$1<>"",IF($A153<>"",COUNT(カテゴリースコア!T155),""),"") ->  | K153: =IF(K$1<>"",IF($A153<>"",COUNT(カテゴリースコア!U155),""),"") -> 
A154: =IF(データセット1!C154<>"",データセット1!C154,"") -> 0 | B154: =IF(データセット1!C154<>"",データセット1!D154-カテゴリースコア!$E$11,"") -> -256.5483871 | C154: =IF(C$1<>"",IF($A154<>"",COUNT(カテゴリースコア!M156),""),"") -> 0 | D154: =IF(D$1<>"",IF($A154<>"",COUNT(カテゴリースコア!N156),""),"") -> 0 | E154: =IF(E$1<>"",IF($A154<>"",COUNT(カテゴリースコア!O156),""),"") -> 0 | F154: =IF(F$1<>"",IF($A154<>"",COUNT(カテゴリースコア!P156),""),"") -> 0 | G154: =IF(G$1<>"",IF($A154<>"",COUNT(カテゴリースコア!Q156),""),"") -> 0 | H154: =IF(H$1<>"",IF($A154<>"",COUNT(カテゴリースコア!R156),""),"") -> 1 | I154: =IF(I$1<>"",IF($A154<>"",COUNT(カテゴリースコア!S156),""),"") ->  | J154: =IF(J$1<>"",IF($A154<>"",COUNT(カテゴリースコア!T156),""),"") ->  | K154: =IF(K$1<>"",IF($A154<>"",COUNT(カテゴリースコア!U156),""),"") -> 
A155: =IF(データセット1!C155<>"",データセット1!C155,"") -> 0 | B155: =IF(データセット1!C155<>"",データセット1!D155-カテゴリースコア!$E$11,"") -> -254.5483871 | C155: =IF(C$1<>"",IF($A155<>"",COUNT(カテゴリースコア!M157),""),"") -> 0 | D155: =IF(D$1<>"",IF($A155<>"",COUNT(カテゴリースコア!N157),""),"") -> 0 | E155: =IF(E$1<>"",IF($A155<>"",COUNT(カテゴリースコア!O157),""),"") -> 0 | F155: =IF(F$1<>"",IF($A155<>"",COUNT(カテゴリースコア!P157),""),"") -> 0 | G155: =IF(G$1<>"",IF($A155<>"",COUNT(カテゴリースコア!Q157),""),"") -> 0 | H155: =IF(H$1<>"",IF($A155<>"",COUNT(カテゴリースコア!R157),""),"") -> 1 | I155: =IF(I$1<>"",IF($A155<>"",COUNT(カテゴリースコア!S157),""),"") ->  | J155: =IF(J$1<>"",IF($A155<>"",COUNT(カテゴリースコア!T157),""),"") ->  | K155: =IF(K$1<>"",IF($A155<>"",COUNT(カテゴリースコア!U157),""),"") -> 
A156: =IF(データセット1!C156<>"",データセット1!C156,"") -> 0 | B156: =IF(データセット1!C156<>"",データセット1!D156-カテゴリースコア!$E$11,"") -> -251.5483871 | C156: =IF(C$1<>"",IF($A156<>"",COUNT(カテゴリースコア!M158),""),"") -> 0 | D156: =IF(D$1<>"",IF($A156<>"",COUNT(カテゴリースコア!N158),""),"") -> 0 | E156: =IF(E$1<>"",IF($A156<>"",COUNT(カテゴリースコア!O158),""),"") -> 0 | F156: =IF(F$1<>"",IF($A156<>"",COUNT(カテゴリースコア!P158),""),"") -> 0 | G156: =IF(G$1<>"",IF($A156<>"",COUNT(カテゴリースコア!Q158),""),"") -> 0 | H156: =IF(H$1<>"",IF($A156<>"",COUNT(カテゴリースコア!R158),""),"") -> 1 | I156: =IF(I$1<>"",IF($A156<>"",COUNT(カテゴリースコア!S158),""),"") ->  | J156: =IF(J$1<>"",IF($A156<>"",COUNT(カテゴリースコア!T158),""),"") ->  | K156: =IF(K$1<>"",IF($A156<>"",COUNT(カテゴリースコア!U158),""),"") -> 
A157: =IF(データセット1!C157<>"",データセット1!C157,"") -> 0 | B157: =IF(データセット1!C157<>"",データセット1!D157-カテゴリースコア!$E$11,"") -> -240.5483871 | C157: =IF(C$1<>"",IF($A157<>"",COUNT(カテゴリースコア!M159),""),"") -> 0 | D157: =IF(D$1<>"",IF($A157<>"",COUNT(カテゴリースコア!N159),""),"") -> 0 | E157: =IF(E$1<>"",IF($A157<>"",COUNT(カテゴリースコア!O159),""),"") -> 0 | F157: =IF(F$1<>"",IF($A157<>"",COUNT(カテゴリースコア!P159),""),"") -> 0 | G157: =IF(G$1<>"",IF($A157<>"",COUNT(カテゴリースコア!Q159),""),"") -> 1 | H157: =IF(H$1<>"",IF($A157<>"",COUNT(カテゴリースコア!R159),""),"") -> 0 | I157: =IF(I$1<>"",IF($A157<>"",COUNT(カテゴリースコア!S159),""),"") ->  | J157: =IF(J$1<>"",IF($A157<>"",COUNT(カテゴリースコア!T159),""),"") ->  | K157: =IF(K$1<>"",IF($A157<>"",COUNT(カテゴリースコア!U159),""),"") -> 
A158: =IF(データセット1!C158<>"",データセット1!C158,"") -> 0 | B158: =IF(データセット1!C158<>"",データセット1!D158-カテゴリースコア!$E$11,"") -> -266.5483871 | C158: =IF(C$1<>"",IF($A158<>"",COUNT(カテゴリースコア!M160),""),"") -> 0 | D158: =IF(D$1<>"",IF($A158<>"",COUNT(カテゴリースコア!N160),""),"") -> 0 | E158: =IF(E$1<>"",IF($A158<>"",COUNT(カテゴリースコア!O160),""),"") -> 0 | F158: =IF(F$1<>"",IF($A158<>"",COUNT(カテゴリースコア!P160),""),"") -> 0 | G158: =IF(G$1<>"",IF($A158<>"",COUNT(カテゴリースコア!Q160),""),"") -> 0 | H158: =IF(H$1<>"",IF($A158<>"",COUNT(カテゴリースコア!R160),""),"") -> 1 | I158: =IF(I$1<>"",IF($A158<>"",COUNT(カテゴリースコア!S160),""),"") ->  | J158: =IF(J$1<>"",IF($A158<>"",COUNT(カテゴリースコア!T160),""),"") ->  | K158: =IF(K$1<>"",IF($A158<>"",COUNT(カテゴリースコア!U160),""),"") -> 
A159: =IF(データセット1!C159<>"",データセット1!C159,"") -> 0 | B159: =IF(データセット1!C159<>"",データセット1!D159-カテゴリースコア!$E$11,"") -> -251.5483871 | C159: =IF(C$1<>"",IF($A159<>"",COUNT(カテゴリースコア!M161),""),"") -> 0 | D159: =IF(D$1<>"",IF($A159<>"",COUNT(カテゴリースコア!N161),""),"") -> 0 | E159: =IF(E$1<>"",IF($A159<>"",COUNT(カテゴリースコア!O161),""),"") -> 0 | F159: =IF(F$1<>"",IF($A159<>"",COUNT(カテゴリースコア!P161),""),"") -> 0 | G159: =IF(G$1<>"",IF($A159<>"",COUNT(カテゴリースコア!Q161),""),"") -> 1 | H159: =IF(H$1<>"",IF($A159<>"",COUNT(カテゴリースコア!R161),""),"") -> 0 | I159: =IF(I$1<>"",IF($A159<>"",COUNT(カテゴリースコア!S161),""),"") ->  | J159: =IF(J$1<>"",IF($A159<>"",COUNT(カテゴリースコア!T161),""),"") ->  | K159: =IF(K$1<>"",IF($A159<>"",COUNT(カテゴリースコア!U161),""),"") -> 
A160: =IF(データセット1!C160<>"",データセット1!C160,"") -> 0 | B160: =IF(データセット1!C160<>"",データセット1!D160-カテゴリースコア!$E$11,"") -> -283.5483871 | C160: =IF(C$1<>"",IF($A160<>"",COUNT(カテゴリースコア!M162),""),"") -> 0 | D160: =IF(D$1<>"",IF($A160<>"",COUNT(カテゴリースコア!N162),""),"") -> 0 | E160: =IF(E$1<>"",IF($A160<>"",COUNT(カテゴリースコア!O162),""),"") -> 0 | F160: =IF(F$1<>"",IF($A160<>"",COUNT(カテゴリースコア!P162),""),"") -> 0 | G160: =IF(G$1<>"",IF($A160<>"",COUNT(カテゴリースコア!Q162),""),"") -> 0 | H160: =IF(H$1<>"",IF($A160<>"",COUNT(カテゴリースコア!R162),""),"") -> 1 | I160: =IF(I$1<>"",IF($A160<>"",COUNT(カテゴリースコア!S162),""),"") ->  | J160: =IF(J$1<>"",IF($A160<>"",COUNT(カテゴリースコア!T162),""),"") ->  | K160: =IF(K$1<>"",IF($A160<>"",COUNT(カテゴリースコア!U162),""),"") -> 
A161: =IF(データセット1!C161<>"",データセット1!C161,"") -> 0 | B161: =IF(データセット1!C161<>"",データセット1!D161-カテゴリースコア!$E$11,"") -> -256.5483871 | C161: =IF(C$1<>"",IF($A161<>"",COUNT(カテゴリースコア!M163),""),"") -> 0 | D161: =IF(D$1<>"",IF($A161<>"",COUNT(カテゴリースコア!N163),""),"") -> 0 | E161: =IF(E$1<>"",IF($A161<>"",COUNT(カテゴリースコア!O163),""),"") -> 0 | F161: =IF(F$1<>"",IF($A161<>"",COUNT(カテゴリースコア!P163),""),"") -> 0 | G161: =IF(G$1<>"",IF($A161<>"",COUNT(カテゴリースコア!Q163),""),"") -> 1 | H161: =IF(H$1<>"",IF($A161<>"",COUNT(カテゴリースコア!R163),""),"") -> 0 | I161: =IF(I$1<>"",IF($A161<>"",COUNT(カテゴリースコア!S163),""),"") ->  | J161: =IF(J$1<>"",IF($A161<>"",COUNT(カテゴリースコア!T163),""),"") ->  | K161: =IF(K$1<>"",IF($A161<>"",COUNT(カテゴリースコア!U163),""),"") -> 
A162: =IF(データセット1!C162<>"",データセット1!C162,"") -> 0 | B162: =IF(データセット1!C162<>"",データセット1!D162-カテゴリースコア!$E$11,"") -> -269.5483871 | C162: =IF(C$1<>"",IF($A162<>"",COUNT(カテゴリースコア!M164),""),"") -> 0 | D162: =IF(D$1<>"",IF($A162<>"",COUNT(カテゴリースコア!N164),""),"") -> 0 | E162: =IF(E$1<>"",IF($A162<>"",COUNT(カテゴリースコア!O164),""),"") -> 0 | F162: =IF(F$1<>"",IF($A162<>"",COUNT(カテゴリースコア!P164),""),"") -> 0 | G162: =IF(G$1<>"",IF($A162<>"",COUNT(カテゴリースコア!Q164),""),"") -> 0 | H162: =IF(H$1<>"",IF($A162<>"",COUNT(カテゴリースコア!R164),""),"") -> 1 | I162: =IF(I$1<>"",IF($A162<>"",COUNT(カテゴリースコア!S164),""),"") ->  | J162: =IF(J$1<>"",IF($A162<>"",COUNT(カテゴリースコア!T164),""),"") ->  | K162: =IF(K$1<>"",IF($A162<>"",COUNT(カテゴリースコア!U164),""),"") -> 
A163: =IF(データセット1!C163<>"",データセット1!C163,"") -> 0 | B163: =IF(データセット1!C163<>"",データセット1!D163-カテゴリースコア!$E$11,"") -> -210.5483871 | C163: =IF(C$1<>"",IF($A163<>"",COUNT(カテゴリースコア!M165),""),"") -> 0 | D163: =IF(D$1<>"",IF($A163<>"",COUNT(カテゴリースコア!N165),""),"") -> 0 | E163: =IF(E$1<>"",IF($A163<>"",COUNT(カテゴリースコア!O165),""),"") -> 0 | F163: =IF(F$1<>"",IF($A163<>"",COUNT(カテゴリースコア!P165),""),"") -> 1 | G163: =IF(G$1<>"",IF($A163<>"",COUNT(カテゴリースコア!Q165),""),"") -> 0 | H163: =IF(H$1<>"",IF($A163<>"",COUNT(カテゴリースコア!R165),""),"") -> 0 | I163: =IF(I$1<>"",IF($A163<>"",COUNT(カテゴリースコア!S165),""),"") ->  | J163: =IF(J$1<>"",IF($A163<>"",COUNT(カテゴリースコア!T165),""),"") ->  | K163: =IF(K$1<>"",IF($A163<>"",COUNT(カテゴリースコア!U165),""),"") -> 
A164: =IF(データセット1!C164<>"",データセット1!C164,"") -> 0 | B164: =IF(データセット1!C164<>"",データセット1!D164-カテゴリースコア!$E$11,"") -> -270.5483871 | C164: =IF(C$1<>"",IF($A164<>"",COUNT(カテゴリースコア!M166),""),"") -> 0 | D164: =IF(D$1<>"",IF($A164<>"",COUNT(カテゴリースコア!N166),""),"") -> 0 | E164: =IF(E$1<>"",IF($A164<>"",COUNT(カテゴリースコア!O166),""),"") -> 0 | F164: =IF(F$1<>"",IF($A164<>"",COUNT(カテゴリースコア!P166),""),"") -> 0 | G164: =IF(G$1<>"",IF($A164<>"",COUNT(カテゴリースコア!Q166),""),"") -> 1 | H164: =IF(H$1<>"",IF($A164<>"",COUNT(カテゴリースコア!R166),""),"") -> 0 | I164: =IF(I$1<>"",IF($A164<>"",COUNT(カテゴリースコア!S166),""),"") ->  | J164: =IF(J$1<>"",IF($A164<>"",COUNT(カテゴリースコア!T166),""),"") ->  | K164: =IF(K$1<>"",IF($A164<>"",COUNT(カテゴリースコア!U166),""),"") -> 
A165: =IF(データセット1!C165<>"",データセット1!C165,"") -> 0 | B165: =IF(データセット1!C165<>"",データセット1!D165-カテゴリースコア!$E$11,"") -> -286.5483871 | C165: =IF(C$1<>"",IF($A165<>"",COUNT(カテゴリースコア!M167),""),"") -> 0 | D165: =IF(D$1<>"",IF($A165<>"",COUNT(カテゴリースコア!N167),""),"") -> 0 | E165: =IF(E$1<>"",IF($A165<>"",COUNT(カテゴリースコア!O167),""),"") -> 0 | F165: =IF(F$1<>"",IF($A165<>"",COUNT(カテゴリースコア!P167),""),"") -> 0 | G165: =IF(G$1<>"",IF($A165<>"",COUNT(カテゴリースコア!Q167),""),"") -> 0 | H165: =IF(H$1<>"",IF($A165<>"",COUNT(カテゴリースコア!R167),""),"") -> 1 | I165: =IF(I$1<>"",IF($A165<>"",COUNT(カテゴリースコア!S167),""),"") ->  | J165: =IF(J$1<>"",IF($A165<>"",COUNT(カテゴリースコア!T167),""),"") ->  | K165: =IF(K$1<>"",IF($A165<>"",COUNT(カテゴリースコア!U167),""),"") -> 
A166: =IF(データセット1!C166<>"",データセット1!C166,"") -> 0 | B166: =IF(データセット1!C166<>"",データセット1!D166-カテゴリースコア!$E$11,"") -> -270.5483871 | C166: =IF(C$1<>"",IF($A166<>"",COUNT(カテゴリースコア!M168),""),"") -> 0 | D166: =IF(D$1<>"",IF($A166<>"",COUNT(カテゴリースコア!N168),""),"") -> 0 | E166: =IF(E$1<>"",IF($A166<>"",COUNT(カテゴリースコア!O168),""),"") -> 0 | F166: =IF(F$1<>"",IF($A166<>"",COUNT(カテゴリースコア!P168),""),"") -> 0 | G166: =IF(G$1<>"",IF($A166<>"",COUNT(カテゴリースコア!Q168),""),"") -> 1 | H166: =IF(H$1<>"",IF($A166<>"",COUNT(カテゴリースコア!R168),""),"") -> 0 | I166: =IF(I$1<>"",IF($A166<>"",COUNT(カテゴリースコア!S168),""),"") ->  | J166: =IF(J$1<>"",IF($A166<>"",COUNT(カテゴリースコア!T168),""),"") ->  | K166: =IF(K$1<>"",IF($A166<>"",COUNT(カテゴリースコア!U168),""),"") -> 
A167: =IF(データセット1!C167<>"",データセット1!C167,"") -> 0 | B167: =IF(データセット1!C167<>"",データセット1!D167-カテゴリースコア!$E$11,"") -> -295.5483871 | C167: =IF(C$1<>"",IF($A167<>"",COUNT(カテゴリースコア!M169),""),"") -> 0 | D167: =IF(D$1<>"",IF($A167<>"",COUNT(カテゴリースコア!N169),""),"") -> 0 | E167: =IF(E$1<>"",IF($A167<>"",COUNT(カテゴリースコア!O169),""),"") -> 0 | F167: =IF(F$1<>"",IF($A167<>"",COUNT(カテゴリースコア!P169),""),"") -> 0 | G167: =IF(G$1<>"",IF($A167<>"",COUNT(カテゴリースコア!Q169),""),"") -> 0 | H167: =IF(H$1<>"",IF($A167<>"",COUNT(カテゴリースコア!R169),""),"") -> 1 | I167: =IF(I$1<>"",IF($A167<>"",COUNT(カテゴリースコア!S169),""),"") ->  | J167: =IF(J$1<>"",IF($A167<>"",COUNT(カテゴリースコア!T169),""),"") ->  | K167: =IF(K$1<>"",IF($A167<>"",COUNT(カテゴリースコア!U169),""),"") -> 
A168: =IF(データセット1!C168<>"",データセット1!C168,"") -> 0 | B168: =IF(データセット1!C168<>"",データセット1!D168-カテゴリースコア!$E$11,"") -> -236.5483871 | C168: =IF(C$1<>"",IF($A168<>"",COUNT(カテゴリースコア!M170),""),"") -> 0 | D168: =IF(D$1<>"",IF($A168<>"",COUNT(カテゴリースコア!N170),""),"") -> 0 | E168: =IF(E$1<>"",IF($A168<>"",COUNT(カテゴリースコア!O170),""),"") -> 0 | F168: =IF(F$1<>"",IF($A168<>"",COUNT(カテゴリースコア!P170),""),"") -> 0 | G168: =IF(G$1<>"",IF($A168<>"",COUNT(カテゴリースコア!Q170),""),"") -> 1 | H168: =IF(H$1<>"",IF($A168<>"",COUNT(カテゴリースコア!R170),""),"") -> 0 | I168: =IF(I$1<>"",IF($A168<>"",COUNT(カテゴリースコア!S170),""),"") ->  | J168: =IF(J$1<>"",IF($A168<>"",COUNT(カテゴリースコア!T170),""),"") ->  | K168: =IF(K$1<>"",IF($A168<>"",COUNT(カテゴリースコア!U170),""),"") -> 
A169: =IF(データセット1!C169<>"",データセット1!C169,"") -> 0 | B169: =IF(データセット1!C169<>"",データセット1!D169-カテゴリースコア!$E$11,"") -> -246.5483871 | C169: =IF(C$1<>"",IF($A169<>"",COUNT(カテゴリースコア!M171),""),"") -> 0 | D169: =IF(D$1<>"",IF($A169<>"",COUNT(カテゴリースコア!N171),""),"") -> 0 | E169: =IF(E$1<>"",IF($A169<>"",COUNT(カテゴリースコア!O171),""),"") -> 0 | F169: =IF(F$1<>"",IF($A169<>"",COUNT(カテゴリースコア!P171),""),"") -> 0 | G169: =IF(G$1<>"",IF($A169<>"",COUNT(カテゴリースコア!Q171),""),"") -> 0 | H169: =IF(H$1<>"",IF($A169<>"",COUNT(カテゴリースコア!R171),""),"") -> 1 | I169: =IF(I$1<>"",IF($A169<>"",COUNT(カテゴリースコア!S171),""),"") ->  | J169: =IF(J$1<>"",IF($A169<>"",COUNT(カテゴリースコア!T171),""),"") ->  | K169: =IF(K$1<>"",IF($A169<>"",COUNT(カテゴリースコア!U171),""),"") -> 
A170: =IF(データセット1!C170<>"",データセット1!C170,"") -> 0 | B170: =IF(データセット1!C170<>"",データセット1!D170-カテゴリースコア!$E$11,"") -> -236.5483871 | C170: =IF(C$1<>"",IF($A170<>"",COUNT(カテゴリースコア!M172),""),"") -> 0 | D170: =IF(D$1<>"",IF($A170<>"",COUNT(カテゴリースコア!N172),""),"") -> 0 | E170: =IF(E$1<>"",IF($A170<>"",COUNT(カテゴリースコア!O172),""),"") -> 0 | F170: =IF(F$1<>"",IF($A170<>"",COUNT(カテゴリースコア!P172),""),"") -> 0 | G170: =IF(G$1<>"",IF($A170<>"",COUNT(カテゴリースコア!Q172),""),"") -> 1 | H170: =IF(H$1<>"",IF($A170<>"",COUNT(カテゴリースコア!R172),""),"") -> 0 | I170: =IF(I$1<>"",IF($A170<>"",COUNT(カテゴリースコア!S172),""),"") ->  | J170: =IF(J$1<>"",IF($A170<>"",COUNT(カテゴリースコア!T172),""),"") ->  | K170: =IF(K$1<>"",IF($A170<>"",COUNT(カテゴリースコア!U172),""),"") -> 
A171: =IF(データセット1!C171<>"",データセット1!C171,"") -> 0 | B171: =IF(データセット1!C171<>"",データセット1!D171-カテゴリースコア!$E$11,"") -> -250.5483871 | C171: =IF(C$1<>"",IF($A171<>"",COUNT(カテゴリースコア!M173),""),"") -> 0 | D171: =IF(D$1<>"",IF($A171<>"",COUNT(カテゴリースコア!N173),""),"") -> 0 | E171: =IF(E$1<>"",IF($A171<>"",COUNT(カテゴリースコア!O173),""),"") -> 0 | F171: =IF(F$1<>"",IF($A171<>"",COUNT(カテゴリースコア!P173),""),"") -> 0 | G171: =IF(G$1<>"",IF($A171<>"",COUNT(カテゴリースコア!Q173),""),"") -> 0 | H171: =IF(H$1<>"",IF($A171<>"",COUNT(カテゴリースコア!R173),""),"") -> 1 | I171: =IF(I$1<>"",IF($A171<>"",COUNT(カテゴリースコア!S173),""),"") ->  | J171: =IF(J$1<>"",IF($A171<>"",COUNT(カテゴリースコア!T173),""),"") ->  | K171: =IF(K$1<>"",IF($A171<>"",COUNT(カテゴリースコア!U173),""),"") -> 
A172: =IF(データセット1!C172<>"",データセット1!C172,"") -> 0 | B172: =IF(データセット1!C172<>"",データセット1!D172-カテゴリースコア!$E$11,"") -> -243.5483871 | C172: =IF(C$1<>"",IF($A172<>"",COUNT(カテゴリースコア!M174),""),"") -> 0 | D172: =IF(D$1<>"",IF($A172<>"",COUNT(カテゴリースコア!N174),""),"") -> 0 | E172: =IF(E$1<>"",IF($A172<>"",COUNT(カテゴリースコア!O174),""),"") -> 0 | F172: =IF(F$1<>"",IF($A172<>"",COUNT(カテゴリースコア!P174),""),"") -> 0 | G172: =IF(G$1<>"",IF($A172<>"",COUNT(カテゴリースコア!Q174),""),"") -> 1 | H172: =IF(H$1<>"",IF($A172<>"",COUNT(カテゴリースコア!R174),""),"") -> 0 | I172: =IF(I$1<>"",IF($A172<>"",COUNT(カテゴリースコア!S174),""),"") ->  | J172: =IF(J$1<>"",IF($A172<>"",COUNT(カテゴリースコア!T174),""),"") ->  | K172: =IF(K$1<>"",IF($A172<>"",COUNT(カテゴリースコア!U174),""),"") -> 
A173: =IF(データセット1!C173<>"",データセット1!C173,"") -> 0 | B173: =IF(データセット1!C173<>"",データセット1!D173-カテゴリースコア!$E$11,"") -> -274.5483871 | C173: =IF(C$1<>"",IF($A173<>"",COUNT(カテゴリースコア!M175),""),"") -> 0 | D173: =IF(D$1<>"",IF($A173<>"",COUNT(カテゴリースコア!N175),""),"") -> 0 | E173: =IF(E$1<>"",IF($A173<>"",COUNT(カテゴリースコア!O175),""),"") -> 0 | F173: =IF(F$1<>"",IF($A173<>"",COUNT(カテゴリースコア!P175),""),"") -> 0 | G173: =IF(G$1<>"",IF($A173<>"",COUNT(カテゴリースコア!Q175),""),"") -> 0 | H173: =IF(H$1<>"",IF($A173<>"",COUNT(カテゴリースコア!R175),""),"") -> 1 | I173: =IF(I$1<>"",IF($A173<>"",COUNT(カテゴリースコア!S175),""),"") ->  | J173: =IF(J$1<>"",IF($A173<>"",COUNT(カテゴリースコア!T175),""),"") ->  | K173: =IF(K$1<>"",IF($A173<>"",COUNT(カテゴリースコア!U175),""),"") -> 
A174: =IF(データセット1!C174<>"",データセット1!C174,"") -> 0 | B174: =IF(データセット1!C174<>"",データセット1!D174-カテゴリースコア!$E$11,"") -> -252.5483871 | C174: =IF(C$1<>"",IF($A174<>"",COUNT(カテゴリースコア!M176),""),"") -> 0 | D174: =IF(D$1<>"",IF($A174<>"",COUNT(カテゴリースコア!N176),""),"") -> 0 | E174: =IF(E$1<>"",IF($A174<>"",COUNT(カテゴリースコア!O176),""),"") -> 0 | F174: =IF(F$1<>"",IF($A174<>"",COUNT(カテゴリースコア!P176),""),"") -> 0 | G174: =IF(G$1<>"",IF($A174<>"",COUNT(カテゴリースコア!Q176),""),"") -> 1 | H174: =IF(H$1<>"",IF($A174<>"",COUNT(カテゴリースコア!R176),""),"") -> 0 | I174: =IF(I$1<>"",IF($A174<>"",COUNT(カテゴリースコア!S176),""),"") ->  | J174: =IF(J$1<>"",IF($A174<>"",COUNT(カテゴリースコア!T176),""),"") ->  | K174: =IF(K$1<>"",IF($A174<>"",COUNT(カテゴリースコア!U176),""),"") -> 
A175: =IF(データセット1!C175<>"",データセット1!C175,"") -> 0 | B175: =IF(データセット1!C175<>"",データセット1!D175-カテゴリースコア!$E$11,"") -> -273.5483871 | C175: =IF(C$1<>"",IF($A175<>"",COUNT(カテゴリースコア!M177),""),"") -> 0 | D175: =IF(D$1<>"",IF($A175<>"",COUNT(カテゴリースコア!N177),""),"") -> 0 | E175: =IF(E$1<>"",IF($A175<>"",COUNT(カテゴリースコア!O177),""),"") -> 0 | F175: =IF(F$1<>"",IF($A175<>"",COUNT(カテゴリースコア!P177),""),"") -> 0 | G175: =IF(G$1<>"",IF($A175<>"",COUNT(カテゴリースコア!Q177),""),"") -> 0 | H175: =IF(H$1<>"",IF($A175<>"",COUNT(カテゴリースコア!R177),""),"") -> 1 | I175: =IF(I$1<>"",IF($A175<>"",COUNT(カテゴリースコア!S177),""),"") ->  | J175: =IF(J$1<>"",IF($A175<>"",COUNT(カテゴリースコア!T177),""),"") ->  | K175: =IF(K$1<>"",IF($A175<>"",COUNT(カテゴリースコア!U177),""),"") -> 
A176: =IF(データセット1!C176<>"",データセット1!C176,"") -> 0 | B176: =IF(データセット1!C176<>"",データセット1!D176-カテゴリースコア!$E$11,"") -> -253.5483871 | C176: =IF(C$1<>"",IF($A176<>"",COUNT(カテゴリースコア!M178),""),"") -> 0 | D176: =IF(D$1<>"",IF($A176<>"",COUNT(カテゴリースコア!N178),""),"") -> 0 | E176: =IF(E$1<>"",IF($A176<>"",COUNT(カテゴリースコア!O178),""),"") -> 0 | F176: =IF(F$1<>"",IF($A176<>"",COUNT(カテゴリースコア!P178),""),"") -> 0 | G176: =IF(G$1<>"",IF($A176<>"",COUNT(カテゴリースコア!Q178),""),"") -> 1 | H176: =IF(H$1<>"",IF($A176<>"",COUNT(カテゴリースコア!R178),""),"") -> 0 | I176: =IF(I$1<>"",IF($A176<>"",COUNT(カテゴリースコア!S178),""),"") ->  | J176: =IF(J$1<>"",IF($A176<>"",COUNT(カテゴリースコア!T178),""),"") ->  | K176: =IF(K$1<>"",IF($A176<>"",COUNT(カテゴリースコア!U178),""),"") -> 
A177: =IF(データセット1!C177<>"",データセット1!C177,"") -> 0 | B177: =IF(データセット1!C177<>"",データセット1!D177-カテゴリースコア!$E$11,"") -> -249.5483871 | C177: =IF(C$1<>"",IF($A177<>"",COUNT(カテゴリースコア!M179),""),"") -> 0 | D177: =IF(D$1<>"",IF($A177<>"",COUNT(カテゴリースコア!N179),""),"") -> 0 | E177: =IF(E$1<>"",IF($A177<>"",COUNT(カテゴリースコア!O179),""),"") -> 0 | F177: =IF(F$1<>"",IF($A177<>"",COUNT(カテゴリースコア!P179),""),"") -> 0 | G177: =IF(G$1<>"",IF($A177<>"",COUNT(カテゴリースコア!Q179),""),"") -> 0 | H177: =IF(H$1<>"",IF($A177<>"",COUNT(カテゴリースコア!R179),""),"") -> 1 | I177: =IF(I$1<>"",IF($A177<>"",COUNT(カテゴリースコア!S179),""),"") ->  | J177: =IF(J$1<>"",IF($A177<>"",COUNT(カテゴリースコア!T179),""),"") ->  | K177: =IF(K$1<>"",IF($A177<>"",COUNT(カテゴリースコア!U179),""),"") -> 
A178: =IF(データセット1!C178<>"",データセット1!C178,"") -> 0 | B178: =IF(データセット1!C178<>"",データセット1!D178-カテゴリースコア!$E$11,"") -> -239.5483871 | C178: =IF(C$1<>"",IF($A178<>"",COUNT(カテゴリースコア!M180),""),"") -> 0 | D178: =IF(D$1<>"",IF($A178<>"",COUNT(カテゴリースコア!N180),""),"") -> 0 | E178: =IF(E$1<>"",IF($A178<>"",COUNT(カテゴリースコア!O180),""),"") -> 0 | F178: =IF(F$1<>"",IF($A178<>"",COUNT(カテゴリースコア!P180),""),"") -> 0 | G178: =IF(G$1<>"",IF($A178<>"",COUNT(カテゴリースコア!Q180),""),"") -> 1 | H178: =IF(H$1<>"",IF($A178<>"",COUNT(カテゴリースコア!R180),""),"") -> 0 | I178: =IF(I$1<>"",IF($A178<>"",COUNT(カテゴリースコア!S180),""),"") ->  | J178: =IF(J$1<>"",IF($A178<>"",COUNT(カテゴリースコア!T180),""),"") ->  | K178: =IF(K$1<>"",IF($A178<>"",COUNT(カテゴリースコア!U180),""),"") -> 
A179: =IF(データセット1!C179<>"",データセット1!C179,"") -> 0 | B179: =IF(データセット1!C179<>"",データセット1!D179-カテゴリースコア!$E$11,"") -> -264.5483871 | C179: =IF(C$1<>"",IF($A179<>"",COUNT(カテゴリースコア!M181),""),"") -> 0 | D179: =IF(D$1<>"",IF($A179<>"",COUNT(カテゴリースコア!N181),""),"") -> 0 | E179: =IF(E$1<>"",IF($A179<>"",COUNT(カテゴリースコア!O181),""),"") -> 0 | F179: =IF(F$1<>"",IF($A179<>"",COUNT(カテゴリースコア!P181),""),"") -> 0 | G179: =IF(G$1<>"",IF($A179<>"",COUNT(カテゴリースコア!Q181),""),"") -> 0 | H179: =IF(H$1<>"",IF($A179<>"",COUNT(カテゴリースコア!R181),""),"") -> 1 | I179: =IF(I$1<>"",IF($A179<>"",COUNT(カテゴリースコア!S181),""),"") ->  | J179: =IF(J$1<>"",IF($A179<>"",COUNT(カテゴリースコア!T181),""),"") ->  | K179: =IF(K$1<>"",IF($A179<>"",COUNT(カテゴリースコア!U181),""),"") -> 
A180: =IF(データセット1!C180<>"",データセット1!C180,"") -> 0 | B180: =IF(データセット1!C180<>"",データセット1!D180-カテゴリースコア!$E$11,"") -> -256.5483871 | C180: =IF(C$1<>"",IF($A180<>"",COUNT(カテゴリースコア!M182),""),"") -> 0 | D180: =IF(D$1<>"",IF($A180<>"",COUNT(カテゴリースコア!N182),""),"") -> 0 | E180: =IF(E$1<>"",IF($A180<>"",COUNT(カテゴリースコア!O182),""),"") -> 0 | F180: =IF(F$1<>"",IF($A180<>"",COUNT(カテゴリースコア!P182),""),"") -> 0 | G180: =IF(G$1<>"",IF($A180<>"",COUNT(カテゴリースコア!Q182),""),"") -> 0 | H180: =IF(H$1<>"",IF($A180<>"",COUNT(カテゴリースコア!R182),""),"") -> 1 | I180: =IF(I$1<>"",IF($A180<>"",COUNT(カテゴリースコア!S182),""),"") ->  | J180: =IF(J$1<>"",IF($A180<>"",COUNT(カテゴリースコア!T182),""),"") ->  | K180: =IF(K$1<>"",IF($A180<>"",COUNT(カテゴリースコア!U182),""),"") -> 
A181: =IF(データセット1!C181<>"",データセット1!C181,"") -> 0 | B181: =IF(データセット1!C181<>"",データセット1!D181-カテゴリースコア!$E$11,"") -> -271.5483871 | C181: =IF(C$1<>"",IF($A181<>"",COUNT(カテゴリースコア!M183),""),"") -> 0 | D181: =IF(D$1<>"",IF($A181<>"",COUNT(カテゴリースコア!N183),""),"") -> 0 | E181: =IF(E$1<>"",IF($A181<>"",COUNT(カテゴリースコア!O183),""),"") -> 0 | F181: =IF(F$1<>"",IF($A181<>"",COUNT(カテゴリースコア!P183),""),"") -> 0 | G181: =IF(G$1<>"",IF($A181<>"",COUNT(カテゴリースコア!Q183),""),"") -> 0 | H181: =IF(H$1<>"",IF($A181<>"",COUNT(カテゴリースコア!R183),""),"") -> 1 | I181: =IF(I$1<>"",IF($A181<>"",COUNT(カテゴリースコア!S183),""),"") ->  | J181: =IF(J$1<>"",IF($A181<>"",COUNT(カテゴリースコア!T183),""),"") ->  | K181: =IF(K$1<>"",IF($A181<>"",COUNT(カテゴリースコア!U183),""),"") -> 
A182: =IF(データセット1!C182<>"",データセット1!C182,"") -> 0 | B182: =IF(データセット1!C182<>"",データセット1!D182-カテゴリースコア!$E$11,"") -> -262.5483871 | C182: =IF(C$1<>"",IF($A182<>"",COUNT(カテゴリースコア!M184),""),"") -> 0 | D182: =IF(D$1<>"",IF($A182<>"",COUNT(カテゴリースコア!N184),""),"") -> 0 | E182: =IF(E$1<>"",IF($A182<>"",COUNT(カテゴリースコア!O184),""),"") -> 0 | F182: =IF(F$1<>"",IF($A182<>"",COUNT(カテゴリースコア!P184),""),"") -> 0 | G182: =IF(G$1<>"",IF($A182<>"",COUNT(カテゴリースコア!Q184),""),"") -> 0 | H182: =IF(H$1<>"",IF($A182<>"",COUNT(カテゴリースコア!R184),""),"") -> 1 | I182: =IF(I$1<>"",IF($A182<>"",COUNT(カテゴリースコア!S184),""),"") ->  | J182: =IF(J$1<>"",IF($A182<>"",COUNT(カテゴリースコア!T184),""),"") ->  | K182: =IF(K$1<>"",IF($A182<>"",COUNT(カテゴリースコア!U184),""),"") -> 
A183: =IF(データセット1!C183<>"",データセット1!C183,"") -> 0 | B183: =IF(データセット1!C183<>"",データセット1!D183-カテゴリースコア!$E$11,"") -> -272.5483871 | C183: =IF(C$1<>"",IF($A183<>"",COUNT(カテゴリースコア!M185),""),"") -> 0 | D183: =IF(D$1<>"",IF($A183<>"",COUNT(カテゴリースコア!N185),""),"") -> 0 | E183: =IF(E$1<>"",IF($A183<>"",COUNT(カテゴリースコア!O185),""),"") -> 0 | F183: =IF(F$1<>"",IF($A183<>"",COUNT(カテゴリースコア!P185),""),"") -> 0 | G183: =IF(G$1<>"",IF($A183<>"",COUNT(カテゴリースコア!Q185),""),"") -> 0 | H183: =IF(H$1<>"",IF($A183<>"",COUNT(カテゴリースコア!R185),""),"") -> 1 | I183: =IF(I$1<>"",IF($A183<>"",COUNT(カテゴリースコア!S185),""),"") ->  | J183: =IF(J$1<>"",IF($A183<>"",COUNT(カテゴリースコア!T185),""),"") ->  | K183: =IF(K$1<>"",IF($A183<>"",COUNT(カテゴリースコア!U185),""),"") -> 
A184: =IF(データセット1!C184<>"",データセット1!C184,"") -> 0 | B184: =IF(データセット1!C184<>"",データセット1!D184-カテゴリースコア!$E$11,"") -> -273.5483871 | C184: =IF(C$1<>"",IF($A184<>"",COUNT(カテゴリースコア!M186),""),"") -> 0 | D184: =IF(D$1<>"",IF($A184<>"",COUNT(カテゴリースコア!N186),""),"") -> 0 | E184: =IF(E$1<>"",IF($A184<>"",COUNT(カテゴリースコア!O186),""),"") -> 0 | F184: =IF(F$1<>"",IF($A184<>"",COUNT(カテゴリースコア!P186),""),"") -> 0 | G184: =IF(G$1<>"",IF($A184<>"",COUNT(カテゴリースコア!Q186),""),"") -> 0 | H184: =IF(H$1<>"",IF($A184<>"",COUNT(カテゴリースコア!R186),""),"") -> 1 | I184: =IF(I$1<>"",IF($A184<>"",COUNT(カテゴリースコア!S186),""),"") ->  | J184: =IF(J$1<>"",IF($A184<>"",COUNT(カテゴリースコア!T186),""),"") ->  | K184: =IF(K$1<>"",IF($A184<>"",COUNT(カテゴリースコア!U186),""),"") -> 
A185: =IF(データセット1!C185<>"",データセット1!C185,"") -> 0 | B185: =IF(データセット1!C185<>"",データセット1!D185-カテゴリースコア!$E$11,"") -> -265.5483871 | C185: =IF(C$1<>"",IF($A185<>"",COUNT(カテゴリースコア!M187),""),"") -> 0 | D185: =IF(D$1<>"",IF($A185<>"",COUNT(カテゴリースコア!N187),""),"") -> 0 | E185: =IF(E$1<>"",IF($A185<>"",COUNT(カテゴリースコア!O187),""),"") -> 0 | F185: =IF(F$1<>"",IF($A185<>"",COUNT(カテゴリースコア!P187),""),"") -> 0 | G185: =IF(G$1<>"",IF($A185<>"",COUNT(カテゴリースコア!Q187),""),"") -> 1 | H185: =IF(H$1<>"",IF($A185<>"",COUNT(カテゴリースコア!R187),""),"") -> 0 | I185: =IF(I$1<>"",IF($A185<>"",COUNT(カテゴリースコア!S187),""),"") ->  | J185: =IF(J$1<>"",IF($A185<>"",COUNT(カテゴリースコア!T187),""),"") ->  | K185: =IF(K$1<>"",IF($A185<>"",COUNT(カテゴリースコア!U187),""),"") -> 
A186: =IF(データセット1!C186<>"",データセット1!C186,"") -> 0 | B186: =IF(データセット1!C186<>"",データセット1!D186-カテゴリースコア!$E$11,"") -> -273.5483871 | C186: =IF(C$1<>"",IF($A186<>"",COUNT(カテゴリースコア!M188),""),"") -> 0 | D186: =IF(D$1<>"",IF($A186<>"",COUNT(カテゴリースコア!N188),""),"") -> 0 | E186: =IF(E$1<>"",IF($A186<>"",COUNT(カテゴリースコア!O188),""),"") -> 0 | F186: =IF(F$1<>"",IF($A186<>"",COUNT(カテゴリースコア!P188),""),"") -> 0 | G186: =IF(G$1<>"",IF($A186<>"",COUNT(カテゴリースコア!Q188),""),"") -> 0 | H186: =IF(H$1<>"",IF($A186<>"",COUNT(カテゴリースコア!R188),""),"") -> 1 | I186: =IF(I$1<>"",IF($A186<>"",COUNT(カテゴリースコア!S188),""),"") ->  | J186: =IF(J$1<>"",IF($A186<>"",COUNT(カテゴリースコア!T188),""),"") ->  | K186: =IF(K$1<>"",IF($A186<>"",COUNT(カテゴリースコア!U188),""),"") -> 
A187: =IF(データセット1!C187<>"",データセット1!C187,"") -> 0 | B187: =IF(データセット1!C187<>"",データセット1!D187-カテゴリースコア!$E$11,"") -> -272.5483871 | C187: =IF(C$1<>"",IF($A187<>"",COUNT(カテゴリースコア!M189),""),"") -> 0 | D187: =IF(D$1<>"",IF($A187<>"",COUNT(カテゴリースコア!N189),""),"") -> 0 | E187: =IF(E$1<>"",IF($A187<>"",COUNT(カテゴリースコア!O189),""),"") -> 0 | F187: =IF(F$1<>"",IF($A187<>"",COUNT(カテゴリースコア!P189),""),"") -> 0 | G187: =IF(G$1<>"",IF($A187<>"",COUNT(カテゴリースコア!Q189),""),"") -> 0 | H187: =IF(H$1<>"",IF($A187<>"",COUNT(カテゴリースコア!R189),""),"") -> 1 | I187: =IF(I$1<>"",IF($A187<>"",COUNT(カテゴリースコア!S189),""),"") ->  | J187: =IF(J$1<>"",IF($A187<>"",COUNT(カテゴリースコア!T189),""),"") ->  | K187: =IF(K$1<>"",IF($A187<>"",COUNT(カテゴリースコア!U189),""),"") -> 
A188: =IF(データセット1!C188<>"",データセット1!C188,"") ->  | B188: =IF(データセット1!C188<>"",データセット1!D188-カテゴリースコア!$E$11,"") ->  | C188: =IF(C$1<>"",IF($A188<>"",COUNT(カテゴリースコア!M190),""),"") ->  | D188: =IF(D$1<>"",IF($A188<>"",COUNT(カテゴリースコア!N190),""),"") ->  | E188: =IF(E$1<>"",IF($A188<>"",COUNT(カテゴリースコア!O190),""),"") ->  | F188: =IF(F$1<>"",IF($A188<>"",COUNT(カテゴリースコア!P190),""),"") ->  | G188: =IF(G$1<>"",IF($A188<>"",COUNT(カテゴリースコア!Q190),""),"") ->  | H188: =IF(H$1<>"",IF($A188<>"",COUNT(カテゴリースコア!R190),""),"") ->  | I188: =IF(I$1<>"",IF($A188<>"",COUNT(カテゴリースコア!S190),""),"") ->  | J188: =IF(J$1<>"",IF($A188<>"",COUNT(カテゴリースコア!T190),""),"") ->  | K188: =IF(K$1<>"",IF($A188<>"",COUNT(カテゴリースコア!U190),""),"") -> 
A189: =IF(データセット1!C189<>"",データセット1!C189,"") ->  | B189: =IF(データセット1!C189<>"",データセット1!D189-カテゴリースコア!$E$11,"") ->  | C189: =IF(C$1<>"",IF($A189<>"",COUNT(カテゴリースコア!M191),""),"") ->  | D189: =IF(D$1<>"",IF($A189<>"",COUNT(カテゴリースコア!N191),""),"") ->  | E189: =IF(E$1<>"",IF($A189<>"",COUNT(カテゴリースコア!O191),""),"") ->  | F189: =IF(F$1<>"",IF($A189<>"",COUNT(カテゴリースコア!P191),""),"") ->  | G189: =IF(G$1<>"",IF($A189<>"",COUNT(カテゴリースコア!Q191),""),"") ->  | H189: =IF(H$1<>"",IF($A189<>"",COUNT(カテゴリースコア!R191),""),"") ->  | I189: =IF(I$1<>"",IF($A189<>"",COUNT(カテゴリースコア!S191),""),"") ->  | J189: =IF(J$1<>"",IF($A189<>"",COUNT(カテゴリースコア!T191),""),"") ->  | K189: =IF(K$1<>"",IF($A189<>"",COUNT(カテゴリースコア!U191),""),"") -> 
A190: =IF(データセット1!C190<>"",データセット1!C190,"") ->  | B190: =IF(データセット1!C190<>"",データセット1!D190-カテゴリースコア!$E$11,"") ->  | C190: =IF(C$1<>"",IF($A190<>"",COUNT(カテゴリースコア!M192),""),"") ->  | D190: =IF(D$1<>"",IF($A190<>"",COUNT(カテゴリースコア!N192),""),"") ->  | E190: =IF(E$1<>"",IF($A190<>"",COUNT(カテゴリースコア!O192),""),"") ->  | F190: =IF(F$1<>"",IF($A190<>"",COUNT(カテゴリースコア!P192),""),"") ->  | G190: =IF(G$1<>"",IF($A190<>"",COUNT(カテゴリースコア!Q192),""),"") ->  | H190: =IF(H$1<>"",IF($A190<>"",COUNT(カテゴリースコア!R192),""),"") ->  | I190: =IF(I$1<>"",IF($A190<>"",COUNT(カテゴリースコア!S192),""),"") ->  | J190: =IF(J$1<>"",IF($A190<>"",COUNT(カテゴリースコア!T192),""),"") ->  | K190: =IF(K$1<>"",IF($A190<>"",COUNT(カテゴリースコア!U192),""),"") -> 
A191: =IF(データセット1!C191<>"",データセット1!C191,"") ->  | B191: =IF(データセット1!C191<>"",データセット1!D191-カテゴリースコア!$E$11,"") ->  | C191: =IF(C$1<>"",IF($A191<>"",COUNT(カテゴリースコア!M193),""),"") ->  | D191: =IF(D$1<>"",IF($A191<>"",COUNT(カテゴリースコア!N193),""),"") ->  | E191: =IF(E$1<>"",IF($A191<>"",COUNT(カテゴリースコア!O193),""),"") ->  | F191: =IF(F$1<>"",IF($A191<>"",COUNT(カテゴリースコア!P193),""),"") ->  | G191: =IF(G$1<>"",IF($A191<>"",COUNT(カテゴリースコア!Q193),""),"") ->  | H191: =IF(H$1<>"",IF($A191<>"",COUNT(カテゴリースコア!R193),""),"") ->  | I191: =IF(I$1<>"",IF($A191<>"",COUNT(カテゴリースコア!S193),""),"") ->  | J191: =IF(J$1<>"",IF($A191<>"",COUNT(カテゴリースコア!T193),""),"") ->  | K191: =IF(K$1<>"",IF($A191<>"",COUNT(カテゴリースコア!U193),""),"") -> 
A192: =IF(データセット1!C192<>"",データセット1!C192,"") ->  | B192: =IF(データセット1!C192<>"",データセット1!D192-カテゴリースコア!$E$11,"") ->  | C192: =IF(C$1<>"",IF($A192<>"",COUNT(カテゴリースコア!M194),""),"") ->  | D192: =IF(D$1<>"",IF($A192<>"",COUNT(カテゴリースコア!N194),""),"") ->  | E192: =IF(E$1<>"",IF($A192<>"",COUNT(カテゴリースコア!O194),""),"") ->  | F192: =IF(F$1<>"",IF($A192<>"",COUNT(カテゴリースコア!P194),""),"") ->  | G192: =IF(G$1<>"",IF($A192<>"",COUNT(カテゴリースコア!Q194),""),"") ->  | H192: =IF(H$1<>"",IF($A192<>"",COUNT(カテゴリースコア!R194),""),"") ->  | I192: =IF(I$1<>"",IF($A192<>"",COUNT(カテゴリースコア!S194),""),"") ->  | J192: =IF(J$1<>"",IF($A192<>"",COUNT(カテゴリースコア!T194),""),"") ->  | K192: =IF(K$1<>"",IF($A192<>"",COUNT(カテゴリースコア!U194),""),"") -> 
A193: =IF(データセット1!C193<>"",データセット1!C193,"") ->  | B193: =IF(データセット1!C193<>"",データセット1!D193-カテゴリースコア!$E$11,"") ->  | C193: =IF(C$1<>"",IF($A193<>"",COUNT(カテゴリースコア!M195),""),"") ->  | D193: =IF(D$1<>"",IF($A193<>"",COUNT(カテゴリースコア!N195),""),"") ->  | E193: =IF(E$1<>"",IF($A193<>"",COUNT(カテゴリースコア!O195),""),"") ->  | F193: =IF(F$1<>"",IF($A193<>"",COUNT(カテゴリースコア!P195),""),"") ->  | G193: =IF(G$1<>"",IF($A193<>"",COUNT(カテゴリースコア!Q195),""),"") ->  | H193: =IF(H$1<>"",IF($A193<>"",COUNT(カテゴリースコア!R195),""),"") ->  | I193: =IF(I$1<>"",IF($A193<>"",COUNT(カテゴリースコア!S195),""),"") ->  | J193: =IF(J$1<>"",IF($A193<>"",COUNT(カテゴリースコア!T195),""),"") ->  | K193: =IF(K$1<>"",IF($A193<>"",COUNT(カテゴリースコア!U195),""),"") -> 
A194: =IF(データセット1!C194<>"",データセット1!C194,"") ->  | B194: =IF(データセット1!C194<>"",データセット1!D194-カテゴリースコア!$E$11,"") ->  | C194: =IF(C$1<>"",IF($A194<>"",COUNT(カテゴリースコア!M196),""),"") ->  | D194: =IF(D$1<>"",IF($A194<>"",COUNT(カテゴリースコア!N196),""),"") ->  | E194: =IF(E$1<>"",IF($A194<>"",COUNT(カテゴリースコア!O196),""),"") ->  | F194: =IF(F$1<>"",IF($A194<>"",COUNT(カテゴリースコア!P196),""),"") ->  | G194: =IF(G$1<>"",IF($A194<>"",COUNT(カテゴリースコア!Q196),""),"") ->  | H194: =IF(H$1<>"",IF($A194<>"",COUNT(カテゴリースコア!R196),""),"") ->  | I194: =IF(I$1<>"",IF($A194<>"",COUNT(カテゴリースコア!S196),""),"") ->  | J194: =IF(J$1<>"",IF($A194<>"",COUNT(カテゴリースコア!T196),""),"") ->  | K194: =IF(K$1<>"",IF($A194<>"",COUNT(カテゴリースコア!U196),""),"") -> 
A195: =IF(データセット1!C195<>"",データセット1!C195,"") ->  | B195: =IF(データセット1!C195<>"",データセット1!D195-カテゴリースコア!$E$11,"") ->  | C195: =IF(C$1<>"",IF($A195<>"",COUNT(カテゴリースコア!M197),""),"") ->  | D195: =IF(D$1<>"",IF($A195<>"",COUNT(カテゴリースコア!N197),""),"") ->  | E195: =IF(E$1<>"",IF($A195<>"",COUNT(カテゴリースコア!O197),""),"") ->  | F195: =IF(F$1<>"",IF($A195<>"",COUNT(カテゴリースコア!P197),""),"") ->  | G195: =IF(G$1<>"",IF($A195<>"",COUNT(カテゴリースコア!Q197),""),"") ->  | H195: =IF(H$1<>"",IF($A195<>"",COUNT(カテゴリースコア!R197),""),"") ->  | I195: =IF(I$1<>"",IF($A195<>"",COUNT(カテゴリースコア!S197),""),"") ->  | J195: =IF(J$1<>"",IF($A195<>"",COUNT(カテゴリースコア!T197),""),"") ->  | K195: =IF(K$1<>"",IF($A195<>"",COUNT(カテゴリースコア!U197),""),"") -> 
A196: =IF(データセット1!C196<>"",データセット1!C196,"") ->  | B196: =IF(データセット1!C196<>"",データセット1!D196-カテゴリースコア!$E$11,"") ->  | C196: =IF(C$1<>"",IF($A196<>"",COUNT(カテゴリースコア!M198),""),"") ->  | D196: =IF(D$1<>"",IF($A196<>"",COUNT(カテゴリースコア!N198),""),"") ->  | E196: =IF(E$1<>"",IF($A196<>"",COUNT(カテゴリースコア!O198),""),"") ->  | F196: =IF(F$1<>"",IF($A196<>"",COUNT(カテゴリースコア!P198),""),"") ->  | G196: =IF(G$1<>"",IF($A196<>"",COUNT(カテゴリースコア!Q198),""),"") ->  | H196: =IF(H$1<>"",IF($A196<>"",COUNT(カテゴリースコア!R198),""),"") ->  | I196: =IF(I$1<>"",IF($A196<>"",COUNT(カテゴリースコア!S198),""),"") ->  | J196: =IF(J$1<>"",IF($A196<>"",COUNT(カテゴリースコア!T198),""),"") ->  | K196: =IF(K$1<>"",IF($A196<>"",COUNT(カテゴリースコア!U198),""),"") -> 
A197: =IF(データセット1!C197<>"",データセット1!C197,"") ->  | B197: =IF(データセット1!C197<>"",データセット1!D197-カテゴリースコア!$E$11,"") ->  | C197: =IF(C$1<>"",IF($A197<>"",COUNT(カテゴリースコア!M199),""),"") ->  | D197: =IF(D$1<>"",IF($A197<>"",COUNT(カテゴリースコア!N199),""),"") ->  | E197: =IF(E$1<>"",IF($A197<>"",COUNT(カテゴリースコア!O199),""),"") ->  | F197: =IF(F$1<>"",IF($A197<>"",COUNT(カテゴリースコア!P199),""),"") ->  | G197: =IF(G$1<>"",IF($A197<>"",COUNT(カテゴリースコア!Q199),""),"") ->  | H197: =IF(H$1<>"",IF($A197<>"",COUNT(カテゴリースコア!R199),""),"") ->  | I197: =IF(I$1<>"",IF($A197<>"",COUNT(カテゴリースコア!S199),""),"") ->  | J197: =IF(J$1<>"",IF($A197<>"",COUNT(カテゴリースコア!T199),""),"") ->  | K197: =IF(K$1<>"",IF($A197<>"",COUNT(カテゴリースコア!U199),""),"") -> 
A198: =IF(データセット1!C198<>"",データセット1!C198,"") ->  | B198: =IF(データセット1!C198<>"",データセット1!D198-カテゴリースコア!$E$11,"") ->  | C198: =IF(C$1<>"",IF($A198<>"",COUNT(カテゴリースコア!M200),""),"") ->  | D198: =IF(D$1<>"",IF($A198<>"",COUNT(カテゴリースコア!N200),""),"") ->  | E198: =IF(E$1<>"",IF($A198<>"",COUNT(カテゴリースコア!O200),""),"") ->  | F198: =IF(F$1<>"",IF($A198<>"",COUNT(カテゴリースコア!P200),""),"") ->  | G198: =IF(G$1<>"",IF($A198<>"",COUNT(カテゴリースコア!Q200),""),"") ->  | H198: =IF(H$1<>"",IF($A198<>"",COUNT(カテゴリースコア!R200),""),"") ->  | I198: =IF(I$1<>"",IF($A198<>"",COUNT(カテゴリースコア!S200),""),"") ->  | J198: =IF(J$1<>"",IF($A198<>"",COUNT(カテゴリースコア!T200),""),"") ->  | K198: =IF(K$1<>"",IF($A198<>"",COUNT(カテゴリースコア!U200),""),"") -> 
A199: =IF(データセット1!C199<>"",データセット1!C199,"") ->  | B199: =IF(データセット1!C199<>"",データセット1!D199-カテゴリースコア!$E$11,"") ->  | C199: =IF(C$1<>"",IF($A199<>"",COUNT(カテゴリースコア!M201),""),"") ->  | D199: =IF(D$1<>"",IF($A199<>"",COUNT(カテゴリースコア!N201),""),"") ->  | E199: =IF(E$1<>"",IF($A199<>"",COUNT(カテゴリースコア!O201),""),"") ->  | F199: =IF(F$1<>"",IF($A199<>"",COUNT(カテゴリースコア!P201),""),"") ->  | G199: =IF(G$1<>"",IF($A199<>"",COUNT(カテゴリースコア!Q201),""),"") ->  | H199: =IF(H$1<>"",IF($A199<>"",COUNT(カテゴリースコア!R201),""),"") ->  | I199: =IF(I$1<>"",IF($A199<>"",COUNT(カテゴリースコア!S201),""),"") ->  | J199: =IF(J$1<>"",IF($A199<>"",COUNT(カテゴリースコア!T201),""),"") ->  | K199: =IF(K$1<>"",IF($A199<>"",COUNT(カテゴリースコア!U201),""),"") -> 
A200: =IF(データセット1!C200<>"",データセット1!C200,"") ->  | B200: =IF(データセット1!C200<>"",データセット1!D200-カテゴリースコア!$E$11,"") ->  | C200: =IF(C$1<>"",IF($A200<>"",COUNT(カテゴリースコア!M202),""),"") ->  | D200: =IF(D$1<>"",IF($A200<>"",COUNT(カテゴリースコア!N202),""),"") ->  | E200: =IF(E$1<>"",IF($A200<>"",COUNT(カテゴリースコア!O202),""),"") ->  | F200: =IF(F$1<>"",IF($A200<>"",COUNT(カテゴリースコア!P202),""),"") ->  | G200: =IF(G$1<>"",IF($A200<>"",COUNT(カテゴリースコア!Q202),""),"") ->  | H200: =IF(H$1<>"",IF($A200<>"",COUNT(カテゴリースコア!R202),""),"") ->  | I200: =IF(I$1<>"",IF($A200<>"",COUNT(カテゴリースコア!S202),""),"") ->  | J200: =IF(J$1<>"",IF($A200<>"",COUNT(カテゴリースコア!T202),""),"") ->  | K200: =IF(K$1<>"",IF($A200<>"",COUNT(カテゴリースコア!U202),""),"") -> 
... 800 more rows
